Workbook

Sheet INDICE
F1: BÉLGICA
F2: Trocas comerciais com Portugal (PT) 2018-2022 Setores agrícola e agroalimentar, do mar e das florestas
C3: Fonte
D4: Estatísticas do Comércio Internacional | F4: Bélgica - Síntese
D5: dados: 2021 provisórios; 2022 preliminares | F5: 1. Evolução da balança comercial
F6: 2. Ranking dos parceiros comerciais de Portugal por país
C7: Data | D7: 2023-07-19T17:13:34.470 | F7: 2A Parceiros comerciais de Portugal - UE vs. Países Terceiros
F8: 3. Principais produtos transacionados (NC a 2 e 4 dígitos)
F9: 3A Principais produtos transacionados (sem mar nem florestas)
F10: 4A Evolução da balança comercial por produto
F11: 5.2. Trocas comerciais por produto (NC 2 dígitos)

Sheet Sintese
A1: Bélgica - Síntese (2018-2022)
A3: • As trocas comerciais de bens transacionáveis (excluindo serviços) entre Portugal e Bélgica representam um total de 1,5 mil milhões de € (M€) em exportações e 2,5 mil M€ em importações, na média do período 2018-2022, correspondendo a um saldo negativo da balança comercial de cerca de -1,0 mil M€.
A4: • No que respeita aos produtos dos setores agrícola e agroalimentar, mar e florestas, Portugal exportou para Bélgica 239,1 M€ em média anual, no mesmo período (este país ocupa assim a 12ª posição em relação ao total dos países), enquanto as importações totalizaram 285,4 M€ (8ª posição), com um saldo negativo de -46,2 M€. Estes setores representam perto de 16,2% do total de exportações de bens transacionáveis e 11,4% das correspondentes importações.
A5: • Se nos referirmos apenas ao setor agrícola e agroalimentar, as exportações representam, em média, 166,5 M€ (11ª posição) e as importações 256,1 milhões (7ª posição), ou seja, Portugal tem um saldo negativo de -89,5 M€. Estes valores representam, respetivamente, cerca de 69,6% das exportações do setor agroflorestal e mar e 89,7% das importações.
A6: • As principais exportações agrícolas e agroalimentares (NC 4 dígitos) neste período são Vinhos de uvas frescas (29%), Produtos hortícolas congelados (21%) e Outras frutas frescas (7%). As importações agrícolas e agroalimentares mais relevantes referem-se a Produtos hortícolas preparados, congelados (11%), Chocolate e outras preparações com cacau (7%) e Queijos e requeijão (6%). Se considerarmos também os produtos do mar e da floresta, merecem particular destaque, em termos de exportações, Vinhos de uvas frescas (20%), Produtos hortícolas congelados (15%) e Papel e cartão p/ escrita, etc. (10%). Nas importações destes setores, destacam-se Produtos hortícolas preparados, congelados (10%), Chocolate e outras preparações com cacau (6%) e Queijos e requeijão (5%).
A9: Saldo da Balança Comercial | B9: 2018 | C9: 2019 | D9: 2020 | E9: 2021 | F9: 2022 | G9: média 2018-2022 | J9: Posição entre os parceiros comerciais de Portugal (milhares de euros)
A10: Total de Bens Transacionáveis* | B10: -880761.564 | C10: -1062016.3 | D10: -725132.804 | E10: -986775.395 | F10: -1530611.523 | G10: -1037059.517 | J10: AA + M + F | K10: Posição | L10: média 2018-2022 | M10: % do total | N10: TVMA* 2018-2022 | O10: TVT* 2018-2022
A11: Agrícola e Agroalimentar (AA) | B11: -65052.2 | C11: -84502.356 | D11: -37194.62 | E11: -110792.148 | F11: -150165.657 | G11: -89541.3962 | J11: Exportações | K11: 12ª | L11: 239134.6588 | M11: 0.01845409007 | N11: 0.05947614031 | O11: 0.2599831084
A12: Mar (M) | B12: 1324.081 | C12: 1064.029 | D12: 3171.665 | E12: 1550.261 | F12: 3378.757 | G12: 2097.7586 | J12: Importações | K12: 8ª | L12: 285371.451 | M12: 0.01908365341 | N12: 0.1013260976 | O12: 0.4711729211
A13: Florestas (F) | B13: 36328.005 | C13: 1994-06-16T16:39:21.600 | D13: 36343.524 | E13: 40120.241 | F13: 2060-10-26T18:18:43.200 | G13: 41206.8454 | J13: AA
A14: AA + M + F | B14: -27400.114 | C14: -48936.633 | D14: 2320.569 | E14: -69121.646 | F14: -88046.137 | G14: -46236.7922 | J14: Exportações | K14: 11ª | L14: 166518.1478 | M14: 0.02356587025 | N14: 0.03818574817 | O14: 0.1617167495
J15: Importações | K15: 7ª | L15: 256059.544 | M15: 0.02510778185 | N15: 0.0832996917 | O15: 0.4919116242
A16: milhares de euros *exclui serviços | K16: *TVMA - Taxa de variação média anual; TVT - Taxa de variação total
A18: Evolução das trocas comerciais Portugal-Bélgica em milhares de euros (2018-2022)
E27: Exportações | G27: Importações | I27: Saldo
A28: Principais produtos agrícolas e agroalimentares, do mar e da floresta transacionados (NC 4 dígitos)
A47: Principais produtos agrícolas e agroalimentares transacionados (NC 4 dígitos)
A81: Fonte: GPP a partir de dados INE/Comércio Internacional (2021 provisórios; 2022 preliminares) | N81: 2023-07-19T17:13:34.470

Sheet 1
A1: Evolução da balança comercial Portugal-Bélgica 2018-2022 em milhões de euros
A3: Total de Bens Transacionáveis (BT)(1) | B3: 2018 | C3: 2019 | D3: 2020 | E3: 2021 | F3: 2022 | G3: média quinquénio | H3: var. 18/19 | I3: var. 19/20 | J3: var. 20/21 | K3: var. 21/22 | L3: TVMA* 2018-2022 | M3: TVT* 2018-2022
A4: Exportações | B4: 1319.085579 | C4: 1370.246572 | D4: 1231.151222 | E4: 1595.865173 | F4: 1864.087738 | G4: 1476.087257 | H4: 0.03878519621 | I4: -0.1015111826 | J4: 0.2962381424 | K4: 0.1680734498 | L4: 0.0903058551 | M4: 0.4131666419
A5: Importações | B5: 2199.847143 | C5: 2432.262872 | D5: 1956.284026 | E5: 2582.640568 | F5: 3394.699261 | G5: 2513.146774 | H5: 0.1056508539 | I5: -0.1956938337 | J5: 0.3201766889 | K5: 0.3144296202 | L5: 0.1145567856 | M5: 0.5431523376
A6: Saldo (exp-imp) | B6: -880.761564 | C6: -1062.0163 | D6: -725.132804 | E6: -986.775395 | F6: -1530.611523 | G6: -1037.059517
A7: Cobertura (exp/imp) | B7: 0.5996260164 | C7: 0.5633628617 | D7: 0.6293315314 | E7: 0.6179199664 | F7: 0.5491171956 | G7: 0.5873462195
A8: Exp BT Bélgica / Exp BT Mundo | B8: 0.02280182835 | C8: 0.02287449576 | D8: 0.02290198916 | E8: 0.02508491302 | F8: 0.02385486012 | G8: 0.02355922476 | L8: Exportações
A9: Imp BT Bélgica / Imp BT Mundo | B9: 0.02916051327 | C9: 0.03041198055 | D9: 0.02870742859 | E9: 0.03106161964 | F9: 0.0310746618 | G9: 0.03020965093 | L9: Importações
A10: Exp BT Bélgica / Exp TE Mundo | B10: 0.01479729148 | C10: 0.01469102257 | D10: 0.01657317732 | E10: 0.01784990045 | F10: 0.01556626395 | G10: 0.01584270818
A11: Imp BT Bélgica / Imp TE Mundo | B11: 0.0249431675 | C11: 0.0263512051 | D11: 0.02489393239 | E11: 0.02703466969 | F11: 0.02700680365 | G11: 0.02616174139
A12: (1) Todos os produtos transacionados entre PT e Bélgica (exclui serviços) | D12: TE - Total da Economia (bens e serviços) Fonte: INE/Contas Nacionais | H12: *TVMA - Taxa de variação média anual; TVT - Taxa de variação total
A24: Agro(1) + Mar + Florestas (AMF) | B24: 2018 | C24: 2019 | D24: 2020 | E24: 2021 | F24: 2022 | G24: média quinquénio | H24: var. 18/19 | I24: var. 19/20 | J24: var. 20/21 | K24: var. 21/22 | L24: TVMA* 2018-2022 | M24: TVT* 2018-2022
A25: Exportações | B25: 226.032831 | C25: 229.57937 | D25: 220.344361 | E25: 234.919183 | F25: 284.797549 | G25: 239.1346588 | H25: 0.0156903711 | I25: -0.040225779 | J25: 0.06614565462 | K25: 0.2123213837 | L25: 0.05947614031 | M25: 0.2599831084
A26: Importações | B26: 253.432945 | C26: 278.516003 | D26: 218.023792 | E26: 304.040829 | F26: 372.843686 | G26: 285.371451 | H26: 0.09897315442 | I26: -0.2171947405 | J26: 0.3945305061 | K26: 0.2262947948 | L26: 0.1013260976 | M26: 0.4711729211
A27: Saldo (exp-imp) | B27: -27.400114 | C27: -48.936633 | D27: 2.320569 | E27: -69.121646 | F27: -88.046137 | G27: -46.2367922
A28: Cobertura (exp/imp) | B28: 0.8918841668 | C28: 0.8242950765 | D28: 1.01064365 | E28: 0.772656698 | F28: 0.7638524124 | G28: 0.8379768122
A29: Exp AMF / Exp BT | B29: 0.1713556987 | C29: 0.1675460276 | D29: 0.1789742455 | E29: 0.1472049061 | F29: 0.1527811933 | G29: 0.1620057742 | L29: Exportações
A30: Imp AMF / Imp BT | B30: 0.1152047977 | C30: 0.1145090057 | D30: 0.1114479233 | E30: 0.1177247941 | F30: 0.1098311389 | G30: 0.1135514463 | L30: Importações
A31: Exp AMF Bélgica / Exp AMF Mundo | B31: 0.01940077806 | C31: 0.01941010814 | D31: 0.01910151491 | E31: 0.01753577153 | F31: 0.01738559832 | G31: 0.01845409007
A32: Imp AMF Bélgica / Imp AMF Mundo | B32: 0.01859294563 | C32: 0.02013364007 | D32: 0.01671271065 | E32: 0.02034451261 | F32: 0.01930372574 | G32: 0.01908365341
A33: (1) Produtos agrícolas e agroalimentares | B33: BT - Total de Bens Transacionáveis (exclui serviços) | H33: *TVMA - Taxa de variação média anual; TVT - Taxa de variação total
A45: Agroalimentar (AA)(1) | B45: 2018 | C45: 2019 | D45: 2020 | E45: 2021 | F45: 2022 | G45: média quinquénio | H45: var. 18/19 | I45: var. 19/20 | J45: var. 20/21 | K45: var. 21/22 | L45: TVMA* 2018-2022 | M45: TVT* 2018-2022
A46: Exportações | B46: 160.855082 | C46: 164.451233 | D46: 156.878807 | E46: 163.537574 | F46: 186.868043 | G46: 166.5181478 | H46: 0.02235646493 | I46: -0.0460466356 | J46: 0.04244529346 | K46: 0.142661215 | L46: 0.03818574817 | M46: 0.1617167495
A47: Importações | B47: 225.907282 | C47: 248.953589 | D47: 194.073427 | E47: 274.329722 | F47: 337.0337 | G47: 256.059544 | H47: 0.1020166627 | I47: -0.2204433454 | J47: 0.4135357233 | K47: 0.22857158 | L47: 0.1051870169 | M47: 0.4919116242
A48: Saldo (exp-imp) | B48: -65.0522 | C48: -84.502356 | D48: -37.19462 | E48: -110.792148 | F48: -150.165657 | G48: -89.5413962
A49: Cobertura (exp/imp) | B49: 0.7120402697 | C49: 0.6605698422 | D49: 0.8083476931 | E49: 0.5961350918 | F49: 0.5544491337 | G49: 0.6503102567
A50: Exp AA / Exp AMF | B50: 0.7116447699 | C50: 0.7163153771 | D50: 0.7119710543 | E50: 0.6961439756 | F50: 0.6561434382 | G50: 0.6963363179 | L50: Exportações
A51: Imp AA / Imp AMF | B51: 0.8913887735 | C51: 0.8938573953 | D51: 0.8901479294 | E51: 0.9022792199 | F51: 0.9039544256 | G51: 0.8972850757 | L51: Importações
A52: Exp AA / Exp BT | B52: 0.1219443867 | C52: 0.120015796 | D52: 0.1274244822 | E52: 0.1024758086 | F52: 0.1002463775 | G52: 0.1128105043
A53: Imp AA / Imp BT | B53: 0.1026922633 | C53: 0.1023547216 | D53: 0.09920513812 | E53: 0.1062206353 | F53: 0.09928234406 | G53: 0.1018880181
A54: Exp AA Bélgica / Exp AA Mundo | B54: 0.02633999128 | C54: 0.02613797436 | D54: 0.02370815651 | E54: 0.02194604155 | F54: 0.02108420054 | G54: 0.02356587025
A55: Imp AA Bélgica / Imp AA Mundo | B55: 0.02483622993 | C55: 0.02672014967 | D55: 0.02136325278 | E55: 0.0267095611 | F55: 0.02548685689 | G55: 0.02510778185
A56: (1) Produtos agrícolas e agroalimentares | B56: AMF - Agroalimentar, Mar e Florestas; BT - Total de Bens Transacionáveis (exclui serviços) | H56: *TVMA - Taxa de variação média anual; TVT - Taxa de variação total
A67: Mar (M) | B67: 2018 | C67: 2019 | D67: 2020 | E67: 2021 | F67: 2022 | G67: média quinquénio | H67: var. 18/19 | I67: var. 19/20 | J67: var. 20/21 | K67: var. 21/22 | L67: TVMA* 2018-2022 | M67: TVT* 2018-2022
A68: Exportações | B68: 7.959827 | C68: 8.804206 | D68: 10.852932 | E68: 10.863994 | F68: 12.295457 | G68: 10.1552832 | H68: 0.1060800693 | I68: 0.2326985534 | J68: 0.001019263734 | K68: 0.1317621309 | L68: 0.1148341446 | M68: 0.5446889738
A69: Importações | B69: 6.635746 | C69: 7.740177 | D69: 7.681267 | E69: 9.313733 | F69: 8.9167 | G69: 8.0575246 | H69: 0.1664365996 | I69: -0.007610937063 | J69: 0.2125256159 | K69: -0.04262877194 | L69: 0.07666005412
A70: Saldo (exp-imp) | B70: 1.324081 | C70: 1.064029 | D70: 3.171665 | E70: 1.550261 | F70: 3.378757 | G70: 2.0977586
A71: Cobertura (exp/imp) | B71: 1.199537625 | C71: 1.137468303 | D71: 1.412909094 | E71: 1.166448942 | F71: 1.378924602 | G71: 1.260347775
A72: Exp M / Exp AMF | B72: 0.03521535772 | C72: 0.0383492907 | D72: 0.04925441228 | E72: 0.04624566568 | F72: 0.04317262225 | G72: 0.04246679779 | L72: Exportações
A73: Imp M / Imp AMF | B73: 0.02618343878 | C73: 0.02779078012 | D73: 0.03523132466 | E73: 0.03063316539 | F73: 0.02391538421 | G73: 0.02823521614 | L73: Importações
A74: Exp M / Exp BT | B74: 0.006034352226 | C74: 0.00642527132 | D74: 0.008815271273 | E74: 0.006807588876 | F74: 0.006595964744 | G74: 0.006879866453
A75: Imp M / Imp BT | B75: 0.003016457767 | C75: 0.003182294599 | D75: 0.003926457967 | E75: 0.003606283087 | F75: 0.002626653884 | G75: 0.00320614963
A76: Exp M Bélgica / Exp M Mundo | B76: 0.007297190397 | C76: 0.008240652991 | D76: 0.01206324066 | E76: 0.009917596748 | F76: 0.009584243316 | G76: 0.00933875448
A77: Imp M Bélgica / Imp M Mundo | B77: 0.00301045325 | C77: 0.003551611514 | D77: 0.003990544481 | E77: 0.004451955041 | F77: 0.003422275759 | G77: 0.00366051884
A78: AMF - Agroalimentar, Mar e Florestas; BT - Total de Bens Transacionáveis (exclui serviços) | H78: *TVMA - Taxa de variação média anual; TVT - Taxa de variação total
A90: Florestas (F) | B90: 2018 | C90: 2019 | D90: 2020 | E90: 2021 | F90: 2022 | G90: média quinquénio | H90: var. 18/19 | I90: var. 19/20 | J90: var. 20/21 | K90: var. 21/22 | L90: TVMA* 2018-2022 | M90: TVT* 2018-2022
A91: Exportações | B91: 57.217922 | C91: 56.323931 | D91: 52.612622 | E91: 60.517615 | F91: 85.634049 | G91: 62.4612278 | H91: -0.01562431785 | I91: -0.06589222261 | J91: 0.150248984 | K91: 0.4150268314 | L91: 0.106059778 | M91: 0.4966298322
A92: Importações | B92: 20.889917 | C92: 21.822237 | D92: 16.269098 | E92: 20.397374 | F92: 26.893286 | G92: 21.2543824 | H92: 0.04463014382 | I92: -0.2544715741 | J92: 0.2537495318 | K92: 0.3184680538 | L92: 0.06518928472 | M92: 0.2873811801
A93: Saldo (exp-imp) | B93: 36.328005 | C93: 34.501694 | D93: 36.343524 | E93: 40.120241 | F93: 58.740763 | G93: 41.2068454
A94: Cobertura (exp/imp) | B94: 2.739021031 | C94: 2.581033787 | D94: 3.233899138 | E94: 2.966931675 | F94: 3.184216648 | G94: 2.938745837
A95: Exp F / Exp AMF | B95: 0.2531398724 | C95: 0.2453353322 | D95: 0.2387745335 | E95: 0.2576103587 | F95: 0.3006839395 | G95: 0.2611968843 | L95: Exportações
A96: Imp F / Imp AMF | B96: 0.08242778775 | C96: 0.07835182454 | D96: 0.07462074598 | E96: 0.06708761474 | F96: 0.07213019024 | G96: 0.0744797082 | L96: Importações
A97: Exp F / Exp BT | B97: 0.0433769597 | C97: 0.04110496034 | D97: 0.04273449196 | E97: 0.03792150867 | F97: 0.04593885108 | G97: 0.04231540345
A98: Imp F / Imp BT | B98: 0.00949607661 | C98: 0.008971989521 | D98: 0.008316327171 | E98: 0.007897875629 | F98: 0.007922140942 | G98: 0.008457278588
A99: Exp F Bélgica / Exp F Mundo | B99: 0.01284922341 | C99: 0.01260669578 | D99: 0.01309199063 | E99: 0.01247955526 | F99: 0.01373350851 | G99: 0.01299962477
A100: Imp F Bélgica / Imp F Mundo | B100: 0.008963762389 | C100: 0.009337912852 | D100: 0.007990442433 | E100: 0.007900713184 | F100: 0.007716237107 | G100: 0.008321669803
A101: AMF - Agroalimentar, Mar e Florestas; BT - Total de Bens Transacionáveis (exclui serviços) | H101: *TVMA - Taxa de variação média anual; TVT - Taxa de variação total
A111: Fonte: GPP a partir de dados INE/Comércio Internacional (2021 provisórios; 2022 preliminares) | H111: 2023-07-19T17:13:34.470

Sheet 2
A1: Ranking dos parceiros comerciais de Portugal por país (média 2018-2022 em milhares de euros) produtos agrícolas e agroalimentares, do mar e da floresta
A2: Exportações | F2: Importações | K2: Trocas comerciais (total e saldo)
A3: P | B3: País | C3: média quinquénio | D3: % do Total | F3: P | G3: País | H3: média quinquénio | I3: % do Total | K3: P | L3: País | M3: Total (exp+imp) | N3: % do Total | O3: Saldo (exp-imp)
A4: 1 | B4: Espanha | C4: 4146454.758 | D4: 0.3199831006 | F4: 1 | G4: Espanha | H4: 6898685.753 | I4: 0.4613360147 | K4: 1 | L4: Espanha | M4: 11045140.51 | N4: 0.3957120214 | O4: -2752230.994
A5: 2 | B5: França | C5: 1358997.152 | D5: 0.1048741993 | F5: 2 | G5: França | H5: 985555.8696 | I5: 0.06590710658 | K5: 2 | L5: França | M5: 2344553.022 | N5: 0.08399782825 | O5: 373441.2826
A6: 3 | B6: Itália | C6: 876597.9418 | D6: 0.0676473141 | F6: 3 | G6: Alemanha | H6: 880908.072 | I6: 0.05890899134 | K6: 3 | L6: Alemanha | M6: 1516348.182 | N6: 0.05432590048 | O6: -245467.9624
A7: 4 | B7: Alemanha | C7: 635440.1096 | D7: 0.04903709516 | F7: 4 | G7: Países Baixos | H7: 832880.4034 | I7: 0.05569723565 | K7: 4 | L7: Países Baixos | M7: 1421041.707 | N7: 0.05091137463 | O7: -244719.0998
A8: 5 | B8: Países Baixos | C8: 588161.3036 | D8: 0.04538857616 | F8: 5 | G8: Brasil | H8: 705274.2876 | I8: 0.04716382812 | K8: 5 | L8: Itália | M8: 1323412.341 | N8: 0.04741362704 | O8: 429783.5422
A9: 6 | B9: Estados Unidos | C9: 554106.8232 | D9: 0.04276058216 | F9: 6 | G9: Itália | H9: 446814.3996 | I9: 0.02987983245 | K9: 6 | L9: Brasil | M9: 1157990.494 | N9: 0.04148709187 | O9: -252558.0814 | P9: Nota: Nesta listagem, o Reino Unido passa a ser constituído por três componentes: Reino Unido [até 2020] ; Reino Unido (sem Irlanda do Norte) pós-2020 e Reino Unido (Irlanda do Norte) pós-2020. Estas componentes são calculadas igualmente como média do quinquénio, embora a primeira corresponda apenas a 2018-2020 e as duas últimas a 2021-2022.
A10: 7 | B10: Brasil | C10: 452716.2062 | D10: 0.03493623922 | F10: 7 | G10: Suécia | H10: 341935.6152 | I10: 0.02286627042 | K10: 7 | L10: Estados Unidos | M10: 835578.5624 | N10: 0.02993610463 | O10: 272635.084
A11: 8 | B11: Reino Unido | C11: 382822.421 | D11: 0.02954251581 | F11: 8 | G11: Bélgica | H11: 285371.451 | I11: 0.01908365341 | K11: 8 | L11: Reino Unido | M11: 527725.3878 | N11: 0.01890671103 | O11: 237919.4542
A12: 9 | B12: Angola | C12: 331119.6562 | D12: 0.02555259865 | F12: 9 | G12: Estados Unidos | H12: 281471.7392 | I12: 0.01882286787 | K12: 9 | L12: Bélgica | M12: 524506.1098 | N12: 0.01879137461 | O12: -46236.7922
A13: 10 | B13: Reino Unido (sem Irlanda do Norte) pós 2020 | C13: 297911.4506 | D13: 0.02298991192 | F13: 10 | G13: Polónia | H13: 207484.8952 | I13: 0.01387514348 | K13: 10 | L13: Polónia | M13: 458805.1662 | N13: 0.01643752016 | O13: 43835.3758
A14: 11 | B14: Polónia | C14: 251320.271 | D14: 0.01939445725 | F14: 11 | G14: Ucrânia | H14: 195332.8996 | I14: 0.01306250272 | K14: 11 | L14: Suécia | M14: 435895.9016 | N14: 0.01561675455 | O14: -247975.3288
A15: 12 | B15: Bélgica | C15: 239134.6588 | D15: 0.01845409007 | F15: 12 | G15: China, República Popular da | H15: 173708.8634 | I15: 0.01161643792 | K15: 12 | L15: China, República Popular da | M15: 367378.303 | N15: 0.01316198837 | O15: 19960.5762
A16: 13 | B16: Israel | C16: 214334.0624 | D16: 0.01654022095 | F16: 13 | G16: África do Sul | H16: 145344.5192 | I16: 0.009719628296 | K16: 13 | L16: Reino Unido (sem Irlanda do Norte) pós 2020 | M16: 358973.5286 | N16: 0.01286087221 | O16: 236849.3726
A17: 14 | B17: China, República Popular da | C17: 193669.4396 | D17: 0.01494552609 | F17: 14 | G17: Reino Unido | H17: 144902.9668 | I17: 0.009690100349 | K17: 14 | L17: Angola | M17: 346542.8048 | N17: 0.01241551918 | O17: 315696.5076
A18: 15 | B18: Turquia | C18: 167228.7496 | D18: 0.01290509048 | F18: 15 | G18: Dinamarca | H18: 144410.5462 | I18: 0.009657170692 | K18: 15 | L18: Dinamarca | M18: 229157.968 | N18: 0.008209996302 | O18: -59663.1244
A19: 16 | B19: Suíça | C19: 143382.5624 | D19: 0.01106487338 | F19: 16 | G19: Roménia | H19: 138729.3114 | I19: 0.00927724931 | K19: 16 | L19: Turquia | M19: 223208.1582 | N19: 0.007996833666 | O19: 111249.341
A20: 17 | B20: Marrocos | C20: 109031.778 | D20: 0.008414013519 | F20: 17 | G20: Irlanda | H20: 118243.0764 | I20: 0.007907272716 | K20: 17 | L20: Israel | M20: 222677.5138 | N20: 0.007977822376 | O20: 205990.611
A21: 18 | B21: Cabo Verde | C21: 100899.9446 | D21: 0.007786477608 | F21: 18 | G21: Canadá | H21: 108500.262 | I21: 0.007255741203 | K21: 18 | L21: Ucrânia | M21: 209672.7922 | N21: 0.007511904838 | O21: -180993.007
A22: 19 | B22: Canadá | C22: 96471.0096 | D22: 0.007444695426 | F22: 19 | G22: Rússia, Federação da | H22: 105947.3528 | I22: 0.007085020431 | K22: 19 | L22: Canadá | M22: 204971.2716 | N22: 0.007343464408 | O22: -12029.2524
A23: 20 | B23: Suécia | C23: 93960.2864 | D23: 0.007250942198 | F23: 20 | G23: Uruguai | H23: 102111.7952 | I23: 0.006828525075 | K23: 20 | L23: Rússia, Federação da | M23: 185992.9178 | N23: 0.006663530754 | O23: -25901.7878
A24: 21 | B24: Dinamarca | C24: 84747.4218 | D24: 0.0065399828 | F24: 21 | G24: Argentina | H24: 97726.5184 | I24: 0.006535268331 | K24: 21 | L24: África do Sul | M24: 182500.0166 | N24: 0.006538391287 | O24: -108189.0218
A25: 22 | B25: Egito | C25: 83378.3752 | D25: 0.006434333082 | F25: 22 | G25: Índia | H25: 75540.6788 | I25: 0.005051634029 | K25: 22 | L25: Irlanda | M25: 182216.4716 | N25: 0.006528232778 | O25: -54269.6812
A26: 23 | B26: Rússia, Federação da | C26: 80045.565 | D26: 0.006177139164 | F26: 23 | G26: Finlândia | H26: 74014.7114 | I26: 0.004949587966 | K26: 23 | L26: Roménia | M26: 164574.233 | N26: 0.005896167854 | O26: -112884.3898
A27: 24 | B27: Argélia | C27: 78380.8918 | D27: 0.006048675857 | F27: 24 | G27: Vietname | H27: 70006.3292 | I27: 0.004681535306 | K27: 24 | L27: Marrocos | M27: 151640.1714 | N27: 0.005432781837 | O27: 66423.3846
A28: 25 | B28: México | C28: 73464.5916 | D28: 0.005669283563 | F28: 25 | G28: Costa Rica | H28: 69968.8442 | I28: 0.00467902857 | K28: 25 | L28: Suíça | M28: 147879.8298 | N28: 0.005298060837 | O28: 138885.295
A29: 26 | B29: Japão | C29: 66607.632 | D29: 0.005140130028 | F29: 26 | G29: Áustria | H29: 64437.3394 | I29: 0.004309120088 | K29: 26 | L29: Grécia | M29: 116239.3676 | N29: 0.004164484379 | O29: -11103.4736
A30: 27 | B30: Irlanda | C30: 63973.3952 | D30: 0.00493684522 | F30: 27 | G30: Grécia | H30: 63671.4206 | I30: 0.004257900777 | K30: 27 | L30: Argentina | M30: 113791.3158 | N30: 0.004076778521 | O30: -81661.721
A31: 28 | B31: Luxemburgo | C31: 55233.376 | D31: 0.004262375437 | F31: 28 | G31: Reino Unido (sem Irlanda do Norte) pós 2020 | H31: 61062.078 | I31: 0.004083406133 | K31: 28 | L31: Uruguai | M31: 105100.8748 | N31: 0.003765427844 | O31: -99122.7156
A32: 29 | B32: Grécia | C32: 52567.947 | D32: 0.004056683518 | F32: 29 | G32: Turquia | H32: 55979.4086 | I32: 0.003743512633 | K32: 29 | L32: Áustria | M32: 103605.5406 | N32: 0.003711854807 | O32: -25269.1382
A33: 30 | B33: Áustria | C33: 39168.2012 | D33: 0.003022621299 | F33: 30 | G33: Equador | H33: 48766.9652 | I33: 0.003261194694 | K33: 30 | L33: Finlândia | M33: 103235.6284 | N33: 0.003698602038 | O33: -44793.7944
A34: 31 | B34: Moçambique | C34: 37451.371 | D34: 0.002890133021 | F34: 31 | G34: Chile | H34: 47783.2146 | I34: 0.003195408311 | K34: 31 | L34: Cabo Verde | M34: 101736.0812 | N34: 0.003644878063 | O34: 100063.808
A35: 32 | B35: África do Sul | C35: 37155.4974 | D35: 0.00286730037 | F35: 32 | G35: Bulgária | H35: 47595.9378 | I35: 0.003182884545 | K35: 32 | L35: Índia | M35: 100003.3314 | N35: 0.003582799185 | O35: -51078.0262
A36: 33 | B36: Chile | C36: 36026.5554 | D36: 0.002780179593 | F36: 33 | G36: Cuba | H36: 43073.8564 | I36: 0.002880479262 | K36: 33 | L36: Egito | M36: 93743.8836 | N36: 0.003358543211 | O36: 73012.8668
A37: 34 | B37: Austrália | C37: 34889.2258 | D37: 0.002692411542 | F37: 34 | G37: Marrocos | H37: 42608.3934 | I37: 0.002849352342 | K37: 34 | L37: México | M37: 93550.6764 | N37: 0.003351621216 | O37: 53378.5068
A38: 35 | B38: Arábia Saudita | C38: 32824.7102 | D38: 0.002533092282 | F38: 35 | G38: Moçambique | H38: 40008.1492 | I38: 0.002675466135 | K38: 35 | L38: Chile | M38: 83809.77 | N38: 0.003002635727 | O38: -11756.6592
A39: 36 | B39: Guiné-Bissau | C39: 32182.3282 | D39: 0.00248351948 | F39: 36 | G39: Checa, República | H39: 35951.6258 | I39: 0.002404194127 | K39: 36 | L39: Argélia | M39: 83292.5462 | N39: 0.002984105254 | O39: 73469.2374
A40: 37 | B40: Finlândia | C40: 29220.917 | D40: 0.002254986529 | F40: 37 | G40: Colômbia | H40: 29155.8878 | I40: 0.00194974254 | K40: 37 | L40: Japão | M40: 83018.2336 | N40: 0.002974277512 | O40: 50197.0304
A41: 38 | B41: Checa, República | C41: 29120.8636 | D41: 0.00224726538 | F41: 38 | G41: Indonésia | H41: 28536.2748 | I41: 0.001908307142 | K41: 38 | L41: Moçambique | M41: 77459.5202 | N41: 0.002775126608 | O41: -2556.7782
A42: 39 | B42: Emirados Árabes Unidos | C42: 29075.6888 | D42: 0.002243779228 | F42: 39 | G42: Guiana | H42: 28025.2642 | I42: 0.001874134315 | K42: 39 | L42: Vietname | M42: 75952.8202 | N42: 0.002721146371 | O42: -64059.8382
A43: 40 | B43: São Tomé e Príncipe | C43: 26794.0764 | D43: 0.002067706546 | F43: 40 | G43: Hungria | H43: 24241.8222 | I43: 0.001621124087 | K43: 40 | L43: Costa Rica | M43: 73986.1334 | N43: 0.002650686279 | O43: -65951.555
A44: 41 | B44: Jordânia | C44: 26642.1032 | D44: 0.00205597873 | F44: 41 | G44: Namíbia | H44: 22812.3548 | I44: 0.001525531272 | K44: 41 | L44: Checa, República | M44: 65072.4894 | N44: 0.002331338954 | O44: -6830.7622
A45: 42 | B45: Roménia | C45: 25844.9216 | D45: 0.001994459998 | F45: 42 | G45: Costa do Marfim | H45: 22796.1714 | I45: 0.001524449039 | K45: 42 | L45: Luxemburgo | M45: 63920.9884 | N45: 0.00229008436 | O45: 46545.7636
A46: 43 | B46: Tunísia | C46: 24967.3514 | D46: 0.001926737655 | F46: 43 | G46: Uganda | H46: 22685.1304 | I46: 0.001517023391 | K46: 43 | L46: Bulgária | M46: 60579.4162 | N46: 0.002170366526 | O46: -34612.4594
A47: 44 | B47: Índia | C47: 24462.6526 | D47: 0.001887789904 | F47: 44 | G47: México | H47: 20086.0848 | I47: 0.001343217338 | K47: 44 | L47: Equador | M47: 51816.5236 | N47: 0.00185642014 | O47: -45717.4068
A48: 45 | B48: Noruega | C48: 22053.074 | D48: 0.001701842033 | F48: 45 | G48: Peru | H48: 19492.7516 | I48: 0.001303539349 | K48: 45 | L48: Austrália | M48: 48706.4602 | N48: 0.001744996526 | O48: 21071.9914
A49: 46 | B49: Coreia, República da | C49: 18918.1652 | D49: 0.001459920224 | F49: 46 | G49: Paraguai | H49: 18841.0926 | I49: 0.001259960938 | K49: 46 | L49: Cuba | M49: 48370.083 | N49: 0.001732945208 | O49: -37777.6298
A50: 47 | B50: Hungria | C50: 18318.947 | D50: 0.001413678384 | F50: 47 | G50: Senegal | H50: 17576.369 | I50: 0.00117538504 | K50: 47 | L50: Hungria | M50: 42560.7692 | N50: 0.001524816094 | O50: -5922.8752
A51: 48 | B51: Nigéria | C51: 16230.2952 | D51: 0.001252496527 | F51: 48 | G51: Nova Zelânda | H51: 17376.4264 | I51: 0.001162014272 | K51: 48 | L51: Colômbia | M51: 37488.773 | N51: 0.001343102709 | O51: -20823.0026
A52: 49 | B52: Argentina | C52: 16064.7974 | D52: 0.001239725014 | F52: 49 | G52: Japão | H52: 16410.6016 | I52: 0.001097426642 | K52: 49 | L52: Tunísia | M52: 35512.9364 | N52: 0.00127231481 | O52: 14421.7664
A53: 50 | B53: Lituânia | C53: 14413.8814 | D53: 0.001112323354 | F53: 50 | G53: Angola | H53: 15423.1486 | I53: 0.001031392669 | K53: 50 | L53: Noruega | M53: 34929.1028 | N53: 0.001251397921 | O53: 9177.0452
A54: 51 | B54: Ucrânia | C54: 14339.8926 | D54: 0.001106613617 | F54: 51 | G54: Lituânia | H54: 14632.016 | I54: 0.0009784872351 | K54: 51 | L54: Costa do Marfim | M54: 32980.227 | N54: 0.001181575941 | O54: -12612.1158
A55: 52 | B55: Macau | C55: 14162.3014 | D55: 0.001092908853 | F55: 52 | G55: Mauritânia | H55: 14124.4552 | I55: 0.0009445451069 | K55: 52 | L55: Arábia Saudita | M55: 32858.648 | N55: 0.001177220155 | O55: 32790.7724
A56: 53 | B56: Síria, República Árabe da | C56: 13309.7072 | D56: 0.001027113915 | F56: 53 | G56: Austrália | H56: 13817.2344 | I56: 0.0009240003213 | K56: 53 | L56: Guiné-Bissau | M56: 32561.5328 | N56: 0.001166575468 | O56: 31803.1236
A57: 54 | B57: Iraque | C57: 13221.9204 | D57: 0.001020339382 | F57: 54 | G57: Tanzânia, República Unida da | H57: 13710.948 | I57: 0.0009168926278 | K57: 54 | L57: Indonésia | M57: 32138.0738 | N57: 0.001151404288 | O57: -24934.4758
A58: 55 | B58: Bulgária | C58: 12983.4784 | D58: 0.001001938745 | F58: 55 | G58: Eslovénia | H58: 13650.4762 | I58: 0.0009128486953 | K58: 55 | L58: Coreia, República da | M58: 31290.6162 | N58: 0.001121042596 | O58: 6545.7142
A59: 56 | B59: HongKong | C59: 12801.5844 | D59: 0.0009879019327 | F59: 56 | G59: Suazilândia | H59: 13238.574 | I59: 0.0008853035474 | K59: 56 | L59: Emirados Árabes Unidos | M59: 29704.3194 | N59: 0.00106421066 | O59: 28447.0582
A60: 57 | B60: Eslováquia | C60: 12723.6548 | D60: 0.0009818880831 | F60: 57 | G60: Noruega | H60: 12876.0288 | I60: 0.0008610590516 | K60: 57 | L60: Lituânia | M60: 29045.8974 | N60: 0.001040621508 | O60: -218.1346
A61: 58 | B61: Letónia | C61: 11854.8684 | D61: 0.0009148435879 | F61: 58 | G61: Tailândia | H61: 12763.9012 | I61: 0.0008535607393 | K61: 58 | L61: Senegal | M61: 28854.7126 | N61: 0.001033771969 | O61: -6298.0254
A62: 59 | B62: Croácia | C62: 11368.2152 | D62: 0.0008772884212 | F62: 59 | G62: Camarões | H62: 12420.1756 | I62: 0.0008305747672 | K62: 59 | L62: Guiana | M62: 28164.8444 | N62: 0.0010090562 | O62: -27885.684
A63: 60 | B63: Senegal | C63: 11278.3436 | D63: 0.0008703530041 | F63: 60 | G63: Coreia, República da | H63: 12372.451 | I63: 0.0008273832786 | K63: 60 | L63: São Tomé e Príncipe | M63: 27847.803 | N63: 0.0009976976216 | O63: 25740.3498
A64: 61 | B64: Dominicana, República | C64: 11207.4662 | D64: 0.0008648833748 | F64: 61 | G64: Estónia | H64: 12191.4028 | I64: 0.000815276037 | K64: 61 | L64: Jordânia | M64: 26698.3012 | N64: 0.0009565146525 | O64: 26585.9052
A65: 62 | B65: Líbia, Jamahira Árabe da | C65: 11110.442 | D65: 0.0008573959896 | F65: 62 | G65: Moldava, República de | H65: 11911.7076 | I65: 0.0007965719717 | K65: 62 | L65: Peru | M65: 25630.734 | N65: 0.0009182671377 | O65: -13354.7692
A66: 63 | B66: Costa do Marfim | C66: 10184.0556 | D66: 0.0007859064859 | F66: 63 | G66: Sérvia | H66: 11556.9174 | I66: 0.0007728460763 | K66: 63 | L66: Uganda | M66: 23651.9568 | N66: 0.000847373886 | O66: -21718.304
A67: 64 | B67: Malta | C67: 9933.2892 | D67: 0.000766554771 | F67: 64 | G67: Letónia | H67: 10713.2288 | I67: 0.0007164260638 | K67: 64 | L67: Namíbia | M67: 23552.016 | N67: 0.0008437933272 | O67: -22072.6936
A68: 65 | B68: Líbano | C68: 9909.3948 | D68: 0.0007647108333 | F68: 65 | G68: Tunísia | H68: 10545.585 | I68: 0.000705215215 | K68: 65 | L68: Letónia | M68: 22568.0972 | N68: 0.0008085426667 | O68: 1141.6396
A69: 66 | B69: Território Palestiniano Ocupado | C69: 9895.7186 | D69: 0.0007636554371 | F69: 66 | G69: Paquistão | H69: 10439.2814 | I69: 0.0006981063713 | K69: 66 | L69: Tailândia | M69: 22047.6452 | N69: 0.0007898965379 | O69: -3480.1572
A70: 67 | B70: Chipre | C70: 9813.0332 | D70: 0.0007572745811 | F70: 67 | G70: Egito | H70: 10365.5084 | I70: 0.0006931729473 | K70: 67 | L70: Eslovénia | M70: 21973.065 | N70: 0.0007872245681 | O70: -5327.8874
A71: 68 | B71: Tailândia | C71: 9283.744 | D71: 0.000716429182 | F71: 68 | G71: Islândia | H71: 10004.2966 | I71: 0.00066901762 | K71: 68 | L71: Nigéria | M71: 21616.2318 | N71: 0.000774440377 | O71: 10844.3586
A72: 69 | B72: Kuwait | C72: 9136.5242 | D72: 0.0007050681879 | F72: 69 | G72: Maurícias | H72: 9636.258 | I72: 0.0006444057639 | K72: 69 | L72: Nova Zelânda | M72: 21601.4804 | N72: 0.0007739118816 | O72: -13151.3724
A73: 70 | B73: Camarões | C73: 9091.9556 | D73: 0.0007016288163 | F73: 70 | G73: Luxemburgo | H73: 8687.6124 | I73: 0.0005809669588 | K73: 70 | L73: Camarões | M73: 21512.1312 | N73: 0.0007707107858 | O73: -3328.22
A74: 71 | B74: Colômbia | C74: 8332.8852 | D74: 0.0006430511362 | F74: 71 | G74: Israel | H74: 8343.4514 | I74: 0.0005579518702 | K74: 71 | L74: Estónia | M74: 20493.83 | N74: 0.0007342283141 | O74: -3888.9756
A75: 72 | B75: Eslovénia | C75: 8322.5888 | D75: 0.0006422565601 | F75: 72 | G75: Filipinas | H75: 8336.7014 | I75: 0.0005575004772 | K75: 72 | L75: Paraguai | M75: 20050.3854 | N75: 0.0007183411139 | O75: -17631.7998
A76: 73 | B76: Estónia | C76: 8302.4272 | D76: 0.0006407006836 | F76: 73 | G76: Belize | H76: 8129.6594 | I76: 0.0005436549515 | K76: 73 | L76: Croácia | M76: 18458.4608 | N76: 0.0006613075523 | O76: 4277.9696
A77: 74 | B77: Geórgia | C77: 8048.6886 | D77: 0.0006211196032 | F77: 74 | G77: Malásia | H77: 8111.8758 | I77: 0.0005424657083 | K77: 74 | L77: Eslováquia | M77: 18117.5172 | N77: 0.0006490926347 | O77: 7329.7924
A78: 75 | B78: Gibraltar | C78: 7970.9208 | D78: 0.0006151182398 | F78: 75 | G78: Bangladesh | H78: 7928.3318 | I78: 0.000530191565 | K78: 75 | L78: Sérvia | M78: 17501.5482 | N78: 0.0006270244376 | O78: -5612.2866
A79: 76 | B79: Gana | C79: 7307.4466 | D79: 0.0005639177459 | F79: 76 | G79: Croácia | H79: 7090.2456 | I79: 0.000474146202 | K79: 76 | L79: Mauritânia | M79: 16926.9998 | N79: 0.0006064402079 | O79: -11321.9106
A80: 77 | B80: Taiwan | C80: 6604.3022 | D80: 0.0005096558913 | F80: 77 | G80: Quénia | H80: 6720.3804 | I80: 0.0004494121956 | K80: 77 | L80: HongKong | M80: 15599.17 | N80: 0.0005588683175 | O80: 10003.9988
A81: 78 | B81: Belarus | C81: 6189.2796 | D81: 0.0004776284784 | F81: 78 | G81: Gana | H81: 6620.3222 | I81: 0.0004427210007 | K81: 78 | L81: Maurícias | M81: 15492.8062 | N81: 0.0005550576431 | O81: -3779.7098
A82: 79 | B82: Guatemala | C82: 6179.8032 | D82: 0.0004768971819 | F82: 79 | G82: Reino Unido (Irlanda do Norte) pós-2020 | H82: 6509.1378 | I82: 0.000435285763 | K82: 79 | L82: Suazilândia | M82: 15229.7308 | N82: 0.0005456324938 | O82: -11247.4172
A83: 80 | B83: Peru | C83: 6137.9824 | D83: 0.0004736698588 | F83: 80 | G83: Panamá | H83: 6501.636 | I83: 0.0004347840949 | K83: 80 | L83: Moldava, República de | M83: 14880.8148 | N83: 0.0005331319506 | O83: -8942.6004
A84: 81 | B84: Vietname | C84: 5946.491 | D84: 0.0004588924127 | F84: 81 | G84: Honduras | H84: 6221.2504 | I84: 0.0004160338605 | K84: 81 | L84: Síria, República Árabe da | M84: 14259.5412 | N84: 0.0005108737066 | O84: 12359.8732
A85: 82 | B85: Sérvia | C85: 5944.6308 | D85: 0.0004587488605 | F85: 82 | G85: Suriname | H85: 5829.6302 | I85: 0.0003898450314 | K85: 82 | L85: Tanzânia, República Unida da | M85: 14227.4994 | N85: 0.0005097257515 | O85: -13194.3966
A86: 83 | B86: Maurícias | C86: 5856.5482 | D86: 0.0004519515011 | F86: 83 | G86: Eslováquia | H86: 5393.8624 | I86: 0.0003607039185 | K86: 83 | L86: Macau | M86: 14180.6616 | N86: 0.0005080477031 | O86: 14143.9412
A87: 84 | B87: Andorra | C87: 5401.2632 | D87: 0.0004168170273 | F87: 84 | G87: Nigéria | H87: 5385.9366 | I87: 0.0003601738962 | K87: 84 | L87: Gana | M87: 13927.7688 | N87: 0.0004989873638 | O87: 687.1244
A88: 85 | B88: Cuba | C88: 5296.2266 | D88: 0.0004087113228 | F88: 85 | G88: Etiópia | H88: 5332.739 | I88: 0.0003566164116 | K88: 85 | L88: Paquistão | M88: 13694.5862 | N88: 0.0004906331778 | O88: -7183.9766
A89: 86 | B89: Singapura | C89: 4688.1098 | D89: 0.0003617827753 | F89: 86 | G89: Congo | H89: 5207.2118 | I89: 0.0003482220274 | K89: 86 | L89: Dominicana, República | M89: 13458.9994 | N89: 0.000482192857 | O89: 8955.933
A90: 87 | B90: Omã | C90: 4393.4536 | D90: 0.000339044072 | F90: 87 | G90: Guatemala | H90: 5138.5064 | I90: 0.0003436274892 | K90: 87 | L90: Chipre | M90: 13271.6582 | N90: 0.0004754810216 | O90: 6354.4082
A91: 88 | B91: Nova Zelânda | C91: 4225.054 | D91: 0.0003260486266 | F91: 88 | G91: Camboja | H91: 4965.2796 | I91: 0.0003320432883 | K91: 88 | L91: Iraque | M91: 13234.1844 | N91: 0.0004741384554 | O91: 13209.6564
A92: 89 | B92: Panamá | C92: 4203.97 | D92: 0.0003244215683 | F92: 89 | G92: Argélia | H92: 4911.6544 | I92: 0.0003284572088 | K92: 89 | L92: Malta | M92: 12134.198 | N92: 0.0004347294645 | O92: 7732.3804
A93: 90 | B93: Costa Rica | C93: 4017.2892 | D93: 0.0003100153575 | F93: 90 | G93: Macedónia, Antiga República jugoslava da | H93: 4838.0028 | I93: 0.0003235319031 | K93: 90 | L93: Filipinas | M93: 11815.5126 | N93: 0.0004233119869 | O93: -4857.8902
A94: 91 | B94: Catar | C94: 3815.048 | D94: 0.0002944083462 | F94: 91 | G94: Zimbabwe | H94: 4709.1506 | I94: 0.0003149151662 | K94: 91 | L94: Islândia | M94: 11807.758 | N94: 0.0004230341644 | O94: -8200.8352
A95: 92 | B95: Burquina Faso | C95: 3646.8948 | D95: 0.0002814319157 | F95: 92 | G95: Suíça | H95: 4497.2674 | I95: 0.0003007458948 | K95: 92 | L95: Malásia | M95: 11523.7994 | N95: 0.0004128608369 | O95: -4699.9522
A96: 93 | B96: Indonésia | C96: 3601.799 | D96: 0.0002779518599 | F96: 93 | G96: Sri Lanca | H96: 4393.1556 | I96: 0.0002937836233 | K96: 93 | L96: Guatemala | M96: 11318.3096 | N96: 0.0004054987953 | O96: 1041.2968
A97: 94 | B97: Sudão | C97: 3570.9408 | D97: 0.0002755705237 | F97: 94 | G97: Madagáscar | H97: 3797.768 | I97: 0.0002539682509 | K97: 94 | L97: Líbia, Jamahira Árabe da | M97: 11116.443 | N97: 0.0003982665613 | O97: 11104.441
A98: 95 | B98: Filipinas | C98: 3478.8112 | D98: 0.0002684608561 | F98: 95 | G98: Mali | H98: 3762.5872 | I98: 0.0002516156042 | K98: 95 | L98: Panamá | M98: 10705.606 | N98: 0.000383547587 | O98: -2297.666
A99: 96 | B99: Mali | C99: 3441.82 | D99: 0.0002656062346 | F99: 96 | G99: Myanmar | H99: 3487.5904 | I99: 0.0002332257351 | K99: 96 | L99: Líbano | M99: 10450.9178 | N99: 0.0003744229242 | O99: 9367.8718
A100: 97 | B100: Malásia | C100: 3411.9236 | D100: 0.0002632991209 | F100: 97 | G100: Chipre | H100: 3458.625 | I100: 0.0002312887311 | K100: 97 | L100: Kuwait | M100: 10320.1982 | N100: 0.0003697396595 | O100: 7952.8502
A101: 98 | B101: Venezuela | C101: 3292.4432 | D101: 0.0002540787842 | F101: 98 | G101: Nicarágua | H101: 3458.6086 | I101: 0.0002312876344 | K101: 98 | L101: Taiwan | M101: 10028.0104 | N101: 0.0003592715061 | O101: 3180.594
A102: 99 | B102: Paquistão | C102: 3255.3048 | D102: 0.0002512128033 | F102: 99 | G102: Taiwan | H102: 3423.7082 | I102: 0.0002289537389 | K102: 99 | L102: Território Palestiniano Ocupado | M102: 9896.2038 | N102: 0.0003545492976 | O102: 9895.2334
A103: 100 | B103: Irão, República Islâmica do | C103: 3151.3458 | D103: 0.0002431902575 | F103: 100 | G103: Congo, República Democrática do | H103: 3287.5874 | I103: 0.0002198509286 | K103: 100 | L103: Bangladesh | M103: 9893.1502 | N103: 0.0003544398969 | O103: -5963.5134
A104: 101 | B104: Equador | C104: 3049.5584 | D104: 0.0002353352947 | F104: 101 | G104: Malavi | H104: 3258.318 | I104: 0.0002178935952 | K104: 101 | L104: Quénia | M104: 9767.4084 | N104: 0.0003499349708 | O104: -3673.3524
A105: 102 | B105: Quénia | C105: 3047.028 | D105: 0.000235140023 | F105: 102 | G105: Papuásia-Nova Guiné | H105: 3105.1676 | I105: 0.000207651964 | K105: 102 | L105: Reino Unido (Irlanda do Norte) pós-2020 | M105: 8990.4374 | N105: 0.0003220985875 | O105: -4027.8382
A106: 103 | B106: Uruguai | C106: 2989.0796 | D106: 0.0002306681284 | F106: 103 | G106: HongKong | H106: 2797.5856 | I106: 0.0001870830239 | K106: 103 | L106: Geórgia | M106: 8359.3498 | N106: 0.0002994887393 | O106: 7738.0274
A107: 104 | B107: Moldava, República de | C107: 2969.1072 | D107: 0.0002291268525 | F107: 104 | G107: Gabão | H107: 2642.8406 | I107: 0.000176734757 | K107: 104 | L107: Belize | M107: 8131.84 | N107: 0.0002913377916 | O107: -8127.4788
A108: 105 | B108: Mauritânia | C108: 2802.5446 | D108: 0.000216273169 | F108: 105 | G108: Centro-Africana, República | H108: 2579.2684 | I108: 0.0001724834914 | K108: 105 | L108: Gibraltar | M108: 7990.6994 | N108: 0.0002862811758 | O108: 7951.1422
A109: 106 | B109: Timor-Leste | C109: 2726.394 | D109: 0.0002103966054 | F109: 106 | G109: Gâmbia | H109: 2389.373 | I109: 0.0001597846107 | K109: 106 | L109: Congo | M109: 7640.4052 | N109: 0.0002737312561 | O109: -2774.0184
A110: 107 | B110: Guiné | C110: 2671.9054 | D110: 0.0002061917046 | F110: 107 | G110: Dominicana, República | H110: 2251.5332 | I110: 0.0001505668457 | K110: 107 | L110: Honduras | M110: 7590.891 | N110: 0.0002719573209 | O110: -4851.6098
A111: 108 | B111: Arménia | C111: 2588.4812 | D111: 0.0001997538352 | F111: 108 | G111: Malta | H111: 2200.9088 | I111: 0.0001471814387 | K111: 108 | L111: Etiópia | M111: 7364.853 | N111: 0.0002638591031 | O111: -3300.625
A112: 109 | B112: Gabão | C112: 2550.5466 | D112: 0.0001968264112 | F112: 109 | G112: Serra Leoa | H112: 1997.8504 | I112: 0.0001336023084 | K112: 109 | L112: Mali | M112: 7204.4072 | N112: 0.0002581108437 | O112: -320.7672
A113: 110 | B113: Reino Unido (Irlanda do Norte) pós-2020 | C113: 2481.2996 | D113: 0.0001914826004 | F113: 110 | G113: Benim | H113: 1832.152 | I113: 0.0001225215544 | K113: 110 | L113: Belarus | M113: 7048.6518 | N113: 0.0002525306264 | O113: 5329.9074
A114: 111 | B114: Congo | C114: 2433.1934 | D114: 0.0001877702312 | F114: 111 | G114: El Salvador | H114: 1779.4546 | I114: 0.0001189975197 | K114: 111 | L114: Suriname | M114: 6411.9606 | N114: 0.0002297200192 | O114: -5247.2998
A115: 112 | B115: Albânia | C115: 2230.3856 | D115: 0.0001721194952 | F115: 112 | G115: Burquina Faso | H115: 1725.7416 | I115: 0.0001154055686 | K115: 112 | L115: Singapura | M115: 5996.509 | N115: 0.0002148357185 | O115: 3379.7106
A116: 113 | B116: Seychelles | C116: 2209.8298 | D116: 0.0001705331982 | F116: 113 | G116: Laos, República Democrática Popular do | H116: 1570.485 | I116: 0.0001050230895 | K116: 113 | L116: Camboja | M116: 5868.657 | N116: 0.0002102551907 | O116: -4061.9022
A117: 114 | B117: Guiné Equatorial | C117: 2176.386 | D117: 0.0001679523306 | F117: 114 | G117: Singapura | H117: 1308.3992 | I117: 8.749661808e-05 | K117: 114 | L117: Sri Lanca | M117: 5833.9434 | N117: 0.0002090115136 | O117: -2952.3678
A118: 115 | B118: Etiópia | C118: 2032.114 | D118: 0.0001568188191 | F118: 115 | G118: Seychelles | H118: 1264.2444 | I118: 8.454385284e-05 | K118: 115 | L118: Macedónia, Antiga República jugoslava da | M118: 5788.8886 | N118: 0.0002073973443 | O118: -3887.117
A119: 116 | B119: Suazilândia | C119: 1991.1568 | D119: 0.0001536581402 | F119: 116 | G119: Kuwait | H119: 1183.674 | I119: 7.915586612e-05 | K119: 116 | L119: Andorra | M119: 5443.4826 | N119: 0.0001950225532 | O119: 5359.0438
A120: 117 | B120: Bangladesh | C120: 1964.8184 | D120: 0.0001516255984 | F120: 117 | G120: Bolívia | H120: 1171.2708 | I120: 7.832642656e-05 | K120: 117 | L120: Burquina Faso | M120: 5372.6364 | N120: 0.0001924843607 | O120: 1921.1532
A121: 118 | B121: Islândia | C121: 1803.4614 | D121: 0.0001391736325 | F121: 118 | G121: Togo | H121: 1123.3014 | I121: 7.511856747e-05 | K121: 118 | L121: Gabão | M121: 5193.3872 | N121: 0.0001860624358 | O121: -92.294
A122: 119 | B122: Benim | C122: 1771.8166 | D122: 0.0001367315942 | F122: 119 | G122: São Tomé e Príncipe | H122: 1053.7266 | I122: 7.046588983e-05 | K122: 119 | L122: Nicarágua | M122: 5085.0522 | N122: 0.0001821811396 | O122: -1832.165
A123: 120 | B123: Congo, República Democrática do | C123: 1727.2344 | D123: 0.0001332911731 | F123: 120 | G123: Venezuela | H123: 1042.4414 | I123: 6.971121432e-05 | K123: 120 | L123: Congo, República Democrática do | M123: 5014.8218 | N123: 0.0001796650092 | O123: -1560.353
A124: 121 | B124: Jamaica | C124: 1687.498 | D124: 0.0001302247037 | F124: 121 | G124: Iémen | H124: 1024.4982 | I124: 6.851129818e-05 | K124: 121 | L124: Omã | M124: 4887.3662 | N124: 0.0001750986831 | O124: 3899.541
A125: 122 | B125: Nicarágua | C125: 1626.4436 | D125: 0.0001255131182 | F125: 122 | G125: Síria, República Árabe da | H125: 949.834 | I125: 6.351827694e-05 | K125: 122 | L125: Zimbabwe | M125: 4774.1098 | N125: 0.0001710410689 | O125: -4644.1914
A126: 123 | B126: Togo | C126: 1570.864 | D126: 0.0001212240245 | F126: 123 | G126: Belarus | H126: 859.3722 | I126: 5.746882234e-05 | K126: 123 | L126: Venezuela | M126: 4334.8846 | N126: 0.0001553050363 | O126: 2250.0018
A127: 124 | B127: El Salvador | C127: 1565.6294 | D127: 0.000120820069 | F127: 124 | G127: Cabo Verde | H127: 836.1366 | I127: 5.591498738e-05 | K127: 124 | L127: Madagáscar | M127: 4107.7632 | N127: 0.0001471680037 | O127: -3487.7728
A128: 125 | B128: Cazaquistão | C128: 1539.9044 | D128: 0.0001188348634 | F128: 125 | G128: Bósnia-Herzegovina | H128: 758.1446 | I128: 5.069942607e-05 | K128: 125 | L128: Myanmar | M128: 3979.9732 | N128: 0.0001425896971 | O128: -2995.2076
A129: 126 | B129: Sri Lanca | C129: 1440.7878 | D129: 0.000111186007 | F129: 126 | G129: Turquemenistão | H129: 720.6558 | I129: 4.819243645e-05 | K129: 126 | L129: Catar | M129: 3835.8118 | N129: 0.0001374248557 | O129: 3794.2842
A130: 127 | B130: Azerbaijão | C130: 1435.1898 | D130: 0.0001107540077 | F130: 127 | G130: Chade | H130: 675.9004 | I130: 4.519950727e-05 | K130: 127 | L130: Benim | M130: 3603.9686 | N130: 0.0001291186562 | O130: -60.3354
A131: 128 | B131: Bolívia | C131: 1412.2374 | D131: 0.0001089827644 | F131: 128 | G131: Emirados Árabes Unidos | H131: 628.6306 | I131: 4.203843255e-05 | K131: 128 | L131: Sudão | M131: 3591.4234 | N131: 0.0001286692018 | O131: 3550.4582
A132: 129 | B132: Honduras | C132: 1369.6406 | D132: 0.0001056955572 | F132: 129 | G132: Timor-Leste | H132: 614.51 | I132: 4.109414525e-05 | K132: 129 | L132: Seychelles | M132: 3474.0742 | N132: 0.0001244649557 | O132: 945.5854
A133: 130 | B133: São Bartolomeu | C133: 1280.9726 | D133: 9.885302223e-05 | F133: 130 | G133: Faroé, Ilhas | H133: 597.6172 | I133: 3.996447254e-05 | K133: 130 | L133: Irão, República Islâmica do | M133: 3375.8016 | N133: 0.0001209441631 | O133: 2926.89
A134: 131 | B134: Ruanda | C134: 1241.2404 | D134: 9.578687698e-05 | F134: 131 | G134: Líbano | H134: 541.523 | I134: 3.621328346e-05 | K134: 131 | L134: El Salvador | M134: 3345.084 | N134: 0.0001198436498 | O134: -213.8252
A135: 132 | B135: Paraguai | C135: 1209.2928 | D135: 9.332147154e-05 | F135: 132 | G135: Omã | H135: 493.9126 | I135: 3.302943179e-05 | K135: 132 | L135: Timor-Leste | M135: 3340.904 | N135: 0.0001196938938 | O135: 2111.884
A136: 133 | B136: Iémen | C136: 1145.3826 | D136: 8.838950311e-05 | F136: 133 | G136: Gronelândia | H136: 481.3548 | I136: 3.218965366e-05 | K136: 133 | L136: Malavi | M136: 3267.4472 | N136: 0.0001170621718 | O136: -3249.1888
A137: 134 | B137: Montenegro | C137: 1046.3476 | D137: 8.074694381e-05 | F137: 134 | G137: Guiné-Bissau | H137: 379.2046 | I137: 2.535856034e-05 | K137: 134 | L137: Papuásia-Nova Guiné | M137: 3108.0532 | N137: 0.0001113515952 | O137: -3102.282
A138: 135 | B138: Uganda | C138: 966.8264 | D138: 7.461027005e-05 | F138: 135 | G138: Geórgia | H138: 310.6612 | I138: 2.077485554e-05 | K138: 135 | L138: Guiné | M138: 2974.7226 | N138: 0.0001065747866 | O138: 2369.0882
A139: 136 | B139: Macedónia, Antiga República jugoslava da | C139: 950.8858 | D139: 7.338012938e-05 | F139: 136 | G139: Usbequistão | H139: 308.3052 | I139: 2.061730268e-05 | K139: 136 | L139: Gâmbia | M139: 2880.9438 | N139: 0.0001032149925 | O139: -1897.8022
A140: 137 | B140: Bermudas | C140: 907.5284 | D140: 7.003422641e-05 | F140: 137 | G140: Guiné | H140: 302.8172 | I140: 2.02503035e-05 | K140: 137 | L140: Togo | M140: 2694.1654 | N140: 9.652332041e-05 | O140: 447.5626
A141: 138 | B141: Camboja | C141: 903.3774 | D141: 6.971389255e-05 | F141: 138 | G141: Irão, República Islâmica do | H141: 224.4558 | I141: 1.50100393e-05 | K141: 138 | L141: Centro-Africana, República | M141: 2675.6308 | N141: 9.585928504e-05 | O141: -2482.906
A142: 139 | B142: Barbados | C142: 886.8842 | D142: 6.844110759e-05 | F142: 139 | G142: Zâmbia | H142: 199.4064 | I142: 1.333491004e-05 | K142: 139 | L142: Arménia | M142: 2615.4888 | N142: 9.370458973e-05 | O142: 2561.4736
A143: 140 | B143: Trindade e Tobago | C143: 878.7574 | D143: 6.781396011e-05 | F143: 140 | G143: Azerbaijão | H143: 125.9648 | I143: 8.423647765e-06 | K143: 140 | L143: Bolívia | M143: 2583.5082 | N143: 9.255882723e-05 | O143: 240.9666
A144: 141 | B144: Namíbia | C144: 739.6612 | D144: 5.707986654e-05 | F144: 141 | G144: Fiji, Ilhas | H144: 123.8224 | I144: 8.280378987e-06 | K144: 141 | L144: Serra Leoa | M144: 2504.667 | N144: 8.973419946e-05 | O144: -1491.0338
A145: 142 | B145: Turquemenistão | C145: 730.8192 | D145: 5.639752686e-05 | F145: 142 | G145: Maldivas | H145: 106.1904 | I145: 7.101273734e-06 | K145: 142 | L145: Albânia | M145: 2336.138 | N145: 8.369634496e-05 | O145: 2124.6332
A146: 143 | B146: Barém | C146: 714.5288 | D146: 5.514039203e-05 | F146: 143 | G146: Albânia | H146: 105.7524 | I146: 7.071983347e-06 | K146: 143 | L146: Guiné Equatorial | M146: 2182.3724 | N146: 7.818741582e-05 | O146: 2170.3996
A147: 144 | B147: Burundi | C147: 677.1012 | D147: 5.225209343e-05 | F147: 144 | G147: Tajiquistão | H147: 59.4122 | I147: 3.973073793e-06 | K147: 144 | L147: Iémen | M147: 2169.8808 | N147: 7.773988179e-05 | O147: 120.8844
A148: 145 | B148: Aruba | C148: 656.9934 | D148: 5.070036875e-05 | F148: 145 | G148: Jordânia | H148: 56.198 | I148: 3.758130502e-06 | K148: 145 | L148: Jamaica | M148: 1698.6206 | N148: 6.085613765e-05 | O148: 1676.3754
A149: 146 | B149: Niger | C149: 652.165 | D149: 5.032775973e-05 | F149: 146 | G149: Andorra | H149: 42.2194 | I149: 2.823339175e-06 | K149: 146 | L149: Laos, República Democrática Popular do | M149: 1586.3348 | N149: 5.683329694e-05 | O149: -1554.6352
A150: 147 | B150: São Martinho (parte holandesa) | C150: 597.7744 | D150: 4.613042156e-05 | F150: 147 | G150: Libéria | H150: 38.8276 | I150: 2.596519234e-06 | K150: 147 | L150: Azerbaijão | M150: 1561.1546 | N150: 5.593117099e-05 | O150: 1309.225
A151: 148 | B151: Suriname | C151: 582.3304 | D151: 4.493860366e-05 | F151: 148 | G151: Falkland Ilhas (Malvinas) | H151: 38.0622 | I151: 2.545334617e-06 | K151: 148 | L151: Cazaquistão | M151: 1555.7084 | N151: 5.573605108e-05 | O151: 1524.1004
A152: 149 | B152: Bósnia-Herzegovina | C152: 535.6404 | D152: 4.1335523e-05 | F152: 149 | G152: Aruba | H152: 38.029 | I152: 2.543114432e-06 | K152: 149 | L152: Turquemenistão | M152: 1451.475 | N152: 5.200170208e-05 | O152: 10.1634
A153: 150 | B153: Tanzânia, República Unida da | C153: 516.5514 | D153: 3.98624194e-05 | F153: 150 | G153: Arábia Saudita | H153: 33.9378 | I153: 2.269523495e-06 | K153: 150 | L153: Bósnia-Herzegovina | M153: 1293.785 | N153: 4.635217426e-05 | O153: -222.5042
A154: 151 | B154: Ceuta e Melilha | C154: 507.8786 | D154: 3.919313694e-05 | F154: 151 | G154: São Marino | H154: 32.7702 | I154: 2.191442546e-06 | K154: 151 | L154: São Bartolomeu | M154: 1281.3862 | N154: 4.590796495e-05 | O154: 1280.559
A155: 152 | B155: Serra Leoa | C155: 506.8166 | D155: 3.91111821e-05 | F155: 152 | G155: Botswana | H155: 29.9908 | I155: 2.005575648e-06 | K155: 152 | L155: Ruanda | M155: 1241.8804 | N155: 4.449259862e-05 | O155: 1240.6004
A156: 153 | B156: Myanmar | C156: 492.3828 | D156: 3.799732162e-05 | F156: 153 | G156: São Pedro e Miquelon | H156: 28.9156 | I156: 1.933673767e-06 | K156: 153 | L156: Montenegro | M156: 1046.6634 | N156: 3.749859854e-05 | O156: 1046.0318
A157: 154 | B157: Gâmbia | C157: 491.5708 | D157: 3.793465935e-05 | F157: 154 | G157: Arménia | H157: 27.0076 | I157: 1.806080027e-06 | K157: 154 | L157: Bermudas | M157: 908.2538 | N157: 3.253982571e-05 | O157: 906.803
A158: 155 | B158: Curaçau | C158: 479.6396 | D158: 3.701392523e-05 | F158: 155 | G158: Catar | H158: 20.7638 | I158: 1.388538206e-06 | K158: 155 | L158: Barbados | M158: 897.2042 | N158: 3.214395392e-05 | O158: 876.5642
A159: 156 | B159: Kosovo | C159: 471.1818 | D159: 3.636123438e-05 | F159: 156 | G159: Sudão | H159: 20.4826 | I159: 1.369733511e-06 | K159: 156 | L159: Trindade e Tobago | M159: 878.7678 | N159: 3.148343674e-05 | O159: 878.747
A160: 157 | B160: Polinésia Francesa | C160: 366.6458 | D160: 2.829416134e-05 | F160: 157 | G160: Gibraltar | H160: 19.7786 | I160: 1.322654898e-06 | K160: 157 | L160: Barém | M160: 719.082 | N160: 2.576240579e-05 | O160: 709.9756
A161: 158 | B161: Antígua e Barbuda | C161: 363.7054 | D161: 2.806724983e-05 | F161: 158 | G161: Macau | H161: 18.3602 | I161: 1.227802193e-06 | K161: 158 | L161: Aruba | M161: 695.0224 | N161: 2.490042735e-05 | O161: 618.9644
A162: 159 | B162: Haiti | C162: 328.5232 | D162: 2.535222939e-05 | F162: 159 | G162: Quirguizistão | H162: 17.4752 | I162: 1.168619562e-06 | K162: 159 | L162: Burundi | M162: 677.2152 | N162: 2.426245239e-05 | O162: 676.9872
A163: 160 | B163: Comores | C163: 311.607 | D163: 2.404680139e-05 | F163: 160 | G163: Salomão, Ilhas | H163: 16.0532 | I163: 1.073526114e-06 | K163: 160 | L163: Chade | M163: 676.014 | N163: 2.421941724e-05 | O163: -675.7868
A164: 161 | B164: Madagáscar | C164: 309.9952 | D164: 2.392241832e-05 | F164: 161 | G164: Cazaquistão | H164: 15.804 | I164: 1.056861356e-06 | K164: 161 | L164: Niger | M164: 655.4318 | N164: 2.348202291e-05 | O164: 648.8982
A165: 162 | B165: Nova Caledónia | C165: 302.6442 | D165: 2.335513955e-05 | F165: 162 | G165: Santa Helena | H165: 15.7338 | I165: 1.052166869e-06 | K165: 162 | L165: Faroé, Ilhas | M165: 598.4668 | N165: 2.144114934e-05 | O165: -596.7676
A166: 163 | B166: Libéria | C166: 295.8354 | D166: 2.28297025e-05 | F166: 163 | G166: Marshall, Ilhas | H166: 13.4098 | I166: 8.967539487e-07 | K166: 163 | L166: São Martinho (parte holandesa) | M166: 597.7772 | N166: 2.141644318e-05 | O166: 597.7716
A167: 164 | B167: Somália | C167: 292.9902 | D167: 2.26101376e-05 | F167: 164 | G167: Curaçau | H167: 12.9632 | I167: 8.668884538e-07 | K167: 164 | L167: Usbequistão | M167: 531.3872 | N167: 1.903790204e-05 | O167: -85.2232
A168: 165 | B168: Bahamas | C168: 280.4744 | D168: 2.164428973e-05 | F168: 165 | G168: Iraque | H168: 12.264 | I168: 8.201308317e-07 | K168: 165 | L168: Ceuta e Melilha | M168: 507.8786 | N168: 1.819566417e-05 | O168: 507.8786
A169: 166 | B169: Usbequistão | C169: 223.082 | D169: 1.72153018e-05 | F169: 166 | G169: Jamaica | H169: 11.1226 | I169: 7.43801956e-07 | K169: 166 | L169: Curaçau | M169: 492.6028 | N169: 1.764838117e-05 | O169: 466.6764
A170: 167 | B170: São Marino | C170: 219.9688 | D170: 1.697505526e-05 | F170: 167 | G170: Nepal | H170: 10.3458 | I170: 6.918549869e-07 | K170: 167 | L170: Gronelândia | M170: 481.9304 | N170: 1.726602324e-05 | O170: -480.7792
A171: 168 | B171: Bonaire, Santo Eustáquio e Saba | C171: 206.5448 | D171: 1.593912134e-05 | F171: 168 | G171: Barbados | H171: 10.32 | I171: 6.901296627e-07 | K171: 168 | L171: Kosovo | M171: 479.554 | N171: 1.718088444e-05 | O171: 462.8096
A172: 169 | B172: Guiana | C172: 139.5802 | D172: 1.077144399e-05 | F172: 169 | G172: Antígua e Barbuda | H172: 9.2326 | I172: 6.174119306e-07 | K172: 169 | L172: Antígua e Barbuda | M172: 372.938 | N172: 1.336117451e-05 | O172: 354.4728
A173: 170 | B173: Zâmbia | C173: 138.1944 | D173: 1.066450141e-05 | F173: 170 | G173: Kosovo | H173: 8.3722 | I173: 5.598743762e-07 | K173: 170 | L173: Polinésia Francesa | M173: 367.1436 | N173: 1.315357971e-05 | O173: 366.148
A174: 171 | B174: Maldivas | C174: 129.0678 | D174: 9.960199072e-06 | F174: 171 | G174: Jibuti | H174: 7.3022 | I174: 4.883202348e-07 | K174: 171 | L174: Zâmbia | M174: 337.6008 | N174: 1.209515577e-05 | O174: -61.212
A175: 172 | B175: Santa Lúcia | C175: 120.252 | D175: 9.279881263e-06 | F175: 172 | G175: Líbia, Jamahira Árabe da | H175: 6.001 | I175: 4.01305049e-07 | K175: 172 | L175: Libéria | M175: 334.663 | N175: 1.19899038e-05 | O175: 257.0078
A176: 173 | B176: Liechtenstein | C176: 119.4194 | D176: 9.215629282e-06 | F176: 173 | G176: Guiné Equatorial | H176: 5.9864 | I176: 4.003287028e-07 | K176: 173 | L176: Haiti | M176: 328.8008 | N176: 1.177987995e-05 | O176: 328.2456
A177: 174 | B177: Afeganistão | C177: 109.4574 | D177: 8.446858891e-06 | F177: 174 | G177: Barém | H177: 4.5532 | I177: 3.044862772e-07 | K177: 174 | L177: Comores | M177: 311.607 | N177: 1.116388114e-05 | O177: 311.607
A178: 175 | B178: Quirguizistão | C178: 109.2342 | D178: 8.429634483e-06 | F178: 175 | G178: São Cristovão e Nevis | H178: 4.4378 | I178: 2.967691296e-07 | K178: 175 | L178: Nova Caledónia | M178: 303.3498 | N178: 1.08680521e-05 | O178: 301.9386
A179: 176 | B179: Virgens Britânicas, Ilhas | C179: 102.589 | D179: 7.916822497e-06 | F179: 176 | G179: Afeganistão | H179: 4.3662 | I179: 2.919810207e-07 | K179: 176 | L179: Somália | M179: 292.9902 | N179: 1.04969008e-05 | O179: 292.9902
A180: 177 | B180: Botswana | C180: 98.1832 | D180: 7.576825649e-06 | F180: 177 | G180: Niger | H180: 3.2668 | I180: 2.184608122e-07 | K180: 177 | L180: Bahamas | M180: 280.4744 | N180: 1.004849976e-05 | O180: 280.4744
A181: 178 | B181: Jibuti | C181: 96.957 | D181: 7.482199444e-06 | F181: 178 | G181: Liechtenstein | H181: 1.7444 | I181: 1.166533124e-07 | K181: 178 | L181: São Marino | M181: 252.739 | N181: 9.054829179e-06 | O181: 187.1986
A182: 179 | B182: Centro-Africana, República | C182: 96.3624 | D182: 7.436313992e-06 | F182: 179 | G182: Lesoto | H182: 1.7136 | I182: 1.145936231e-07 | K182: 179 | L182: Maldivas | M182: 235.2582 | N182: 8.428548083e-06 | O182: 22.8774
A183: 180 | B183: Nepal | C183: 77.231 | D183: 5.959938378e-06 | F183: 180 | G183: Butão | H183: 1.2178 | I183: 8.143797512e-08 | K183: 180 | L183: Bonaire, Santo Eustáquio e Saba | M183: 206.5448 | N183: 7.399838893e-06 | O183: 206.5448
A184: 181 | B184: Zimbabwe | C184: 64.9592 | D184: 5.012920059e-06 | F184: 181 | G184: Bermudas | H184: 0.7254 | I184: 4.850969548e-08 | K184: 181 | L184: Fiji, Ilhas | M184: 135.9286 | N184: 4.869886538e-06 | O184: -111.7162
A185: 182 | B185: Caimão, Ilhas | C185: 51.6906 | D185: 3.988978399e-06 | F185: 182 | G185: Nova Caledónia | H185: 0.7056 | I185: 4.71856095e-08 | K185: 182 | L185: Botswana | M185: 128.174 | N185: 4.592064047e-06 | O185: 68.1924
A186: 183 | B186: Mongólia | C186: 37.8358 | D186: 2.919799517e-06 | F186: 183 | G186: Ruanda | H186: 0.64 | I186: 4.279873877e-08 | K186: 183 | L186: Quirguizistão | M186: 126.7094 | N186: 4.539592118e-06 | O186: 91.759
A187: 184 | B187: Turcas e Caicos, Ilhas | C187: 19.071 | D187: 1.471714529e-06 | F187: 184 | G187: Polinésia Francesa | H187: 0.4978 | I187: 3.3289394e-08 | K187: 184 | L187: Liechtenstein | M187: 121.1638 | N187: 4.340911026e-06 | O187: 117.675
A188: 185 | B188: Laos, República Democrática Popular do | C188: 15.8498 | D188: 1.223133603e-06 | F188: 185 | G188: Território Palestiniano Ocupado | H188: 0.4852 | I188: 3.244679383e-08 | K188: 185 | L188: Santa Lúcia | M188: 120.2706 | N188: 4.308910529e-06 | O188: 120.2334
A189: 186 | B189: Fiji, Ilhas | C189: 12.1062 | D189: 9.342389195e-07 | F189: 186 | G189: São Bartolomeu | H189: 0.4136 | I189: 2.765868493e-08 | K189: 186 | L189: Afeganistão | M189: 113.8236 | N189: 4.077935161e-06 | O189: 105.0912
A190: 187 | B190: Anguila | C190: 10.0614 | D190: 7.764411181e-07 | F190: 187 | G190: Micronésia, Estados Federados da | H190: 0.3438 | I190: 2.299094748e-08 | K190: 187 | L190: Jibuti | M190: 104.2592 | N190: 3.735273331e-06 | O190: 89.6548
A191: 188 | B191: Malavi | C191: 9.1292 | D191: 7.045029773e-07 | F191: 188 | G191: Montenegro | H191: 0.3158 | I191: 2.111850266e-08 | K191: 188 | L191: Virgens Britânicas, Ilhas | M191: 102.589 | N191: 3.675435412e-06 | O191: 102.589
A192: 189 | B192: Brunei Darussalam | C192: 7.7238 | D192: 5.96047857e-07 | F192: 189 | G192: Haiti | H192: 0.2776 | I192: 1.856395294e-08 | K192: 189 | L192: Nepal | M192: 87.5768 | N192: 3.137596351e-06 | O192: 66.8852
A193: 190 | B193: São Vicente e Granadinas | C193: 7.6034 | D193: 5.867565545e-07 | F193: 190 | G193: Burundi | H193: 0.114 | I193: 7.623525344e-09 | K193: 190 | L193: Tajiquistão | M193: 59.4122 | N193: 2.128548907e-06 | O193: -59.4122
A194: 191 | B194: Guam | C194: 6.6636 | D194: 5.142319195e-07 | F194: 191 | G194: Oceano Indico, Território Britânico do | H194: 0.098 | I194: 6.553556874e-09 | K194: 191 | L194: Caimão, Ilhas | M194: 51.6906 | N194: 1.851908701e-06 | O194: 51.6906
A195: 192 | B195: Territórios Franceses do Sul | C195: 6.3102 | D195: 4.869599403e-07 | F195: 192 | G195: Nauru | H195: 0.0694 | I195: 4.640988236e-09 | K195: 192 | L195: Falkland Ilhas (Malvinas) | M195: 38.0622 | N195: 1.363646763e-06 | O195: -38.0622
A196: 193 | B196: Menores distantes dos Estados Unidos, lhas | C196: 4.5544 | D196: 3.514643517e-07 | F196: 193 | G196: Vanuatu | H196: 0.065 | I196: 4.346746907e-09 | K196: 193 | L196: Mongólia | M196: 37.8488 | N196: 1.356001324e-06 | O196: 37.8228
A197: 194 | B197: Sudão do Sul | C197: 3.771 | D197: 2.910091495e-07 | F197: 194 | G197: São Vicente e Granadinas | H197: 0.0416 | I197: 2.78191802e-09 | K197: 194 | L197: São Pedro e Miquelon | M197: 29.2314 | N197: 1.047267472e-06 | O197: -28.5998
A198: 195 | B198: Melilha | C198: 3.6164 | D198: 2.790786232e-07 | F198: 195 | G198: Santa Sé (Cidade Estado do Vaticano) | H198: 0.021 | I198: 1.404333616e-09 | K198: 195 | L198: Turcas e Caicos, Ilhas | M198: 19.071 | N198: 6.832528707e-07 | O198: 19.071
A199: 196 | B199: Marianas do Norte, Ilhas | C199: 2.9244 | D199: 2.256767851e-07 | F199: 196 | G199: Santa Lúcia | H199: 0.0186 | I199: 1.243838346e-09 | K199: 196 | L199: Salomão, Ilhas | M199: 16.0532 | N199: 5.751347587e-07 | O199: -16.0532
A200: 197 | B200: Papuásia-Nova Guiné | C200: 2.8856 | D200: 2.22682578e-07 | F200: 197 | G200: Mongólia | H200: 0.013 | I200: 8.693493813e-10 | K200: 197 | L200: Santa Helena | M200: 15.7338 | N200: 5.636916793e-07 | O200: -15.7338
... 58 more rows

Sheet 2AA
A1: Ranking dos parceiros comerciais de Portugal por país (média 2018-2022 em milhares de euros) produtos agrícolas e agroalimentares
A2: Exportações | F2: Importações | K2: Trocas comerciais (total e saldo)
A3: P | B3: País | C3: média quinquénio | D3: % do Total | F3: P | G3: País | H3: média quinquénio | I3: % do Total | K3: P | L3: País | M3: Total (exp+imp) | N3: % do Total | O3: Saldo (exp-imp)
A4: 1 | B4: Espanha | C4: 2411545.104 | D4: 0.3412850777 | F4: 1 | G4: Espanha | H4: 4702622.823 | I4: 0.4611131698 | K4: 1 | L4: Espanha | M4: 7114167.927 | N4: 0.4120694865 | O4: -2291077.719
A5: 2 | B5: França | C5: 676548.204 | D5: 0.09574600368 | F5: 2 | G5: França | H5: 801883.8928 | I5: 0.07862829691 | K5: 2 | L5: França | M5: 1478432.097 | N5: 0.08563429499 | O5: -125335.6888
A6: 3 | B6: Itália | C6: 450103.1874 | D6: 0.06369920307 | F6: 3 | G6: Alemanha | H6: 691439.1198 | I6: 0.06779869367 | K6: 3 | L6: Alemanha | M6: 951321.041 | N6: 0.05510277194 | O6: -431557.1986
A7: 4 | B7: Brasil | C7: 371211.2184 | D7: 0.05253430646 | F7: 4 | G7: Países Baixos | H7: 595448.7582 | I7: 0.05838641002 | K7: 4 | L7: Países Baixos | M7: 927730.709 | N7: 0.05373636394 | O7: -263166.8074
A8: 5 | B8: Países Baixos | C8: 332281.9508 | D8: 0.04702498461 | F8: 5 | G8: Brasil | H8: 551854.2014 | I8: 0.05411176904 | K8: 5 | L8: Brasil | M8: 923065.4198 | N8: 0.05346613932 | O8: -180642.983
A9: 6 | B9: Angola | C9: 270815.3222 | D9: 0.0383261454 | F9: 6 | G9: Itália | H9: 325089.427 | I9: 0.03187647017 | K9: 6 | L9: Itália | M9: 775192.6144 | N9: 0.04490099556 | O9: 125013.7604 | P9: Nota: Nesta listagem, o Reino Unido passa a ser constituído por três componentes: Reino Unido [até 2020] ; Reino Unido (sem Irlanda do Norte) pós-2020 e Reino Unido (Irlanda do Norte) pós-2020. Estas componentes são calculadas igualmente como média do quinquénio, embora a primeira corresponda apenas a 2018-2020 e as duas últimas a 2021-2022.
A10: 7 | B10: Alemanha | C10: 259881.9212 | D10: 0.03677883591 | F10: 7 | G10: Bélgica | H10: 256059.544 | I10: 0.02510778185 | K10: 7 | L10: Bélgica | M10: 422577.6918 | N10: 0.02447670258 | O10: -89541.3962
A11: 8 | B11: Reino Unido | C11: 202835.6198 | D11: 0.0287055673 | F11: 8 | G11: Estados Unidos | H11: 216780.4248 | I11: 0.0212562888 | K11: 8 | L11: Estados Unidos | M11: 400397.3552 | N11: 0.02319196486 | O11: -33163.4944
A12: 9 | B12: Estados Unidos | C12: 183616.9304 | D12: 0.02598571275 | F12: 9 | G12: Ucrânia | H12: 191923.2566 | I12: 0.01881893244 | K12: 9 | L12: Polónia | M12: 317924.6778 | N12: 0.01841495169 | O12: -49349.5234
A13: 10 | B13: Israel | C13: 169490.6434 | D13: 0.02398654179 | F13: 10 | G13: Polónia | H13: 183637.1006 | I13: 0.01800643784 | K13: 10 | L13: Reino Unido | M13: 313115.4092 | N13: 0.01813638745 | O13: 92555.8304
A14: 11 | B14: Bélgica | C14: 166518.1478 | D14: 0.02356587025 | F14: 11 | G14: Roménia | H14: 135111.7674 | I14: 0.0132483122 | K14: 11 | L14: Angola | M14: 277936.6246 | N14: 0.01609874877 | O14: 263694.0198
A15: 12 | B15: Reino Unido (sem Irlanda do Norte) pós 2020 | C15: 153199.9856 | D15: 0.02168106618 | F15: 12 | G15: África do Sul | H15: 112523.4846 | I15: 0.0110334302 | K15: 12 | L15: Reino Unido (sem Irlanda do Norte) pós 2020 | M15: 202787.0812 | N15: 0.01174590891 | O15: 103612.89
A16: 13 | B16: Polónia | C16: 134287.5772 | D16: 0.01900455693 | F16: 13 | G16: Reino Unido | H16: 110279.7894 | I16: 0.01081342586 | K16: 13 | L16: Ucrânia | M16: 198678.4348 | N16: 0.01150792636 | O16: -185168.0784
A17: 14 | B17: Suíça | C17: 92003.1512 | D17: 0.0130204086 | F17: 14 | G17: Irlanda | H17: 110243.3216 | I17: 0.01080985003 | K17: 14 | L17: Canadá | M17: 175349.2144 | N17: 0.01015664256 | O17: -30879.5124
A18: 15 | B18: Cabo Verde | C18: 85447.0724 | D18: 0.01209258359 | F18: 15 | G18: Canadá | H18: 103114.3634 | I18: 0.01011082384 | K18: 15 | L18: Israel | M18: 174656.3316 | N18: 0.01011650914 | O18: 164324.9552
A19: 16 | B19: Canadá | C19: 72234.851 | D19: 0.0102227724 | F19: 16 | G19: Argentina | H19: 72786.9924 | I19: 0.007137089672 | K19: 16 | L19: Roménia | M19: 150921.1448 | N19: 0.008741710805 | O19: -119302.39
A20: 17 | B20: China, República Popular da | C20: 72213.8082 | D20: 0.0102197944 | F20: 17 | G20: Dinamarca | H20: 70231.4784 | I20: 0.006886510112 | K20: 17 | L20: Irlanda | M20: 137024.7724 | N20: 0.007936799943 | O20: -83461.8708
A21: 18 | B21: Japão | C21: 54923.5388 | D21: 0.007772852425 | F21: 18 | G21: Costa Rica | H21: 69966.4528 | I21: 0.006860523168 | K21: 18 | L21: África do Sul | M21: 134358.9168 | N21: 0.007782387261 | O21: -90688.0524
A22: 19 | B22: Suécia | C22: 50824.6094 | D22: 0.007192766472 | F22: 19 | G22: Reino Unido (sem Irlanda do Norte) pós 2020 | H22: 49587.0956 | I22: 0.00486223618 | K22: 19 | L22: Dinamarca | M22: 117591.8134 | N22: 0.006811196848 | O22: -22871.1434
A23: 20 | B23: Rússia, Federação da | C23: 48396.534 | D23: 0.006849142005 | F23: 20 | G23: Bulgária | H23: 45248.5012 | I23: 0.004436817623 | K23: 20 | L23: China, República Popular da | M23: 117263.0084 | N23: 0.006792151682 | O23: 27164.608
A24: 21 | B24: Dinamarca | C24: 47360.335 | D24: 0.006702497741 | F24: 21 | G24: China, República Popular da | H24: 45049.2002 | I24: 0.00441727527 | K24: 21 | L24: Suíça | M24: 94990.2382 | N24: 0.005502059985 | O24: 89016.0642
A25: 22 | B25: Luxemburgo | C25: 45455.684 | D25: 0.006432948993 | F25: 22 | G25: Cuba | H25: 35800.4636 | I25: 0.003510395341 | K25: 22 | L25: Cabo Verde | M25: 85573.8106 | N25: 0.004956638155 | O25: 85320.3342
A26: 23 | B26: Marrocos | C26: 40790.7978 | D26: 0.005772768079 | F26: 23 | G26: Grécia | H26: 30696.3508 | I26: 0.003009914286 | K26: 23 | L26: Argentina | M26: 73024.3208 | N26: 0.004229741929 | O26: -72549.664
A27: 24 | B27: Guiné-Bissau | C27: 30105.257 | D27: 0.004260536101 | F27: 24 | G27: Vietname | H27: 28842.503 | I27: 0.00282813623 | K27: 24 | L27: Costa Rica | M27: 71166.176 | N27: 0.004122113773 | O27: -68766.7296
A28: 25 | B28: Irlanda | C28: 26781.4508 | D28: 0.003790146617 | F28: 25 | G28: Colômbia | H28: 28226.344 | I28: 0.002767719088 | K28: 25 | L28: Japão | M28: 68515.1074 | N28: 0.00396855759 | O28: 41331.9702
A29: 26 | B29: São Tomé e Príncipe | C29: 25260.7912 | D29: 0.003574940844 | F29: 26 | G29: Guiana | H29: 28025.2642 | I29: 0.002748002316 | K29: 26 | L29: Suécia | M29: 64540.5576 | N29: 0.003738342235 | O29: 37108.6612
A30: 27 | B30: Arábia Saudita | C30: 25200.9646 | D30: 0.003566474103 | F30: 27 | G30: Chile | H30: 24582.6414 | I30: 0.002410437776 | K30: 27 | L30: Rússia, Federação da | M30: 60555.2322 | N30: 0.003507502731 | O30: 36237.8358
A31: 28 | B31: Moçambique | C31: 25040.048 | D31: 0.003543700972 | F31: 28 | G31: Áustria | H31: 23767.51 | I31: 0.002330510502 | K31: 28 | L31: Luxemburgo | M31: 53698.83 | N31: 0.003110363647 | O31: 37212.538
A32: 29 | B32: Grécia | C32: 22271.2594 | D32: 0.003151858318 | F32: 29 | G32: Uruguai | H32: 22544.114 | I32: 0.00221055106 | K32: 29 | L32: Bulgária | M32: 53404.496 | N32: 0.003093315124 | O32: -37092.5064
A33: 30 | B33: África do Sul | C33: 21835.4322 | D33: 0.003090179472 | F33: 30 | G33: Checa, República | H33: 22169.2118 | I33: 0.002173790225 | K33: 30 | L33: Grécia | M33: 52967.6102 | N33: 0.003068009662 | O33: -8425.0914
A34: 31 | B34: Finlândia | C34: 19884.365 | D34: 0.002814061841 | F34: 31 | G34: Costa do Marfim | H34: 21706.6942 | I34: 0.002128438309 | K34: 31 | L34: Marrocos | M34: 50677.0038 | N34: 0.002935332304 | O34: 30904.5918
A35: 32 | B35: Checa, República | C35: 18235.0968 | D35: 0.002580655207 | F35: 32 | G35: Índia | H35: 20821.1078 | I35: 0.002041602607 | K35: 32 | L35: Checa, República | M35: 40404.3086 | N35: 0.002340313423 | O35: -3934.115
A36: 33 | B36: Jordânia | C36: 17519.4376 | D36: 0.002479374163 | F36: 33 | G36: Paraguai | H36: 18543.3936 | I36: 0.001818262558 | K36: 33 | L36: Cuba | M36: 38670.0018 | N36: 0.002239858258 | O36: -32930.9254
A37: 34 | B37: Noruega | C37: 16995.9884 | D37: 0.002405294934 | F37: 34 | G37: Turquia | H37: 17986.1158 | I37: 0.00176361898 | K37: 34 | L37: Áustria | M37: 38061.8468 | N37: 0.002204632478 | O37: -9473.1732
A38: 35 | B38: Roménia | C38: 15809.3774 | D38: 0.002237364164 | F38: 35 | G38: Hungria | H38: 16799.5642 | I38: 0.001647272297 | K38: 35 | L38: Moçambique | M38: 35153.372 | N38: 0.002036166716 | O38: 14926.724
A39: 36 | B39: Austrália | C39: 14444.1886 | D39: 0.002044160825 | F39: 36 | G39: Uganda | H39: 16711.9112 | I39: 0.001638677529 | K39: 36 | L39: Colômbia | M39: 34587.7746 | N39: 0.002003405973 | O39: -21864.9134
A40: 37 | B40: Áustria | C40: 14294.3368 | D40: 0.002022953598 | F40: 37 | G40: Suécia | H40: 13715.9482 | I40: 0.001344909977 | K40: 37 | L40: Vietname | M40: 30876.7168 | N40: 0.0017884527 | O40: -26808.2892
A41: 38 | B41: Coreia, República da | C41: 13714.1396 | D41: 0.001940843317 | F41: 38 | G41: Japão | H41: 13591.5686 | I41: 0.001332714001 | K41: 38 | L41: Guiné-Bissau | M41: 30466.7032 | N41: 0.001764703739 | O41: 29743.8108
A42: 39 | B42: Iraque | C42: 12402.8826 | D42: 0.001755272479 | F42: 39 | G42: Suazilândia | H42: 13238.5734 | I42: 0.001298101246 | K42: 39 | L42: Chile | M42: 30212.416 | N42: 0.001749974821 | O42: -18952.8668
A43: 40 | B43: Emirados Árabes Unidos | C43: 11850.4352 | D43: 0.001677089386 | F43: 40 | G43: Indonésia | H43: 13223.1014 | I43: 0.001296584147 | K43: 40 | L43: Guiana | M43: 28043.5076 | N43: 0.0016243465 | O43: -28007.0208
A44: 41 | B44: Argélia | C44: 11256.5744 | D44: 0.001593045414 | F44: 41 | G44: México | H44: 13063.4442 | I44: 0.001280929045 | K44: 41 | L44: Hungria | M44: 27998.5132 | N44: 0.001621740318 | O44: -5600.6152
A45: 42 | B45: Macau | C45: 11226.3432 | D45: 0.001588767055 | F45: 42 | G45: Austrália | H45: 12929.8552 | I45: 0.001267830047 | K45: 42 | L45: Turquia | M45: 27952.4328 | N45: 0.001619071232 | O45: -8019.7988
A46: 43 | B46: Hungria | C46: 11198.949 | D46: 0.001584890191 | F46: 43 | G46: Rússia, Federação da | H46: 12158.6982 | I46: 0.001192214659 | K46: 43 | L46: Austrália | M46: 27374.0438 | N46: 0.001585569569 | O46: 1514.3334
A47: 44 | B47: Nigéria | C47: 10950.0114 | D47: 0.00154966021 | F47: 44 | G47: Moldava, República de | H47: 11903.4008 | I47: 0.001167181609 | K47: 44 | L47: Finlândia | M47: 27349.3512 | N47: 0.001584139315 | O47: 12419.3788
A48: 45 | B48: Turquia | C48: 9966.317 | D48: 0.001410446467 | F48: 45 | G48: Peru | H48: 11309.1784 | I48: 0.001108915449 | K48: 45 | L48: Costa do Marfim | M48: 27312.2444 | N48: 0.001581990001 | O48: -16101.144
A49: 46 | B49: Território Palestiniano Ocupado | C49: 9369.3582 | D49: 0.001325964062 | F49: 46 | G49: Lituânia | H49: 10559.9636 | I49: 0.001035451592 | K49: 46 | L49: São Tomé e Príncipe | M49: 26314.2624 | N49: 0.001524184515 | O49: 24207.32
A50: 47 | B50: Eslováquia | C50: 9087.5718 | D50: 0.001286085275 | F50: 47 | G50: Paquistão | H50: 10304.0036 | I50: 0.001010353571 | K50: 47 | L50: Arábia Saudita | M50: 25224.07 | N50: 0.001461037985 | O50: 25177.8592
A51: 48 | B51: Senegal | C51: 8493.732 | D51: 0.001202044275 | F51: 48 | G51: Tailândia | H51: 10199.4388 | I51: 0.001000100525 | K51: 48 | L51: Uruguai | M51: 24295.7548 | N51: 0.001407267766 | O51: -20792.4732
A52: 49 | B52: Bulgária | C52: 8155.9948 | D52: 0.001154247256 | F52: 49 | G52: Moçambique | H52: 10113.324 | I52: 0.0009916565844 | K52: 49 | L52: Índia | M52: 23835.9726 | N52: 0.00138063609 | O52: -17806.243
A53: 50 | B53: Líbia, Jamahira Árabe da | C53: 7994.648 | D53: 0.001131413242 | F53: 50 | G53: Marrocos | H53: 9886.206 | I53: 0.0009693866502 | K53: 50 | L53: Paraguai | M53: 19188.0202 | N53: 0.001111415658 | O53: -17898.767
A54: 51 | B54: Gibraltar | C54: 7555.2434 | D54: 0.001069228117 | F54: 51 | G54: Egito | H54: 9790.4264 | I54: 0.0009599950327 | K54: 51 | L54: México | M54: 18719.0294 | N54: 0.001084250598 | O54: -7407.859
A55: 52 | B55: Kuwait | C55: 7349.7522 | D55: 0.001040146729 | F55: 52 | G55: Letónia | H55: 8952.1544 | I55: 0.0008777987194 | K55: 52 | L55: Noruega | M55: 18005.9244 | N55: 0.001042945865 | O55: 15986.0524
A56: 53 | B56: Ucrânia | C56: 6755.1782 | D56: 0.0009560018236 | F56: 53 | G56: Sérvia | H56: 8809.7352 | I56: 0.0008638338807 | K56: 53 | L56: Jordânia | M56: 17548.9282 | N56: 0.001016475561 | O56: 17489.947
A57: 54 | B57: Colômbia | C57: 6361.4306 | D57: 0.0009002781384 | F57: 54 | G57: Luxemburgo | H57: 8243.146 | I57: 0.0008082772793 | K57: 54 | L57: Uganda | M57: 17197.4672 | N57: 0.0009961181055 | O57: -16226.3552
A58: 55 | B58: Letónia | C58: 5851.9654 | D58: 0.0008281779442 | F58: 55 | G58: Equador | H58: 8207.9326 | I58: 0.0008048244482 | K58: 55 | L58: Lituânia | M58: 15596.9716 | N58: 0.0009034136028 | O58: -5522.9556
A59: 56 | B59: HongKong | C59: 5831.0346 | D59: 0.0008252157894 | F59: 56 | G59: Nova Zelânda | H59: 7880.6232 | I59: 0.0007727302997 | K59: 56 | L59: Suazilândia | M59: 15229.1516 | N59: 0.0008821085956 | O59: -11247.9952
A60: 57 | B60: Maurícias | C60: 5663.2906 | D60: 0.000801476435 | F60: 57 | G60: Finlândia | H60: 7464.9862 | I60: 0.0007319752356 | K60: 57 | L60: Letónia | M60: 14804.1198 | N60: 0.0008574897453 | O60: -3100.189
A61: 58 | B61: México | C61: 5655.5852 | D61: 0.0008003859565 | F61: 58 | G61: Malásia | H61: 7402.4108 | I61: 0.0007258394382 | K61: 58 | L61: Coreia, República da | M61: 14651.7386 | N61: 0.0008486634646 | O61: 12776.5406
A62: 59 | B62: Chile | C62: 5629.7746 | D62: 0.000796733206 | F62: 59 | G62: Angola | H62: 7121.3024 | I62: 0.0006982755041 | K62: 59 | L62: Indonésia | M62: 14360.499 | N62: 0.0008317941759 | O62: -12085.7038
A63: 60 | B63: Costa do Marfim | C63: 5605.5502 | D63: 0.0007933049366 | F63: 60 | G63: Camarões | H63: 6330.7516 | I63: 0.0006207584676 | K63: 60 | L63: Tailândia | M63: 13287.765 | N63: 0.0007696588773 | O63: -7111.1126
A64: 61 | B64: Andorra | C64: 5268.3636 | D64: 0.0007455858395 | F64: 61 | G64: Honduras | H64: 6193.611 | I64: 0.0006073112193 | K64: 61 | L64: Peru | M64: 13096.3328 | N64: 0.0007585706701 | O64: -9522.024
A65: 62 | B65: Lituânia | C65: 5037.008 | D65: 0.0007128440866 | F65: 62 | G65: Etiópia | H65: 5332.6708 | I65: 0.0005228921877 | K65: 62 | L65: Eslováquia | M65: 12663.425 | N65: 0.0007334956231 | O65: 5511.7186
A66: 63 | B66: Estónia | C66: 4869.894 | D66: 0.0006891938905 | F66: 63 | G66: Israel | H66: 5165.6882 | I66: 0.000506518798 | K66: 63 | L66: Iraque | M66: 12415.1466 | N66: 0.0007191147491 | O66: 12390.6186
A67: 64 | B67: Malta | C67: 4732.779 | D67: 0.0006697891929 | F67: 64 | G67: Belize | H67: 5153.7922 | I67: 0.0005053523421 | K67: 64 | L67: Emirados Árabes Unidos | M67: 12305.7766 | N67: 0.0007127797792 | O67: 11395.0938
A68: 65 | B68: Síria, República Árabe da | C68: 4399.3294 | D68: 0.0006225989611 | F68: 65 | G68: Camboja | H68: 4964.372 | I68: 0.0004867788455 | K68: 65 | L68: Moldava, República de | M68: 12104.7888 | N68: 0.0007011380889 | O68: -11702.0128
A69: 66 | B69: Chipre | C69: 4087.2516 | D69: 0.0005784332948 | F69: 66 | G69: Zimbabwe | H69: 4708.9854 | I69: 0.0004617370489 | K69: 66 | L69: Argélia | M69: 11803.7068 | N69: 0.0006836987051 | O69: 10709.442
A70: 67 | B70: Omã | C70: 3805.6814 | D70: 0.0005385851048 | F70: 67 | G70: Guatemala | H70: 4634.8976 | I70: 0.0004544724092 | K70: 67 | L70: Sérvia | M70: 11344.2464 | N70: 0.0006570856685 | O70: -6275.224
A71: 68 | B71: Eslovénia | C71: 3320.9676 | D71: 0.0004699877617 | F71: 68 | G71: Suriname | H71: 4613.819 | I71: 0.0004524055583 | K71: 68 | L71: Egito | M71: 11328.9988 | N71: 0.0006562024914 | O71: -8251.854
A72: 69 | B72: Mali | C72: 3288.1148 | D72: 0.0004653383896 | F72: 69 | G72: Macedónia, Antiga República jugoslava da | H72: 4601.6794 | I72: 0.0004512152163 | K72: 69 | L72: Macau | M72: 11242.8404 | N72: 0.0006512119924 | O72: 11209.846
A73: 70 | B73: Tailândia | C73: 3088.3262 | D73: 0.0004370640406 | F73: 70 | G73: Eslovénia | H73: 4577.0544 | I73: 0.0004488006251 | K73: 70 | L73: Nigéria | M73: 11147.6308 | N73: 0.0006456972265 | O73: 10752.392
A74: 71 | B74: Índia | C74: 3014.8648 | D74: 0.0004266676854 | F74: 71 | G74: Tanzânia, República Unida da | H74: 4539.6584 | I74: 0.0004451337803 | K74: 71 | L74: Paquistão | M74: 10570.8542 | N74: 0.0006122889572 | O74: -10037.153
A75: 72 | B75: Singapura | C75: 2956.254 | D75: 0.0004183730068 | F75: 72 | G75: Filipinas | H75: 4493.245 | I75: 0.0004405827391 | K75: 72 | L75: Nova Zelânda | M75: 10271.0628 | N75: 0.000594924328 | O75: -5490.1836
A76: 73 | B76: Cuba | C76: 2869.5382 | D76: 0.0004061008712 | F76: 73 | G76: Tunísia | H76: 4126.4674 | I76: 0.0004046185574 | K76: 73 | L76: Território Palestiniano Ocupado | M76: 9369.8434 | N76: 0.000542723562 | O76: 9368.873
A77: 74 | B77: Gana | C77: 2746.7854 | D77: 0.0003887287313 | F77: 74 | G77: Estónia | H77: 4043.8982 | I77: 0.0003965222786 | K77: 74 | L77: Senegal | M77: 9057.0902 | N77: 0.0005246081546 | O77: 7930.3738
A78: 75 | B78: Taiwan | C78: 2744.6238 | D78: 0.0003884228188 | F78: 75 | G78: Reino Unido (Irlanda do Norte) pós-2020 | H78: 3995.535 | I78: 0.0003917800509 | K78: 75 | L78: Equador | M78: 9035.3682 | N78: 0.0005233499648 | O78: -7380.497
A79: 76 | B79: Sérvia | C79: 2534.5112 | D79: 0.0003586874036 | F79: 76 | G79: Mali | H79: 3760.9918 | I79: 0.0003687820426 | K79: 76 | L79: Estónia | M79: 8913.7922 | N79: 0.0005163079944 | O79: 825.9958
A80: 77 | B80: Líbano | C80: 2519.7508 | D80: 0.0003565984921 | F80: 77 | G80: Eslováquia | H80: 3575.8532 | I80: 0.0003506283761 | K80: 77 | L80: Malásia | M80: 8903.6532 | N80: 0.0005157207195 | O80: -5901.1684
A81: 78 | B81: Timor-Leste | C81: 2471.9198 | D81: 0.0003498293852 | F81: 78 | G81: Myanmar | H81: 3336.325 | I81: 0.0003271415663 | K81: 78 | L81: Camarões | M81: 8611.8814 | N81: 0.0004988206045 | O81: -4049.6218
A82: 79 | B82: Belarus | C82: 2455.9286 | D82: 0.0003475662893 | F82: 79 | G82: Quénia | H82: 3256.0222 | I82: 0.0003192675181 | K82: 79 | L82: Kuwait | M82: 8533.2046 | N82: 0.0004942634576 | O82: 6166.2998
A83: 80 | B83: Nova Zelânda | C83: 2390.4396 | D83: 0.0003382981987 | F83: 80 | G83: Malavi | H83: 3254.1762 | I83: 0.0003190865096 | K83: 80 | L83: Líbia, Jamahira Árabe da | M83: 8000.598 | N83: 0.0004634136196 | O83: 7988.698
A84: 81 | B84: Filipinas | C84: 2342.9576 | D84: 0.0003315784827 | F84: 81 | G84: Nicarágua | H84: 3164.5064 | I84: 0.0003102939852 | K84: 81 | L84: Eslovénia | M84: 7898.022 | N84: 0.0004574721743 | O84: -1256.0868
A85: 82 | B85: Camarões | C85: 2281.1298 | D85: 0.0003228285301 | F85: 82 | G85: Chipre | H85: 3147.1004 | I85: 0.0003085872492 | K85: 82 | L85: Gibraltar | M85: 7555.2434 | N85: 0.0004376176244 | O85: 7555.2434
A86: 83 | B86: Guiné | C86: 2265.6424 | D86: 0.0003206367326 | F86: 83 | G86: Sri Lanca | H86: 3073.8124 | I86: 0.0003014010335 | K86: 83 | L86: Chipre | M86: 7234.352 | N86: 0.0004190308331 | O86: 940.1512
A87: 84 | B87: Irão, República Islâmica do | C87: 2234.7082 | D87: 0.0003162588834 | F87: 84 | G87: Suíça | H87: 2987.087 | I87: 0.0002928972207 | K87: 84 | L87: Maurícias | M87: 7215.0708 | N87: 0.0004179140203 | O87: 4111.5104
A88: 85 | B88: Congo | C88: 2184.5722 | D88: 0.0003091635698 | F88: 85 | G88: Taiwan | H88: 2718.5488 | I88: 0.0002665658509 | K88: 85 | L88: Mali | M88: 7049.1066 | N88: 0.00040830098 | O88: -472.877
A89: 86 | B89: Seychelles | C89: 2103.9052 | D89: 0.0002977474684 | F89: 86 | G89: Dominicana, República | H89: 2224.7352 | I89: 0.0002181452221 | K89: 86 | L89: HongKong | M89: 7034.5032 | N89: 0.0004074551165 | O89: 4627.566
A90: 87 | B90: Gabão | C90: 2079.6516 | D90: 0.0002943150666 | F90: 87 | G90: Serra Leoa | H90: 1997.841 | I90: 0.0001958972324 | K90: 87 | L90: Honduras | M90: 7007.3132 | N90: 0.0004058802071 | O90: -5379.9088
A91: 88 | B91: Venezuela | C91: 2058.7692 | D91: 0.0002913597616 | F91: 88 | G91: Benim | H91: 1817.538 | I91: 0.000178217718 | K91: 88 | L91: Filipinas | M91: 6836.2026 | N91: 0.0003959690752 | O91: -2150.2874
A92: 89 | B92: Vietname | C92: 2034.2138 | D92: 0.0002878846486 | F92: 89 | G92: Croácia | H92: 1813.6516 | I92: 0.0001778366392 | K92: 89 | L92: Etiópia | M92: 6077.0796 | N92: 0.0003519988698 | O92: -4588.262
A93: 90 | B93: Suazilândia | C93: 1990.5782 | D93: 0.0002817092803 | F93: 90 | G93: Burquina Faso | H93: 1725.737 | I93: 0.00016921622 | K93: 90 | L93: Malta | M93: 5816.0858 | N93: 0.0003368814896 | O93: 3649.4722
A94: 91 | B94: Sudão | C94: 1865.0268 | D94: 0.0002639410788 | F94: 91 | G94: Gana | H94: 1658.4144 | I94: 0.0001626149384 | K94: 91 | L94: Taiwan | M94: 5463.1726 | N94: 0.0003164399197 | O94: 26.075
A95: 92 | B95: Burquina Faso | C95: 1848.8938 | D95: 0.0002616579152 | F95: 92 | G95: Laos, República Democrática Popular do | H95: 1570.3752 | I95: 0.0001539823017 | K95: 92 | L95: Camboja | M95: 5365.8038 | N95: 0.0003108000878 | O95: -4562.9402
A96: 93 | B96: Guiné Equatorial | C96: 1818.2016 | D96: 0.0002573143141 | F96: 93 | G96: Maurícias | H96: 1551.7802 | I96: 0.0001521589789 | K96: 93 | L96: Síria, República Árabe da | M96: 5349.1634 | N96: 0.0003098362363 | O96: 3449.4954
A97: 94 | B97: Peru | C97: 1787.1544 | D97: 0.000252920473 | F97: 94 | G97: Madagáscar | H97: 1535.4896 | I97: 0.0001505616128 | K97: 94 | L97: Reino Unido (Irlanda do Norte) pós-2020 | M97: 5295.453 | N97: 0.0003067252025 | O97: -2695.617
A98: 95 | B98: Croácia | C98: 1771.9842 | D98: 0.0002507735661 | F98: 95 | G98: Panamá | H98: 1513.6692 | I98: 0.0001484220251 | K98: 95 | L98: Andorra | M98: 5273.09 | N98: 0.0003054298845 | O98: 5263.6372
A99: 96 | B99: Uruguai | C99: 1751.6408 | D99: 0.000247894541 | F99: 96 | G99: Congo, República Democrática do | H99: 1226.6902 | I99: 0.0001202824525 | K99: 96 | L99: Belize | M99: 5155.9728 | N99: 0.0002986461784 | O99: -5151.6116
A100: 97 | B100: Dominicana, República | C100: 1708.9932 | D100: 0.0002418589958 | F100: 97 | G100: HongKong | H100: 1203.4686 | I100: 0.0001180054709 | K100: 97 | L100: Guatemala | M100: 5126.7604 | N100: 0.0002969541269 | O100: -4143.0348
A101: 98 | B101: Benim | C101: 1572.4166 | D101: 0.0002225304933 | F101: 98 | G101: Kuwait | H101: 1183.4524 | I101: 0.0001160427931 | K101: 98 | L101: Tanzânia, República Unida da | M101: 4910.6254 | N101: 0.0002844350748 | O101: -4168.6914
A102: 99 | B102: Bangladesh | C102: 1558.9346 | D102: 0.0002206225027 | F102: 99 | G102: Togo | H102: 1123.3014 | I102: 0.0001101447189 | K102: 99 | L102: Macedónia, Antiga República jugoslava da | M102: 4874.3908 | N102: 0.0002823362808 | O102: -4328.968
A103: 100 | B103: Egito | C103: 1538.5724 | D103: 0.000217740817 | F103: 100 | G103: Malta | H103: 1083.3068 | I103: 0.0001062230698 | K103: 100 | L103: Tunísia | M103: 4852.0784 | N103: 0.0002810438937 | O103: -3400.8564
A104: 101 | B104: Catar | C104: 1515.2294 | D104: 0.0002144372845 | F104: 101 | G104: Singapura | H104: 1064.6932 | I104: 0.0001043979232 | K104: 101 | L104: Zimbabwe | M104: 4772.268 | N104: 0.000276421086 | O104: -4645.7028
A105: 102 | B105: Malásia | C105: 1501.2424 | D105: 0.0002124578256 | F105: 102 | G105: São Tomé e Príncipe | H105: 1053.4712 | I105: 0.000103297556 | K105: 102 | L105: Suriname | M105: 4769.9158 | N105: 0.0002762848409 | O105: -4457.7222
A106: 103 | B106: Geórgia | C106: 1344.215 | D106: 0.0001902350987 | F106: 103 | G106: Noruega | H106: 1009.936 | I106: 9.902873519e-05 | K106: 103 | L106: Gana | M106: 4405.1998 | N106: 0.0002551596248 | O106: 1088.371
A107: 104 | B107: Reino Unido (Irlanda do Norte) pós-2020 | C107: 1299.918 | D107: 0.0001839661282 | F107: 104 | G107: Síria, República Árabe da | H107: 949.834 | I107: 9.313546567e-05 | K107: 104 | L107: Omã | M107: 4285.638 | N107: 0.0002482343217 | O107: 3325.7248
A108: 105 | B108: Albânia | C108: 1266.1722 | D108: 0.0001791903776 | F108: 105 | G108: Coreia, República da | H108: 937.599 | I108: 9.193576928e-05 | K108: 105 | L108: Singapura | M108: 4020.9472 | N108: 0.0002329028025 | O108: 1891.5608
A109: 106 | B109: Costa Rica | C109: 1199.7232 | D109: 0.0001697864265 | F109: 106 | G109: El Salvador | H109: 727.8254 | I109: 7.136653095e-05 | K109: 106 | L109: Dominicana, República | M109: 3933.7284 | N109: 0.0002278508827 | O109: -515.742
A110: 107 | B110: Indonésia | C110: 1137.3976 | D110: 0.0001609660245 | F110: 107 | G110: Turquemenistão | H110: 720.6558 | I110: 7.066351965e-05 | K110: 107 | L110: Myanmar | M110: 3786.5344 | N110: 0.0002193250569 | O110: -2886.1156
A111: 108 | B111: Islândia | C111: 1133.5366 | D111: 0.0001604196107 | F111: 108 | G111: Chade | H111: 675.9004 | I111: 6.62750528e-05 | K111: 108 | L111: Quénia | M111: 3706.4946 | N111: 0.0002146889618 | O111: -2805.5498
A112: 109 | B112: Congo, República Democrática do | C112: 1102.9464 | D112: 0.0001560904448 | F112: 109 | G112: Timor-Leste | H112: 614.232 | I112: 6.022819077e-05 | K112: 109 | L112: Croácia | M112: 3585.6358 | N112: 0.0002076885333 | O112: -41.6674
A113: 110 | B113: Togo | C113: 886.836 | D113: 0.0001255062129 | F113: 110 | G113: Senegal | H113: 563.3582 | I113: 5.523978747e-05 | K113: 110 | L113: Nicarágua | M113: 3581.558 | N113: 0.0002074523375 | O113: -2747.4548
A114: 111 | B114: Panamá | C114: 853.2114 | D114: 0.0001207476147 | F114: 111 | G114: Argélia | H114: 547.1324 | I114: 5.364877532e-05 | K114: 111 | L114: Burquina Faso | M114: 3574.6308 | N114: 0.0002070510976 | O114: 123.1568
A115: 112 | B115: Equador | C115: 827.4356 | D115: 0.0001170997891 | F115: 112 | G115: Líbano | H115: 532.1362 | I115: 5.217833094e-05 | K115: 112 | L115: Sri Lanca | M115: 3466.8512 | N115: 0.0002008082475 | O115: -2680.7736
A116: 113 | B116: Ruanda | C116: 825.9096 | D116: 0.0001168838275 | F116: 113 | G116: Omã | H116: 479.9566 | I116: 4.706188812e-05 | K116: 113 | L116: Benim | M116: 3389.9546 | N116: 0.0001963542139 | O116: -245.1214
A117: 114 | B117: Honduras | C117: 813.7022 | D117: 0.00011515622 | F117: 114 | G117: Emirados Árabes Unidos | H117: 455.3414 | I117: 4.464825783e-05 | K117: 114 | L117: Malavi | M117: 3260.7796 | N117: 0.0001888720914 | O117: -3247.5728
A118: 115 | B118: Bermudas | C118: 793.1712 | D118: 0.0001122506455 | F118: 115 | G118: Belarus | H118: 370.9342 | I118: 3.637175491e-05 | K118: 115 | L118: Timor-Leste | M118: 3086.1518 | N118: 0.0001787572349 | O118: 1857.6878
A119: 116 | B119: Etiópia | C119: 744.4088 | D119: 0.0001053497257 | F119: 116 | G119: Guiné-Bissau | H119: 361.4462 | I119: 3.544141413e-05 | K119: 116 | L119: Líbano | M119: 3051.887 | N119: 0.0001767725364 | O119: 1987.6146
A120: 117 | B120: Tunísia | C120: 725.611 | D120: 0.000102689436 | F120: 117 | G120: Usbequistão | H120: 308.2694 | I120: 3.022719141e-05 | K120: 117 | L120: Belarus | M120: 2826.8628 | N120: 0.0001637386008 | O120: 2084.9944
A121: 118 | B121: Burundi | C121: 677.0954 | D121: 9.582344359e-05 | F121: 118 | G121: Guiné | H121: 302.1342 | I121: 2.962560765e-05 | K121: 118 | L121: Guiné | M121: 2567.7766 | N121: 0.0001487317134 | O121: 1963.5082
A122: 119 | B122: Iémen | C122: 670.7886 | D122: 9.493089684e-05 | F122: 119 | G122: Geórgia | H122: 294.5626 | I122: 2.888317845e-05 | K122: 119 | L122: Serra Leoa | M122: 2499.2974 | N122: 0.0001447652356 | O122: -1496.3846
A123: 120 | B123: Paraguai | C123: 644.6266 | D123: 9.122841573e-05 | F123: 120 | G123: Bolívia | H123: 281.6492 | I123: 2.761696191e-05 | K123: 120 | L123: Irão, República Islâmica do | M123: 2440.1832 | N123: 0.0001413412009 | O123: 2029.2332
A124: 121 | B124: Namíbia | C124: 633.8792 | D124: 8.970742935e-05 | F124: 121 | G124: Bangladesh | H124: 280.7044 | I124: 2.752432005e-05 | K124: 121 | L124: Congo | M124: 2383.877 | N124: 0.0001380798122 | O124: 1985.2674
A125: 122 | B125: Azerbaijão | C125: 594.9756 | D125: 8.420174002e-05 | F125: 122 | G125: Irão, República Islâmica do | H125: 205.475 | I125: 2.01477414e-05 | K125: 122 | L125: Panamá | M125: 2366.8806 | N125: 0.0001370953404 | O125: -660.4578
A126: 123 | B126: Arménia | C126: 559.6906 | D126: 7.920815979e-05 | F126: 123 | G126: Congo | H126: 199.3048 | I126: 1.954272574e-05 | K126: 123 | L126: Congo, República Democrática do | M126: 2329.6366 | N126: 0.0001349380795 | O126: -123.7438
A127: 124 | B127: Cazaquistão | C127: 531.8816 | D127: 7.527259304e-05 | F127: 124 | G127: Zâmbia | H127: 199.3012 | I127: 1.954237274e-05 | K127: 124 | L127: Venezuela | M127: 2213.7304 | N127: 0.0001282245174 | O127: 1903.808
A128: 125 | B128: Aruba | C128: 522.985 | D128: 7.401353435e-05 | F128: 125 | G128: Nigéria | H128: 197.6194 | I128: 1.937746474e-05 | K128: 125 | L128: Seychelles | M128: 2103.9052 | N128: 0.0001218631812 | O128: 2103.9052
A129: 126 | B129: Serra Leoa | C129: 501.4564 | D129: 7.096677818e-05 | F129: 126 | G129: Islândia | H129: 194.2478 | I129: 1.90468643e-05 | K129: 126 | L129: Gabão | M129: 2079.9016 | N129: 0.0001204728358 | O129: 2079.4016
A130: 127 | B130: Guatemala | C130: 491.8628 | D130: 6.960907912e-05 | F130: 127 | G130: Venezuela | H130: 154.9612 | I130: 1.519463772e-05 | K130: 127 | L130: Togo | M130: 2010.1374 | N130: 0.0001164319278 | O130: -236.4654
A131: 128 | B131: Uganda | C131: 485.556 | D131: 6.871653237e-05 | F131: 128 | G131: Cabo Verde | H131: 126.7382 | I131: 1.242724652e-05 | K131: 128 | L131: Sudão | M131: 1881.5594 | N131: 0.0001089843849 | O131: 1848.4942
A132: 129 | B132: São Bartolomeu | C132: 472.0258 | D132: 6.680172043e-05 | F132: 129 | G132: Azerbaijão | H132: 124.8946 | I132: 1.224647331e-05 | K132: 129 | L132: Bangladesh | M132: 1839.639 | N132: 0.0001065562559 | O132: 1278.2302
A133: 130 | B133: Mauritânia | C133: 470.2498 | D133: 6.655037855e-05 | F133: 130 | G133: Albânia | H133: 104.056 | I133: 1.020315552e-05 | K133: 130 | L133: Guiné Equatorial | M133: 1818.2016 | N133: 0.0001053145508 | O133: 1818.2016
A134: 131 | B134: Barém | C134: 469.46 | D134: 6.6438605e-05 | F134: 131 | G134: Namíbia | H134: 69.6464 | I134: 6.829140562e-06 | K134: 131 | L134: Madagáscar | M134: 1665.147 | N134: 9.644926522e-05 | O134: -1405.8322
A135: 132 | B135: Gâmbia | C135: 455.249 | D135: 6.442744533e-05 | F135: 132 | G135: Tajiquistão | H135: 59.4122 | I135: 5.825631546e-06 | K135: 132 | L135: Geórgia | M135: 1638.7776 | N135: 9.4921887e-05 | O135: 1049.6524
A136: 133 | B136: Quénia | C136: 450.4724 | D136: 6.375145453e-05 | F136: 133 | G136: Iémen | H136: 45.76 | I136: 4.486972365e-06 | K136: 133 | L136: Laos, República Democrática Popular do | M136: 1584.7624 | N136: 9.179319845e-05 | O136: -1555.988
A137: 134 | B137: Myanmar | C137: 450.2094 | D137: 6.371423442e-05 | F137: 134 | G137: Libéria | H137: 38.8276 | I137: 3.807219585e-06 | K137: 134 | L137: Catar | M137: 1531.2716 | N137: 8.869488439e-05 | O137: 1499.1872
A138: 135 | B138: Kosovo | C138: 418.4652 | D138: 5.922175292e-05 | F138: 135 | G138: Aruba | H138: 38.029 | I138: 3.728913288e-06 | K138: 135 | L138: Albânia | M138: 1370.2282 | N138: 7.936686855e-05 | O138: 1162.1162
A139: 136 | B139: Nicarágua | C139: 417.0516 | D139: 5.902169837e-05 | F139: 136 | G139: São Marino | H139: 32.7702 | I139: 3.213264462e-06 | K139: 136 | L139: Islândia | M139: 1327.7844 | N139: 7.690842295e-05 | O139: 939.2888
A140: 137 | B140: Camboja | C140: 401.4318 | D140: 5.681116345e-05 | F140: 137 | G140: Botswana | H140: 29.9908 | I140: 2.940731879e-06 | K140: 137 | L140: El Salvador | M140: 1020.3732 | N140: 5.910243683e-05 | O140: -435.2776
A141: 138 | B141: Sri Lanca | C141: 393.0388 | D141: 5.56233749e-05 | F141: 138 | G141: Jordânia | H141: 29.4906 | I141: 2.891685035e-06 | K141: 138 | L141: Ruanda | M141: 826.0866 | N141: 4.784889597e-05 | O141: 825.7326
A142: 139 | B142: Bolívia | C142: 391.1324 | D142: 5.535357863e-05 | F142: 139 | G142: Bósnia-Herzegovina | H142: 27.8982 | I142: 2.735543104e-06 | K142: 139 | L142: Bermudas | M142: 793.8604 | N142: 4.5982278e-05 | O142: 792.482
A143: 140 | B143: Tanzânia, República Unida da | C143: 370.967 | D143: 5.249974434e-05 | F143: 140 | G143: Papuásia-Nova Guiné | H143: 25.837 | I143: 2.533433238e-06 | K143: 140 | L143: Turquemenistão | M143: 732.4956 | N143: 4.242788318e-05 | O143: -708.816
A144: 141 | B144: São Martinho (parte holandesa) | C144: 349.244 | D144: 4.942547643e-05 | F144: 141 | G144: Arábia Saudita | H144: 23.1054 | I144: 2.265587659e-06 | K144: 141 | L144: Azerbaijão | M144: 719.8702 | N144: 4.169659006e-05 | O144: 470.081
A145: 142 | B145: Comores | C145: 311.607 | D145: 4.409903802e-05 | F145: 142 | G145: Quirguizistão | H145: 17.4752 | I145: 1.713521404e-06 | K145: 142 | L145: Iémen | M145: 716.5486 | N145: 4.15041951e-05 | O145: 625.0286
A146: 143 | B146: Libéria | C146: 294.774 | D146: 4.171680942e-05 | F146: 143 | G146: Sudão | H146: 16.5326 | I146: 1.621095265e-06 | K146: 143 | L146: Namíbia | M146: 703.5256 | N146: 4.074987204e-05 | O146: 564.2328
A147: 144 | B147: Somália | C147: 292.8146 | D147: 4.143951252e-05 | F147: 144 | G147: Macau | H147: 16.4972 | I147: 1.617624137e-06 | K147: 144 | L147: Burundi | M147: 677.2094 | N147: 3.92255753e-05 | O147: 676.9814
A148: 145 | B148: El Salvador | C148: 292.5478 | D148: 4.140175463e-05 | F148: 145 | G148: Catar | H148: 16.0422 | I148: 1.573009355e-06 | K148: 145 | L148: Chade | M148: 675.9044 | N148: 3.91499866e-05 | O148: -675.8964
A149: 146 | B149: Jamaica | C149: 276.7996 | D149: 3.917304837e-05 | F149: 146 | G149: Arménia | H149: 15.34 | I149: 1.504155509e-06 | K149: 146 | L149: Bolívia | M149: 672.7816 | N149: 3.896910661e-05 | O149: 109.4832
A150: 147 | B150: Macedónia, Antiga República jugoslava da | C150: 272.7114 | D150: 3.859448086e-05 | F150: 147 | G150: Curaçau | H150: 12.9632 | I150: 1.271099654e-06 | K150: 147 | L150: Arménia | M150: 575.0306 | N150: 3.330713676e-05 | O150: 544.3506
A151: 148 | B151: Paquistão | C151: 266.8506 | D151: 3.776505263e-05 | F151: 148 | G151: Iraque | H151: 12.264 | I151: 1.202539971e-06 | K151: 148 | L151: Aruba | M151: 561.014 | N151: 3.249526203e-05 | O151: 484.956
A152: 149 | B152: Antígua e Barbuda | C152: 264.4064 | D152: 3.741914619e-05 | F152: 149 | G152: Jamaica | H152: 11.1226 | I152: 1.090620604e-06 | K152: 149 | L152: Cazaquistão | M152: 537.7376 | N152: 3.114703771e-05 | O152: 526.0256
A153: 150 | B153: Argentina | C153: 237.3284 | D153: 3.358703153e-05 | F153: 150 | G153: Kosovo | H153: 8.3722 | I153: 8.209316004e-07 | K153: 150 | L153: Barém | M153: 473.8044 | N153: 2.744387507e-05 | O153: 465.1156
A154: 151 | B154: Curaçau | C154: 224.0074 | D154: 3.170182585e-05 | F154: 151 | G154: Líbia, Jamahira Árabe da | H154: 5.95 | I154: 5.834240728e-07 | K154: 151 | L154: São Bartolomeu | M154: 472.3088 | N154: 2.735724637e-05 | O154: 471.7428
A155: 152 | B155: Moldava, República de | C155: 201.388 | D155: 2.850069821e-05 | F155: 152 | G155: Cazaquistão | H155: 5.856 | I155: 5.74206953e-07 | K155: 152 | L155: Mauritânia | M155: 471.8238 | N155: 2.732915402e-05 | O155: 468.6758
A156: 153 | B156: Haiti | C156: 195.7344 | D156: 2.77005932e-05 | F156: 153 | G156: Andorra | H156: 4.7264 | I156: 4.634446282e-07 | K156: 153 | L156: Gâmbia | M156: 455.249 | N156: 2.636910227e-05 | O156: 455.249
A157: 154 | B157: Ceuta e Melilha | C157: 191.5534 | D157: 2.710889251e-05 | F157: 154 | G157: São Cristovão e Nevis | H157: 4.4378 | I157: 4.351461093e-07 | K157: 154 | L157: Kosovo | M157: 426.8374 | N157: 2.472343499e-05 | O157: 410.093
A158: 155 | B158: Suriname | C158: 156.0968 | D158: 2.209102722e-05 | F158: 155 | G158: Afeganistão | H158: 4.3662 | I158: 4.281254095e-07 | K158: 155 | L158: São Martinho (parte holandesa) | M158: 349.244 | N158: 2.022904115e-05 | O158: 349.244
A159: 156 | B159: Trindade e Tobago | C159: 142.2682 | D159: 2.013398531e-05 | F159: 156 | G159: Barém | H159: 4.3444 | I159: 4.259878221e-07 | K159: 156 | L159: Usbequistão | M159: 348.6042 | N159: 2.019198241e-05 | O159: -267.9346
A160: 157 | B160: Nova Caledónia | C160: 140.1192 | D160: 1.982985596e-05 | F160: 157 | G160: Nepal | H160: 2.4222 | I160: 2.375075276e-07 | K160: 157 | L160: Zâmbia | M160: 336.5272 | N160: 1.949245392e-05 | O160: -62.0752
A161: 158 | B161: Zâmbia | C161: 137.226 | D161: 1.942040644e-05 | F161: 158 | G161: Lesoto | H161: 1.7136 | I161: 1.68026133e-07 | K161: 158 | L161: Libéria | M161: 333.6016 | N161: 1.932299622e-05 | O161: 255.9464
A162: 159 | B162: Polinésia Francesa | C162: 133.1554 | D162: 1.884432971e-05 | F162: 159 | G162: Liechtenstein | H162: 1.6922 | I162: 1.659277674e-07 | K162: 159 | L162: Comores | M162: 311.607 | N162: 1.804901681e-05 | O162: 311.607
A163: 160 | B163: Madagáscar | C163: 129.6574 | D163: 1.834928808e-05 | F163: 160 | G163: Mauritânia | H163: 1.574 | I163: 1.543377295e-07 | K163: 160 | L163: Somália | M163: 292.8146 | N163: 1.696051641e-05 | O163: 292.8146
A164: 161 | B164: Maldivas | C164: 127.1794 | D164: 1.799859822e-05 | F164: 161 | G164: Fiji, Ilhas | H164: 1.3646 | I164: 1.338051243e-07 | K164: 161 | L164: Jamaica | M164: 287.9222 | N164: 1.667713699e-05 | O164: 265.677
A165: 162 | B165: Niger | C165: 113.05 | D165: 1.59989867e-05 | F165: 162 | G165: Bermudas | H165: 0.6892 | I165: 6.757913798e-08 | K165: 162 | L165: Antígua e Barbuda | M165: 264.426 | N165: 1.531618134e-05 | O165: 264.3868
A166: 163 | B166: Liechtenstein | C166: 106.2456 | D166: 1.503601894e-05 | F166: 163 | G166: Território Palestiniano Ocupado | H166: 0.4852 | I166: 4.757602691e-08 | K166: 163 | L166: Curaçau | M166: 236.9706 | N166: 1.372589942e-05 | O166: 211.0442
A167: 164 | B167: Centro-Africana, República | C167: 83.0308 | D167: 1.17506295e-05 | F167: 164 | G167: Montenegro | H167: 0.3086 | I167: 3.025960821e-08 | K167: 164 | L167: Haiti | M167: 195.7408 | N167: 1.133777158e-05 | O167: 195.728
A168: 165 | B168: Jibuti | C168: 77.3086 | D168: 1.094081613e-05 | F168: 165 | G168: São Bartolomeu | H168: 0.283 | I168: 2.774941388e-08 | K168: 165 | L168: Ceuta e Melilha | M168: 191.5534 | N168: 1.109522744e-05 | O168: 191.5534
A169: 166 | B169: Nepal | C169: 76.6542 | D169: 1.084820457e-05 | F169: 166 | G169: Gabão | H169: 0.25 | I169: 2.45136165e-08 | K169: 166 | L169: Trindade e Tobago | M169: 142.2786 | N169: 8.241114103e-06 | O169: 142.2578
A170: 167 | B170: Zimbabwe | C170: 63.2826 | D170: 8.955837909e-06 | F170: 167 | G170: Ruanda | H170: 0.177 | I170: 1.735564048e-08 | K170: 167 | L170: Nova Caledónia | M170: 140.1192 | N170: 8.116036532e-06 | O170: 140.1192
A171: 168 | B171: Caimão, Ilhas | C171: 51.4562 | D171: 7.282150016e-06 | F171: 168 | G171: Barbados | H171: 0.1378 | I171: 1.351190542e-08 | K171: 168 | L171: Polinésia Francesa | M171: 133.1554 | N171: 7.712676712e-06 | O171: 133.1554
A172: 169 | B172: Bósnia-Herzegovina | C172: 50.6168 | D172: 7.163357009e-06 | F172: 169 | G172: Niger | H172: 0.1252 | I172: 1.227641914e-08 | K172: 169 | L172: Maldivas | M172: 127.183 | N172: 7.366741133e-06 | O172: 127.1758
A173: 170 | B173: Montenegro | C173: 46.101 | D173: 6.524274973e-06 | F173: 170 | G173: Burundi | H173: 0.114 | I173: 1.117820913e-08 | K173: 170 | L173: Niger | M173: 113.1752 | N173: 6.55537612e-06 | O173: 112.9248
A174: 171 | B174: Bahamas | C174: 42.9652 | D174: 6.080492377e-06 | F174: 171 | G174: Oceano Indico, Território Britânico do | H174: 0.098 | I174: 9.609337669e-09 | K174: 171 | L174: Liechtenstein | M174: 107.9378 | N174: 6.252013485e-06 | O174: 104.5534
A175: 172 | B175: Usbequistão | C175: 40.3348 | D175: 5.708234663e-06 | F175: 172 | G175: São Vicente e Granadinas | H175: 0.0416 | I175: 4.079065786e-09 | K175: 172 | L175: Centro-Africana, República | M175: 83.0308 | N175: 4.809340947e-06 | O175: 83.0308
A176: 173 | B176: Mongólia | C176: 30.8452 | D176: 4.365253821e-06 | F176: 173 | G176: Antígua e Barbuda | H176: 0.0196 | I176: 1.921867534e-09 | K176: 173 | L176: Nepal | M176: 79.0764 | N176: 4.580292716e-06 | O176: 74.232
A177: 174 | B177: Afeganistão | C177: 18.9718 | D177: 2.684914426e-06 | F177: 174 | G177: Santa Sé (Cidade Estado do Vaticano) | H177: 0.018 | I177: 1.764980388e-09 | K177: 174 | L177: Bósnia-Herzegovina | M177: 78.515 | N177: 4.547775096e-06 | O177: 22.7186
A178: 175 | B178: Guiana | C178: 18.2434 | D178: 2.581830287e-06 | F178: 175 | G178: Mongólia | H178: 0.0112 | I178: 1.098210019e-09 | K178: 175 | L178: Jibuti | M178: 77.3086 | N178: 4.477897546e-06 | O178: 77.3086
A179: 176 | B179: Turcas e Caicos, Ilhas | C179: 18.0666 | D179: 2.556809315e-06 | F179: 176 | G179: Trindade e Tobago | H179: 0.0104 | I179: 1.019766447e-09 | K179: 176 | L179: Tajiquistão | M179: 59.4122 | N179: 3.441295594e-06 | O179: -59.4122
A180: 177 | B180: Laos, República Democrática Popular do | C180: 14.3872 | D180: 2.036095722e-06 | F180: 177 | G180: Haiti | H180: 0.0064 | I180: 6.275485825e-10 | K180: 177 | L180: Caimão, Ilhas | M180: 51.4562 | N180: 2.980465197e-06 | O180: 51.4562
A181: 178 | B181: Turquemenistão | C181: 11.8398 | D181: 1.675584279e-06 | F181: 178 | G181: Maldivas | H181: 0.0036 | I181: 3.529960776e-10 | K181: 178 | L181: Montenegro | M181: 46.4096 | N181: 2.68815415e-06 | O181: 45.7924
A182: 179 | B182: Barbados | C182: 11.7888 | D182: 1.668366691e-06 | F182: 179 | G182: Anguila | H182: 0 | I182: 0 | K182: 179 | L182: Bahamas | M182: 42.9652 | N182: 2.48864633e-06 | O182: 42.9652
A183: 180 | B183: Virgens Britânicas, Ilhas | C183: 9.9272 | D183: 1.404910577e-06 | F183: 180 | G183: Antárctica | H183: 0 | I183: 0 | K183: 180 | L183: São Marino | M183: 32.7902 | N183: 1.899286187e-06 | O183: -32.7502
A184: 181 | B184: Fiji, Ilhas | C184: 8.1268 | D184: 1.150115569e-06 | F184: 181 | G184: Antilhas Holandesas | H184: 0 | I184: 0 | K184: 181 | L184: Mongólia | M184: 30.8564 | N184: 1.787275902e-06 | O184: 30.834
A185: 182 | B185: Santa Lúcia | C185: 7.138 | D185: 1.010179275e-06 | F185: 182 | G185: Bahamas | H185: 0 | I185: 0 | K185: 182 | L185: Botswana | M185: 30.0852 | N185: 1.742606169e-06 | O185: -29.8964
A186: 183 | B186: Brunei Darussalam | C186: 6.98 | D186: 9.878189044e-07 | F186: 183 | G186: Bonaire, Santo Eustáquio e Saba | H186: 0 | I186: 0 | K186: 183 | L186: Papuásia-Nova Guiné | M186: 28.7226 | N186: 1.663681144e-06 | O186: -22.9514
A187: 184 | B187: Malavi | C187: 6.6034 | D187: 9.345219704e-07 | F187: 184 | G187: Bouvet, Ilha | H187: 0 | I187: 0 | K187: 184 | L187: Afeganistão | M187: 23.338 | N187: 1.351792335e-06 | O187: 14.6056
A188: 185 | B188: Guam | C188: 6.5774 | D188: 9.308424158e-07 | F188: 185 | G188: Brunei Darussalam | H188: 0 | I188: 0 | K188: 185 | L188: Quirguizistão | M188: 22.1318 | N188: 1.281926369e-06 | O188: -12.8186
A189: 186 | B189: São Vicente e Granadinas | C189: 5.6654 | D189: 8.017749601e-07 | F189: 186 | G189: Butão | H189: 0 | I189: 0 | K189: 186 | L189: Turcas e Caicos, Ilhas | M189: 18.0666 | N189: 1.04646034e-06 | O189: 18.0666
A190: 187 | B190: Quirguizistão | C190: 4.6566 | D190: 6.590082393e-07 | F190: 187 | G190: Caimão, Ilhas | H190: 0 | I190: 0 | K190: 187 | L190: Barbados | M190: 11.9266 | N190: 6.908169708e-07 | O190: 11.651
A191: 188 | B191: Menores distantes dos Estados Unidos, lhas | C191: 4.5542 | D191: 6.445164548e-07 | F191: 188 | G191: Centro-Africana, República | H191: 0 | I191: 0 | K191: 188 | L191: Virgens Britânicas, Ilhas | M191: 9.9272 | N191: 5.750069788e-07 | O191: 9.9272
A192: 189 | B192: Sudão do Sul | C192: 3.771 | D192: 5.336769468e-07 | F192: 189 | G192: Ceuta | H192: 0 | I192: 0 | K192: 189 | L192: Fiji, Ilhas | M192: 9.4914 | N192: 5.497644087e-07 | O192: 6.7622
A193: 190 | B193: Bonaire, Santo Eustáquio e Saba | C193: 3.1276 | D193: 4.426221211e-07 | F193: 190 | G193: Ceuta e Melilha | H193: 0 | I193: 0 | K193: 190 | L193: Santa Lúcia | M193: 7.138 | N193: 4.134498967e-07 | O193: 7.138
A194: 191 | B194: Marianas do Norte, Ilhas | C194: 2.9244 | D194: 4.138649863e-07 | F194: 191 | G194: Christmas, Ilha | H194: 0 | I194: 0 | K194: 191 | L194: Brunei Darussalam | M194: 6.98 | N194: 4.042981618e-07 | O194: 6.98
A195: 192 | B195: Papuásia-Nova Guiné | C195: 2.8856 | D195: 4.083739585e-07 | F195: 192 | G195: Cocos (Keeling), Ilhas | H195: 0 | I195: 0 | K195: 192 | L195: Guam | M195: 6.5774 | N195: 3.809786145e-07 | O195: 6.5774
A196: 193 | B196: Belize | C196: 2.1806 | D196: 3.086014188e-07 | F196: 193 | G196: Comores | H196: 0 | I196: 0 | K196: 193 | L196: São Vicente e Granadinas | M196: 5.707 | N196: 3.305629813e-07 | O196: 5.6238
A197: 194 | B197: Melilha | C197: 1.3464 | D197: 1.905443228e-07 | F197: 194 | G197: Cook, Ilhas | H197: 0 | I197: 0 | K197: 194 | L197: Menores distantes dos Estados Unidos, lhas | M197: 4.5542 | N197: 2.6379007e-07 | O197: 4.5542
A198: 195 | B198: Granada | C198: 0.6866 | D198: 9.716854725e-08 | F198: 195 | G198: Coreia, República Popular Democrática da | H198: 0 | I198: 0 | K198: 195 | L198: São Cristovão e Nevis | M198: 4.4378 | N198: 2.570479058e-07 | O198: -4.4378
A199: 196 | B199: Virgens dos Estados Unidos, Ilhas | C199: 0.295 | D199: 4.174879324e-08 | F199: 196 | G199: Domínica | H199: 0 | I199: 0 | K199: 196 | L199: Sudão do Sul | M199: 3.771 | N199: 2.184252676e-07 | O199: 3.771
A200: 197 | B200: Botswana | C200: 0.0944 | D200: 1.335961384e-08 | F200: 197 | G200: Eritreia | H200: 0 | I200: 0 | K200: 197 | L200: Bonaire, Santo Eustáquio e Saba | M200: 3.1276 | N200: 1.81158013e-07 | O200: 3.1276
... 58 more rows

Sheet 2A
A1: Parceiros comerciais de Portugal - União Europeia vs. Países Terceiros (média 2018-2022 em milhões de euros) produtos agrícolas e agroalimentares, do mar e da floresta
A2: Exportações | F2: Importações | K2: Trocas comerciais (total e saldo)
A3: P | B3: Grupo de Países | C3: média quinquénio | D3: % do Total | F3: P | G3: Grupo de Países | H3: média quinquénio | I3: % do Total | K3: P | L3: Grupo de Países | M3: média quinquénio | N3: % do Total | O3: Saldo (exp-imp)
A4: 1 | B4: União Europeia | C4: 8687.977909 | D4: 0.6704537422 | F4: 1 | G4: União Europeia | H4: 11668.95063 | I4: 0.7803380776 | K4: 1 | L4: União Europeia | M4: 20356.92854 | N4: 0.729323573 | O4: -2980.972719
A5: 2 | B5: Países Terceiros | C5: 4270.960171 | D5: 0.329591219 | F5: 2 | G5: Países Terceiros | H5: 3284.761055 | I5: 0.2196619224 | K5: 2 | L5: Países Terceiros | M5: 7555.721226 | N5: 0.2706973005 | O5: 986.1991156
B6: Outros | C6: 0 | D6: -4.496115282e-05 | G6: Outros | H6: 0 | I6: 0 | L6: Outros | M6: 0 | N6: -2.087350238e-05 | O6: 0
B7: Total | C7: 12958.35546 | D7: 1 | G7: Total | H7: 14953.71168 | I7: 1 | L7: Total | M7: 27912.06714 | N7: 1 | O7: -1995.356226
F27: valores em milhões de euros
A28: Nota: Outros = Países não determinados, abastecimentos de bordo, etc.
A29: Fonte: GPP a partir de dados INE/Comércio Internacional (2021 provisórios; 2022 preliminares) | M29: 2023-03-23

Sheet 3
A1: Principais produtos agrícolas e agroalimentares, do mar e da floresta transacionados entre Portugal e Bélgica em 2018-2022 (NC a 2 e 4 dígitos) em milhões de euros
AC4: P | AE4: Cód.NC | AF4: Descritivo | AG4: Média export quinquénio | AH4: % do total | AI4: % acumulada | AN4: P | AO4: NC | AP4: Exportações | AQ4: 2018 | AR4: 2019 | AS4: 2020 | AT4: 2021 | AU4: 2022 | AV4: média quinquénio
AC5: 1 | AD5: º | AE5: 22 | AF5: Bebidas, líquidos alcoólicos e vinagres | AG5: 55.9290354 | AH5: 0.2338809258 | AN5: 1º | AO5: 22 | AP5: Bebidas, líquidos alcoólicos e vinagres | AQ5: 55.042696 | AR5: 52.358262 | AS5: 53.021638 | AT5: 57.711948 | AU5: 61.510633 | AV5: 55.9290354
AC6: 2 | AD6: º | AE6: 07 | AF6: Produtos hortícolas | AG6: 41.7567582 | AH6: 0.1746160862 | AN6: 2º | AO6: 07 | AP6: Produtos hortícolas | AQ6: 36.669111 | AR6: 44.835709 | AS6: 42.754079 | AT6: 37.853371 | AU6: 46.671521 | AV6: 41.7567582
AC7: 3 | AD7: º | AE7: 48 | AF7: Papel e cartão | AG7: 32.6845468 | AH7: 0.1366784178 | AI7: 0.5451754298 | AN7: 3º | AO7: 48 | AP7: Papel e cartão | AQ7: 31.877758 | AR7: 30.274989 | AS7: 26.266604 | AT7: 28.683107 | AU7: 46.320276 | AV7: 32.6845468
AC8: 4 | AD8: º | AE8: 20 | AF8: Preparações de produtos vegetais | AG8: 21.4395374 | AH8: 0.08965466364 | AO8: - | AP8: Outros | AQ8: 102.443266 | AR8: 102.11041 | AS8: 98.30204 | AT8: 110.670757 | AU8: 130.295119 | AV8: 108.7643184
AC9: 5 | AD9: º | AE9: 44 | AF9: Madeira e suas obras | AG9: 17.84987 | AH9: 0.0746435924 | AP9: Total | AQ9: 226.032831 | AR9: 229.57937 | AS9: 220.344361 | AT9: 234.919183 | AU9: 284.797549 | AV9: 239.1346588
AC10: 6 | AD10: º | AE10: 08 | AF10: Frutas | AG10: 13.6677726 | AH10: 0.05715513037
AC11: 7 | AD11: º | AE11: 45 | AF11: Cortiça e suas obras | AG11: 10.6179162 | AH11: 0.04440141071
AC12: 8 | AD12: º | AE12: 04 | AF12: Leite e laticínios; ovos; mel, etc. | AG12: 6.791992 | AH12: 0.02840237393
AC13: 9 | AD13: º | AE13: 19a | AF13: Preparações à base de cereais (exc. NC 19022010) (a) | AG13: 6.0146192 | AH13: 0.02515159965
AC14: 10 | AD14: º | AE14: 16p | AF14: Preparações e conservas de peixes ou crustáceos (NC 1604-05) (p) | AG14: 5.2684098 | AH14: 0.02203114273 | AI14: 0.8866153433
AE15: - | AF15: Outros | AG15: 27.1142012 | AH15: 0.1133846567
AE16: Total | AG16: 239.1346588 | AH16: 1
AC38: P | AE38: Cód.NC | AF38: Descritivo | AG38: Média import quinquénio | AH38: % do total | AI38: % acumulada | AN38: P | AO38: NC | AP38: Importações | AQ38: 2018 | AR38: 2019 | AS38: 2020 | AT38: 2021 | AU38: 2022 | AV38: média quinquénio
AC39: 1 | AD39: º | AE39: 20 | AF39: Preparações de produtos vegetais | AG39: 35.9495662 | AH39: 0.1259746414 | AN39: 1º | AO39: 20 | AP39: Preparações de produtos vegetais | AQ39: 36.630971 | AR39: 37.490672 | AS39: 29.009635 | AT39: 32.572755 | AU39: 44.043798 | AV39: 35.9495662
AC40: 2 | AD40: º | AE40: 04 | AF40: Leite e laticínios; ovos; mel, etc. | AG40: 27.5312352 | AH40: 0.09647508573 | AN40: 2º | AO40: 04 | AP40: Leite e laticínios; ovos; mel, etc. | AQ40: 22.277069 | AR40: 24.912039 | AS40: 22.922181 | AT40: 30.270173 | AU40: 37.274714 | AV40: 27.5312352
AC41: 3 | AD41: º | AE41: 19a | AF41: Preparações à base de cereais (exc. NC 19022010) (a) | AG41: 20.0441412 | AH41: 0.07023877522 | AI41: 0.2926885023 | AN41: 3º | AO41: 19a | AP41: Preparações à base de cereais (exc. NC 19022010) (a) | AQ41: 18.618674 | AR41: 18.613338 | AS41: 17.460124 | AT41: 20.173626 | AU41: 25.354944 | AV41: 20.0441412
AC42: 4 | AD42: º | AE42: 15 | AF42: Gorduras e óleos animais ou vegetais | AG42: 19.4846034 | AH42: 0.06827804019 | AO42: - | AP42: Outros | AQ42: 175.906231 | AR42: 197.499954 | AS42: 148.631852 | AT42: 221.024275 | AU42: 266.17023 | AV42: 201.8465084
AC43: 5 | AD43: º | AE43: 21 | AF43: Preparações alimentícias diversas | AG43: 19.3849214 | AH43: 0.06792873405 | AP43: Total | AQ43: 253.432945 | AR43: 278.516003 | AS43: 218.023792 | AT43: 304.040829 | AU43: 372.843686 | AV43: 285.371451
AC44: 6 | AD44: º | AE44: 24 | AF44: Tabaco | AG44: 17.466224 | AH44: 0.06120522547
AC45: 7 | AD45: º | AE45: 18 | AF45: Cacau e suas preparações | AG45: 17.4617796 | AH45: 0.06118965138
AC46: 8 | AD46: º | AE46: 02 | AF46: Carnes e miudezas | AG46: 16.7799468 | AH46: 0.05880036963
AC47: 9 | AD47: º | AE47: 23a | AF47: Resíduos indústrias alimentares; alimentos p/ animais (exc. NC 230120) (a) | AG47: 14.7100112 | AH47: 0.05154689142
AC48: 10 | AD48: º | AE48: 08 | AF48: Frutas | AG48: 14.187991 | AH48: 0.04971762575 | AI48: 0.7113550402
AE49: - | AF49: Outros | AG49: 82.371031 | AH49: 0.2886449598
AE50: Total | AG50: 285.371451 | AH50: 1
AC62: DESAGREGAÇÃO A 4 DÍGITOS | AN62: DESAGREGAÇÃO A 4 DÍGITOS
AC64: P | AE64: Cód.NC | AF64: Descritivo | AG64: Média export quinquénio | AH64: % do total | AI64: % acumulada | AN64: P | AO64: NC | AP64: Exportações | AQ64: 2018 | AR64: 2019 | AS64: 2020 | AT64: 2021 | AU64: 2022 | AV64: média quinquénio
AC65: 1 | AD65: º | AE65: 2204 | AF65: Vinhos de uvas frescas | AG65: 47.8569576 | AH65: 0.2001255604 | AN65: 1º | AO65: 2204 | AP65: Vinhos de uvas frescas | AQ65: 49.744028 | AR65: 46.141172 | AS65: 46.845667 | AT65: 48.355213 | AU65: 48.198708 | AV65: 47.8569576
AC66: 2 | AD66: º | AE66: 0710 | AF66: Produtos hortícolas congelados | AG66: 35.2222942 | AH66: 0.1472906285 | AN66: 2º | AO66: 0710 | AP66: Produtos hortícolas congelados | AQ66: 24.807823 | AR66: 38.949651 | AS66: 37.870952 | AT66: 32.505447 | AU66: 41.977598 | AV66: 35.2222942
AC67: 3 | AD67: º | AE67: 4802 | AF67: Papel e cartão p/ escrita, etc. | AG67: 24.2559686 | AH67: 0.1014322588 | AI67: 0.4488484477 | AN67: 3º | AO67: 4802 | AP67: Papel e cartão p/ escrita, etc. | AQ67: 23.575031 | AR67: 23.509445 | AS67: 17.960777 | AT67: 20.030148 | AU67: 36.204442 | AV67: 24.2559686
AC68: 4 | AD68: º | AE68: 0810 | AF68: Outras frutas frescas | AG68: 11.3645922 | AH68: 0.04752381883 | AN68: - | AO68: - | AP68: Outros | AQ68: 127.905949 | AR68: 120.979102 | AS68: 117.666965 | AT68: 134.028375 | AU68: 158.416801 | AV68: 131.7994384
AC69: 5 | AD69: º | AE69: 2004 | AF69: Produtos hortícolas preparados, congelados | AG69: 10.2010162 | AH69: 0.0426580415 | AP69: Total | AQ69: 226.032831 | AR69: 229.57937 | AS69: 220.344361 | AT69: 234.919183 | AU69: 284.797549 | AV69: 239.1346588
AC70: 6 | AD70: º | AE70: 2002 | AF70: Tomates preparados | AG70: 8.6608862 | AH70: 0.03621761163
AC71: 7 | AD71: º | AE71: 4504 | AF71: Cortiça aglomerada e suas obras | AG71: 7.6680634 | AH71: 0.03206588053
AC72: 8 | AD72: º | AE72: 2202 | AF72: Águas com açúcar ou outros produtos; outras bebidas | AG72: 6.0405158 | AH72: 0.02525989261
AC73: 9 | AD73: º | AE73: 1604 | AF73: Preparações e conservas de peixes, etc. | AG73: 5.1135522 | AH73: 0.02138356784
AC74: 10 | AD74: º | AE74: 4401 | AF74: Lenha, resíduos de madeira, etc. | AG74: 5.0900136 | AH74: 0.02128513544 | AI74: 0.6752423961
AE75: - | AF75: Outros | AG75: 77.6607988 | AH75: 0.3247576039
AE76: Total | AG76: 239.1346588 | AH76: 1
AC89: DESAGREGAÇÃO A 4 DÍGITOS | AN89: DESAGREGAÇÃO A 4 DÍGITOS
G91: média 2018-2022 em milhões de euros | I91: Cód. NC | J91: Descritivo | K91: Export | L91: Import | M91: Saldo | AC91: P | AE91: Cód.NC | AF91: Descritivo | AG91: Média import quinquénio | AH91: % do total | AI91: % acumulada | AN91: P | AO91: NC | AP91: Importações | AQ91: 2018 | AR91: 2019 | AS91: 2020 | AT91: 2021 | AU91: 2022 | AV91: média quinquénio
I92: 2204 | J92: Vinhos de uvas frescas | K92: 47.8569576 | L92: 0.3997244 | M92: 47.4572332 | AC92: 1 | AD92: º | AE92: 2004 | AF92: Produtos hortícolas preparados, congelados | AG92: 27.4667032 | AH92: 0.09624895239 | AN92: 1º | AO92: 2004 | AP92: Produtos hortícolas preparados, congelados | AQ92: 27.417952 | AR92: 29.18827 | AS92: 22.323663 | AT92: 24.270308 | AU92: 34.133323 | AV92: 27.4667032
I93: 0710 | J93: Produtos hortícolas congelados | K93: 35.2222942 | L93: 8.2448724 | M93: 26.9774218 | AC93: 2 | AD93: º | AE93: 1806 | AF93: Chocolate e outras preparações com cacau | AG93: 17.348904 | AH93: 0.06079411216 | AN93: 2º | AO93: 1806 | AP93: Chocolate e outras preparações com cacau | AQ93: 15.203558 | AR93: 17.851416 | AS93: 14.11896 | AT93: 17.894642 | AU93: 21.675944 | AV93: 17.348904
I94: 4802 | J94: Papel e cartão p/ escrita, etc. | K94: 24.2559686 | L94: 1.7794948 | M94: 22.4764738 | AC94: 3 | AD94: º | AE94: 0406 | AF94: Queijos e requeijão | AG94: 14.3797756 | AH94: 0.05038967826 | AI94: 0.2074327428 | AN94: 3º | AO94: 0406 | AP94: Queijos e requeijão | AQ94: 10.174792 | AR94: 12.482309 | AS94: 10.134254 | AT94: 14.989004 | AU94: 24.118519 | AV94: 14.3797756
I95: 2002 | J95: Tomates preparados | K95: 8.6608862 | L95: 0.0287018 | M95: 8.6321844 | AC95: 4 | AD95: º | AE95: 2309 | AF95: Preparações p/ alimentação animal | AG95: 14.1466842 | AH95: 0.04957287826 | AN95: - | AO95: - | AP95: Outros | AQ95: 200.636643 | AR95: 218.994008 | AS95: 171.446915 | AT95: 246.886875 | AU95: 292.9159 | AV95: 226.1760682
I96: 4504 | J96: Cortiça aglomerada e suas obras | K96: 7.6680634 | L96: 0.001953 | M96: 7.6661104 | AC96: 5 | AD96: º | AE96: 2106 | AF96: Outras preparações alimentícias | AG96: 13.5527056 | AH96: 0.04749145562 | AP96: Total | AQ96: 253.432945 | AR96: 278.516003 | AS96: 218.023792 | AT96: 304.040829 | AU96: 372.843686 | AV96: 285.371451
I97: 4401 | J97: Lenha, resíduos de madeira, etc. | K97: 5.0900136 | L97: 0.1147176 | M97: 4.975296 | AC97: 6 | AD97: º | AE97: 0201 | AF97: Carnes de bovino, frescas ou refrigeradas | AG97: 12.110785 | AH97: 0.04243867057
I98: 4408 | J98: Folhas para folheados ou contraplacados, etc. | K98: 4.5228206 | L98: 0.0669676 | M98: 4.455853 | AC98: 7 | AD98: º | AE98: 1905 | AF98: Produtos de padaria, pastelaria, etc. | AG98: 11.2076102 | AH98: 0.03927376113
I99: 1604 | J99: Preparações e conservas de peixes, etc. | K99: 5.1135522 | L99: 1.3332502 | M99: 3.780302 | AC99: 8 | AD99: º | AE99: 2402 | AF99: Charutos, cigarrilhas e cigarros | AG99: 9.6974596 | AH99: 0.03398188419
I100: 4418 | J100: Obras de marcenaria ou carpintaria | K100: 3.8143802 | L100: 0.539174 | M100: 3.2752062 | AC100: 9 | AD100: º | AE100: 0405 | AF100: Manteiga | AG100: 9.429904 | AH100: 0.03304431458
I101: 2202 | J101: Águas com açúcar ou outros produtos; outras bebidas | K101: 6.0405158 | L101: 2.9615478 | M101: 3.078968 | AC101: 10 | AD101: º | AE101: 0810 | AF101: Outras frutas frescas | AG101: 9.0317336 | AH101: 0.03164904397 | AI101: 0.4848847511
I102: - | J102: Outros | K102: 74.4038958 | L102: 137.70656 | M102: -63.3026642 | AE102: - | AF102: Outros | AG102: 146.999186 | AH102: 0.5151152489
I103: 1518 | J103: Gorduras e óleos, animais ou vegetais, processados de outras formas | K103: 0.1595828 | L103: 6.7476466 | M103: -6.5880638 | AE103: Total | AG103: 285.371451 | AH103: 1
I104: 1515 | J104: Outras gorduras e óleos vegetais | K104: 0.1275946 | L104: 7.3139196 | M104: -7.186325
I105: 0405 | J105: Manteiga | K105: 1.9742084 | L105: 9.429904 | M105: -7.4556956
I106: 2402 | J106: Charutos, cigarrilhas e cigarros | K106: 0.0001892 | L106: 9.6974596 | M106: -9.6972704
I107: 0201 | J107: Carnes de bovino, frescas ou refrigeradas | K107: 1.3092306 | L107: 12.110785 | M107: -10.8015544
I108: 0406 | J108: Queijos e requeijão | K108: 1.3114054 | L108: 14.3797756 | M108: -13.0683702
I109: 2106 | J109: Outras preparações alimentícias | K109: 0.4050286 | L109: 13.5527056 | M109: -13.147677
I110: 2309 | J110: Preparações p/ alimentação animal | K110: 0.640674 | L110: 14.1466842 | M110: -13.5060102
I111: 1806 | J111: Chocolate e outras preparações com cacau | K111: 0.3563808 | L111: 17.348904 | M111: -16.9925232
I112: 2004 | J112: Produtos hortícolas preparados, congelados | K112: 10.2010162 | L112: 27.4667032 | M112: -17.265687
I113: Total | K113: 239.1346588 | L113: 285.371451 | M113: -46.2367922
A116: Fonte: GPP a partir de dados INE/Comércio Internacional (2021 provisórios; 2022 preliminares) | Y116: 2023-07-19T17:13:34.470

Sheet 3A
A1: Principais produtos agrícolas e agroalimentares transacionados entre Portugal e Bélgica em 2018-2022 (NC a 2 e 4 dígitos) em milhões de euros
AC4: P | AE4: Cód.NC | AF4: Descritivo | AG4: Média export quinquénio | AH4: % do total | AI4: % acumulada | AN4: P | AO4: NC | AP4: Exportações | AQ4: 2018 | AR4: 2019 | AS4: 2020 | AT4: 2021 | AU4: 2022 | AV4: média quinquénio
AC5: 1 | AD5: º | AE5: 22 | AF5: Bebidas, líquidos alcoólicos e vinagres | AG5: 55.9290354 | AH5: 0.3358735137 | AN5: 1º | AO5: 22 | AP5: Bebidas, líquidos alcoólicos e vinagres | AQ5: 55.042696 | AR5: 52.358262 | AS5: 53.021638 | AT5: 57.711948 | AU5: 61.510633 | AV5: 55.9290354
AC6: 2 | AD6: º | AE6: 07 | AF6: Produtos hortícolas | AG6: 41.7567582 | AH6: 0.2507640083 | AN6: 2º | AO6: 07 | AP6: Produtos hortícolas | AQ6: 36.669111 | AR6: 44.835709 | AS6: 42.754079 | AT6: 37.853371 | AU6: 46.671521 | AV6: 41.7567582
AC7: 3 | AD7: º | AE7: 20 | AF7: Preparações de produtos vegetais | AG7: 21.4395374 | AH7: 0.128751957 | AI7: 0.715389479 | AN7: 3º | AO7: 20 | AP7: Preparações de produtos vegetais | AQ7: 22.344492 | AR7: 20.140453 | AS7: 18.376846 | AT7: 21.140834 | AU7: 25.195062 | AV7: 21.4395374
AC8: 4 | AD8: º | AE8: 08 | AF8: Frutas | AG8: 13.6677726 | AH8: 0.08207977797 | AO8: - | AP8: Outros | AQ8: 46.798783 | AR8: 47.116809 | AS8: 42.726244 | AT8: 46.831421 | AU8: 53.490827 | AV8: 47.3928168
AC9: 5 | AD9: º | AE9: 04 | AF9: Leite e laticínios; ovos; mel, etc. | AG9: 6.791992 | AH9: 0.04078829899 | AP9: Total | AQ9: 160.855082 | AR9: 164.451233 | AS9: 156.878807 | AT9: 163.537574 | AU9: 186.868043 | AV9: 166.5181478
AC10: 6 | AD10: º | AE10: 19a | AF10: Preparações à base de cereais (exc. NC 19022010) (a) | AG10: 6.0146192 | AH10: 0.03611990212
AC11: 7 | AD11: º | AE11: 15 | AF11: Gorduras e óleos animais ou vegetais | AG11: 3.7569054 | AH11: 0.02256153728
AC12: 8 | AD12: º | AE12: 02 | AF12: Carnes e miudezas | AG12: 3.3020392 | AH12: 0.01982990589
AC13: 9 | AD13: º | AE13: 21 | AF13: Preparações alimentícias diversas | AG13: 2.869658 | AH13: 0.01723330483
AC14: 10 | AD14: º | AE14: 16a | AF14: Preparações de carnes (exc. NC 1604-05) (a) | AG14: 2.0032916 | AH14: 0.01203047011 | AI14: 0.9460326762
AE15: - | AF15: Outros | AG15: 8.9865388 | AH15: 0.05396732379
AE16: Total | AG16: 166.5181478 | AH16: 1
AC38: P | AE38: Cód.NC | AF38: Descritivo | AG38: Média import quinquénio | AH38: % do total | AI38: % acumulada | AN38: P | AO38: NC | AP38: Importações | AQ38: 2018 | AR38: 2019 | AS38: 2020 | AT38: 2021 | AU38: 2022 | AV38: média quinquénio
AC39: 1 | AD39: º | AE39: 20 | AF39: Preparações de produtos vegetais | AG39: 35.9495662 | AH39: 0.1403953379 | AN39: 1º | AO39: 20 | AP39: Preparações de produtos vegetais | AQ39: 36.630971 | AR39: 37.490672 | AS39: 29.009635 | AT39: 32.572755 | AU39: 44.043798 | AV39: 35.9495662
AC40: 2 | AD40: º | AE40: 04 | AF40: Leite e laticínios; ovos; mel, etc. | AG40: 27.5312352 | AH40: 0.1075188793 | AN40: 2º | AO40: 04 | AP40: Leite e laticínios; ovos; mel, etc. | AQ40: 22.277069 | AR40: 24.912039 | AS40: 22.922181 | AT40: 30.270173 | AU40: 37.274714 | AV40: 27.5312352
AC41: 3 | AD41: º | AE41: 19a | AF41: Preparações à base de cereais (exc. NC 19022010) (a) | AG41: 20.0441412 | AH41: 0.07827921931 | AI41: 0.3261934365 | AN41: 3º | AO41: 19a | AP41: Preparações à base de cereais (exc. NC 19022010) (a) | AQ41: 18.618674 | AR41: 18.613338 | AS41: 17.460124 | AT41: 20.173626 | AU41: 25.354944 | AV41: 20.0441412
AC42: 4 | AD42: º | AE42: 15 | AF42: Gorduras e óleos animais ou vegetais | AG42: 19.4846034 | AH42: 0.07609403303 | AO42: - | AP42: Outros | AQ42: 148.380568 | AR42: 167.93754 | AS42: 124.681487 | AT42: 191.313168 | AU42: 230.360244 | AV42: 172.5346014
AC43: 5 | AD43: º | AE43: 21 | AF43: Preparações alimentícias diversas | AG43: 19.3849214 | AH43: 0.07570474077 | AP43: Total | AQ43: 225.907282 | AR43: 248.953589 | AS43: 194.073427 | AT43: 274.329722 | AU43: 337.0337 | AV43: 256.059544
AC44: 6 | AD44: º | AE44: 24 | AF44: Tabaco | AG44: 17.466224 | AH44: 0.06821157191
AC45: 7 | AD45: º | AE45: 18 | AF45: Cacau e suas preparações | AG45: 17.4617796 | AH45: 0.06819421501
AC46: 8 | AD46: º | AE46: 02 | AF46: Carnes e miudezas | AG46: 16.7799468 | AH46: 0.06553142499
AC47: 9 | AD47: º | AE47: 23a | AF47: Resíduos indústrias alimentares; alimentos p/ animais (exc. NC 230120) (a) | AG47: 14.7100112 | AH47: 0.05744761929
AC48: 10 | AD48: º | AE48: 08 | AF48: Frutas | AG48: 14.187991 | AH48: 0.05540895207 | AI48: 0.7927859936
AE49: - | AF49: Outros | AG49: 53.059124 | AH49: 0.2072140064
AE50: Total | AG50: 256.059544 | AH50: 1
AC62: DESAGREGAÇÃO A 4 DÍGITOS | AN62: DESAGREGAÇÃO A 4 DÍGITOS
AC64: P | AE64: Cód.NC | AF64: Descritivo | AG64: Média export quinquénio | AH64: % do total | AI64: % acumulada | AN64: P | AO64: NC | AP64: Exportações | AQ64: 2018 | AR64: 2019 | AS64: 2020 | AT64: 2021 | AU64: 2022 | AV64: média quinquénio
AC65: 1 | AD65: º | AE65: 2204 | AF65: Vinhos de uvas frescas | AG65: 47.8569576 | AH65: 0.2873978496 | AN65: 1º | AO65: 2204 | AP65: Vinhos de uvas frescas | AQ65: 49.744028 | AR65: 46.141172 | AS65: 46.845667 | AT65: 48.355213 | AU65: 48.198708 | AV65: 47.8569576
AC66: 2 | AD66: º | AE66: 0710 | AF66: Produtos hortícolas congelados | AG66: 35.2222942 | AH66: 0.2115222555 | AN66: 2º | AO66: 0710 | AP66: Produtos hortícolas congelados | AQ66: 24.807823 | AR66: 38.949651 | AS66: 37.870952 | AT66: 32.505447 | AU66: 41.977598 | AV66: 35.2222942
AC67: 3 | AD67: º | AE67: 0810 | AF67: Outras frutas frescas | AG67: 11.3645922 | AH67: 0.06824837022 | AI67: 0.5671684753 | AN67: 3º | AO67: 0810 | AP67: Outras frutas frescas | AQ67: 16.152117 | AR67: 10.086361 | AS67: 9.288851 | AT67: 10.213948 | AU67: 11.081684 | AV67: 11.3645922
AC68: 4 | AD68: º | AE68: 2004 | AF68: Produtos hortícolas preparados, congelados | AG68: 10.2010162 | AH68: 0.06126068741 | AN68: - | AO68: - | AP68: Outros | AQ68: 70.151114 | AR68: 69.274049 | AS68: 62.873337 | AT68: 72.462966 | AU68: 85.610053 | AV68: 72.0743038
AC69: 5 | AD69: º | AE69: 2002 | AF69: Tomates preparados | AG69: 8.6608862 | AH69: 0.05201166548 | AP69: Total | AQ69: 160.855082 | AR69: 164.451233 | AS69: 156.878807 | AT69: 163.537574 | AU69: 186.868043 | AV69: 166.5181478
AC70: 6 | AD70: º | AE70: 2202 | AF70: Águas com açúcar ou outros produtos; outras bebidas | AG70: 6.0405158 | AH70: 0.03627542031
AC71: 7 | AD71: º | AE71: 1905 | AF71: Produtos de padaria, pastelaria, etc. | AG71: 4.8967652 | AH71: 0.02940679598
AC72: 8 | AD72: º | AE72: 0704 | AF72: Couves, frescas ou refrigeradas | AG72: 2.123572 | AH72: 0.01275279619
AC73: 9 | AD73: º | AE73: 1517 | AF73: Margarina e preparações de gorduras animais ou vegetais | AG73: 2.0194632 | AH73: 0.01212758625
AC74: 10 | AD74: º | AE74: 2104 | AF74: Preparações para caldos e sopas | AG74: 1.9908038 | AH74: 0.01195547648 | AI74: 0.7829589034
AE75: - | AF75: Outros | AG75: 36.1412814 | AH75: 0.2170410966
AE76: Total | AG76: 166.5181478 | AH76: 1
AC89: DESAGREGAÇÃO A 4 DÍGITOS | AN89: DESAGREGAÇÃO A 4 DÍGITOS
G91: média 2018-2022 em milhões de euros | I91: Cód. NC | J91: Descritivo | K91: Export | L91: Import | M91: Saldo | AC91: P | AE91: Cód.NC | AF91: Descritivo | AG91: Média import quinquénio | AH91: % do total | AI91: % acumulada | AN91: P | AO91: NC | AP91: Importações | AQ91: 2018 | AR91: 2019 | AS91: 2020 | AT91: 2021 | AU91: 2022 | AV91: média quinquénio
I92: 2204 | J92: Vinhos de uvas frescas | K92: 47.8569576 | L92: 0.3997244 | M92: 47.4572332 | AC92: 1 | AD92: º | AE92: 2004 | AF92: Produtos hortícolas preparados, congelados | AG92: 27.4667032 | AH92: 0.1072668598 | AN92: 1º | AO92: 2004 | AP92: Produtos hortícolas preparados, congelados | AQ92: 27.417952 | AR92: 29.18827 | AS92: 22.323663 | AT92: 24.270308 | AU92: 34.133323 | AV92: 27.4667032
I93: 0710 | J93: Produtos hortícolas congelados | K93: 35.2222942 | L93: 8.2448724 | M93: 26.9774218 | AC93: 2 | AD93: º | AE93: 1806 | AF93: Chocolate e outras preparações com cacau | AG93: 17.348904 | AH93: 0.06775339723 | AN93: 2º | AO93: 1806 | AP93: Chocolate e outras preparações com cacau | AQ93: 15.203558 | AR93: 17.851416 | AS93: 14.11896 | AT93: 17.894642 | AU93: 21.675944 | AV93: 17.348904
I94: 2002 | J94: Tomates preparados | K94: 8.6608862 | L94: 0.0287018 | M94: 8.6321844 | AC94: 3 | AD94: º | AE94: 0406 | AF94: Queijos e requeijão | AG94: 14.3797756 | AH94: 0.05615793645 | AI94: 0.2311781935 | AN94: 3º | AO94: 0406 | AP94: Queijos e requeijão | AQ94: 10.174792 | AR94: 12.482309 | AS94: 10.134254 | AT94: 14.989004 | AU94: 24.118519 | AV94: 14.3797756
I95: 2202 | J95: Águas com açúcar ou outros produtos; outras bebidas | K95: 6.0405158 | L95: 2.9615478 | M95: 3.078968 | AC95: 4 | AD95: º | AE95: 2309 | AF95: Preparações p/ alimentação animal | AG95: 14.1466842 | AH95: 0.0552476349 | AN95: - | AO95: - | AP95: Outros | AQ95: 173.11098 | AR95: 189.431594 | AS95: 147.49655 | AT95: 217.175768 | AU95: 257.105914 | AV95: 196.8641612
I96: 0810 | J96: Outras frutas frescas | K96: 11.3645922 | L96: 9.0317336 | M96: 2.3328586 | AC96: 5 | AD96: º | AE96: 2106 | AF96: Outras preparações alimentícias | AG96: 13.5527056 | AH96: 0.05292794554 | AP96: Total | AQ96: 225.907282 | AR96: 248.953589 | AS96: 194.073427 | AT96: 274.329722 | AU96: 337.0337 | AV96: 256.059544
I97: 1404 | J97: Outros produtos vegetais | K97: 1.952135 | L97: 0.0029476 | M97: 1.9491874 | AC97: 6 | AD97: º | AE97: 0201 | AF97: Carnes de bovino, frescas ou refrigeradas | AG97: 12.110785 | AH97: 0.04729675298
I98: 2104 | J98: Preparações para caldos e sopas | K98: 1.9908038 | L98: 0.0416396 | M98: 1.9491642 | AC98: 7 | AD98: º | AE98: 1905 | AF98: Produtos de padaria, pastelaria, etc. | AG98: 11.2076102 | AH98: 0.04376954682
I99: 0704 | J99: Couves, frescas ou refrigeradas | K99: 2.123572 | L99: 0.3219734 | M99: 1.8015986 | AC99: 8 | AD99: º | AE99: 2402 | AF99: Charutos, cigarrilhas e cigarros | AG99: 9.6974596 | AH99: 0.0378718928
I100: 1006 | J100: Arroz | K100: 1.5058678 | L100: 0.1675856 | M100: 1.3382822 | AC100: 9 | AD100: º | AE100: 0405 | AF100: Manteiga | AG100: 9.429904 | AH100: 0.03682699677
I101: 0714 | J101: Raízes de mandioca, de araruta, batata-doce, etc. | K101: 1.246556 | L101: 0.0709602 | M101: 1.1755958 | AC101: 10 | AD101: º | AE101: 0810 | AF101: Outras frutas frescas | AG101: 9.0317336 | AH101: 0.03527200533 | AI101: 0.5403909686
I102: - | J102: Outros | K102: 32.0686566 | L102: 102.5933702 | M102: -70.5247136 | AE102: - | AF102: Outros | AG102: 117.687279 | AH102: 0.4596090314
I103: 1518 | J103: Gorduras e óleos, animais ou vegetais, processados de outras formas | K103: 0.1595828 | L103: 6.7476466 | M103: -6.5880638 | AE103: Total | AG103: 256.059544 | AH103: 1
I104: 1515 | J104: Outras gorduras e óleos vegetais | K104: 0.1275946 | L104: 7.3139196 | M104: -7.186325
I105: 0405 | J105: Manteiga | K105: 1.9742084 | L105: 9.429904 | M105: -7.4556956
I106: 2402 | J106: Charutos, cigarrilhas e cigarros | K106: 0.0001892 | L106: 9.6974596 | M106: -9.6972704
I107: 0201 | J107: Carnes de bovino, frescas ou refrigeradas | K107: 1.3092306 | L107: 12.110785 | M107: -10.8015544
I108: 0406 | J108: Queijos e requeijão | K108: 1.3114054 | L108: 14.3797756 | M108: -13.0683702
I109: 2106 | J109: Outras preparações alimentícias | K109: 0.4050286 | L109: 13.5527056 | M109: -13.147677
I110: 2309 | J110: Preparações p/ alimentação animal | K110: 0.640674 | L110: 14.1466842 | M110: -13.5060102
I111: 1806 | J111: Chocolate e outras preparações com cacau | K111: 0.3563808 | L111: 17.348904 | M111: -16.9925232
I112: 2004 | J112: Produtos hortícolas preparados, congelados | K112: 10.2010162 | L112: 27.4667032 | M112: -17.265687
I113: Total | K113: 166.5181478 | L113: 256.059544 | M113: -89.5413962
A116: Fonte: GPP a partir de dados INE/Comércio Internacional (2021 provisórios; 2022 preliminares) | Y116: 2023-07-19T17:13:34.470

Sheet 4A
A1: Evolução da balança comercial Portugal-Bélgica 2018-2022 por produto em euros (NC 2 dígitos)
A3: =+aux!A31 -> Evolução da balança comercial Portugal-Bélgica para Bebidas, líquidos alcoólicos e vinagres
A5: Selecione o produto:
Q7: Para obter uma maior desagregação deste produto, clique no botão respetivo:
A20: =+aux!A43 -> Evolução da balança comercial Portugal-Bélgica para Preparações de produtos vegetais
A22: Selecione o produto:
A38: Fonte: GPP a partir de dados INE/Comércio Internacional (2021 provisórios; 2022 preliminares) | N38: 2023-07-19T17:13:34.470

Sheet 5.2
A1: Trocas comerciais Portugal-Bélgica 2018-2022 em milhares de euros (NC 2 dígitos) | C1: Produtos agrícolas e agroalimentares, do mar e da floresta
A2: Cód. NC | B2: Descritivo | C2: Importações | K2: Exportações | S2: Saldo quinquénio (exp-imp) | T2: Evolução das importações | U2: =+"Variação das Importações " & INDEX(K3:N3,1,aux!AL1) & "-"& '5.2'!O3 &"" -> Variação das Importações 2018-2022 | Z2: Evolução das exportações | AA2: ="Variação das Exportações " & INDEX(K3:N3,1,aux!AL1) & "-"& '5.2'!O3 &"" -> Variação das Exportações 2018-2022
C3: 2018 | D3: 2019 | E3: 2020 | F3: 2021 | G3: 2022 | H3: média quinquénio | I3: % Subtot | J3: % Total | K3: 2018 | L3: 2019 | M3: 2020 | N3: 2021 | O3: 2022 | P3: média quinquénio | Q3: % Subtot | R3: % Total | U3: variação total em valor | V3: % no subtotal de variação | W3: % no total de variação | X3: taxa de variação média anual | Y3: taxa de variação total | AA3: variação total em valor | AB3: % no subtotal de variação | AC3: % no total de variação | AD3: taxa de variação média anual | AE3: taxa de variação total
A4: 01 | B4: Animais vivos | C4: 1617.419 | D4: 498.821 | E4: 847.068 | F4: 9626.655 | G4: 7120.5 | H4: 3942.0926 | I4: 0.01539521839 | J4: 0.0138138997 | K4: 447.999 | L4: 353.82 | M4: 84.575 | N4: 55.82 | O4: 166.757 | P4: 221.7942 | Q4: 0.00133195212 | R4: 0.000927486635 | S4: -3720.2984 | U4: =G4-INDEX($C4:$G4,1,aux!$AL$1) -> 5503.081 | V4: =IF($U$37<>0,U4/$U$37, "n.d.") -> 0.0495209069 | W4: =IF($U$53<>0,U4/$U$53, "n.d.") -> 0.04608530986 | X4: =+IF(INDEX($C4:$G4,1,aux!$AL$1)>0,(G4/INDEX($C4:$G4,1,aux!$AL$1))^(1/($G$3-INDEX($C$3:$G$3,1,aux!$AL$1)))-1,"n.d.") -> 0.4485116336 | Y4: =IF(INDEX($C4:$G4,1,aux!$AL$1)>0,(G4-INDEX($C4:$G4,1,aux!$AL$1))/INDEX($C4:$G4,1,aux!$AL$1),"n.d.") -> 3.402384293 | AA4: =O4-INDEX($K4:$O4,1,aux!$AL$1) -> -281.242 | AB4: =IF($AA$37<>0,AA4/$AA$37, "n.d.") -> -0.01081161041 | AC4: =IF($AA$53<>0,AA4/$AA$53, "n.d.") -> -0.004785898913 | AD4: =+IF(INDEX($K4:$O4,1,aux!$AL$1)>0,(O4/INDEX($K4:$O4,1,aux!$AL$1))^(1/($O$3-INDEX($K$3:$O$3,1,aux!$AL$1)))-1,"n.d.") -> -0.2189087779 | AE4: =IF(INDEX($K4:$O4,1,aux!$AL$1)>0,(O4-INDEX($K4:$O4,1,aux!$AL$1))/INDEX($K4:$O4,1,aux!$AL$1),"n.d.") -> -0.6277737227
A5: 02 | B5: Carnes e miudezas | C5: 13670.169 | D5: 15219.094 | E5: 13581.209 | F5: 17891.639 | G5: 23537.623 | H5: 16779.9468 | I5: 0.06553142499 | J5: 0.05880036963 | K5: 4136.67 | L5: 4768.703 | M5: 2504.799 | N5: 2383.076 | O5: 2716.948 | P5: 3302.0392 | Q5: 0.01982990589 | R5: 0.01380828365 | S5: -13477.9076 | U5: =G5-INDEX($C5:$G5,1,aux!$AL$1) -> 9867.454 | V5: 0.08879485344 | W5: 0.08263455965 | X5: =+IF(INDEX($C5:$G5,1,aux!$AL$1)>0,(G5/INDEX($C5:$G5,1,aux!$AL$1))^(1/($G$3-INDEX($C$3:$G$3,1,aux!$AL$1)))-1,"n.d.") -> 0.1455055026 | Y5: =IF(INDEX($C5:$G5,1,aux!$AL$1)>0,(G5-INDEX($C5:$G5,1,aux!$AL$1))/INDEX($C5:$G5,1,aux!$AL$1),"n.d.") -> 0.7218238487 | AA5: =O5-INDEX($K5:$O5,1,aux!$AL$1) -> -1419.722 | AB5: -0.05457748543 | AC5: -0.02415942845 | AD5: =+IF(INDEX($K5:$O5,1,aux!$AL$1)>0,(O5/INDEX($K5:$O5,1,aux!$AL$1))^(1/($O$3-INDEX($K$3:$O$3,1,aux!$AL$1)))-1,"n.d.") -> -0.09976143739 | AE5: =IF(INDEX($K5:$O5,1,aux!$AL$1)>0,(O5-INDEX($K5:$O5,1,aux!$AL$1))/INDEX($K5:$O5,1,aux!$AL$1),"n.d.") -> -0.3432040748
A6: 04 | B6: Leite e laticínios; ovos; mel, etc. | C6: 22277.069 | D6: 24912.039 | E6: 22922.181 | F6: 30270.173 | G6: 37274.714 | H6: 27531.2352 | I6: 0.1075188793 | J6: 0.09647508573 | K6: 6482.494 | L6: 7666.677 | M6: 7292.482 | N6: 7062.291 | O6: 5456.016 | P6: 6791.992 | Q6: 0.04078829899 | R6: 0.02840237393 | S6: -20739.2432 | U6: =G6-INDEX($C6:$G6,1,aux!$AL$1) -> 14997.645 | V6: 0.1349602126 | W6: 0.1255971186 | X6: =+IF(INDEX($C6:$G6,1,aux!$AL$1)>0,(G6/INDEX($C6:$G6,1,aux!$AL$1))^(1/($G$3-INDEX($C$3:$G$3,1,aux!$AL$1)))-1,"n.d.") -> 0.137336737 | Y6: =IF(INDEX($C6:$G6,1,aux!$AL$1)>0,(G6-INDEX($C6:$G6,1,aux!$AL$1))/INDEX($C6:$G6,1,aux!$AL$1),"n.d.") -> 0.6732324167 | AA6: =O6-INDEX($K6:$O6,1,aux!$AL$1) -> -1026.478 | AB6: -0.03946025214 | AC6: -0.01746758999 | AD6: =+IF(INDEX($K6:$O6,1,aux!$AL$1)>0,(O6/INDEX($K6:$O6,1,aux!$AL$1))^(1/($O$3-INDEX($K$3:$O$3,1,aux!$AL$1)))-1,"n.d.") -> -0.04218115402 | AE6: =IF(INDEX($K6:$O6,1,aux!$AL$1)>0,(O6-INDEX($K6:$O6,1,aux!$AL$1))/INDEX($K6:$O6,1,aux!$AL$1),"n.d.") -> -0.158346155
A7: 05a | B7: Outros produtos de origem animal (exc. NC 0508, 051191) (a) | C7: 14.605 | D7: 92.712 | E7: 0.466 | F7: 34.048 | G7: 17.106 | H7: 31.7874 | I7: 0.0001241406569 | J7: 0.0001113895587 | K7: 64.344 | L7: 120.312 | M7: 64.459 | N7: 56.647 | O7: 6.112 | P7: 62.3748 | Q7: 0.0003745825955 | R7: 0.0002608354653 | S7: 30.5874 | U7: =G7-INDEX($C7:$G7,1,aux!$AL$1) -> 2.501 | V7: 2.250589954e-05 | W7: 2.094451453e-05 | X7: =+IF(INDEX($C7:$G7,1,aux!$AL$1)>0,(G7/INDEX($C7:$G7,1,aux!$AL$1))^(1/($G$3-INDEX($C$3:$G$3,1,aux!$AL$1)))-1,"n.d.") -> 0.04030749303 | Y7: =IF(INDEX($C7:$G7,1,aux!$AL$1)>0,(G7-INDEX($C7:$G7,1,aux!$AL$1))/INDEX($C7:$G7,1,aux!$AL$1),"n.d.") -> 0.1712427251 | AA7: =O7-INDEX($K7:$O7,1,aux!$AL$1) -> -58.232 | AB7: -0.002238576377 | AC7: -0.0009909347306 | AD7: =+IF(INDEX($K7:$O7,1,aux!$AL$1)>0,(O7/INDEX($K7:$O7,1,aux!$AL$1))^(1/($O$3-INDEX($K$3:$O$3,1,aux!$AL$1)))-1,"n.d.") -> -0.4448391622 | AE7: =IF(INDEX($K7:$O7,1,aux!$AL$1)>0,(O7-INDEX($K7:$O7,1,aux!$AL$1))/INDEX($K7:$O7,1,aux!$AL$1),"n.d.") -> -0.9050105682
A8: 06 | B8: Plantas vivas e produtos de floricultura | C8: 376.012 | D8: 605.614 | E8: 474.011 | F8: 743.197 | G8: 766.065 | H8: 592.9798 | I8: 0.002315788706 | J8: 0.002077922644 | K8: 222.031 | L8: 830.494 | M8: 476.443 | N8: 795.514 | O8: 915.792 | P8: 648.0548 | Q8: 0.003891796832 | R8: 0.002709999476 | S8: 55.075 | U8: =G8-INDEX($C8:$G8,1,aux!$AL$1) -> 390.053 | V8: 0.003509993456 | W8: 0.003266481698 | X8: =+IF(INDEX($C8:$G8,1,aux!$AL$1)>0,(G8/INDEX($C8:$G8,1,aux!$AL$1))^(1/($G$3-INDEX($C$3:$G$3,1,aux!$AL$1)))-1,"n.d.") -> 0.1947195733 | Y8: =IF(INDEX($C8:$G8,1,aux!$AL$1)>0,(G8-INDEX($C8:$G8,1,aux!$AL$1))/INDEX($C8:$G8,1,aux!$AL$1),"n.d.") -> 1.037341893 | AA8: =O8-INDEX($K8:$O8,1,aux!$AL$1) -> 693.761 | AB8: 0.02666982048 | AC8: 0.01180574031 | AD8: =+IF(INDEX($K8:$O8,1,aux!$AL$1)>0,(O8/INDEX($K8:$O8,1,aux!$AL$1))^(1/($O$3-INDEX($K$3:$O$3,1,aux!$AL$1)))-1,"n.d.") -> 0.4251015342 | AE8: =IF(INDEX($K8:$O8,1,aux!$AL$1)>0,(O8-INDEX($K8:$O8,1,aux!$AL$1))/INDEX($K8:$O8,1,aux!$AL$1),"n.d.") -> 3.12461323
A9: 07 | B9: Produtos hortícolas | C9: 11539.371 | D9: 13672.94 | E9: 10850.593 | F9: 12263.493 | G9: 17296.373 | H9: 13124.554 | I9: 0.05125586727 | J9: 0.04599112474 | K9: 36669.111 | L9: 44835.709 | M9: 42754.079 | N9: 37853.371 | O9: 46671.521 | P9: 41756.7582 | Q9: 0.2507640083 | R9: 0.1746160862 | S9: 28632.2042 | U9: =G9-INDEX($C9:$G9,1,aux!$AL$1) -> 5757.002 | V9: 0.05180588112 | W9: 0.04821176011 | X9: =+IF(INDEX($C9:$G9,1,aux!$AL$1)>0,(G9/INDEX($C9:$G9,1,aux!$AL$1))^(1/($G$3-INDEX($C$3:$G$3,1,aux!$AL$1)))-1,"n.d.") -> 0.1064791291 | Y9: =IF(INDEX($C9:$G9,1,aux!$AL$1)>0,(G9-INDEX($C9:$G9,1,aux!$AL$1))/INDEX($C9:$G9,1,aux!$AL$1),"n.d.") -> 0.49890085 | AA9: =O9-INDEX($K9:$O9,1,aux!$AL$1) -> 10002.41 | AB9: 0.3845163955 | AC9: 0.1702111461 | AD9: =+IF(INDEX($K9:$O9,1,aux!$AL$1)>0,(O9/INDEX($K9:$O9,1,aux!$AL$1))^(1/($O$3-INDEX($K$3:$O$3,1,aux!$AL$1)))-1,"n.d.") -> 0.06215498901 | AE9: =IF(INDEX($K9:$O9,1,aux!$AL$1)>0,(O9-INDEX($K9:$O9,1,aux!$AL$1))/INDEX($K9:$O9,1,aux!$AL$1),"n.d.") -> 0.2727748158
A10: 08 | B10: Frutas | C10: 9384.72 | D10: 8438.81 | E10: 9171.888 | F10: 21564.161 | G10: 22380.376 | H10: 14187.991 | I10: 0.05540895207 | J10: 0.04971762575 | K10: 18277.887 | L10: 12540.569 | M10: 11210.747 | N10: 12428.431 | O10: 13881.229 | P10: 13667.7726 | Q10: 0.08207977797 | R10: 0.05715513037 | S10: -520.2184 | U10: =G10-INDEX($C10:$G10,1,aux!$AL$1) -> 12995.656 | V10: 0.1169447935 | W10: 0.1088315498 | X10: =+IF(INDEX($C10:$G10,1,aux!$AL$1)>0,(G10/INDEX($C10:$G10,1,aux!$AL$1))^(1/($G$3-INDEX($C$3:$G$3,1,aux!$AL$1)))-1,"n.d.") -> 0.2426863122 | Y10: =IF(INDEX($C10:$G10,1,aux!$AL$1)>0,(G10-INDEX($C10:$G10,1,aux!$AL$1))/INDEX($C10:$G10,1,aux!$AL$1),"n.d.") -> 1.38476758 | AA10: =O10-INDEX($K10:$O10,1,aux!$AL$1) -> -4396.658 | AB10: -0.1690179753 | AC10: -0.07481798858 | AD10: =+IF(INDEX($K10:$O10,1,aux!$AL$1)>0,(O10/INDEX($K10:$O10,1,aux!$AL$1))^(1/($O$3-INDEX($K$3:$O$3,1,aux!$AL$1)))-1,"n.d.") -> -0.06647601077 | AE10: =IF(INDEX($K10:$O10,1,aux!$AL$1)>0,(O10-INDEX($K10:$O10,1,aux!$AL$1))/INDEX($K10:$O10,1,aux!$AL$1),"n.d.") -> -0.2405452009
A11: 09 | B11: Café, chá, mate e especiarias | C11: 2217.599 | D11: 2560.141 | E11: 1469.544 | F11: 3132.141 | G11: 8489.722 | H11: 3573.8294 | I11: 0.01395702478 | J11: 0.01252343003 | K11: 1193.976 | L11: 1581.416 | M11: 1322.393 | N11: 1444.13 | O11: 1635.113 | P11: 1435.4056 | Q11: 0.008620115098 | R11: 0.006002499208 | S11: -2138.4238 | U11: =G11-INDEX($C11:$G11,1,aux!$AL$1) -> 6272.123 | V11: 0.05644133153 | W11: 0.05252561828 | X11: =+IF(INDEX($C11:$G11,1,aux!$AL$1)>0,(G11/INDEX($C11:$G11,1,aux!$AL$1))^(1/($G$3-INDEX($C$3:$G$3,1,aux!$AL$1)))-1,"n.d.") -> 0.3987903034 | Y11: =IF(INDEX($C11:$G11,1,aux!$AL$1)>0,(G11-INDEX($C11:$G11,1,aux!$AL$1))/INDEX($C11:$G11,1,aux!$AL$1),"n.d.") -> 2.828339569 | AA11: =O11-INDEX($K11:$O11,1,aux!$AL$1) -> 441.137 | AB11: 0.01695835395 | AC11: 0.007506834288 | AD11: =+IF(INDEX($K11:$O11,1,aux!$AL$1)>0,(O11/INDEX($K11:$O11,1,aux!$AL$1))^(1/($O$3-INDEX($K$3:$O$3,1,aux!$AL$1)))-1,"n.d.") -> 0.08177774734 | AE11: =IF(INDEX($K11:$O11,1,aux!$AL$1)>0,(O11-INDEX($K11:$O11,1,aux!$AL$1))/INDEX($K11:$O11,1,aux!$AL$1),"n.d.") -> 0.3694689005
A12: 10 | B12: Cereais | C12: 317.829 | D12: 339.964 | E12: 282.208 | F12: 245.678 | G12: 347.208 | H12: 306.5774 | I12: 0.001197289487 | J12: 0.001074309988 | K12: 1468.786 | L12: 2088.732 | M12: 1495.122 | N12: 1355.953 | O12: 1172.208 | P12: 1516.1602 | Q12: 0.009105074852 | R12: 0.006340194297 | S12: 1209.5828 | U12: =G12-INDEX($C12:$G12,1,aux!$AL$1) -> 29.379 | V12: 0.0002643745792 | W12: 0.0002460331437 | X12: =+IF(INDEX($C12:$G12,1,aux!$AL$1)>0,(G12/INDEX($C12:$G12,1,aux!$AL$1))^(1/($G$3-INDEX($C$3:$G$3,1,aux!$AL$1)))-1,"n.d.") -> 0.02234870317 | Y12: =IF(INDEX($C12:$G12,1,aux!$AL$1)>0,(G12-INDEX($C12:$G12,1,aux!$AL$1))/INDEX($C12:$G12,1,aux!$AL$1),"n.d.") -> 0.09243649887 | AA12: =O12-INDEX($K12:$O12,1,aux!$AL$1) -> -296.578 | AB12: -0.01140116267 | AC12: -0.005046871832 | AD12: =+IF(INDEX($K12:$O12,1,aux!$AL$1)>0,(O12/INDEX($K12:$O12,1,aux!$AL$1))^(1/($O$3-INDEX($K$3:$O$3,1,aux!$AL$1)))-1,"n.d.") -> -0.05482649471 | AE12: =IF(INDEX($K12:$O12,1,aux!$AL$1)>0,(O12-INDEX($K12:$O12,1,aux!$AL$1))/INDEX($K12:$O12,1,aux!$AL$1),"n.d.") -> -0.2019204976
A13: 11 | B13: Produtos da indústria de moagem e outros | C13: 4269.562 | D13: 5067.219 | E13: 4434.936 | F13: 5070.368 | G13: 6417.139 | H13: 5051.8448 | I13: 0.01972917987 | J13: 0.01770269865 | K13: 296.181 | L13: 136.223 | M13: 1090.32 | N13: 817.839 | O13: 1013.241 | P13: 670.7608 | Q13: 0.004028154342 | R13: 0.002804950162 | S13: -4381.084 | U13: =G13-INDEX($C13:$G13,1,aux!$AL$1) -> 2147.577 | V13: 0.01932553068 | W13: 0.01798478916 | X13: =+IF(INDEX($C13:$G13,1,aux!$AL$1)>0,(G13/INDEX($C13:$G13,1,aux!$AL$1))^(1/($G$3-INDEX($C$3:$G$3,1,aux!$AL$1)))-1,"n.d.") -> 0.1072342989 | Y13: =IF(INDEX($C13:$G13,1,aux!$AL$1)>0,(G13-INDEX($C13:$G13,1,aux!$AL$1))/INDEX($C13:$G13,1,aux!$AL$1),"n.d.") -> 0.5029970287 | AA13: =O13-INDEX($K13:$O13,1,aux!$AL$1) -> 717.06 | AB13: 0.02756548937 | AC13: 0.01220221971 | AD13: =+IF(INDEX($K13:$O13,1,aux!$AL$1)>0,(O13/INDEX($K13:$O13,1,aux!$AL$1))^(1/($O$3-INDEX($K$3:$O$3,1,aux!$AL$1)))-1,"n.d.") -> 0.3599999423 | AE13: =IF(INDEX($K13:$O13,1,aux!$AL$1)>0,(O13-INDEX($K13:$O13,1,aux!$AL$1))/INDEX($K13:$O13,1,aux!$AL$1),"n.d.") -> 2.421019579
A14: 12 | B14: Sementes e frutos oleaginosos | C14: 2240.165 | D14: 1719.013 | E14: 403.145 | F14: 619.177 | G14: 2765.64 | H14: 1549.428 | I14: 0.00605104569 | J14: 0.005429512989 | K14: 7.655 | L14: 11.644 | M14: 399.154 | N14: 330.24 | O14: 274.52 | P14: 204.6426 | Q14: 0.001228950734 | R14: 0.0008557630292 | S14: -1344.7854 | U14: =G14-INDEX($C14:$G14,1,aux!$AL$1) -> 525.475 | V14: 0.004728623575 | W14: 0.004400567282 | X14: =+IF(INDEX($C14:$G14,1,aux!$AL$1)>0,(G14/INDEX($C14:$G14,1,aux!$AL$1))^(1/($G$3-INDEX($C$3:$G$3,1,aux!$AL$1)))-1,"n.d.") -> 0.05409295335 | Y14: =IF(INDEX($C14:$G14,1,aux!$AL$1)>0,(G14-INDEX($C14:$G14,1,aux!$AL$1))/INDEX($C14:$G14,1,aux!$AL$1),"n.d.") -> 0.234569775 | AA14: =O14-INDEX($K14:$O14,1,aux!$AL$1) -> 266.865 | AB14: 0.01025892439 | AC14: 0.00454124531 | AD14: =+IF(INDEX($K14:$O14,1,aux!$AL$1)>0,(O14/INDEX($K14:$O14,1,aux!$AL$1))^(1/($O$3-INDEX($K$3:$O$3,1,aux!$AL$1)))-1,"n.d.") -> 1.447130888 | AE14: =IF(INDEX($K14:$O14,1,aux!$AL$1)>0,(O14-INDEX($K14:$O14,1,aux!$AL$1))/INDEX($K14:$O14,1,aux!$AL$1),"n.d.") -> 34.86152841
A15: 13a | B15: Sucos e extratos vegetais (exc. NC 1301) (a) | C15: 580.847 | D15: 521.501 | E15: 615.63 | F15: 647.245 | G15: 725.761 | H15: 618.1968 | I15: 0.002414269706 | J15: 0.002166288176 | K15: 1.194 | L15: 0.796 | M15: 0.03 | N15: 0 | O15: 0 | P15: 0.404 | Q15: 2.426161985e-06 | R15: 1.689424703e-06 | S15: -617.7928 | U15: =G15-INDEX($C15:$G15,1,aux!$AL$1) -> 144.914 | V15: 0.001304046352 | W15: 0.001213575921 | X15: =+IF(INDEX($C15:$G15,1,aux!$AL$1)>0,(G15/INDEX($C15:$G15,1,aux!$AL$1))^(1/($G$3-INDEX($C$3:$G$3,1,aux!$AL$1)))-1,"n.d.") -> 0.05726284221 | Y15: =IF(INDEX($C15:$G15,1,aux!$AL$1)>0,(G15-INDEX($C15:$G15,1,aux!$AL$1))/INDEX($C15:$G15,1,aux!$AL$1),"n.d.") -> 0.2494873865 | AA15: =O15-INDEX($K15:$O15,1,aux!$AL$1) -> -1.194 | AB15: -4.590019568e-05 | AC15: -2.031831413e-05 | AD15: =+IF(INDEX($K15:$O15,1,aux!$AL$1)>0,(O15/INDEX($K15:$O15,1,aux!$AL$1))^(1/($O$3-INDEX($K$3:$O$3,1,aux!$AL$1)))-1,"n.d.") -> -1 | AE15: =IF(INDEX($K15:$O15,1,aux!$AL$1)>0,(O15-INDEX($K15:$O15,1,aux!$AL$1))/INDEX($K15:$O15,1,aux!$AL$1),"n.d.") -> -1
A16: 14 | B16: Matérias para entrançar e outros | C16: 34.182 | D16: 2.024 | E16: 0.382 | F16: 9.165 | G16: 5.159 | H16: 10.1824 | I16: 3.976575073e-05 | J16: 3.568121466e-05 | K16: 0.078 | L16: 0.001 | M16: 3262.887 | N16: 3774.776 | O16: 2723.004 | P16: 1952.1492 | Q16: 0.01172334202 | R16: 0.008163388819 | S16: 1941.9668 | U16: =G16-INDEX($C16:$G16,1,aux!$AL$1) -> -29.023 | V16: -0.0002611710206 | W16: -0.0002430518374 | X16: =+IF(INDEX($C16:$G16,1,aux!$AL$1)>0,(G16/INDEX($C16:$G16,1,aux!$AL$1))^(1/($G$3-INDEX($C$3:$G$3,1,aux!$AL$1)))-1,"n.d.") -> -0.3767073373 | Y16: =IF(INDEX($C16:$G16,1,aux!$AL$1)>0,(G16-INDEX($C16:$G16,1,aux!$AL$1))/INDEX($C16:$G16,1,aux!$AL$1),"n.d.") -> -0.8490726113 | AA16: =O16-INDEX($K16:$O16,1,aux!$AL$1) -> 2722.926 | AB16: 0.1046757422 | AC16: 0.04633606852 | AD16: =+IF(INDEX($K16:$O16,1,aux!$AL$1)>0,(O16/INDEX($K16:$O16,1,aux!$AL$1))^(1/($O$3-INDEX($K$3:$O$3,1,aux!$AL$1)))-1,"n.d.") -> 12.66905274 | AE16: =IF(INDEX($K16:$O16,1,aux!$AL$1)>0,(O16-INDEX($K16:$O16,1,aux!$AL$1))/INDEX($K16:$O16,1,aux!$AL$1),"n.d.") -> 34909.30769
A17: 15 | B17: Gorduras e óleos animais ou vegetais | C17: 6570.405 | D17: 7931.739 | E17: 3278.269 | F17: 32418.865 | G17: 47223.739 | H17: 19484.6034 | I17: 0.07609403303 | J17: 0.06827804019 | K17: 6452.309 | L17: 6332.214 | M17: 1623.168 | N17: 1799.591 | O17: 2577.245 | P17: 3756.9054 | Q17: 0.02256153728 | R17: 0.0157104178 | S17: -15727.698 | U17: =G17-INDEX($C17:$G17,1,aux!$AL$1) -> 40653.334 | V17: 0.3658296086 | W17: 0.3404495581 | X17: =+IF(INDEX($C17:$G17,1,aux!$AL$1)>0,(G17/INDEX($C17:$G17,1,aux!$AL$1))^(1/($G$3-INDEX($C$3:$G$3,1,aux!$AL$1)))-1,"n.d.") -> 0.6373520105 | Y17: =IF(INDEX($C17:$G17,1,aux!$AL$1)>0,(G17-INDEX($C17:$G17,1,aux!$AL$1))/INDEX($C17:$G17,1,aux!$AL$1),"n.d.") -> 6.187340659 | AA17: =O17-INDEX($K17:$O17,1,aux!$AL$1) -> -3875.064 | AB17: -0.1489666632 | AC17: -0.06594201643 | AD17: =+IF(INDEX($K17:$O17,1,aux!$AL$1)>0,(O17/INDEX($K17:$O17,1,aux!$AL$1))^(1/($O$3-INDEX($K$3:$O$3,1,aux!$AL$1)))-1,"n.d.") -> -0.2050127984 | AE17: =IF(INDEX($K17:$O17,1,aux!$AL$1)>0,(O17-INDEX($K17:$O17,1,aux!$AL$1))/INDEX($K17:$O17,1,aux!$AL$1),"n.d.") -> -0.6005701215
A18: 16a | B18: Preparações de carnes (exc. NC 1604-05) (a) | C18: 1332.656 | D18: 1459.686 | E18: 1254.723 | F18: 1010.019 | G18: 1798.031 | H18: 1371.023 | I18: 0.005354313214 | J18: 0.004804345337 | K18: 1265.69 | L18: 1599.453 | M18: 1980.317 | N18: 2035.015 | O18: 3135.983 | P18: 2003.2916 | Q18: 0.01203047011 | R18: 0.00837725326 | S18: 632.2686 | U18: =G18-INDEX($C18:$G18,1,aux!$AL$1) -> 465.375 | V18: 0.004187798081 | W18: 0.003897262475 | X18: =+IF(INDEX($C18:$G18,1,aux!$AL$1)>0,(G18/INDEX($C18:$G18,1,aux!$AL$1))^(1/($G$3-INDEX($C$3:$G$3,1,aux!$AL$1)))-1,"n.d.") -> 0.07775433669 | Y18: =IF(INDEX($C18:$G18,1,aux!$AL$1)>0,(G18-INDEX($C18:$G18,1,aux!$AL$1))/INDEX($C18:$G18,1,aux!$AL$1),"n.d.") -> 0.349208648 | AA18: =O18-INDEX($K18:$O18,1,aux!$AL$1) -> 1870.293 | AB18: 0.07189850475 | AC18: 0.03182680124 | AD18: =+IF(INDEX($K18:$O18,1,aux!$AL$1)>0,(O18/INDEX($K18:$O18,1,aux!$AL$1))^(1/($O$3-INDEX($K$3:$O$3,1,aux!$AL$1)))-1,"n.d.") -> 0.2546182128 | AE18: =IF(INDEX($K18:$O18,1,aux!$AL$1)>0,(O18-INDEX($K18:$O18,1,aux!$AL$1))/INDEX($K18:$O18,1,aux!$AL$1),"n.d.") -> 1.477686479
A19: 17 | B19: Açúcares e produtos de confeitaria | C19: 5111.473 | D19: 5078.287 | E19: 6607.926 | F19: 6780.019 | G19: 5609.348 | H19: 5837.4106 | I19: 0.0227970827 | J19: 0.02045548207 | K19: 83.262 | L19: 98.863 | M19: 67.827 | N19: 487.921 | O19: 1204.997 | P19: 388.574 | Q19: 0.002333523434 | R19: 0.001624917116 | S19: -5448.8366 | U19: =G19-INDEX($C19:$G19,1,aux!$AL$1) -> 497.875 | V19: 0.004480257791 | W19: 0.004169432296 | X19: =+IF(INDEX($C19:$G19,1,aux!$AL$1)>0,(G19/INDEX($C19:$G19,1,aux!$AL$1))^(1/($G$3-INDEX($C$3:$G$3,1,aux!$AL$1)))-1,"n.d.") -> 0.02350879351 | Y19: =IF(INDEX($C19:$G19,1,aux!$AL$1)>0,(G19-INDEX($C19:$G19,1,aux!$AL$1))/INDEX($C19:$G19,1,aux!$AL$1),"n.d.") -> 0.0974034295 | AA19: =O19-INDEX($K19:$O19,1,aux!$AL$1) -> 1121.735 | AB19: 0.04312215745 | AC19: 0.01908857965 | AD19: =+IF(INDEX($K19:$O19,1,aux!$AL$1)>0,(O19/INDEX($K19:$O19,1,aux!$AL$1))^(1/($O$3-INDEX($K$3:$O$3,1,aux!$AL$1)))-1,"n.d.") -> 0.950449821 | AE19: =IF(INDEX($K19:$O19,1,aux!$AL$1)>0,(O19-INDEX($K19:$O19,1,aux!$AL$1))/INDEX($K19:$O19,1,aux!$AL$1),"n.d.") -> 13.47235233
A20: 18 | B20: Cacau e suas preparações | C20: 15301.604 | D20: 17941.297 | E20: 14303.5 | F20: 17973.925 | G20: 21788.572 | H20: 17461.7796 | I20: 0.06819421501 | J20: 0.06118965138 | K20: 259.075 | L20: 307.686 | M20: 235.205 | N20: 540.501 | O20: 454.113 | P20: 359.316 | Q20: 0.002157818861 | R20: 0.00150256764 | S20: -17102.4636 | U20: =G20-INDEX($C20:$G20,1,aux!$AL$1) -> 6486.968 | V20: 0.05837467019 | W20: 0.05432482828 | X20: =+IF(INDEX($C20:$G20,1,aux!$AL$1)>0,(G20/INDEX($C20:$G20,1,aux!$AL$1))^(1/($G$3-INDEX($C$3:$G$3,1,aux!$AL$1)))-1,"n.d.") -> 0.09237801845 | Y20: =IF(INDEX($C20:$G20,1,aux!$AL$1)>0,(G20-INDEX($C20:$G20,1,aux!$AL$1))/INDEX($C20:$G20,1,aux!$AL$1),"n.d.") -> 0.4239403921 | AA20: =O20-INDEX($K20:$O20,1,aux!$AL$1) -> 195.038 | AB20: 0.007497723923 | AC20: 0.003318964281 | AD20: =+IF(INDEX($K20:$O20,1,aux!$AL$1)>0,(O20/INDEX($K20:$O20,1,aux!$AL$1))^(1/($O$3-INDEX($K$3:$O$3,1,aux!$AL$1)))-1,"n.d.") -> 0.1506271225 | AE20: =IF(INDEX($K20:$O20,1,aux!$AL$1)>0,(O20-INDEX($K20:$O20,1,aux!$AL$1))/INDEX($K20:$O20,1,aux!$AL$1),"n.d.") -> 0.7528244717
A21: 19a | B21: Preparações à base de cereais (exc. NC 19022010) (a) | C21: 18618.674 | D21: 18613.338 | E21: 17460.124 | F21: 20173.626 | G21: 25354.944 | H21: 20044.1412 | I21: 0.07827921931 | J21: 0.07023877522 | K21: 2734.492 | L21: 4005.098 | M21: 5989.395 | N21: 7144.302 | O21: 10199.809 | P21: 6014.6192 | Q21: 0.03611990212 | R21: 0.02515159965 | S21: -14029.522 | U21: =G21-INDEX($C21:$G21,1,aux!$AL$1) -> 6736.27 | V21: 0.06061807913 | W21: 0.05641259692 | X21: =+IF(INDEX($C21:$G21,1,aux!$AL$1)>0,(G21/INDEX($C21:$G21,1,aux!$AL$1))^(1/($G$3-INDEX($C$3:$G$3,1,aux!$AL$1)))-1,"n.d.") -> 0.08026045193 | Y21: =IF(INDEX($C21:$G21,1,aux!$AL$1)>0,(G21-INDEX($C21:$G21,1,aux!$AL$1))/INDEX($C21:$G21,1,aux!$AL$1),"n.d.") -> 0.3618018125 | AA21: =O21-INDEX($K21:$O21,1,aux!$AL$1) -> 7465.317 | AB21: 0.2869845151 | AC21: 0.1270374002 | AD21: =+IF(INDEX($K21:$O21,1,aux!$AL$1)>0,(O21/INDEX($K21:$O21,1,aux!$AL$1))^(1/($O$3-INDEX($K$3:$O$3,1,aux!$AL$1)))-1,"n.d.") -> 0.3897249211 | AE21: =IF(INDEX($K21:$O21,1,aux!$AL$1)>0,(O21-INDEX($K21:$O21,1,aux!$AL$1))/INDEX($K21:$O21,1,aux!$AL$1),"n.d.") -> 2.730056259
A22: 20 | B22: Preparações de produtos vegetais | C22: 36630.971 | D22: 37490.672 | E22: 29009.635 | F22: 32572.755 | G22: 44043.798 | H22: 35949.5662 | I22: 0.1403953379 | J22: 0.1259746414 | K22: 22344.492 | L22: 20140.453 | M22: 18376.846 | N22: 21140.834 | O22: 25195.062 | P22: 21439.5374 | Q22: 0.128751957 | R22: 0.08965466364 | S22: -14510.0288 | U22: =G22-INDEX($C22:$G22,1,aux!$AL$1) -> 7412.827 | V22: 0.06670625341 | W22: 0.06207839377 | X22: =+IF(INDEX($C22:$G22,1,aux!$AL$1)>0,(G22/INDEX($C22:$G22,1,aux!$AL$1))^(1/($G$3-INDEX($C$3:$G$3,1,aux!$AL$1)))-1,"n.d.") -> 0.04715044785 | Y22: =IF(INDEX($C22:$G22,1,aux!$AL$1)>0,(G22-INDEX($C22:$G22,1,aux!$AL$1))/INDEX($C22:$G22,1,aux!$AL$1),"n.d.") -> 0.2023650151 | AA22: =O22-INDEX($K22:$O22,1,aux!$AL$1) -> 2850.57 | AB22: 0.1095826807 | AC22: 0.0485081882 | AD22: =+IF(INDEX($K22:$O22,1,aux!$AL$1)>0,(O22/INDEX($K22:$O22,1,aux!$AL$1))^(1/($O$3-INDEX($K$3:$O$3,1,aux!$AL$1)))-1,"n.d.") -> 0.03047209696 | AE22: =IF(INDEX($K22:$O22,1,aux!$AL$1)>0,(O22-INDEX($K22:$O22,1,aux!$AL$1))/INDEX($K22:$O22,1,aux!$AL$1),"n.d.") -> 0.1275737215
A23: 21 | B23: Preparações alimentícias diversas | C23: 22979.098 | D23: 22895.414 | E23: 20537.416 | F23: 16262.721 | G23: 14249.958 | H23: 19384.9214 | I23: 0.07570474077 | J23: 0.06792873405 | K23: 1849.902 | L23: 2245.613 | M23: 2415.487 | N23: 3112.849 | O23: 4724.439 | P23: 2869.658 | Q23: 0.01723330483 | R23: 0.01200017603 | S23: -16515.2634 | U23: =G23-INDEX($C23:$G23,1,aux!$AL$1) -> -8729.14 | V23: -0.0785514386 | W23: -0.07310179911 | X23: =+IF(INDEX($C23:$G23,1,aux!$AL$1)>0,(G23/INDEX($C23:$G23,1,aux!$AL$1))^(1/($G$3-INDEX($C$3:$G$3,1,aux!$AL$1)))-1,"n.d.") -> -0.1125985137 | Y23: =IF(INDEX($C23:$G23,1,aux!$AL$1)>0,(G23-INDEX($C23:$G23,1,aux!$AL$1))/INDEX($C23:$G23,1,aux!$AL$1),"n.d.") -> -0.3798730481 | AA23: =O23-INDEX($K23:$O23,1,aux!$AL$1) -> 2874.537 | AB23: 0.1105040291 | AC23: 0.04891603496 | AD23: =+IF(INDEX($K23:$O23,1,aux!$AL$1)>0,(O23/INDEX($K23:$O23,1,aux!$AL$1))^(1/($O$3-INDEX($K$3:$O$3,1,aux!$AL$1)))-1,"n.d.") -> 0.264155158 | AE23: =IF(INDEX($K23:$O23,1,aux!$AL$1)>0,(O23-INDEX($K23:$O23,1,aux!$AL$1))/INDEX($K23:$O23,1,aux!$AL$1),"n.d.") -> 1.553886098
A24: 22 | B24: Bebidas, líquidos alcoólicos e vinagres | C24: 10295.666 | D24: 7336.689 | E24: 8023.906 | F24: 15252.905 | G24: 14610.381 | H24: 11103.9094 | I24: 0.04336455977 | J24: 0.03891037229 | K24: 55042.696 | L24: 52358.262 | M24: 53021.638 | N24: 57711.948 | O24: 61510.633 | P24: 55929.0354 | Q24: 0.3358735137 | R24: 0.2338809258 | S24: 44825.126 | U24: =G24-INDEX($C24:$G24,1,aux!$AL$1) -> 4314.715 | V24: 0.0388270861 | W24: 0.03613339105 | X24: =+IF(INDEX($C24:$G24,1,aux!$AL$1)>0,(G24/INDEX($C24:$G24,1,aux!$AL$1))^(1/($G$3-INDEX($C$3:$G$3,1,aux!$AL$1)))-1,"n.d.") -> 0.09144479481 | Y24: =IF(INDEX($C24:$G24,1,aux!$AL$1)>0,(G24-INDEX($C24:$G24,1,aux!$AL$1))/INDEX($C24:$G24,1,aux!$AL$1),"n.d.") -> 0.4190807083 | AA24: =O24-INDEX($K24:$O24,1,aux!$AL$1) -> 6467.937 | AB24: 0.2486428592 | AC24: 0.1100649713 | AD24: =+IF(INDEX($K24:$O24,1,aux!$AL$1)>0,(O24/INDEX($K24:$O24,1,aux!$AL$1))^(1/($O$3-INDEX($K$3:$O$3,1,aux!$AL$1)))-1,"n.d.") -> 0.02816454741 | AE24: =IF(INDEX($K24:$O24,1,aux!$AL$1)>0,(O24-INDEX($K24:$O24,1,aux!$AL$1))/INDEX($K24:$O24,1,aux!$AL$1),"n.d.") -> 0.1175076344
A25: 23a | B25: Resíduos indústrias alimentares; alimentos p/ animais (exc. NC 230120) (a) | C25: 12225.743 | D25: 13661.672 | E25: 14246.625 | F25: 14662.016 | G25: 18754 | H25: 14710.0112 | I25: 0.05744761929 | J25: 0.05154689142 | K25: 19.915 | L25: 1228.724 | M25: 615.406 | N25: 801.523 | O25: 561.385 | P25: 645.3906 | Q25: 0.003875797374 | R25: 0.002698858473 | S25: -14064.6206 | U25: =G25-INDEX($C25:$G25,1,aux!$AL$1) -> 6528.257 | V25: 0.05874622 | W25: 0.0546706012 | X25: =+IF(INDEX($C25:$G25,1,aux!$AL$1)>0,(G25/INDEX($C25:$G25,1,aux!$AL$1))^(1/($G$3-INDEX($C$3:$G$3,1,aux!$AL$1)))-1,"n.d.") -> 0.1128962074 | Y25: =IF(INDEX($C25:$G25,1,aux!$AL$1)>0,(G25-INDEX($C25:$G25,1,aux!$AL$1))/INDEX($C25:$G25,1,aux!$AL$1),"n.d.") -> 0.533976299 | AA25: =O25-INDEX($K25:$O25,1,aux!$AL$1) -> 541.47 | AB25: 0.02081539276 | AC25: 0.009214202304 | AD25: =+IF(INDEX($K25:$O25,1,aux!$AL$1)>0,(O25/INDEX($K25:$O25,1,aux!$AL$1))^(1/($O$3-INDEX($K$3:$O$3,1,aux!$AL$1)))-1,"n.d.") -> 1.304199741 | AE25: =IF(INDEX($K25:$O25,1,aux!$AL$1)>0,(O25-INDEX($K25:$O25,1,aux!$AL$1))/INDEX($K25:$O25,1,aux!$AL$1),"n.d.") -> 27.18905348
A26: 24 | B26: Tabaco | C26: 22840.07 | D26: 36574.53 | E26: 10082.491 | F26: 9227.134 | G26: 8606.895 | H26: 17466.224 | I26: 0.06821157191 | J26: 0.06120522547 | K26: 0 | L26: 37.228 | M26: 0.02 | N26: 0.926 | O26: 0 | P26: 7.6348 | Q26: 4.584965723e-05 | R26: 3.19267815e-05 | S26: -17458.5892 | U26: =G26-INDEX($C26:$G26,1,aux!$AL$1) -> -14233.175 | V26: -0.1280809303 | W26: -0.1191950982 | X26: =+IF(INDEX($C26:$G26,1,aux!$AL$1)>0,(G26/INDEX($C26:$G26,1,aux!$AL$1))^(1/($G$3-INDEX($C$3:$G$3,1,aux!$AL$1)))-1,"n.d.") -> -0.2165031251 | Y26: =IF(INDEX($C26:$G26,1,aux!$AL$1)>0,(G26-INDEX($C26:$G26,1,aux!$AL$1))/INDEX($C26:$G26,1,aux!$AL$1),"n.d.") -> -0.623166873 | AA26: =O26-INDEX($K26:$O26,1,aux!$AL$1) -> 0 | AB26: 0 | AC26: 0 | AD26: =+IF(INDEX($K26:$O26,1,aux!$AL$1)>0,(O26/INDEX($K26:$O26,1,aux!$AL$1))^(1/($O$3-INDEX($K$3:$O$3,1,aux!$AL$1)))-1,"n.d.") -> n.d. | AE26: =IF(INDEX($K26:$O26,1,aux!$AL$1)>0,(O26-INDEX($K26:$O26,1,aux!$AL$1))/INDEX($K26:$O26,1,aux!$AL$1),"n.d.") -> n.d.
A27: 29 | B27: Manitol e sorbitol (NC 290543; 290544) | C27: 475.613 | D27: 572.781 | E27: 493.388 | F27: 555.505 | G27: 210.458 | H27: 461.549 | I27: 0.001802506529 | J27: 0.001617362208 | K27: 0 | L27: 0 | M27: 0 | N27: 0 | O27: 0 | P27: 0 | Q27: 0 | R27: 0 | S27: -461.549 | U27: =G27-INDEX($C27:$G27,1,aux!$AL$1) -> -265.155 | V27: -0.002386066291 | W27: -0.002220528889 | X27: =+IF(INDEX($C27:$G27,1,aux!$AL$1)>0,(G27/INDEX($C27:$G27,1,aux!$AL$1))^(1/($G$3-INDEX($C$3:$G$3,1,aux!$AL$1)))-1,"n.d.") -> -0.1843986602 | Y27: =IF(INDEX($C27:$G27,1,aux!$AL$1)>0,(G27-INDEX($C27:$G27,1,aux!$AL$1))/INDEX($C27:$G27,1,aux!$AL$1),"n.d.") -> -0.5575015822 | AA27: =O27-INDEX($K27:$O27,1,aux!$AL$1) -> 0 | AB27: 0 | AC27: 0 | AD27: =+IF(INDEX($K27:$O27,1,aux!$AL$1)>0,(O27/INDEX($K27:$O27,1,aux!$AL$1))^(1/($O$3-INDEX($K$3:$O$3,1,aux!$AL$1)))-1,"n.d.") -> n.d. | AE27: =IF(INDEX($K27:$O27,1,aux!$AL$1)>0,(O27-INDEX($K27:$O27,1,aux!$AL$1))/INDEX($K27:$O27,1,aux!$AL$1),"n.d.") -> n.d.
A28: 33 | B28: Óleos essenciais e resinóides (NC 3301) | C28: 114.717 | D28: 676.893 | E28: 819.738 | F28: 793.59 | G28: 1674.684 | H28: 815.9244 | I28: 0.003186463536 | J28: 0.002859166175 | K28: 17.504 | L28: 31.712 | M28: 35.684 | N28: 62.587 | O28: 145.558 | P28: 58.609 | Q28: 0.000351967643 | R28: 0.0002450878526 | S28: -757.3154 | U28: =G28-INDEX($C28:$G28,1,aux!$AL$1) -> 1559.967 | V28: 0.01403776913 | W28: 0.01306387505 | X28: =+IF(INDEX($C28:$G28,1,aux!$AL$1)>0,(G28/INDEX($C28:$G28,1,aux!$AL$1))^(1/($G$3-INDEX($C$3:$G$3,1,aux!$AL$1)))-1,"n.d.") -> 0.9546827146 | Y28: =IF(INDEX($C28:$G28,1,aux!$AL$1)>0,(G28-INDEX($C28:$G28,1,aux!$AL$1))/INDEX($C28:$G28,1,aux!$AL$1),"n.d.") -> 13.59839431 | AA28: =O28-INDEX($K28:$O28,1,aux!$AL$1) -> 128.054 | AB28: 0.00492269988 | AC28: 0.002179096648 | AD28: =+IF(INDEX($K28:$O28,1,aux!$AL$1)>0,(O28/INDEX($K28:$O28,1,aux!$AL$1))^(1/($O$3-INDEX($K$3:$O$3,1,aux!$AL$1)))-1,"n.d.") -> 0.698144699 | AE28: =IF(INDEX($K28:$O28,1,aux!$AL$1)>0,(O28-INDEX($K28:$O28,1,aux!$AL$1))/INDEX($K28:$O28,1,aux!$AL$1),"n.d.") -> 7.315699269
A29: 35 | B29: Caseínas, albuminas, gelatinas, peptonas, dextrinas (NC 3501 a 3505) | C29: 1021.342 | D29: 1318.16 | E29: 943.026 | F29: 1500.937 | G29: 1496.707 | H29: 1256.0344 | I29: 0.004905243446 | J29: 0.004401401737 | K29: 75.271 | L29: 74.337 | M29: 59.596 | N29: 17.804 | O29: 33.936 | P29: 52.1888 | Q29: 0.0003134120856 | R29: 0.0002182402177 | S29: -1203.8456 | U29: =G29-INDEX($C29:$G29,1,aux!$AL$1) -> 475.365 | V29: 0.004277695696 | W29: 0.003980923291 | X29: =+IF(INDEX($C29:$G29,1,aux!$AL$1)>0,(G29/INDEX($C29:$G29,1,aux!$AL$1))^(1/($G$3-INDEX($C$3:$G$3,1,aux!$AL$1)))-1,"n.d.") -> 0.1002500566 | Y29: =IF(INDEX($C29:$G29,1,aux!$AL$1)>0,(G29-INDEX($C29:$G29,1,aux!$AL$1))/INDEX($C29:$G29,1,aux!$AL$1),"n.d.") -> 0.4654317555 | AA29: =O29-INDEX($K29:$O29,1,aux!$AL$1) -> -41.335 | AB29: -0.001589015568 | AC29: -0.0007033982534 | AD29: =+IF(INDEX($K29:$O29,1,aux!$AL$1)>0,(O29/INDEX($K29:$O29,1,aux!$AL$1))^(1/($O$3-INDEX($K$3:$O$3,1,aux!$AL$1)))-1,"n.d.") -> -0.1805768273 | AE29: =IF(INDEX($K29:$O29,1,aux!$AL$1)>0,(O29-INDEX($K29:$O29,1,aux!$AL$1))/INDEX($K29:$O29,1,aux!$AL$1),"n.d.") -> -0.5491490747
A30: 38a | B30: Agentes de acabamento, ácidos gordos, sorbitol (NC 380910, 382311-12-13-19-70, 382460) (a) | C30: 1178.908 | D30: 1373.724 | E30: 654.637 | F30: 455.288 | G30: 1326.526 | H30: 997.8166 | I30: 0.003896814719 | J30: 0.00349655369 | K30: 0 | L30: 0 | M30: 0 | N30: 0 | O30: 0 | P30: 0 | Q30: 0 | R30: 0 | S30: -997.8166 | U30: =G30-INDEX($C30:$G30,1,aux!$AL$1) -> 147.618 | V30: 0.001328379 | W30: 0.00123622045 | X30: =+IF(INDEX($C30:$G30,1,aux!$AL$1)>0,(G30/INDEX($C30:$G30,1,aux!$AL$1))^(1/($G$3-INDEX($C$3:$G$3,1,aux!$AL$1)))-1,"n.d.") -> 0.02993297483 | Y30: =IF(INDEX($C30:$G30,1,aux!$AL$1)>0,(G30-INDEX($C30:$G30,1,aux!$AL$1))/INDEX($C30:$G30,1,aux!$AL$1),"n.d.") -> 0.1252158777 | AA30: =O30-INDEX($K30:$O30,1,aux!$AL$1) -> 0 | AB30: 0 | AC30: 0 | AD30: =+IF(INDEX($K30:$O30,1,aux!$AL$1)>0,(O30/INDEX($K30:$O30,1,aux!$AL$1))^(1/($O$3-INDEX($K$3:$O$3,1,aux!$AL$1)))-1,"n.d.") -> n.d. | AE30: =IF(INDEX($K30:$O30,1,aux!$AL$1)>0,(O30-INDEX($K30:$O30,1,aux!$AL$1))/INDEX($K30:$O30,1,aux!$AL$1),"n.d.") -> n.d.
A31: 41 | B31: Couro e peles em bruto (NC 4101 a 4103) | C31: 917.259 | D31: 457.585 | E31: 369.231 | F31: 129.374 | G31: 609.01 | H31: 496.4918 | I31: 0.001938970101 | J31: 0.001739808934 | K31: 0 | L31: 0 | M31: 71.442 | N31: 5.428 | O31: 0 | P31: 15.374 | Q31: 9.232627316e-05 | R31: 6.42901371e-05 | S31: -481.1178 | U31: =G31-INDEX($C31:$G31,1,aux!$AL$1) -> -308.249 | V31: -0.002773858868 | W31: -0.002581417697 | X31: =+IF(INDEX($C31:$G31,1,aux!$AL$1)>0,(G31/INDEX($C31:$G31,1,aux!$AL$1))^(1/($G$3-INDEX($C$3:$G$3,1,aux!$AL$1)))-1,"n.d.") -> -0.09732147509 | Y31: =IF(INDEX($C31:$G31,1,aux!$AL$1)>0,(G31-INDEX($C31:$G31,1,aux!$AL$1))/INDEX($C31:$G31,1,aux!$AL$1),"n.d.") -> -0.3360544841 | AA31: =O31-INDEX($K31:$O31,1,aux!$AL$1) -> 0 | AB31: 0 | AC31: 0 | AD31: =+IF(INDEX($K31:$O31,1,aux!$AL$1)>0,(O31/INDEX($K31:$O31,1,aux!$AL$1))^(1/($O$3-INDEX($K$3:$O$3,1,aux!$AL$1)))-1,"n.d.") -> n.d. | AE31: =IF(INDEX($K31:$O31,1,aux!$AL$1)>0,(O31-INDEX($K31:$O31,1,aux!$AL$1))/INDEX($K31:$O31,1,aux!$AL$1),"n.d.") -> n.d.
A32: 43 | B32: Peles com pelo em bruto (NC 4301) | C32: 340.653 | D32: 351.845 | E32: 247.899 | F32: 278.354 | G32: 1014.408 | H32: 446.6318 | I32: 0.001744249767 | J32: 0.001565089284 | K32: 0 | L32: 0 | M32: 0 | N32: 0 | O32: 0 | P32: 0 | Q32: 0 | R32: 0 | S32: -446.6318 | U32: =G32-INDEX($C32:$G32,1,aux!$AL$1) -> 673.755 | V32: 0.006062959755 | W32: 0.005642331622 | X32: =+IF(INDEX($C32:$G32,1,aux!$AL$1)>0,(G32/INDEX($C32:$G32,1,aux!$AL$1))^(1/($G$3-INDEX($C$3:$G$3,1,aux!$AL$1)))-1,"n.d.") -> 0.3136362123 | Y32: =IF(INDEX($C32:$G32,1,aux!$AL$1)>0,(G32-INDEX($C32:$G32,1,aux!$AL$1))/INDEX($C32:$G32,1,aux!$AL$1),"n.d.") -> 1.977833749 | AA32: =O32-INDEX($K32:$O32,1,aux!$AL$1) -> 0 | AB32: 0 | AC32: 0 | AD32: =+IF(INDEX($K32:$O32,1,aux!$AL$1)>0,(O32/INDEX($K32:$O32,1,aux!$AL$1))^(1/($O$3-INDEX($K$3:$O$3,1,aux!$AL$1)))-1,"n.d.") -> n.d. | AE32: =IF(INDEX($K32:$O32,1,aux!$AL$1)>0,(O32-INDEX($K32:$O32,1,aux!$AL$1))/INDEX($K32:$O32,1,aux!$AL$1),"n.d.") -> n.d.
A33: 50 | B33: Seda crua (NC 5001-5003) | C33: 0.149 | D33: 0 | E33: 0 | F33: 0 | G33: 0 | H33: 0.0298 | I33: 1.163791809e-07 | J33: 1.044253022e-07 | K33: 0 | L33: 31.054 | M33: 0 | N33: 0 | O33: 0 | P33: 6.2108 | Q33: 3.729803677e-05 | R33: 2.597197759e-05 | S33: 6.181 | U33: =G33-INDEX($C33:$G33,1,aux!$AL$1) -> -0.149 | V33: -1.340815287e-06 | W33: -1.247793948e-06 | X33: =+IF(INDEX($C33:$G33,1,aux!$AL$1)>0,(G33/INDEX($C33:$G33,1,aux!$AL$1))^(1/($G$3-INDEX($C$3:$G$3,1,aux!$AL$1)))-1,"n.d.") -> -1 | Y33: =IF(INDEX($C33:$G33,1,aux!$AL$1)>0,(G33-INDEX($C33:$G33,1,aux!$AL$1))/INDEX($C33:$G33,1,aux!$AL$1),"n.d.") -> -1 | AA33: =O33-INDEX($K33:$O33,1,aux!$AL$1) -> 0 | AB33: 0 | AC33: 0 | AD33: =+IF(INDEX($K33:$O33,1,aux!$AL$1)>0,(O33/INDEX($K33:$O33,1,aux!$AL$1))^(1/($O$3-INDEX($K$3:$O$3,1,aux!$AL$1)))-1,"n.d.") -> n.d. | AE33: =IF(INDEX($K33:$O33,1,aux!$AL$1)>0,(O33-INDEX($K33:$O33,1,aux!$AL$1))/INDEX($K33:$O33,1,aux!$AL$1),"n.d.") -> n.d.
A34: 51 | B34: Lã não cardada (NC 5101-5103) | C34: 151.927 | D34: 85.066 | E34: 93.061 | F34: 424.537 | G34: 281.367 | H34: 207.1916 | I34: 0.0008091539833 | J34: 0.0007260417932 | K34: 1442.065 | L34: 1025.326 | M34: 429.173 | N34: 285.982 | O34: 485.129 | P34: 733.535 | Q34: 0.004405135474 | R34: 0.003067455816 | S34: 526.3434 | U34: =G34-INDEX($C34:$G34,1,aux!$AL$1) -> 129.44 | V34: 0.001164799535 | W34: 0.001083989589 | X34: =+IF(INDEX($C34:$G34,1,aux!$AL$1)>0,(G34/INDEX($C34:$G34,1,aux!$AL$1))^(1/($G$3-INDEX($C$3:$G$3,1,aux!$AL$1)))-1,"n.d.") -> 0.1665666309 | Y34: =IF(INDEX($C34:$G34,1,aux!$AL$1)>0,(G34-INDEX($C34:$G34,1,aux!$AL$1))/INDEX($C34:$G34,1,aux!$AL$1),"n.d.") -> 0.8519881259 | AA34: =O34-INDEX($K34:$O34,1,aux!$AL$1) -> -956.936 | AB34: -0.0367868925 | AC34: -0.01628419284 | AD34: =+IF(INDEX($K34:$O34,1,aux!$AL$1)>0,(O34/INDEX($K34:$O34,1,aux!$AL$1))^(1/($O$3-INDEX($K$3:$O$3,1,aux!$AL$1)))-1,"n.d.") -> -0.2384154939 | AE34: =IF(INDEX($K34:$O34,1,aux!$AL$1)>0,(O34-INDEX($K34:$O34,1,aux!$AL$1))/INDEX($K34:$O34,1,aux!$AL$1),"n.d.") -> -0.6635872863
A35: 52 | B35: Algodão (NC 5201-5203) | C35: 0 | D35: 0.554 | E35: 19.643 | F35: 616.216 | G35: 227.556 | H35: 172.7938 | I35: 0.0006748188226 | J35: 0.0006055048583 | K35: 0.003 | L35: 0.114 | M35: 0.113 | N35: 32.275 | O35: 7.293 | P35: 7.9596 | Q35: 4.780019539e-05 | R35: 3.328501205e-05 | S35: -164.8342 | U35: =G35-INDEX($C35:$G35,1,aux!$AL$1) -> 227.556 | V35: 0.002047721902 | W35: 0.001905657716 | X35: =+IF(INDEX($C35:$G35,1,aux!$AL$1)>0,(G35/INDEX($C35:$G35,1,aux!$AL$1))^(1/($G$3-INDEX($C$3:$G$3,1,aux!$AL$1)))-1,"n.d.") -> n.d. | Y35: =IF(INDEX($C35:$G35,1,aux!$AL$1)>0,(G35-INDEX($C35:$G35,1,aux!$AL$1))/INDEX($C35:$G35,1,aux!$AL$1),"n.d.") -> n.d. | AA35: =O35-INDEX($K35:$O35,1,aux!$AL$1) -> 7.29 | AB35: 0.0002802449133 | AC35: 0.0001240540285 | AD35: =+IF(INDEX($K35:$O35,1,aux!$AL$1)>0,(O35/INDEX($K35:$O35,1,aux!$AL$1))^(1/($O$3-INDEX($K$3:$O$3,1,aux!$AL$1)))-1,"n.d.") -> 6.021764176 | AE35: =IF(INDEX($K35:$O35,1,aux!$AL$1)>0,(O35-INDEX($K35:$O35,1,aux!$AL$1))/INDEX($K35:$O35,1,aux!$AL$1),"n.d.") -> 2430
A36: 53 | B36: Linho e cânhamo em bruto (NC 5301-5302) | C36: 1260.805 | D36: 1483.765 | E36: 574.928 | F36: 1124.796 | G36: 1009.932 | H36: 1090.8452 | I36: 0.004260123184 | J36: 0.003822544954 | K36: 0 | L36: 0 | M36: 0 | N36: 0 | O36: 0 | P36: 0 | Q36: 0 | R36: 0 | S36: -1090.8452 | U36: =G36-INDEX($C36:$G36,1,aux!$AL$1) -> -250.873 | V36: -0.002257545996 | W36: =IF($U$53<>0,U36/$U$53, "n.d.") -> -0.002100924908 | X36: =+IF(INDEX($C36:$G36,1,aux!$AL$1)>0,(G36/INDEX($C36:$G36,1,aux!$AL$1))^(1/($G$3-INDEX($C$3:$G$3,1,aux!$AL$1)))-1,"n.d.") -> -0.05395661646 | Y36: =IF(INDEX($C36:$G36,1,aux!$AL$1)>0,(G36-INDEX($C36:$G36,1,aux!$AL$1))/INDEX($C36:$G36,1,aux!$AL$1),"n.d.") -> -0.1989784304 | AA36: =O36-INDEX($K36:$O36,1,aux!$AL$1) -> 0 | AB36: 0 | AC36: =IF($AA$53<>0,AA36/$AA$53, "n.d.") -> 0 | AD36: =+IF(INDEX($K36:$O36,1,aux!$AL$1)>0,(O36/INDEX($K36:$O36,1,aux!$AL$1))^(1/($O$3-INDEX($K$3:$O$3,1,aux!$AL$1)))-1,"n.d.") -> n.d. | AE36: =IF(INDEX($K36:$O36,1,aux!$AL$1)>0,(O36-INDEX($K36:$O36,1,aux!$AL$1))/INDEX($K36:$O36,1,aux!$AL$1),"n.d.") -> n.d.
A37: Subtotal Agrícola e Agroalimentar | C37: 225907.282 | D37: 248953.589 | E37: 194073.427 | F37: 274329.722 | G37: 337033.7 | H37: 256059.544 | I37: 1 | J37: 0.8972850757 | K37: 160855.082 | L37: 164451.233 | M37: 156878.807 | N37: 163537.574 | O37: 186868.043 | P37: 166518.1478 | Q37: 1 | R37: 0.6963363179 | S37: -89541.3962 | U37: =G37-INDEX($C37:$G37,1,aux!$AL$1) -> 111126.418 | V37: 1 | W37: 0.9306233013 | X37: =+IF(INDEX($C37:$G37,1,aux!$AL$1)>0,(G37/INDEX($C37:$G37,1,aux!$AL$1))^(1/($G$3-INDEX($C$3:$G$3,1,aux!$AL$1)))-1,"n.d.") -> 0.1051870169 | Y37: =IF(INDEX($C37:$G37,1,aux!$AL$1)>0,(G37-INDEX($C37:$G37,1,aux!$AL$1))/INDEX($C37:$G37,1,aux!$AL$1),"n.d.") -> 0.4919116242 | AA37: =O37-INDEX($K37:$O37,1,aux!$AL$1) -> 26012.961 | AB37: 1 | AC37: 0.4426629087 | AD37: =+IF(INDEX($K37:$O37,1,aux!$AL$1)>0,(O37/INDEX($K37:$O37,1,aux!$AL$1))^(1/($O$3-INDEX($K$3:$O$3,1,aux!$AL$1)))-1,"n.d.") -> 0.03818574817 | AE37: =IF(INDEX($K37:$O37,1,aux!$AL$1)>0,(O37-INDEX($K37:$O37,1,aux!$AL$1))/INDEX($K37:$O37,1,aux!$AL$1),"n.d.") -> 0.1617167495
A38: 03 | B38: Peixes e crustáceos | C38: 5508.149 | D38: 5758.676 | E38: 5940.598 | F38: 7881.979 | G38: 6562.031 | H38: 6330.2866 | I38: 0.7856366458 | J38: 0.0221826205 | K38: 3849.01 | L38: 4171.116 | M38: 4845.685 | N38: 4661.573 | O38: 6155.209 | P38: 4736.5186 | Q38: 0.466409307 | R38: 0.01980690973 | S38: -1593.768 | U38: =G38-INDEX($C38:$G38,1,aux!$AL$1) -> 1053.882 | V38: =IF($U$44<>0,U38/$U$44, "n.d.") -> 0.4620356219 | W38: 0.00882568847 | X38: =+IF(INDEX($C38:$G38,1,aux!$AL$1)>0,(G38/INDEX($C38:$G38,1,aux!$AL$1))^(1/($G$3-INDEX($C$3:$G$3,1,aux!$AL$1)))-1,"n.d.") -> 0.04473982347 | Y38: =IF(INDEX($C38:$G38,1,aux!$AL$1)>0,(G38-INDEX($C38:$G38,1,aux!$AL$1))/INDEX($C38:$G38,1,aux!$AL$1),"n.d.") -> 0.1913314255 | AA38: =O38-INDEX($K38:$O38,1,aux!$AL$1) -> 2306.199 | AB38: =IF($AA$44<>0,AA38/$AA$44, "n.d.") -> 0.5319178528 | AC38: 0.03924461954 | AD38: =+IF(INDEX($K38:$O38,1,aux!$AL$1)>0,(O38/INDEX($K38:$O38,1,aux!$AL$1))^(1/($O$3-INDEX($K$3:$O$3,1,aux!$AL$1)))-1,"n.d.") -> 0.1245362019 | AE38: =IF(INDEX($K38:$O38,1,aux!$AL$1)>0,(O38-INDEX($K38:$O38,1,aux!$AL$1))/INDEX($K38:$O38,1,aux!$AL$1),"n.d.") -> 0.5991667987
A39: 05p | B39: Outros produtos de pescado (NC 0508, 051191) (p) | C39: 89.334 | D39: 131.814 | E39: 99.89 | F39: 138.034 | G39: 263.559 | H39: 144.5262 | I39: 0.0179367991 | J39: 0.0005064493995 | K39: 0 | L39: 0 | M39: 0 | N39: 0.171 | O39: 0 | P39: 0.0342 | Q39: 3.367705196e-06 | R39: 1.430156556e-07 | S39: -144.492 | U39: =G39-INDEX($C39:$G39,1,aux!$AL$1) -> 174.225 | V39: 0.07638251363 | W39: 0.001459039602 | X39: =+IF(INDEX($C39:$G39,1,aux!$AL$1)>0,(G39/INDEX($C39:$G39,1,aux!$AL$1))^(1/($G$3-INDEX($C$3:$G$3,1,aux!$AL$1)))-1,"n.d.") -> 0.3105852253 | Y39: =IF(INDEX($C39:$G39,1,aux!$AL$1)>0,(G39-INDEX($C39:$G39,1,aux!$AL$1))/INDEX($C39:$G39,1,aux!$AL$1),"n.d.") -> 1.950265297 | AA39: =O39-INDEX($K39:$O39,1,aux!$AL$1) -> 0 | AB39: 0 | AC39: 0 | AD39: =+IF(INDEX($K39:$O39,1,aux!$AL$1)>0,(O39/INDEX($K39:$O39,1,aux!$AL$1))^(1/($O$3-INDEX($K$3:$O$3,1,aux!$AL$1)))-1,"n.d.") -> n.d. | AE39: =IF(INDEX($K39:$O39,1,aux!$AL$1)>0,(O39-INDEX($K39:$O39,1,aux!$AL$1))/INDEX($K39:$O39,1,aux!$AL$1),"n.d.") -> n.d.
A40: 16p | B40: Preparações e conservas de peixes ou crustáceos (NC 1604-05) (p) | C40: 943.795 | D40: 1726.036 | E40: 1563.131 | F40: 1224.878 | G40: 2032.852 | H40: 1498.1384 | I40: 0.1859303538 | J40: 0.005249783728 | K40: 3936.439 | L40: 4493.619 | M40: 5876.437 | N40: 6053.346 | O40: 5982.208 | P40: 5268.4098 | Q40: 0.5187851187 | R40: 0.02203114273 | S40: 3770.2714 | U40: =G40-INDEX($C40:$G40,1,aux!$AL$1) -> 1089.057 | V40: 0.477456801 | W40: 0.009120259961 | X40: =+IF(INDEX($C40:$G40,1,aux!$AL$1)>0,(G40/INDEX($C40:$G40,1,aux!$AL$1))^(1/($G$3-INDEX($C$3:$G$3,1,aux!$AL$1)))-1,"n.d.") -> 0.2114542624 | Y40: =IF(INDEX($C40:$G40,1,aux!$AL$1)>0,(G40-INDEX($C40:$G40,1,aux!$AL$1))/INDEX($C40:$G40,1,aux!$AL$1),"n.d.") -> 1.153912661 | AA40: =O40-INDEX($K40:$O40,1,aux!$AL$1) -> 2045.769 | AB40: 0.4718504577 | AC40: 0.03481287871 | AD40: =+IF(INDEX($K40:$O40,1,aux!$AL$1)>0,(O40/INDEX($K40:$O40,1,aux!$AL$1))^(1/($O$3-INDEX($K$3:$O$3,1,aux!$AL$1)))-1,"n.d.") -> 0.1102978423 | AE40: =IF(INDEX($K40:$O40,1,aux!$AL$1)>0,(O40-INDEX($K40:$O40,1,aux!$AL$1))/INDEX($K40:$O40,1,aux!$AL$1),"n.d.") -> 0.5197004196
A41: 19p | B41: Massas recheadas com pescado (NC 19022010) (p) | C41: 0 | D41: 0 | E41: 0 | F41: 7.222 | G41: 0 | H41: 1.4444 | I41: 0.0001792610103 | J41: 5.061473371e-06 | K41: 1.505 | L41: 1.316 | M41: 0.79 | N41: 2.172 | O41: 0.843 | P41: 1.3252 | Q41: 0.0001304936528 | R41: 5.541647566e-06 | S41: -0.1192 | U41: =G41-INDEX($C41:$G41,1,aux!$AL$1) -> 0 | V41: 0 | W41: 0 | X41: =+IF(INDEX($C41:$G41,1,aux!$AL$1)>0,(G41/INDEX($C41:$G41,1,aux!$AL$1))^(1/($G$3-INDEX($C$3:$G$3,1,aux!$AL$1)))-1,"n.d.") -> n.d. | Y41: =IF(INDEX($C41:$G41,1,aux!$AL$1)>0,(G41-INDEX($C41:$G41,1,aux!$AL$1))/INDEX($C41:$G41,1,aux!$AL$1),"n.d.") -> n.d. | AA41: =O41-INDEX($K41:$O41,1,aux!$AL$1) -> -0.662 | AB41: -0.000152688306 | AC41: -1.126526294e-05 | AD41: =+IF(INDEX($K41:$O41,1,aux!$AL$1)>0,(O41/INDEX($K41:$O41,1,aux!$AL$1))^(1/($O$3-INDEX($K$3:$O$3,1,aux!$AL$1)))-1,"n.d.") -> -0.1348871385 | AE41: =IF(INDEX($K41:$O41,1,aux!$AL$1)>0,(O41-INDEX($K41:$O41,1,aux!$AL$1))/INDEX($K41:$O41,1,aux!$AL$1),"n.d.") -> -0.4398671096
A42: 23p | B42: Farinhas de pescado (NC 230120) (p) | C42: 0 | D42: 0 | E42: 0 | F42: 0 | G42: 0 | H42: 0 | I42: 0 | J42: 0 | K42: 0 | L42: 0 | M42: 0 | N42: 0 | O42: 0 | P42: 0 | Q42: 0 | R42: 0 | S42: 0 | U42: =G42-INDEX($C42:$G42,1,aux!$AL$1) -> 0 | V42: 0 | W42: 0 | X42: =+IF(INDEX($C42:$G42,1,aux!$AL$1)>0,(G42/INDEX($C42:$G42,1,aux!$AL$1))^(1/($G$3-INDEX($C$3:$G$3,1,aux!$AL$1)))-1,"n.d.") -> n.d. | Y42: =IF(INDEX($C42:$G42,1,aux!$AL$1)>0,(G42-INDEX($C42:$G42,1,aux!$AL$1))/INDEX($C42:$G42,1,aux!$AL$1),"n.d.") -> n.d. | AA42: =O42-INDEX($K42:$O42,1,aux!$AL$1) -> 0 | AB42: 0 | AC42: 0 | AD42: =+IF(INDEX($K42:$O42,1,aux!$AL$1)>0,(O42/INDEX($K42:$O42,1,aux!$AL$1))^(1/($O$3-INDEX($K$3:$O$3,1,aux!$AL$1)))-1,"n.d.") -> n.d. | AE42: =IF(INDEX($K42:$O42,1,aux!$AL$1)>0,(O42-INDEX($K42:$O42,1,aux!$AL$1))/INDEX($K42:$O42,1,aux!$AL$1),"n.d.") -> n.d.
A43: 25 | B43: Sal e cloreto de sódio puro; água do mar (NC 2501) | C43: 94.468 | D43: 123.651 | E43: 77.648 | F43: 61.62 | G43: 58.258 | H43: 83.129 | I43: 0.01031694027 | J43: 0.0002913010384 | K43: 172.873 | L43: 138.155 | M43: 130.02 | N43: 146.732 | O43: 157.197 | P43: 148.9954 | Q43: 0.01467171295 | R43: 0.0006230606669 | S43: 65.8664 | U43: =G43-INDEX($C43:$G43,1,aux!$AL$1) -> -36.21 | V43: -0.01587493654 | W43: -0.0003032390528 | X43: =+IF(INDEX($C43:$G43,1,aux!$AL$1)>0,(G43/INDEX($C43:$G43,1,aux!$AL$1))^(1/($G$3-INDEX($C$3:$G$3,1,aux!$AL$1)))-1,"n.d.") -> -0.1138286348 | Y43: =IF(INDEX($C43:$G43,1,aux!$AL$1)>0,(G43-INDEX($C43:$G43,1,aux!$AL$1))/INDEX($C43:$G43,1,aux!$AL$1),"n.d.") -> -0.3833043994 | AA43: =O43-INDEX($K43:$O43,1,aux!$AL$1) -> -15.676 | AB43: -0.003615622182 | AC43: -0.0002667587038 | AD43: =+IF(INDEX($K43:$O43,1,aux!$AL$1)>0,(O43/INDEX($K43:$O43,1,aux!$AL$1))^(1/($O$3-INDEX($K$3:$O$3,1,aux!$AL$1)))-1,"n.d.") -> -0.02348420751 | AE43: =IF(INDEX($K43:$O43,1,aux!$AL$1)>0,(O43-INDEX($K43:$O43,1,aux!$AL$1))/INDEX($K43:$O43,1,aux!$AL$1),"n.d.") -> -0.09067928479
A44: Subtotal Mar | C44: 6635.746 | D44: 7740.177 | E44: 7681.267 | F44: 9313.733 | G44: 8916.7 | H44: 8057.5246 | I44: 1 | J44: 0.02823521614 | K44: 7959.827 | L44: 8804.206 | M44: 10852.932 | N44: 10863.994 | O44: 12295.457 | P44: 10155.2832 | Q44: 1 | R44: 0.04246679779 | S44: 2097.7586 | U44: =G44-INDEX($C44:$G44,1,aux!$AL$1) -> 2280.954 | V44: 1 | W44: 0.01910174898 | X44: =+IF(INDEX($C44:$G44,1,aux!$AL$1)>0,(G44/INDEX($C44:$G44,1,aux!$AL$1))^(1/($G$3-INDEX($C$3:$G$3,1,aux!$AL$1)))-1,"n.d.") -> 0.07666005412 | Y44: =IF(INDEX($C44:$G44,1,aux!$AL$1)>0,(G44-INDEX($C44:$G44,1,aux!$AL$1))/INDEX($C44:$G44,1,aux!$AL$1),"n.d.") -> 0.3437373884 | AA44: =O44-INDEX($K44:$O44,1,aux!$AL$1) -> 4335.63 | AB44: 1 | AC44: 0.07377947428 | AD44: =+IF(INDEX($K44:$O44,1,aux!$AL$1)>0,(O44/INDEX($K44:$O44,1,aux!$AL$1))^(1/($O$3-INDEX($K$3:$O$3,1,aux!$AL$1)))-1,"n.d.") -> 0.1148341446 | AE44: =IF(INDEX($K44:$O44,1,aux!$AL$1)>0,(O44-INDEX($K44:$O44,1,aux!$AL$1))/INDEX($K44:$O44,1,aux!$AL$1),"n.d.") -> 0.5446889738
A45: 13f | B45: Gomas e resinas (NC 1301) (f) | C45: 65.204 | D45: 16.55 | E45: 22.246 | F45: 14.279 | G45: 23.265 | H45: 28.3088 | I45: 0.001331904144 | J45: 9.919983201e-05 | K45: 0 | L45: 0.401 | M45: 38.651 | N45: 0.829 | O45: 2.461 | P45: 8.4684 | Q45: 0.0001355785068 | R45: 3.541268356e-05 | S45: -19.8404 | U45: =G45-INDEX($C45:$G45,1,aux!$AL$1) -> -41.939 | V45: =IF($U$52<>0,U45/$U$52, "n.d.") -> -0.006985910744 | W45: -0.0003512163114 | X45: =+IF(INDEX($C45:$G45,1,aux!$AL$1)>0,(G45/INDEX($C45:$G45,1,aux!$AL$1))^(1/($G$3-INDEX($C$3:$G$3,1,aux!$AL$1)))-1,"n.d.") -> -0.227128657 | Y45: =IF(INDEX($C45:$G45,1,aux!$AL$1)>0,(G45-INDEX($C45:$G45,1,aux!$AL$1))/INDEX($C45:$G45,1,aux!$AL$1),"n.d.") -> -0.6431967364 | AA45: =O45-INDEX($K45:$O45,1,aux!$AL$1) -> 2.461 | AB45: =IF($AA$52<>0,AA45/$AA$52, "n.d.") -> 8.660575032e-05 | AC45: 4.187887024e-05 | AD45: =+IF(INDEX($K45:$O45,1,aux!$AL$1)>0,(O45/INDEX($K45:$O45,1,aux!$AL$1))^(1/($O$3-INDEX($K$3:$O$3,1,aux!$AL$1)))-1,"n.d.") -> n.d. | AE45: =IF(INDEX($K45:$O45,1,aux!$AL$1)>0,(O45-INDEX($K45:$O45,1,aux!$AL$1))/INDEX($K45:$O45,1,aux!$AL$1),"n.d.") -> n.d.
A46: 38f | B46: Tall oil, essências e colofónias (NC 3803,3805,3806) (f) | C46: 779.203 | D46: 0.167 | E46: 0 | F46: 535.462 | G46: 1121.541 | H46: 487.2746 | I46: 0.0229258414 | J46: 0.001707509978 | K46: 893.482 | L46: 826.281 | M46: 752.277 | N46: 1123.996 | O46: 1287.63 | P46: 976.7332 | Q46: 0.01563743196 | R46: 0.004084448507 | S46: 489.4586 | U46: =G46-INDEX($C46:$G46,1,aux!$AL$1) -> 342.338 | V46: 0.05702431418 | W46: 0.002866894528 | X46: =+IF(INDEX($C46:$G46,1,aux!$AL$1)>0,(G46/INDEX($C46:$G46,1,aux!$AL$1))^(1/($G$3-INDEX($C$3:$G$3,1,aux!$AL$1)))-1,"n.d.") -> 0.09532029491 | Y46: =IF(INDEX($C46:$G46,1,aux!$AL$1)>0,(G46-INDEX($C46:$G46,1,aux!$AL$1))/INDEX($C46:$G46,1,aux!$AL$1),"n.d.") -> 0.439343791 | AA46: =O46-INDEX($K46:$O46,1,aux!$AL$1) -> 394.148 | AB46: 0.01387057427 | AC46: 0.00670722184 | AD46: =+IF(INDEX($K46:$O46,1,aux!$AL$1)>0,(O46/INDEX($K46:$O46,1,aux!$AL$1))^(1/($O$3-INDEX($K$3:$O$3,1,aux!$AL$1)))-1,"n.d.") -> 0.0956612939 | AE46: =IF(INDEX($K46:$O46,1,aux!$AL$1)>0,(O46-INDEX($K46:$O46,1,aux!$AL$1))/INDEX($K46:$O46,1,aux!$AL$1),"n.d.") -> 0.4411370347
A47: 44 | B47: Madeira e suas obras | C47: 6261.32 | D47: 6647.638 | E47: 4358.5 | F47: 6943.199 | G47: 8278.86 | H47: 6497.9034 | I47: 0.3057206405 | J47: 0.02276998409 | K47: 14106.467 | L47: 15024.051 | M47: 15834.74 | N47: 19338.858 | O47: 24945.234 | P47: 17849.87 | Q47: 0.2857752021 | R47: 0.0746435924 | S47: 11351.9666 | U47: =G47-INDEX($C47:$G47,1,aux!$AL$1) -> 2017.54 | V47: 0.3360679645 | W47: 0.01689580002 | X47: =+IF(INDEX($C47:$G47,1,aux!$AL$1)>0,(G47/INDEX($C47:$G47,1,aux!$AL$1))^(1/($G$3-INDEX($C$3:$G$3,1,aux!$AL$1)))-1,"n.d.") -> 0.0723243295 | Y47: =IF(INDEX($C47:$G47,1,aux!$AL$1)>0,(G47-INDEX($C47:$G47,1,aux!$AL$1))/INDEX($C47:$G47,1,aux!$AL$1),"n.d.") -> 0.3222227901 | AA47: =O47-INDEX($K47:$O47,1,aux!$AL$1) -> 10838.767 | AB47: 0.3814301294 | AC47: 0.1844434444 | AD47: =+IF(INDEX($K47:$O47,1,aux!$AL$1)>0,(O47/INDEX($K47:$O47,1,aux!$AL$1))^(1/($O$3-INDEX($K$3:$O$3,1,aux!$AL$1)))-1,"n.d.") -> 0.1531673332 | AE47: =IF(INDEX($K47:$O47,1,aux!$AL$1)>0,(O47-INDEX($K47:$O47,1,aux!$AL$1))/INDEX($K47:$O47,1,aux!$AL$1),"n.d.") -> 0.7683544717
A48: 45 | B48: Cortiça e suas obras | C48: 7.24 | D48: 6.516 | E48: 6.754 | F48: 4.61 | G48: 13.769 | H48: 7.7778 | I48: 0.0003659386499 | J48: 2.725500387e-05 | K48: 10299.76 | L48: 10176.018 | M48: 9627.39 | N48: 10901.643 | O48: 12084.77 | P48: 10617.9162 | Q48: 0.1699921147 | R48: 0.04440141071 | S48: 10610.1384 | U48: =G48-INDEX($C48:$G48,1,aux!$AL$1) -> 6.529 | V48: 0.001087556004 | W48: 5.467682342e-05 | X48: =+IF(INDEX($C48:$G48,1,aux!$AL$1)>0,(G48/INDEX($C48:$G48,1,aux!$AL$1))^(1/($G$3-INDEX($C$3:$G$3,1,aux!$AL$1)))-1,"n.d.") -> 0.1743321705 | Y48: =IF(INDEX($C48:$G48,1,aux!$AL$1)>0,(G48-INDEX($C48:$G48,1,aux!$AL$1))/INDEX($C48:$G48,1,aux!$AL$1),"n.d.") -> 0.9017955801 | AA48: =O48-INDEX($K48:$O48,1,aux!$AL$1) -> 1785.01 | AB48: 0.06281679414 | AC48: 0.03037553928 | AD48: =+IF(INDEX($K48:$O48,1,aux!$AL$1)>0,(O48/INDEX($K48:$O48,1,aux!$AL$1))^(1/($O$3-INDEX($K$3:$O$3,1,aux!$AL$1)))-1,"n.d.") -> 0.0407653407 | AE48: =IF(INDEX($K48:$O48,1,aux!$AL$1)>0,(O48-INDEX($K48:$O48,1,aux!$AL$1))/INDEX($K48:$O48,1,aux!$AL$1),"n.d.") -> 0.1733059799
A49: 46 | B49: Obras de espartaria ou de cestaria | C49: 263.779 | D49: 295.733 | E49: 247.099 | F49: 271.678 | G49: 303.788 | H49: 276.4154 | I49: 0.01300510148 | J49: 0.0009686161634 | K49: 0 | L49: 0.374 | M49: 0.123 | N49: 0.499 | O49: 0 | P49: 0.1992 | Q49: 3.189178423e-06 | R49: 8.330034676e-07 | S49: -276.2162 | U49: =G49-INDEX($C49:$G49,1,aux!$AL$1) -> 40.009 | V49: 0.006664424592 | W49: 0.0003350536113 | X49: =+IF(INDEX($C49:$G49,1,aux!$AL$1)>0,(G49/INDEX($C49:$G49,1,aux!$AL$1))^(1/($G$3-INDEX($C$3:$G$3,1,aux!$AL$1)))-1,"n.d.") -> 0.03593522172 | Y49: =IF(INDEX($C49:$G49,1,aux!$AL$1)>0,(G49-INDEX($C49:$G49,1,aux!$AL$1))/INDEX($C49:$G49,1,aux!$AL$1),"n.d.") -> 0.1516762138 | AA49: =O49-INDEX($K49:$O49,1,aux!$AL$1) -> 0 | AB49: 0 | AC49: 0 | AD49: =+IF(INDEX($K49:$O49,1,aux!$AL$1)>0,(O49/INDEX($K49:$O49,1,aux!$AL$1))^(1/($O$3-INDEX($K$3:$O$3,1,aux!$AL$1)))-1,"n.d.") -> n.d. | AE49: =IF(INDEX($K49:$O49,1,aux!$AL$1)>0,(O49-INDEX($K49:$O49,1,aux!$AL$1))/INDEX($K49:$O49,1,aux!$AL$1),"n.d.") -> n.d.
A50: 47 | B50: Pastas de madeira | C50: 18.892 | D50: 68.985 | E50: 5.016 | F50: 16.08 | G50: 101.42 | H50: 42.0786 | I50: 0.001979761124 | J50: 0.0001474520309 | K50: 40.455 | L50: 21.817 | M50: 92.837 | N50: 468.683 | O50: 993.678 | P50: 323.494 | Q50: 0.005179116892 | R50: 0.001352769195 | S50: 281.4154 | U50: =G50-INDEX($C50:$G50,1,aux!$AL$1) -> 82.528 | V50: 0.01374694776 | W50: 0.0006911271072 | X50: =+IF(INDEX($C50:$G50,1,aux!$AL$1)>0,(G50/INDEX($C50:$G50,1,aux!$AL$1))^(1/($G$3-INDEX($C$3:$G$3,1,aux!$AL$1)))-1,"n.d.") -> 0.522163898 | Y50: =IF(INDEX($C50:$G50,1,aux!$AL$1)>0,(G50-INDEX($C50:$G50,1,aux!$AL$1))/INDEX($C50:$G50,1,aux!$AL$1),"n.d.") -> 4.368409909 | AA50: =O50-INDEX($K50:$O50,1,aux!$AL$1) -> 953.223 | AB50: 0.03354514146 | AC50: 0.01622100867 | AD50: =+IF(INDEX($K50:$O50,1,aux!$AL$1)>0,(O50/INDEX($K50:$O50,1,aux!$AL$1))^(1/($O$3-INDEX($K$3:$O$3,1,aux!$AL$1)))-1,"n.d.") -> 1.226221472 | AE50: =IF(INDEX($K50:$O50,1,aux!$AL$1)>0,(O50-INDEX($K50:$O50,1,aux!$AL$1))/INDEX($K50:$O50,1,aux!$AL$1),"n.d.") -> 23.56255098
A51: 48 | B51: Papel e cartão | C51: 13494.279 | D51: 14786.648 | E51: 11629.483 | F51: 12612.066 | G51: 17050.643 | H51: 13914.6238 | I51: 0.6546708127 | J51: 0.0487596911 | K51: 31877.758 | L51: 30274.989 | M51: 26266.604 | N51: 28683.107 | O51: 46320.276 | P51: 32684.5468 | Q51: 0.5232773666 | R51: 0.1366784178 | S51: 18769.923 | U51: =G51-INDEX($C51:$G51,1,aux!$AL$1) -> 3556.364 | V51: 0.5923947037 | W51: 0.02978261394 | X51: =+IF(INDEX($C51:$G51,1,aux!$AL$1)>0,(G51/INDEX($C51:$G51,1,aux!$AL$1))^(1/($G$3-INDEX($C$3:$G$3,1,aux!$AL$1)))-1,"n.d.") -> 0.06022433704 | Y51: =IF(INDEX($C51:$G51,1,aux!$AL$1)>0,(G51-INDEX($C51:$G51,1,aux!$AL$1))/INDEX($C51:$G51,1,aux!$AL$1),"n.d.") -> 0.2635460553 | AA51: =O51-INDEX($K51:$O51,1,aux!$AL$1) -> 14442.518 | AB51: 0.5082507549 | AC51: 0.2457685239 | AD51: =+IF(INDEX($K51:$O51,1,aux!$AL$1)>0,(O51/INDEX($K51:$O51,1,aux!$AL$1))^(1/($O$3-INDEX($K$3:$O$3,1,aux!$AL$1)))-1,"n.d.") -> 0.09792036885 | AE51: =IF(INDEX($K51:$O51,1,aux!$AL$1)>0,(O51-INDEX($K51:$O51,1,aux!$AL$1))/INDEX($K51:$O51,1,aux!$AL$1),"n.d.") -> 0.4530594027
A52: Subtotal Florestas | C52: 20889.917 | D52: 21822.237 | E52: 16269.098 | F52: 20397.374 | G52: 26893.286 | H52: 21254.3824 | I52: 1 | J52: 0.0744797082 | K52: 57217.922 | L52: 56323.931 | M52: 52612.622 | N52: 60517.615 | O52: 85634.049 | P52: 62461.2278 | Q52: 1 | R52: 0.2611968843 | S52: 41206.8454 | U52: =G52-INDEX($C52:$G52,1,aux!$AL$1) -> 6003.369 | V52: 1 | W52: 0.05027494972 | X52: =+IF(INDEX($C52:$G52,1,aux!$AL$1)>0,(G52/INDEX($C52:$G52,1,aux!$AL$1))^(1/($G$3-INDEX($C$3:$G$3,1,aux!$AL$1)))-1,"n.d.") -> 0.06518928472 | Y52: =IF(INDEX($C52:$G52,1,aux!$AL$1)>0,(G52-INDEX($C52:$G52,1,aux!$AL$1))/INDEX($C52:$G52,1,aux!$AL$1),"n.d.") -> 0.2873811801 | AA52: =O52-INDEX($K52:$O52,1,aux!$AL$1) -> 28416.127 | AB52: 1 | AC52: 0.483557617 | AD52: =+IF(INDEX($K52:$O52,1,aux!$AL$1)>0,(O52/INDEX($K52:$O52,1,aux!$AL$1))^(1/($O$3-INDEX($K$3:$O$3,1,aux!$AL$1)))-1,"n.d.") -> 0.106059778 | AE52: =IF(INDEX($K52:$O52,1,aux!$AL$1)>0,(O52-INDEX($K52:$O52,1,aux!$AL$1))/INDEX($K52:$O52,1,aux!$AL$1),"n.d.") -> 0.4966298322
B53: TOTAL | C53: 253432.945 | D53: 278516.003 | E53: 218023.792 | F53: 304040.829 | G53: 372843.686 | H53: 285371.451 | J53: 1 | K53: 226032.831 | L53: 229579.37 | M53: 220344.361 | N53: 234919.183 | O53: 284797.549 | P53: 239134.6588 | R53: 1 | S53: -46236.7922 | U53: =G53-INDEX($C53:$G53,1,aux!$AL$1) -> 119410.741 | W53: 1 | X53: =+IF(INDEX($C53:$G53,1,aux!$AL$1)>0,(G53/INDEX($C53:$G53,1,aux!$AL$1))^(1/($G$3-INDEX($C$3:$G$3,1,aux!$AL$1)))-1,"n.d.") -> 0.1013260976 | Y53: =IF(INDEX($C53:$G53,1,aux!$AL$1)>0,(G53-INDEX($C53:$G53,1,aux!$AL$1))/INDEX($C53:$G53,1,aux!$AL$1),"n.d.") -> 0.4711729211 | AA53: =O53-INDEX($K53:$O53,1,aux!$AL$1) -> 58764.718 | AC53: 1 | AD53: =+IF(INDEX($K53:$O53,1,aux!$AL$1)>0,(O53/INDEX($K53:$O53,1,aux!$AL$1))^(1/($O$3-INDEX($K$3:$O$3,1,aux!$AL$1)))-1,"n.d.") -> 0.05947614031 | AE53: =IF(INDEX($K53:$O53,1,aux!$AL$1)>0,(O53-INDEX($K53:$O53,1,aux!$AL$1))/INDEX($K53:$O53,1,aux!$AL$1),"n.d.") -> 0.2599831084
B54: a - agrícola e agroalimentar; p - pescas; f - florestas
A55: Fonte: GPP a partir de dados INE/Comércio Internacional (2021 provisórios; 2022 preliminares) | S55: 2023-07-19T17:13:34.470

Sheet 5.2_var
A1: ="Principais contributos por produto para a variação das trocas comerciais PT-Bélgica_x000D_ no período " & INDEX('5.2'!K3:N3,1,aux!AL1) & "-2022 (NC 2 dígitos - milhares de euros) Produtos agrícolas e agroalimentares, do mar e da floresta" -> Principais contributos por produto para a variação das trocas comerciais PT-Bélgica no período 2018-2022 (NC 2 dígitos - milhares de euros) Produtos agrícolas e agroalimentares, do mar e da floresta
E5: aumento das importações | J5: aumento das exportações
E17: redução das importações | J17: redução das exportações
A28: Fonte: GPP a partir de dados INE/Comércio Internacional (2021 provisórios; 2022 preliminares) | F28: a - agrícola e agroalimentar; p - mar; f - florestas | H28: ='3'!Y116 -> 2023-07-19T17:13:34.470
A29: Cód. NC | B29: Descritivo | C29: ="Variação das Importações " & INDEX('5.2'!K3:N3,1,aux!AL1) & "-"& '5.2'!O3 &"" -> Variação das Importações 2018-2022 | F29: Cód. NC | G29: Descritivo | H29: ="Variação das Exportações " & INDEX('5.2'!K3:N3,1,aux!AL1) & "-"& '5.2'!O3 &"" -> Variação das Exportações 2018-2022
C30: variação total em valor | D30: % do aumento/ redução total | H30: variação total em valor | I30: % do aumento/ redução total
A31: =IF(C31>0,aux!AU6,"") -> 15 | B31: =IF(C31>0,aux!AV6,"") -> Gorduras e óleos animais ou vegetais | C31: =IF(aux!AW6>0,aux!AW6,0) -> 40653.334 | D31: =IF(SUM($C$31:$C$41)<>0,C31/SUM($C$31:$C$41),0) -> 0.2836846736 | F31: =IF(H31>0,aux!AZ6,"") -> 48 | G31: =IF(H31>0,aux!BA6,"") -> Papel e cartão | H31: =IF(aux!BB6>0,aux!BB6,0) -> 14442.518 | I31: =IF(SUM($H$31:$H$41)<>0,H31/SUM($H$31:$H$41),0) -> 0.2030311454
A32: =IF(C32>0,aux!AU7,"") -> 04 | B32: =IF(C32>0,aux!AV7,"") -> Leite e laticínios; ovos; mel, etc. | C32: =IF(aux!AW7>0,aux!AW7,0) -> 14997.645 | D32: =IF(SUM($C$31:$C$41)<>0,C32/SUM($C$31:$C$41),0) -> 0.1046556729 | F32: =IF(H32>0,aux!AZ7,"") -> 44 | G32: =IF(H32>0,aux!BA7,"") -> Madeira e suas obras | H32: =IF(aux!BB7>0,aux!BB7,0) -> 10838.767 | I32: =IF(SUM($H$31:$H$41)<>0,H32/SUM($H$31:$H$41),0) -> 0.1523700562
A33: =IF(C33>0,aux!AU8,"") -> 08 | B33: =IF(C33>0,aux!AV8,"") -> Frutas | C33: =IF(aux!AW8>0,aux!AW8,0) -> 12995.656 | D33: 0.09068551256 | F33: =IF(H33>0,aux!AZ8,"") -> 07 | G33: =IF(H33>0,aux!BA8,"") -> Produtos hortícolas | H33: =IF(aux!BB8>0,aux!BB8,0) -> 10002.41 | I33: 0.1406126521
A34: =IF(C34>0,aux!AU9,"") -> 02 | B34: =IF(C34>0,aux!AV9,"") -> Carnes e miudezas | C34: =IF(aux!AW9>0,aux!AW9,0) -> 9867.454 | D34: 0.06885647971 | F34: =IF(H34>0,aux!AZ9,"") -> 19a | G34: =IF(H34>0,aux!BA9,"") -> Preparações à base de cereais (exc. NC 19022010) (a) | H34: =IF(aux!BB9>0,aux!BB9,0) -> 7465.317 | I34: 0.1049465101
A35: =IF(C35>0,aux!AU10,"") -> 20 | B35: =IF(C35>0,aux!AV10,"") -> Preparações de produtos vegetais | C35: =IF(aux!AW10>0,aux!AW10,0) -> 7412.827 | D35: 0.0517277478 | F35: =IF(H35>0,aux!AZ10,"") -> 22 | G35: =IF(H35>0,aux!BA10,"") -> Bebidas, líquidos alcoólicos e vinagres | H35: =IF(aux!BB10>0,aux!BB10,0) -> 6467.937 | I35: 0.0909254645
A36: =IF(C36>0,aux!AU11,"") -> 19a | B36: =IF(C36>0,aux!AV11,"") -> Preparações à base de cereais (exc. NC 19022010) (a) | C36: =IF(aux!AW11>0,aux!AW11,0) -> 6736.27 | D36: 0.04700663804 | F36: =IF(H36>0,aux!AZ11,"") -> 21 | G36: =IF(H36>0,aux!BA11,"") -> Preparações alimentícias diversas | H36: =IF(aux!BB11>0,aux!BB11,0) -> 2874.537 | I36: 0.04040988834
A37: =IF(C37>0,aux!AU12,"") -> 23a | B37: =IF(C37>0,aux!AV12,"") -> Resíduos indústrias alimentares; alimentos p/ animais (exc. NC 230120) (a) | C37: =IF(aux!AW12>0,aux!AW12,0) -> 6528.257 | D37: 0.04555509411 | F37: =IF(H37>0,aux!AZ12,"") -> 20 | G37: =IF(H37>0,aux!BA12,"") -> Preparações de produtos vegetais | H37: =IF(aux!BB12>0,aux!BB12,0) -> 2850.57 | I37: 0.04007296319
A38: =IF(C38>0,aux!AU13,"") -> 18 | B38: =IF(C38>0,aux!AV13,"") -> Cacau e suas preparações | C38: =IF(aux!AW13>0,aux!AW13,0) -> 6486.968 | D38: 0.04526697367 | F38: =IF(H38>0,aux!AZ13,"") -> 14 | G38: =IF(H38>0,aux!BA13,"") -> Matérias para entrançar e outros | H38: =IF(aux!BB13>0,aux!BB13,0) -> 2722.926 | I38: 0.03827855951
A39: =IF(C39>0,aux!AU14,"") -> 09 | B39: =IF(C39>0,aux!AV14,"") -> Café, chá, mate e especiarias | C39: =IF(aux!AW14>0,aux!AW14,0) -> 6272.123 | D39: 0.04376775509 | F39: =IF(H39>0,aux!AZ14,"") -> 03 | G39: =IF(H39>0,aux!BA14,"") -> Peixes e crustáceos | H39: =IF(aux!BB14>0,aux!BB14,0) -> 2306.199 | I39: 0.03242026249
A40: =IF(C40>0,aux!AU15,"") -> 07 | B40: =IF(C40>0,aux!AV15,"") -> Produtos hortícolas | C40: =IF(aux!AW15>0,aux!AW15,0) -> 5757.002 | D40: 0.04017316842 | F40: =IF(H40>0,aux!AZ15,"") -> 16p | G40: =IF(H40>0,aux!BA15,"") -> Preparações e conservas de peixes ou crustáceos (NC 1604-05) (p) | H40: =IF(aux!BB15>0,aux!BB15,0) -> 2045.769 | I40: 0.02875916951
B41: Outros contributos para o aumento das importações | C41: =SUMIF(aux!AW16:AW51,">0") -> 25597.118 | D41: 0.178620284 | G41: Outros contributos para o aumento das exportações | H41: =SUMIF(aux!BB16:BB51,">0") -> 9117.545 | I41: 0.1281733286
B42: Outros contributos para a redução das importações | C42: =SUMIF(aux!AW6:AW41,"<0") -> 0 | D42: =IF(SUM($C$42:$C$52)<>0,C42/SUM($C$42:$C$52),0) -> 0 | G42: Outros contributos para a redução das exportações | H42: =SUMIF(aux!BB6:BB41,"<0") -> -1.856 | I42: =IF(SUM($H$42:$H$52)<>0,H42/SUM($H$42:$H$52),0) -> 0.0001500431253
A43: =IF(C43<>0,aux!AU42,"") ->  | B43: =IF(C43<0,aux!AV42,"") ->  | C43: =IF(aux!AW42<0,aux!AW42,0) -> 0 | D43: =IF(SUM($C$42:$C$52)<>0,C43/SUM($C$42:$C$52),0) -> 0 | F43: =IF(H43<>0,aux!AZ42,"") -> 25 | G43: =IF(H43<>0,aux!BA42,"") -> Sal e cloreto de sódio puro; água do mar (NC 2501) | H43: =IF(aux!BB42<0,aux!BB42,0) -> -15.676 | I43: =IF(SUM($H$42:$H$52)<>0,H43/SUM($H$42:$H$52),0) -> 0.001267282345
A44: =IF(C44<>0,aux!AU43,"") -> 50 | B44: =IF(C44<0,aux!AV43,"") -> Seda crua (NC 5001-5003) | C44: =IF(aux!AW43<0,aux!AW43,0) -> -0.149 | D44: 6.235897821e-06 | F44: =IF(H44<>0,aux!AZ43,"") -> 35 | G44: =IF(H44<>0,aux!BA43,"") -> Caseínas, albuminas, gelatinas, peptonas, dextrinas (NC 3501 a 3505) | H44: =IF(aux!BB43<0,aux!BB43,0) -> -41.335 | I44: 0.003341612383
A45: =IF(C45<>0,aux!AU44,"") -> 14 | B45: =IF(C45<0,aux!AV44,"") -> Matérias para entrançar e outros | C45: =IF(aux!AW44<0,aux!AW44,0) -> -29.023 | D45: 0.001214660822 | F45: =IF(H45<>0,aux!AZ44,"") -> 05a | G45: =IF(H45<>0,aux!BA44,"") -> Outros produtos de origem animal (exc. NC 0508, 051191) (a) | H45: =IF(aux!BB44<0,aux!BB44,0) -> -58.232 | I45: 0.004707603055
A46: =IF(C46<>0,aux!AU45,"") -> 25 | B46: =IF(C46<0,aux!AV45,"") -> Sal e cloreto de sódio puro; água do mar (NC 2501) | C46: =IF(aux!AW45<0,aux!AW45,0) -> -36.21 | D46: 0.001515448725 | F46: =IF(H46<>0,aux!AZ45,"") -> 01 | G46: =IF(H46<>0,aux!BA45,"") -> Animais vivos | H46: =IF(aux!BB45<0,aux!BB45,0) -> -281.242 | I46: 0.02273622233
A47: =IF(C47<>0,aux!AU46,"") -> 13f | B47: =IF(C47<0,aux!AV46,"") -> Gomas e resinas (NC 1301) (f) | C47: =IF(aux!AW46<0,aux!AW46,0) -> -41.939 | D47: 0.001755216904 | F47: =IF(H47<>0,aux!AZ46,"") -> 10 | G47: =IF(H47<>0,aux!BA46,"") -> Cereais | H47: =IF(aux!BB46<0,aux!BB46,0) -> -296.578 | I47: 0.02397601832
A48: =IF(C48<>0,aux!AU47,"") -> 53 | B48: =IF(C48<0,aux!AV47,"") -> Linho e cânhamo em bruto (NC 5301-5302) | C48: =IF(aux!AW47<0,aux!AW47,0) -> -250.873 | D48: 0.01049945231 | F48: =IF(H48<>0,aux!AZ47,"") -> 51 | G48: =IF(H48<>0,aux!BA47,"") -> Lã não cardada (NC 5101-5103) | H48: =IF(aux!BB47<0,aux!BB47,0) -> -956.936 | I48: 0.07736081257
A49: =IF(C49<>0,aux!AU48,"") -> 29 | B49: =IF(C49<0,aux!AV48,"") -> Manitol e sorbitol (NC 290543; 290544) | C49: =IF(aux!AW48<0,aux!AW48,0) -> -265.155 | D49: 0.01109717776 | F49: =IF(H49<>0,aux!AZ48,"") -> 04 | G49: =IF(H49<>0,aux!BA48,"") -> Leite e laticínios; ovos; mel, etc. | H49: =IF(aux!BB48<0,aux!BB48,0) -> -1026.478 | I49: 0.08298274092
A50: =IF(C50<>0,aux!AU49,"") -> 41 | B50: =IF(C50<0,aux!AV49,"") -> Couro e peles em bruto (NC 4101 a 4103) | C50: =IF(aux!AW49<0,aux!AW49,0) -> -308.249 | D50: 0.01290073334 | F50: =IF(H50<>0,aux!AZ49,"") -> 02 | G50: =IF(H50<>0,aux!BA49,"") -> Carnes e miudezas | H50: =IF(aux!BB49<0,aux!BB49,0) -> -1419.722 | I50: 0.1147734515
A51: =IF(C51<>0,aux!AU50,"") -> 21 | B51: =IF(C51<0,aux!AV50,"") -> Preparações alimentícias diversas | C51: =IF(aux!AW50<0,aux!AW50,0) -> -8729.14 | D51: 0.3653290275 | F51: =IF(H51<>0,aux!AZ50,"") -> 15 | G51: =IF(H51<>0,aux!BA50,"") -> Gorduras e óleos animais ou vegetais | H51: =IF(aux!BB50<0,aux!BB50,0) -> -3875.064 | I51: 0.3132687032
A52: =IF(C52<>0,aux!AU51,"") -> 24 | B52: =IF(C52<0,aux!AV51,"") -> Tabaco | C52: =IF(aux!AW51<0,aux!AW51,0) -> -14233.175 | D52: 0.5956820467 | F52: =IF(H52<>0,aux!AZ51,"") -> 08 | G52: =IF(H52<>0,aux!BA51,"") -> Frutas | H52: =IF(aux!BB51<0,aux!BB51,0) -> -4396.658 | I52: 0.3554355103
A53: TOTAL | C53: =SUM(C31:C52) -> 119410.741 | F53: TOTAL | H53: =SUM(H31:H52) -> 58764.718

Sheet 5.2A
A1: Trocas comerciais Portugal-Bélgica 2018-2022 em milhares de euros (NC 4 dígitos) | G1: Produtos agrícolas e agroalimentares, do mar e da floresta
A2: Cód. NC | B2: Descritivo | C2: Importações | K2: Exportações | S2: Saldo quinquénio (exp-imp) | T2: Evolução das importações | U2: =+"Variação das Importações " & INDEX(K3:N3,1,aux!AL1) & "-"& '5.2'!O3 &"" -> Variação das Importações 2018-2022 | Z2: Evolução das exportações | AA2: ="Variação das Exportações " & INDEX(K3:N3,1,aux!AL1) & "-"& '5.2'!O3 &"" -> Variação das Exportações 2018-2022
C3: 2018 | D3: 2019 | E3: 2020 | F3: 2021 | G3: 2022 | H3: média quinquénio | I3: % Subtot | J3: % Total | K3: 2018 | L3: 2019 | M3: 2020 | N3: 2021 | O3: 2022 | P3: média quinquénio | Q3: % Subtot | R3: % Total | U3: variação total em valor | V3: % no subtotal de variação | W3: % no total de variação | X3: taxa de variação média anual | Y3: taxa de variação total | AA3: variação total em valor | AB3: % no subtotal de variação | AC3: % no total de variação | AD3: taxa de variação média anual | AE3: taxa de variação total | AX3: filtro
A4: 0101 | B4: Equídeos vivos | C4: 1142.514 | D4: 0 | E4: 30.06 | F4: 0 | G4: 405.81 | H4: 315.6768 | I4: 0.001232825752 | J4: 0.001106196149 | K4: 447.75 | L4: 99.5 | M4: 84.575 | N4: 0 | O4: 0 | P4: 126.365 | Q4: 0.0007588662357 | R4: 0.0005284261204 | S4: -189.3118 | U4: =G4-INDEX($C4:$G4,1,aux!$AL$1) -> -736.704 | V4: =IF($U$237<>0,U4/$U$237, "n.d.") -> -0.006629422717 | W4: =IF($U$322<>0,U4/$U$322, "n.d.") -> -0.006169495255 | X4: =+IF(INDEX($C4:$G4,1,aux!$AL$1)>0,(G4/INDEX($C4:$G4,1,aux!$AL$1))^(1/($G$3-INDEX($C$3:$G$3,1,aux!$AL$1)))-1,"n.d.") -> -0.2280035494 | Y4: =IF(INDEX($C4:$G4,1,aux!$AL$1)>0,(G4-INDEX($C4:$G4,1,aux!$AL$1))/INDEX($C4:$G4,1,aux!$AL$1),"n.d.") -> -0.6448096041 | AA4: =O4-INDEX($K4:$O4,1,aux!$AL$1) -> -447.75 | AB4: =IF($AA$237<>0,AA4/$AA$237, "n.d.") -> -0.01721257338 | AC4: =IF($AA$322<>0,AA4/$AA$322, "n.d.") -> -0.007619367798 | AD4: =+IF(INDEX($K4:$O4,1,aux!$AL$1)>0,(O4/INDEX($K4:$O4,1,aux!$AL$1))^(1/($O$3-INDEX($K$3:$O$3,1,aux!$AL$1)))-1,"n.d.") -> -1 | AE4: =IF(INDEX($K4:$O4,1,aux!$AL$1)>0,(O4-INDEX($K4:$O4,1,aux!$AL$1))/INDEX($K4:$O4,1,aux!$AL$1),"n.d.") -> -1 | AX4: =+LEFT(A4,2) -> 01
A5: 0102 | B5: Bovinos vivos | C5: 0 | D5: 0 | E5: 0 | F5: 0 | G5: 0 | H5: 0 | I5: 0 | J5: 0 | K5: 0 | L5: 254.32 | M5: 0 | N5: 0 | O5: 0 | P5: 50.864 | Q5: 0.000305456196 | R5: 0.0002127002428 | S5: 50.864 | U5: =G5-INDEX($C5:$G5,1,aux!$AL$1) -> 0 | V5: 0 | W5: 0 | X5: =+IF(INDEX($C5:$G5,1,aux!$AL$1)>0,(G5/INDEX($C5:$G5,1,aux!$AL$1))^(1/($G$3-INDEX($C$3:$G$3,1,aux!$AL$1)))-1,"n.d.") -> n.d. | Y5: =IF(INDEX($C5:$G5,1,aux!$AL$1)>0,(G5-INDEX($C5:$G5,1,aux!$AL$1))/INDEX($C5:$G5,1,aux!$AL$1),"n.d.") -> n.d. | AA5: =O5-INDEX($K5:$O5,1,aux!$AL$1) -> 0 | AB5: 0 | AC5: 0 | AD5: =+IF(INDEX($K5:$O5,1,aux!$AL$1)>0,(O5/INDEX($K5:$O5,1,aux!$AL$1))^(1/($O$3-INDEX($K$3:$O$3,1,aux!$AL$1)))-1,"n.d.") -> n.d. | AE5: =IF(INDEX($K5:$O5,1,aux!$AL$1)>0,(O5-INDEX($K5:$O5,1,aux!$AL$1))/INDEX($K5:$O5,1,aux!$AL$1),"n.d.") -> n.d. | AX5: 01
A6: 0103 | B6: Suínos vivos | C6: 472.149 | D6: 338.488 | E6: 674.977 | F6: 5009.955 | G6: 2430.955 | H6: 1785.3048 | I6: 0.006972225179 | J6: 0.006256073597 | K6: 0 | L6: 0 | M6: 0 | N6: 0 | O6: 0 | P6: 0 | Q6: 0 | R6: 0 | S6: -1785.3048 | U6: =G6-INDEX($C6:$G6,1,aux!$AL$1) -> 1958.806 | V6: 0.01762682569 | W6: 0.01640393472 | X6: =+IF(INDEX($C6:$G6,1,aux!$AL$1)>0,(G6/INDEX($C6:$G6,1,aux!$AL$1))^(1/($G$3-INDEX($C$3:$G$3,1,aux!$AL$1)))-1,"n.d.") -> 0.5063450385 | Y6: =IF(INDEX($C6:$G6,1,aux!$AL$1)>0,(G6-INDEX($C6:$G6,1,aux!$AL$1))/INDEX($C6:$G6,1,aux!$AL$1),"n.d.") -> 4.148703058 | AA6: =O6-INDEX($K6:$O6,1,aux!$AL$1) -> 0 | AB6: 0 | AC6: 0 | AD6: =+IF(INDEX($K6:$O6,1,aux!$AL$1)>0,(O6/INDEX($K6:$O6,1,aux!$AL$1))^(1/($O$3-INDEX($K$3:$O$3,1,aux!$AL$1)))-1,"n.d.") -> n.d. | AE6: =IF(INDEX($K6:$O6,1,aux!$AL$1)>0,(O6-INDEX($K6:$O6,1,aux!$AL$1))/INDEX($K6:$O6,1,aux!$AL$1),"n.d.") -> n.d. | AX6: 01
A7: 0104 | B7: Ovinos ou caprinos vivos | C7: 0 | D7: 0 | E7: 0 | F7: 10.608 | G7: 10.048 | H7: 4.1312 | I7: 1.613374739e-05 | J7: 1.447657075e-05 | K7: 0 | L7: 0 | M7: 0 | N7: 0 | O7: 0 | P7: 0 | Q7: 0 | R7: 0 | S7: -4.1312 | U7: =G7-INDEX($C7:$G7,1,aux!$AL$1) -> 10.048 | V7: 9.041954362e-05 | W7: 8.414653419e-05 | X7: =+IF(INDEX($C7:$G7,1,aux!$AL$1)>0,(G7/INDEX($C7:$G7,1,aux!$AL$1))^(1/($G$3-INDEX($C$3:$G$3,1,aux!$AL$1)))-1,"n.d.") -> n.d. | Y7: =IF(INDEX($C7:$G7,1,aux!$AL$1)>0,(G7-INDEX($C7:$G7,1,aux!$AL$1))/INDEX($C7:$G7,1,aux!$AL$1),"n.d.") -> n.d. | AA7: =O7-INDEX($K7:$O7,1,aux!$AL$1) -> 0 | AB7: 0 | AC7: 0 | AD7: =+IF(INDEX($K7:$O7,1,aux!$AL$1)>0,(O7/INDEX($K7:$O7,1,aux!$AL$1))^(1/($O$3-INDEX($K$3:$O$3,1,aux!$AL$1)))-1,"n.d.") -> n.d. | AE7: =IF(INDEX($K7:$O7,1,aux!$AL$1)>0,(O7-INDEX($K7:$O7,1,aux!$AL$1))/INDEX($K7:$O7,1,aux!$AL$1),"n.d.") -> n.d. | AX7: 01
A8: 0105 | B8: Aves de capoeira vivas | C8: 0 | D8: 0 | E8: 0 | F8: 0 | G8: 0 | H8: 0 | I8: 0 | J8: 0 | K8: 0 | L8: 0 | M8: 0 | N8: 0 | O8: 0 | P8: 0 | Q8: 0 | R8: 0 | S8: 0 | U8: =G8-INDEX($C8:$G8,1,aux!$AL$1) -> 0 | V8: 0 | W8: 0 | X8: =+IF(INDEX($C8:$G8,1,aux!$AL$1)>0,(G8/INDEX($C8:$G8,1,aux!$AL$1))^(1/($G$3-INDEX($C$3:$G$3,1,aux!$AL$1)))-1,"n.d.") -> n.d. | Y8: =IF(INDEX($C8:$G8,1,aux!$AL$1)>0,(G8-INDEX($C8:$G8,1,aux!$AL$1))/INDEX($C8:$G8,1,aux!$AL$1),"n.d.") -> n.d. | AA8: =O8-INDEX($K8:$O8,1,aux!$AL$1) -> 0 | AB8: 0 | AC8: 0 | AD8: =+IF(INDEX($K8:$O8,1,aux!$AL$1)>0,(O8/INDEX($K8:$O8,1,aux!$AL$1))^(1/($O$3-INDEX($K$3:$O$3,1,aux!$AL$1)))-1,"n.d.") -> n.d. | AE8: =IF(INDEX($K8:$O8,1,aux!$AL$1)>0,(O8-INDEX($K8:$O8,1,aux!$AL$1))/INDEX($K8:$O8,1,aux!$AL$1),"n.d.") -> n.d. | AX8: 01
A9: 0106 | B9: Outros animais vivos | C9: 2.756 | D9: 160.333 | E9: 142.031 | F9: 4606.092 | G9: 4273.687 | H9: 1836.9798 | I9: 0.007174033708 | J9: 0.006437153379 | K9: 0.249 | L9: 0 | M9: 0 | N9: 55.82 | O9: 166.757 | P9: 44.5652 | Q9: 0.0002676296883 | R9: 0.0001863602718 | S9: -1792.4146 | U9: =G9-INDEX($C9:$G9,1,aux!$AL$1) -> 4270.931 | V9: 0.03843308438 | W9: 0.03576672387 | X9: =+IF(INDEX($C9:$G9,1,aux!$AL$1)>0,(G9/INDEX($C9:$G9,1,aux!$AL$1))^(1/($G$3-INDEX($C$3:$G$3,1,aux!$AL$1)))-1,"n.d.") -> 5.275247721 | Y9: =IF(INDEX($C9:$G9,1,aux!$AL$1)>0,(G9-INDEX($C9:$G9,1,aux!$AL$1))/INDEX($C9:$G9,1,aux!$AL$1),"n.d.") -> 1549.684688 | AA9: =O9-INDEX($K9:$O9,1,aux!$AL$1) -> 166.508 | AB9: 0.006400962966 | AC9: 0.002833468885 | AD9: =+IF(INDEX($K9:$O9,1,aux!$AL$1)>0,(O9/INDEX($K9:$O9,1,aux!$AL$1))^(1/($O$3-INDEX($K$3:$O$3,1,aux!$AL$1)))-1,"n.d.") -> 4.087110621 | AE9: =IF(INDEX($K9:$O9,1,aux!$AL$1)>0,(O9-INDEX($K9:$O9,1,aux!$AL$1))/INDEX($K9:$O9,1,aux!$AL$1),"n.d.") -> 668.7068273 | AX9: 01
A10: 01SS | B10: Animais vivos | C10: 0 | D10: 0 | E10: 0 | F10: 0 | G10: 0 | H10: 0 | I10: 0 | J10: 0 | K10: 0 | L10: 0 | M10: 0 | N10: 0 | O10: 0 | P10: 0 | Q10: 0 | R10: 0 | S10: 0 | U10: =G10-INDEX($C10:$G10,1,aux!$AL$1) -> 0 | V10: 0 | W10: 0 | X10: =+IF(INDEX($C10:$G10,1,aux!$AL$1)>0,(G10/INDEX($C10:$G10,1,aux!$AL$1))^(1/($G$3-INDEX($C$3:$G$3,1,aux!$AL$1)))-1,"n.d.") -> n.d. | Y10: =IF(INDEX($C10:$G10,1,aux!$AL$1)>0,(G10-INDEX($C10:$G10,1,aux!$AL$1))/INDEX($C10:$G10,1,aux!$AL$1),"n.d.") -> n.d. | AA10: =O10-INDEX($K10:$O10,1,aux!$AL$1) -> 0 | AB10: 0 | AC10: 0 | AD10: =+IF(INDEX($K10:$O10,1,aux!$AL$1)>0,(O10/INDEX($K10:$O10,1,aux!$AL$1))^(1/($O$3-INDEX($K$3:$O$3,1,aux!$AL$1)))-1,"n.d.") -> n.d. | AE10: =IF(INDEX($K10:$O10,1,aux!$AL$1)>0,(O10-INDEX($K10:$O10,1,aux!$AL$1))/INDEX($K10:$O10,1,aux!$AL$1),"n.d.") -> n.d. | AX10: 01
A11: 0201 | B11: Carnes de bovino, frescas ou refrigeradas | C11: 9269.851 | D11: 10118.983 | E11: 10591.799 | F11: 13262.423 | G11: 17310.869 | H11: 12110.785 | I11: 0.04729675298 | J11: 0.04243867057 | K11: 991.019 | L11: 1444.291 | M11: 815.152 | N11: 1511.195 | O11: 1784.496 | P11: 1309.2306 | Q11: 0.007862389879 | R11: 0.005474867619 | S11: -10801.5544 | U11: =G11-INDEX($C11:$G11,1,aux!$AL$1) -> 8041.018 | V11: 0.07235919365 | W11: 0.06733915168 | X11: =+IF(INDEX($C11:$G11,1,aux!$AL$1)>0,(G11/INDEX($C11:$G11,1,aux!$AL$1))^(1/($G$3-INDEX($C$3:$G$3,1,aux!$AL$1)))-1,"n.d.") -> 0.1689919731 | Y11: =IF(INDEX($C11:$G11,1,aux!$AL$1)>0,(G11-INDEX($C11:$G11,1,aux!$AL$1))/INDEX($C11:$G11,1,aux!$AL$1),"n.d.") -> 0.8674376751 | AA11: =O11-INDEX($K11:$O11,1,aux!$AL$1) -> 793.477 | AB11: 0.03050314034 | AC11: 0.01350260883 | AD11: =+IF(INDEX($K11:$O11,1,aux!$AL$1)>0,(O11/INDEX($K11:$O11,1,aux!$AL$1))^(1/($O$3-INDEX($K$3:$O$3,1,aux!$AL$1)))-1,"n.d.") -> 0.1583996015 | AE11: =IF(INDEX($K11:$O11,1,aux!$AL$1)>0,(O11-INDEX($K11:$O11,1,aux!$AL$1))/INDEX($K11:$O11,1,aux!$AL$1),"n.d.") -> 0.8006677975 | AX11: 02
A12: 0202 | B12: Carnes de bovino, congeladas | C12: 1467.029 | D12: 1934.467 | E12: 1012.773 | F12: 1298.522 | G12: 1787.328 | H12: 1500.0238 | I12: 0.00585810541 | J12: 0.005256390556 | K12: 31.822 | L12: 30.725 | M12: 38.021 | N12: 64.632 | O12: 34.609 | P12: 39.9618 | Q12: 0.0002399846535 | R12: 0.00016711003 | S12: -1460.062 | U12: =G12-INDEX($C12:$G12,1,aux!$AL$1) -> 320.299 | V12: 0.002882293929 | W12: 0.002682329892 | X12: =+IF(INDEX($C12:$G12,1,aux!$AL$1)>0,(G12/INDEX($C12:$G12,1,aux!$AL$1))^(1/($G$3-INDEX($C$3:$G$3,1,aux!$AL$1)))-1,"n.d.") -> 0.05060966079 | Y12: =IF(INDEX($C12:$G12,1,aux!$AL$1)>0,(G12-INDEX($C12:$G12,1,aux!$AL$1))/INDEX($C12:$G12,1,aux!$AL$1),"n.d.") -> 0.218331744 | AA12: =O12-INDEX($K12:$O12,1,aux!$AL$1) -> 2.787 | AB12: 0.000107138899 | AC12: 4.742641665e-05 | AD12: =+IF(INDEX($K12:$O12,1,aux!$AL$1)>0,(O12/INDEX($K12:$O12,1,aux!$AL$1))^(1/($O$3-INDEX($K$3:$O$3,1,aux!$AL$1)))-1,"n.d.") -> 0.02121079001 | AE12: =IF(INDEX($K12:$O12,1,aux!$AL$1)>0,(O12-INDEX($K12:$O12,1,aux!$AL$1))/INDEX($K12:$O12,1,aux!$AL$1),"n.d.") -> 0.08758091886 | AX12: 02
A13: 0203 | B13: Carnes de suíno | C13: 978.992 | D13: 710.975 | E13: 491.59 | F13: 1436.843 | G13: 1575.903 | H13: 1038.8606 | I13: 0.004057105561 | J13: 0.003640380271 | K13: 2088.161 | L13: 2640.767 | M13: 827.047 | N13: 131.586 | O13: 115.763 | P13: 1160.6648 | Q13: 0.006970200037 | R13: 0.004853603429 | S13: 121.8042 | U13: =G13-INDEX($C13:$G13,1,aux!$AL$1) -> 596.911 | V13: 0.005371459017 | W13: 0.004998804923 | X13: =+IF(INDEX($C13:$G13,1,aux!$AL$1)>0,(G13/INDEX($C13:$G13,1,aux!$AL$1))^(1/($G$3-INDEX($C$3:$G$3,1,aux!$AL$1)))-1,"n.d.") -> 0.1263868842 | Y13: =IF(INDEX($C13:$G13,1,aux!$AL$1)>0,(G13-INDEX($C13:$G13,1,aux!$AL$1))/INDEX($C13:$G13,1,aux!$AL$1),"n.d.") -> 0.6097199977 | AA13: =O13-INDEX($K13:$O13,1,aux!$AL$1) -> -1972.398 | AB13: -0.07582366344 | AC13: -0.03356432341 | AD13: =+IF(INDEX($K13:$O13,1,aux!$AL$1)>0,(O13/INDEX($K13:$O13,1,aux!$AL$1))^(1/($O$3-INDEX($K$3:$O$3,1,aux!$AL$1)))-1,"n.d.") -> -0.5147657495 | AE13: =IF(INDEX($K13:$O13,1,aux!$AL$1)>0,(O13-INDEX($K13:$O13,1,aux!$AL$1))/INDEX($K13:$O13,1,aux!$AL$1),"n.d.") -> -0.9445622248 | AX13: 02
A14: 0204 | B14: Carnes de ovino ou caprino | C14: 251.097 | D14: 431.106 | E14: 372.383 | F14: 506.768 | G14: 342.851 | H14: 380.841 | I14: 0.001487314216 | J14: 0.001334544849 | K14: 12.172 | L14: 8.285 | M14: 14.604 | N14: 2.731 | O14: 15.774 | P14: 10.7132 | Q14: 6.433653113e-05 | R14: 4.47998632e-05 | S14: -370.1278 | U14: =G14-INDEX($C14:$G14,1,aux!$AL$1) -> 91.754 | V14: 0.0008256722537 | W14: 0.0007683898386 | X14: =+IF(INDEX($C14:$G14,1,aux!$AL$1)>0,(G14/INDEX($C14:$G14,1,aux!$AL$1))^(1/($G$3-INDEX($C$3:$G$3,1,aux!$AL$1)))-1,"n.d.") -> 0.08097580672 | Y14: =IF(INDEX($C14:$G14,1,aux!$AL$1)>0,(G14-INDEX($C14:$G14,1,aux!$AL$1))/INDEX($C14:$G14,1,aux!$AL$1),"n.d.") -> 0.3654125696 | AA14: =O14-INDEX($K14:$O14,1,aux!$AL$1) -> 3.602 | AB14: 0.0001384694345 | AC14: 6.129528266e-05 | AD14: =+IF(INDEX($K14:$O14,1,aux!$AL$1)>0,(O14/INDEX($K14:$O14,1,aux!$AL$1))^(1/($O$3-INDEX($K$3:$O$3,1,aux!$AL$1)))-1,"n.d.") -> 0.06695222445 | AE14: =IF(INDEX($K14:$O14,1,aux!$AL$1)>0,(O14-INDEX($K14:$O14,1,aux!$AL$1))/INDEX($K14:$O14,1,aux!$AL$1),"n.d.") -> 0.2959250739 | AX14: 02
A15: 0205 | B15: Carnes de equídeo | C15: 0 | D15: 0 | E15: 0 | F15: 0 | G15: 0 | H15: 0 | I15: 0 | J15: 0 | K15: 0 | L15: 0 | M15: 0 | N15: 0 | O15: 0 | P15: 0 | Q15: 0 | R15: 0 | S15: 0 | U15: =G15-INDEX($C15:$G15,1,aux!$AL$1) -> 0 | V15: 0 | W15: 0 | X15: =+IF(INDEX($C15:$G15,1,aux!$AL$1)>0,(G15/INDEX($C15:$G15,1,aux!$AL$1))^(1/($G$3-INDEX($C$3:$G$3,1,aux!$AL$1)))-1,"n.d.") -> n.d. | Y15: =IF(INDEX($C15:$G15,1,aux!$AL$1)>0,(G15-INDEX($C15:$G15,1,aux!$AL$1))/INDEX($C15:$G15,1,aux!$AL$1),"n.d.") -> n.d. | AA15: =O15-INDEX($K15:$O15,1,aux!$AL$1) -> 0 | AB15: 0 | AC15: 0 | AD15: =+IF(INDEX($K15:$O15,1,aux!$AL$1)>0,(O15/INDEX($K15:$O15,1,aux!$AL$1))^(1/($O$3-INDEX($K$3:$O$3,1,aux!$AL$1)))-1,"n.d.") -> n.d. | AE15: =IF(INDEX($K15:$O15,1,aux!$AL$1)>0,(O15-INDEX($K15:$O15,1,aux!$AL$1))/INDEX($K15:$O15,1,aux!$AL$1),"n.d.") -> n.d. | AX15: 02
A16: 0206 | B16: Miudezas de bovino, suíno, ovino, caprino,equídeo | C16: 139.447 | D16: 116.987 | E16: 38.972 | F16: 157.172 | G16: 300.219 | H16: 150.5594 | I16: 0.0005879858944 | J16: 0.0005275909677 | K16: 0.399 | L16: 0.403 | M16: 2.794 | N16: 3.503 | O16: 16.047 | P16: 4.6292 | Q16: 2.779997292e-05 | R16: 1.935813078e-05 | S16: -145.9302 | U16: =G16-INDEX($C16:$G16,1,aux!$AL$1) -> 160.772 | V16: 0.001446748693 | W16: 0.001346378045 | X16: =+IF(INDEX($C16:$G16,1,aux!$AL$1)>0,(G16/INDEX($C16:$G16,1,aux!$AL$1))^(1/($G$3-INDEX($C$3:$G$3,1,aux!$AL$1)))-1,"n.d.") -> 0.2113154307 | Y16: =IF(INDEX($C16:$G16,1,aux!$AL$1)>0,(G16-INDEX($C16:$G16,1,aux!$AL$1))/INDEX($C16:$G16,1,aux!$AL$1),"n.d.") -> 1.152925484 | AA16: =O16-INDEX($K16:$O16,1,aux!$AL$1) -> 15.648 | AB16: 0.000601546283 | AC16: 0.0002662822274 | AD16: =+IF(INDEX($K16:$O16,1,aux!$AL$1)>0,(O16/INDEX($K16:$O16,1,aux!$AL$1))^(1/($O$3-INDEX($K$3:$O$3,1,aux!$AL$1)))-1,"n.d.") -> 1.518287091 | AE16: =IF(INDEX($K16:$O16,1,aux!$AL$1)>0,(O16-INDEX($K16:$O16,1,aux!$AL$1))/INDEX($K16:$O16,1,aux!$AL$1),"n.d.") -> 39.21804511 | AX16: 02
A17: 0207 | B17: Carnes e miudezas de aves de capoeira | C17: 1169.721 | D17: 1447.272 | E17: 864.705 | F17: 980.849 | G17: 1847.628 | H17: 1262.035 | I17: 0.004928677839 | J17: 0.004422429068 | K17: 555.626 | L17: 324.443 | M17: 226.868 | N17: 270.858 | O17: 220.586 | P17: 319.6762 | Q17: 0.001919767931 | R17: 0.001336804132 | S17: -942.3588 | U17: =G17-INDEX($C17:$G17,1,aux!$AL$1) -> 677.907 | V17: 0.006100322607 | W17: 0.005677102364 | X17: =+IF(INDEX($C17:$G17,1,aux!$AL$1)>0,(G17/INDEX($C17:$G17,1,aux!$AL$1))^(1/($G$3-INDEX($C$3:$G$3,1,aux!$AL$1)))-1,"n.d.") -> 0.1210708548 | Y17: =IF(INDEX($C17:$G17,1,aux!$AL$1)>0,(G17-INDEX($C17:$G17,1,aux!$AL$1))/INDEX($C17:$G17,1,aux!$AL$1),"n.d.") -> 0.5795458917 | AA17: =O17-INDEX($K17:$O17,1,aux!$AL$1) -> -335.04 | AB17: -0.0128797333 | AC17: -0.005701380206 | AD17: =+IF(INDEX($K17:$O17,1,aux!$AL$1)>0,(O17/INDEX($K17:$O17,1,aux!$AL$1))^(1/($O$3-INDEX($K$3:$O$3,1,aux!$AL$1)))-1,"n.d.") -> -0.2062223868 | AE17: =IF(INDEX($K17:$O17,1,aux!$AL$1)>0,(O17-INDEX($K17:$O17,1,aux!$AL$1))/INDEX($K17:$O17,1,aux!$AL$1),"n.d.") -> -0.6029955402 | AX17: 02
A18: 0208 | B18: Outras carnes e miudezas | C18: 1.915 | D18: 0 | E18: 11.072 | F18: 35.03 | G18: 17.406 | H18: 13.0846 | I18: 5.109983325e-05 | J18: 4.585111774e-05 | K18: 0.228 | L18: 1.126 | M18: 5.851 | N18: 14.665 | O18: 0.344 | P18: 4.4428 | Q18: 2.668057541e-05 | R18: 1.857865364e-05 | S18: -8.6418 | U18: =G18-INDEX($C18:$G18,1,aux!$AL$1) -> 15.491 | V18: 0.000139399796 | W18: 0.0001297286984 | X18: =+IF(INDEX($C18:$G18,1,aux!$AL$1)>0,(G18/INDEX($C18:$G18,1,aux!$AL$1))^(1/($G$3-INDEX($C$3:$G$3,1,aux!$AL$1)))-1,"n.d.") -> 0.7363311244 | Y18: =IF(INDEX($C18:$G18,1,aux!$AL$1)>0,(G18-INDEX($C18:$G18,1,aux!$AL$1))/INDEX($C18:$G18,1,aux!$AL$1),"n.d.") -> 8.089295039 | AA18: =O18-INDEX($K18:$O18,1,aux!$AL$1) -> 0.116 | AB18: 4.459315493e-06 | AC18: 1.973973567e-06 | AD18: =+IF(INDEX($K18:$O18,1,aux!$AL$1)>0,(O18/INDEX($K18:$O18,1,aux!$AL$1))^(1/($O$3-INDEX($K$3:$O$3,1,aux!$AL$1)))-1,"n.d.") -> 0.1082963396 | AE18: =IF(INDEX($K18:$O18,1,aux!$AL$1)>0,(O18-INDEX($K18:$O18,1,aux!$AL$1))/INDEX($K18:$O18,1,aux!$AL$1),"n.d.") -> 0.5087719298 | AX18: 02
A19: 0209 | B19: Toucinho, gorduras de porco e de aves | C19: 2.336 | D19: 1.227 | E19: 8.58 | F19: 52.31 | G19: 105.155 | H19: 33.9216 | I19: 0.000132475437 | J19: 0.0001188682325 | K19: 7.079 | L19: 9.203 | M19: 15.405 | N19: 12.411 | O19: 9.416 | P19: 10.7028 | Q19: 6.427407548e-05 | R19: 4.475637306e-05 | S19: -23.2188 | U19: =G19-INDEX($C19:$G19,1,aux!$AL$1) -> 102.819 | V19: 0.0009252435366 | W19: 0.0008610531945 | X19: =+IF(INDEX($C19:$G19,1,aux!$AL$1)>0,(G19/INDEX($C19:$G19,1,aux!$AL$1))^(1/($G$3-INDEX($C$3:$G$3,1,aux!$AL$1)))-1,"n.d.") -> 1.590235626 | Y19: =IF(INDEX($C19:$G19,1,aux!$AL$1)>0,(G19-INDEX($C19:$G19,1,aux!$AL$1))/INDEX($C19:$G19,1,aux!$AL$1),"n.d.") -> 44.01498288 | AA19: =O19-INDEX($K19:$O19,1,aux!$AL$1) -> 2.337 | AB19: 8.983983023e-05 | AC19: 3.976876057e-05 | AD19: =+IF(INDEX($K19:$O19,1,aux!$AL$1)>0,(O19/INDEX($K19:$O19,1,aux!$AL$1))^(1/($O$3-INDEX($K$3:$O$3,1,aux!$AL$1)))-1,"n.d.") -> 0.0739242134 | AE19: =IF(INDEX($K19:$O19,1,aux!$AL$1)>0,(O19-INDEX($K19:$O19,1,aux!$AL$1))/INDEX($K19:$O19,1,aux!$AL$1),"n.d.") -> 0.3301313745 | AX19: 02
A20: 0210 | B20: Carnes e miudezas processadas; farinhas de carnes | C20: 389.781 | D20: 458.077 | E20: 189.335 | F20: 161.722 | G20: 250.264 | H20: 289.8358 | I20: 0.001131907819 | J20: 0.001015643993 | K20: 450.164 | L20: 309.46 | M20: 559.057 | N20: 371.495 | O20: 519.913 | P20: 442.0178 | Q20: 0.002654472235 | R20: 0.001848405422 | S20: 152.182 | U20: =G20-INDEX($C20:$G20,1,aux!$AL$1) -> -139.517 | V20: -0.001255480043 | W20: -0.001168378982 | X20: =+IF(INDEX($C20:$G20,1,aux!$AL$1)>0,(G20/INDEX($C20:$G20,1,aux!$AL$1))^(1/($G$3-INDEX($C$3:$G$3,1,aux!$AL$1)))-1,"n.d.") -> -0.1048528587 | Y20: =IF(INDEX($C20:$G20,1,aux!$AL$1)>0,(G20-INDEX($C20:$G20,1,aux!$AL$1))/INDEX($C20:$G20,1,aux!$AL$1),"n.d.") -> -0.3579368928 | AA20: =O20-INDEX($K20:$O20,1,aux!$AL$1) -> 69.749 | AB20: 0.00268131721 | AC20: 0.001186919675 | AD20: =+IF(INDEX($K20:$O20,1,aux!$AL$1)>0,(O20/INDEX($K20:$O20,1,aux!$AL$1))^(1/($O$3-INDEX($K$3:$O$3,1,aux!$AL$1)))-1,"n.d.") -> 0.03666868272 | AE20: =IF(INDEX($K20:$O20,1,aux!$AL$1)>0,(O20-INDEX($K20:$O20,1,aux!$AL$1))/INDEX($K20:$O20,1,aux!$AL$1),"n.d.") -> 0.1549413103 | AX20: 02
A21: 02SS | B21: Carnes e miudezas, comestíveis | C21: 0 | D21: 0 | E21: 0 | F21: 0 | G21: 0 | H21: 0 | I21: 0 | J21: 0 | K21: 0 | L21: 0 | M21: 0 | N21: 0 | O21: 0 | P21: 0 | Q21: 0 | R21: 0 | S21: 0 | U21: =G21-INDEX($C21:$G21,1,aux!$AL$1) -> 0 | V21: 0 | W21: 0 | X21: =+IF(INDEX($C21:$G21,1,aux!$AL$1)>0,(G21/INDEX($C21:$G21,1,aux!$AL$1))^(1/($G$3-INDEX($C$3:$G$3,1,aux!$AL$1)))-1,"n.d.") -> n.d. | Y21: =IF(INDEX($C21:$G21,1,aux!$AL$1)>0,(G21-INDEX($C21:$G21,1,aux!$AL$1))/INDEX($C21:$G21,1,aux!$AL$1),"n.d.") -> n.d. | AA21: =O21-INDEX($K21:$O21,1,aux!$AL$1) -> 0 | AB21: 0 | AC21: 0 | AD21: =+IF(INDEX($K21:$O21,1,aux!$AL$1)>0,(O21/INDEX($K21:$O21,1,aux!$AL$1))^(1/($O$3-INDEX($K$3:$O$3,1,aux!$AL$1)))-1,"n.d.") -> n.d. | AE21: =IF(INDEX($K21:$O21,1,aux!$AL$1)>0,(O21-INDEX($K21:$O21,1,aux!$AL$1))/INDEX($K21:$O21,1,aux!$AL$1),"n.d.") -> n.d. | AX21: 02
A22: 0401 | B22: Leite e nata, não concentrados | C22: 43.914 | D22: 125.657 | E22: 221.275 | F22: 199.416 | G22: 179.246 | H22: 153.9016 | I22: 0.0006010383272 | J22: 0.0005393027209 | K22: 32.746 | L22: 35.786 | M22: 36.038 | N22: 50.848 | O22: 107.607 | P22: 52.605 | Q22: 0.0003159115129 | R22: 0.0002199806597 | S22: -101.2966 | U22: =G22-INDEX($C22:$G22,1,aux!$AL$1) -> 135.332 | V22: 0.001217820231 | W22: 0.001133331883 | X22: =+IF(INDEX($C22:$G22,1,aux!$AL$1)>0,(G22/INDEX($C22:$G22,1,aux!$AL$1))^(1/($G$3-INDEX($C$3:$G$3,1,aux!$AL$1)))-1,"n.d.") -> 0.4213846428 | Y22: =IF(INDEX($C22:$G22,1,aux!$AL$1)>0,(G22-INDEX($C22:$G22,1,aux!$AL$1))/INDEX($C22:$G22,1,aux!$AL$1),"n.d.") -> 3.081750695 | AA22: =O22-INDEX($K22:$O22,1,aux!$AL$1) -> 74.861 | AB22: 0.00287783463 | AC22: 0.001273910648 | AD22: =+IF(INDEX($K22:$O22,1,aux!$AL$1)>0,(O22/INDEX($K22:$O22,1,aux!$AL$1))^(1/($O$3-INDEX($K$3:$O$3,1,aux!$AL$1)))-1,"n.d.") -> 0.3463890365 | AE22: =IF(INDEX($K22:$O22,1,aux!$AL$1)>0,(O22-INDEX($K22:$O22,1,aux!$AL$1))/INDEX($K22:$O22,1,aux!$AL$1),"n.d.") -> 2.286111281 | AX22: 04
A23: 0402 | B23: Leite e nata, concentrados | C23: 492.738 | D23: 482.947 | E23: 309.239 | F23: 985.781 | G23: 639.889 | H23: 582.1188 | I23: 0.00227337279 | J23: 0.002039863476 | K23: 987.905 | L23: 657.253 | M23: 2263.79 | N23: 1589.239 | O23: 2039.46 | P23: 1507.5294 | Q23: 0.009053243865 | R23: 0.006304102498 | S23: 925.4106 | U23: =G23-INDEX($C23:$G23,1,aux!$AL$1) -> 147.151 | V23: 0.001324176579 | W23: 0.001232309579 | X23: =+IF(INDEX($C23:$G23,1,aux!$AL$1)>0,(G23/INDEX($C23:$G23,1,aux!$AL$1))^(1/($G$3-INDEX($C$3:$G$3,1,aux!$AL$1)))-1,"n.d.") -> 0.06751047936 | Y23: =IF(INDEX($C23:$G23,1,aux!$AL$1)>0,(G23-INDEX($C23:$G23,1,aux!$AL$1))/INDEX($C23:$G23,1,aux!$AL$1),"n.d.") -> 0.2986394392 | AA23: =O23-INDEX($K23:$O23,1,aux!$AL$1) -> 1051.555 | AB23: 0.04042427158 | AC23: 0.01789432564 | AD23: =+IF(INDEX($K23:$O23,1,aux!$AL$1)>0,(O23/INDEX($K23:$O23,1,aux!$AL$1))^(1/($O$3-INDEX($K$3:$O$3,1,aux!$AL$1)))-1,"n.d.") -> 0.1986710103 | AE23: =IF(INDEX($K23:$O23,1,aux!$AL$1)>0,(O23-INDEX($K23:$O23,1,aux!$AL$1))/INDEX($K23:$O23,1,aux!$AL$1),"n.d.") -> 1.064429272 | AX23: 04
A24: 0403 | B24: Leitelho, leite coalhado, iogurte, etc. | C24: 1594.461 | D24: 1990.713 | E24: 1458.764 | F24: 3829.653 | G24: 1829.41 | H24: 2140.6002 | I24: 0.0083597751 | J24: 0.007501101433 | K24: 83.743 | L24: 88.574 | M24: 106.967 | N24: 148.914 | O24: 131.492 | P24: 111.938 | Q24: 0.0006722270304 | R24: 0.0004680960952 | S24: -2028.6622 | U24: =G24-INDEX($C24:$G24,1,aux!$AL$1) -> 234.949 | V24: 0.002114249737 | W24: 0.00196757007 | X24: =+IF(INDEX($C24:$G24,1,aux!$AL$1)>0,(G24/INDEX($C24:$G24,1,aux!$AL$1))^(1/($G$3-INDEX($C$3:$G$3,1,aux!$AL$1)))-1,"n.d.") -> 0.03496172008 | Y24: =IF(INDEX($C24:$G24,1,aux!$AL$1)>0,(G24-INDEX($C24:$G24,1,aux!$AL$1))/INDEX($C24:$G24,1,aux!$AL$1),"n.d.") -> 0.1473532435 | AA24: =O24-INDEX($K24:$O24,1,aux!$AL$1) -> 47.749 | AB24: 0.001835584961 | AC24: 0.000812545378 | AD24: =+IF(INDEX($K24:$O24,1,aux!$AL$1)>0,(O24/INDEX($K24:$O24,1,aux!$AL$1))^(1/($O$3-INDEX($K$3:$O$3,1,aux!$AL$1)))-1,"n.d.") -> 0.1194061898 | AE24: =IF(INDEX($K24:$O24,1,aux!$AL$1)>0,(O24-INDEX($K24:$O24,1,aux!$AL$1))/INDEX($K24:$O24,1,aux!$AL$1),"n.d.") -> 0.5701849707 | AX24: 04
A25: 0404 | B25: Soro de leite e outros produtos do leite | C25: 56.04 | D25: 2.407 | E25: 11.458 | F25: 8.237 | G25: 10.621 | H25: 17.7526 | I25: 6.932996803e-05 | J25: 6.220874561e-05 | K25: 990.804 | L25: 1003.142 | M25: 1110.647 | N25: 1241.198 | O25: 824.411 | P25: 1034.0404 | Q25: 0.006209776013 | R25: 0.004324092564 | S25: 1016.2878 | U25: =G25-INDEX($C25:$G25,1,aux!$AL$1) -> -45.419 | V25: -0.0004087146946 | W25: -0.0003803594184 | X25: =+IF(INDEX($C25:$G25,1,aux!$AL$1)>0,(G25/INDEX($C25:$G25,1,aux!$AL$1))^(1/($G$3-INDEX($C$3:$G$3,1,aux!$AL$1)))-1,"n.d.") -> -0.3401931492 | Y25: =IF(INDEX($C25:$G25,1,aux!$AL$1)>0,(G25-INDEX($C25:$G25,1,aux!$AL$1))/INDEX($C25:$G25,1,aux!$AL$1),"n.d.") -> -0.810474661 | AA25: =O25-INDEX($K25:$O25,1,aux!$AL$1) -> -166.393 | AB25: -0.006396542093 | AC25: -0.002831511929 | AD25: =+IF(INDEX($K25:$O25,1,aux!$AL$1)>0,(O25/INDEX($K25:$O25,1,aux!$AL$1))^(1/($O$3-INDEX($K$3:$O$3,1,aux!$AL$1)))-1,"n.d.") -> -0.04492163636 | AE25: =IF(INDEX($K25:$O25,1,aux!$AL$1)>0,(O25-INDEX($K25:$O25,1,aux!$AL$1))/INDEX($K25:$O25,1,aux!$AL$1),"n.d.") -> -0.1679373519 | AX25: 04
A26: 0405 | B26: Manteiga | C26: 8892.296 | D26: 9054.612 | E26: 9924.733 | F26: 9135.844 | G26: 10142.035 | H26: 9429.904 | I26: 0.03682699677 | J26: 0.03304431458 | K26: 2557.731 | L26: 3570.075 | M26: 1366.976 | N26: 2327.366 | O26: 48.894 | P26: 1974.2084 | Q26: 0.01185581527 | R26: 0.008255634754 | S26: -7455.6956 | U26: =G26-INDEX($C26:$G26,1,aux!$AL$1) -> 1249.739 | V26: 0.01124610171 | W26: 0.0104658843 | X26: =+IF(INDEX($C26:$G26,1,aux!$AL$1)>0,(G26/INDEX($C26:$G26,1,aux!$AL$1))^(1/($G$3-INDEX($C$3:$G$3,1,aux!$AL$1)))-1,"n.d.") -> 0.03342222789 | Y26: =IF(INDEX($C26:$G26,1,aux!$AL$1)>0,(G26-INDEX($C26:$G26,1,aux!$AL$1))/INDEX($C26:$G26,1,aux!$AL$1),"n.d.") -> 0.1405417678 | AA26: =O26-INDEX($K26:$O26,1,aux!$AL$1) -> -2508.837 | AB26: -0.09644565261 | AC26: -0.04269291312 | AD26: =+IF(INDEX($K26:$O26,1,aux!$AL$1)>0,(O26/INDEX($K26:$O26,1,aux!$AL$1))^(1/($O$3-INDEX($K$3:$O$3,1,aux!$AL$1)))-1,"n.d.") -> -0.6281650782 | AE26: =IF(INDEX($K26:$O26,1,aux!$AL$1)>0,(O26-INDEX($K26:$O26,1,aux!$AL$1))/INDEX($K26:$O26,1,aux!$AL$1),"n.d.") -> -0.9808838381 | AX26: 04
A27: 0406 | B27: Queijos e requeijão | C27: 10174.792 | D27: 12482.309 | E27: 10134.254 | F27: 14989.004 | G27: 24118.519 | H27: 14379.7756 | I27: 0.05615793645 | J27: 0.05038967826 | K27: 837.181 | L27: 1020.074 | M27: 1065.528 | N27: 1388.863 | O27: 2245.381 | P27: 1311.4054 | Q27: 0.007875450318 | R27: 0.005483962076 | S27: -13068.3702 | U27: =G27-INDEX($C27:$G27,1,aux!$AL$1) -> 13943.727 | V27: 0.1254762571 | W27: 0.1167711287 | X27: =+IF(INDEX($C27:$G27,1,aux!$AL$1)>0,(G27/INDEX($C27:$G27,1,aux!$AL$1))^(1/($G$3-INDEX($C$3:$G$3,1,aux!$AL$1)))-1,"n.d.") -> 0.2408128263 | Y27: =IF(INDEX($C27:$G27,1,aux!$AL$1)>0,(G27-INDEX($C27:$G27,1,aux!$AL$1))/INDEX($C27:$G27,1,aux!$AL$1),"n.d.") -> 1.370418874 | AA27: =O27-INDEX($K27:$O27,1,aux!$AL$1) -> 1408.2 | AB27: 0.05413455239 | AC27: 0.02396335842 | AD27: =+IF(INDEX($K27:$O27,1,aux!$AL$1)>0,(O27/INDEX($K27:$O27,1,aux!$AL$1))^(1/($O$3-INDEX($K$3:$O$3,1,aux!$AL$1)))-1,"n.d.") -> 0.2797279934 | AE27: =IF(INDEX($K27:$O27,1,aux!$AL$1)>0,(O27-INDEX($K27:$O27,1,aux!$AL$1))/INDEX($K27:$O27,1,aux!$AL$1),"n.d.") -> 1.68207353 | AX27: 04
A28: 0407 | B28: Ovos de aves, com cascas | C28: 0 | D28: 0 | E28: 0 | F28: 0 | G28: 0 | H28: 0 | I28: 0 | J28: 0 | K28: 282.24 | L28: 1047.703 | M28: 1325.999 | N28: 216.641 | O28: 4.897 | P28: 575.496 | Q28: 0.003456055737 | R28: 0.002406577126 | S28: 575.496 | U28: =G28-INDEX($C28:$G28,1,aux!$AL$1) -> 0 | V28: 0 | W28: 0 | X28: =+IF(INDEX($C28:$G28,1,aux!$AL$1)>0,(G28/INDEX($C28:$G28,1,aux!$AL$1))^(1/($G$3-INDEX($C$3:$G$3,1,aux!$AL$1)))-1,"n.d.") -> n.d. | Y28: =IF(INDEX($C28:$G28,1,aux!$AL$1)>0,(G28-INDEX($C28:$G28,1,aux!$AL$1))/INDEX($C28:$G28,1,aux!$AL$1),"n.d.") -> n.d. | AA28: =O28-INDEX($K28:$O28,1,aux!$AL$1) -> -277.343 | AB28: -0.01066172359 | AC28: -0.004719549577 | AD28: =+IF(INDEX($K28:$O28,1,aux!$AL$1)>0,(O28/INDEX($K28:$O28,1,aux!$AL$1))^(1/($O$3-INDEX($K$3:$O$3,1,aux!$AL$1)))-1,"n.d.") -> -0.6370658079 | AE28: =IF(INDEX($K28:$O28,1,aux!$AL$1)>0,(O28-INDEX($K28:$O28,1,aux!$AL$1))/INDEX($K28:$O28,1,aux!$AL$1),"n.d.") -> -0.9826495181 | AX28: 04
A29: 0408 | B29: Ovos de aves, sem casca | C29: 355.91 | D29: 212.541 | E29: 156.181 | F29: 24.995 | G29: 121.303 | H29: 174.186 | I29: 0.0006802558392 | J29: 0.0006103834122 | K29: 1.785 | L29: 1.381 | M29: 1.576 | N29: 1.496 | O29: 1.791 | P29: 1.6058 | Q29: 9.643393355e-06 | R29: 6.715045021e-06 | S29: -172.5802 | U29: =G29-INDEX($C29:$G29,1,aux!$AL$1) -> -234.607 | V29: -0.002111172161 | W29: -0.001964706006 | X29: =+IF(INDEX($C29:$G29,1,aux!$AL$1)>0,(G29/INDEX($C29:$G29,1,aux!$AL$1))^(1/($G$3-INDEX($C$3:$G$3,1,aux!$AL$1)))-1,"n.d.") -> -0.235930546 | Y29: =IF(INDEX($C29:$G29,1,aux!$AL$1)>0,(G29-INDEX($C29:$G29,1,aux!$AL$1))/INDEX($C29:$G29,1,aux!$AL$1),"n.d.") -> -0.6591750723 | AA29: =O29-INDEX($K29:$O29,1,aux!$AL$1) -> 0.006 | AB29: 2.306542496e-07 | AC29: 1.02102081e-07 | AD29: =+IF(INDEX($K29:$O29,1,aux!$AL$1)>0,(O29/INDEX($K29:$O29,1,aux!$AL$1))^(1/($O$3-INDEX($K$3:$O$3,1,aux!$AL$1)))-1,"n.d.") -> 0.0008392789594 | AE29: =IF(INDEX($K29:$O29,1,aux!$AL$1)>0,(O29-INDEX($K29:$O29,1,aux!$AL$1))/INDEX($K29:$O29,1,aux!$AL$1),"n.d.") -> 0.003361344538 | AX29: 04
A30: 0409 | B30: Mel natural | C30: 666.918 | D30: 560.853 | E30: 704.421 | F30: 1096.72 | G30: 233.691 | H30: 652.5206 | I30: 0.002548315871 | J30: 0.002286565799 | K30: 708.359 | L30: 242.689 | M30: 14.961 | N30: 97.726 | O30: 52.083 | P30: 223.1636 | Q30: 0.001340175848 | R30: 0.0009332131157 | S30: -429.357 | U30: =G30-INDEX($C30:$G30,1,aux!$AL$1) -> -433.227 | V30: -0.003898505934 | W30: -0.003628040462 | X30: =+IF(INDEX($C30:$G30,1,aux!$AL$1)>0,(G30/INDEX($C30:$G30,1,aux!$AL$1))^(1/($G$3-INDEX($C$3:$G$3,1,aux!$AL$1)))-1,"n.d.") -> -0.2306173527 | Y30: =IF(INDEX($C30:$G30,1,aux!$AL$1)>0,(G30-INDEX($C30:$G30,1,aux!$AL$1))/INDEX($C30:$G30,1,aux!$AL$1),"n.d.") -> -0.6495956025 | AA30: =O30-INDEX($K30:$O30,1,aux!$AL$1) -> -656.276 | AB30: -0.02522880805 | AC30: -0.01116785756 | AD30: =+IF(INDEX($K30:$O30,1,aux!$AL$1)>0,(O30/INDEX($K30:$O30,1,aux!$AL$1))^(1/($O$3-INDEX($K$3:$O$3,1,aux!$AL$1)))-1,"n.d.") -> -0.4792723439 | AE30: =IF(INDEX($K30:$O30,1,aux!$AL$1)>0,(O30-INDEX($K30:$O30,1,aux!$AL$1))/INDEX($K30:$O30,1,aux!$AL$1),"n.d.") -> -0.9264737231 | AX30: 04
A31: 0410 | B31: Outros produtos comestíveis de origem animal | C31: 0 | D31: 0 | E31: 1.856 | F31: 0.523 | G31: 0 | H31: 0.4758 | I31: 1.858161553e-06 | J31: 1.66730063e-06 | K31: 0 | L31: 0 | M31: 0 | N31: 0 | O31: 0 | P31: 0 | Q31: 0 | R31: 0 | S31: -0.4758 | U31: =G31-INDEX($C31:$G31,1,aux!$AL$1) -> 0 | V31: 0 | W31: 0 | X31: =+IF(INDEX($C31:$G31,1,aux!$AL$1)>0,(G31/INDEX($C31:$G31,1,aux!$AL$1))^(1/($G$3-INDEX($C$3:$G$3,1,aux!$AL$1)))-1,"n.d.") -> n.d. | Y31: =IF(INDEX($C31:$G31,1,aux!$AL$1)>0,(G31-INDEX($C31:$G31,1,aux!$AL$1))/INDEX($C31:$G31,1,aux!$AL$1),"n.d.") -> n.d. | AA31: =O31-INDEX($K31:$O31,1,aux!$AL$1) -> 0 | AB31: 0 | AC31: 0 | AD31: =+IF(INDEX($K31:$O31,1,aux!$AL$1)>0,(O31/INDEX($K31:$O31,1,aux!$AL$1))^(1/($O$3-INDEX($K$3:$O$3,1,aux!$AL$1)))-1,"n.d.") -> n.d. | AE31: =IF(INDEX($K31:$O31,1,aux!$AL$1)>0,(O31-INDEX($K31:$O31,1,aux!$AL$1))/INDEX($K31:$O31,1,aux!$AL$1),"n.d.") -> n.d. | AX31: 04
A32: 04SS | B32: Leite e lacticínios; ovos de aves; mel natural; etc. | C32: 0 | D32: 0 | E32: 0 | F32: 0 | G32: 0 | H32: 0 | I32: 0 | J32: 0 | K32: 0 | L32: 0 | M32: 0 | N32: 0 | O32: 0 | P32: 0 | Q32: 0 | R32: 0 | S32: 0 | U32: =G32-INDEX($C32:$G32,1,aux!$AL$1) -> 0 | V32: 0 | W32: 0 | X32: =+IF(INDEX($C32:$G32,1,aux!$AL$1)>0,(G32/INDEX($C32:$G32,1,aux!$AL$1))^(1/($G$3-INDEX($C$3:$G$3,1,aux!$AL$1)))-1,"n.d.") -> n.d. | Y32: =IF(INDEX($C32:$G32,1,aux!$AL$1)>0,(G32-INDEX($C32:$G32,1,aux!$AL$1))/INDEX($C32:$G32,1,aux!$AL$1),"n.d.") -> n.d. | AA32: =O32-INDEX($K32:$O32,1,aux!$AL$1) -> 0 | AB32: 0 | AC32: 0 | AD32: =+IF(INDEX($K32:$O32,1,aux!$AL$1)>0,(O32/INDEX($K32:$O32,1,aux!$AL$1))^(1/($O$3-INDEX($K$3:$O$3,1,aux!$AL$1)))-1,"n.d.") -> n.d. | AE32: =IF(INDEX($K32:$O32,1,aux!$AL$1)>0,(O32-INDEX($K32:$O32,1,aux!$AL$1))/INDEX($K32:$O32,1,aux!$AL$1),"n.d.") -> n.d. | AX32: 04
A33: 0501 | B33: Cabelos em bruto | C33: 0 | D33: 0 | E33: 0 | F33: 0 | G33: 0 | H33: 0 | I33: 0 | J33: 0 | K33: 0 | L33: 0 | M33: 0 | N33: 0 | O33: 0 | P33: 0 | Q33: 0 | R33: 0 | S33: 0 | U33: =G33-INDEX($C33:$G33,1,aux!$AL$1) -> 0 | V33: 0 | W33: 0 | X33: =+IF(INDEX($C33:$G33,1,aux!$AL$1)>0,(G33/INDEX($C33:$G33,1,aux!$AL$1))^(1/($G$3-INDEX($C$3:$G$3,1,aux!$AL$1)))-1,"n.d.") -> n.d. | Y33: =IF(INDEX($C33:$G33,1,aux!$AL$1)>0,(G33-INDEX($C33:$G33,1,aux!$AL$1))/INDEX($C33:$G33,1,aux!$AL$1),"n.d.") -> n.d. | AA33: =O33-INDEX($K33:$O33,1,aux!$AL$1) -> 0 | AB33: 0 | AC33: 0 | AD33: =+IF(INDEX($K33:$O33,1,aux!$AL$1)>0,(O33/INDEX($K33:$O33,1,aux!$AL$1))^(1/($O$3-INDEX($K$3:$O$3,1,aux!$AL$1)))-1,"n.d.") -> n.d. | AE33: =IF(INDEX($K33:$O33,1,aux!$AL$1)>0,(O33-INDEX($K33:$O33,1,aux!$AL$1))/INDEX($K33:$O33,1,aux!$AL$1),"n.d.") -> n.d. | AX33: 05
A34: 0502 | B34: Cerdas de porco ou de javali, etc. | C34: 0 | D34: 0 | E34: 0 | F34: 0 | G34: 0 | H34: 0 | I34: 0 | J34: 0 | K34: 0 | L34: 0 | M34: 0 | N34: 0.835 | O34: 0 | P34: 0.167 | Q34: 1.002893692e-06 | R34: 6.983513006e-07 | S34: 0.167 | U34: =G34-INDEX($C34:$G34,1,aux!$AL$1) -> 0 | V34: 0 | W34: 0 | X34: =+IF(INDEX($C34:$G34,1,aux!$AL$1)>0,(G34/INDEX($C34:$G34,1,aux!$AL$1))^(1/($G$3-INDEX($C$3:$G$3,1,aux!$AL$1)))-1,"n.d.") -> n.d. | Y34: =IF(INDEX($C34:$G34,1,aux!$AL$1)>0,(G34-INDEX($C34:$G34,1,aux!$AL$1))/INDEX($C34:$G34,1,aux!$AL$1),"n.d.") -> n.d. | AA34: =O34-INDEX($K34:$O34,1,aux!$AL$1) -> 0 | AB34: 0 | AC34: 0 | AD34: =+IF(INDEX($K34:$O34,1,aux!$AL$1)>0,(O34/INDEX($K34:$O34,1,aux!$AL$1))^(1/($O$3-INDEX($K$3:$O$3,1,aux!$AL$1)))-1,"n.d.") -> n.d. | AE34: =IF(INDEX($K34:$O34,1,aux!$AL$1)>0,(O34-INDEX($K34:$O34,1,aux!$AL$1))/INDEX($K34:$O34,1,aux!$AL$1),"n.d.") -> n.d. | AX34: 05
A35: 0504 | B35: Tripas de animais (excepto peixes) | C35: 14.019 | D35: 77.067 | E35: 0 | F35: 0.384 | G35: 0.83 | H35: 18.46 | I35: 7.209260671e-05 | J35: 6.468762007e-05 | K35: 64.226 | L35: 120.312 | M35: 64.459 | N35: 55.812 | O35: 6.108 | P35: 62.1834 | Q35: 0.0003734331712 | R35: 0.0002600350794 | S35: 43.7234 | U35: =G35-INDEX($C35:$G35,1,aux!$AL$1) -> -13.189 | V35: -0.0001186846498 | W35: -0.0001104507006 | X35: =+IF(INDEX($C35:$G35,1,aux!$AL$1)>0,(G35/INDEX($C35:$G35,1,aux!$AL$1))^(1/($G$3-INDEX($C$3:$G$3,1,aux!$AL$1)))-1,"n.d.") -> -0.5067236837 | Y35: =IF(INDEX($C35:$G35,1,aux!$AL$1)>0,(G35-INDEX($C35:$G35,1,aux!$AL$1))/INDEX($C35:$G35,1,aux!$AL$1),"n.d.") -> -0.9407946359 | AA35: =O35-INDEX($K35:$O35,1,aux!$AL$1) -> -58.118 | AB35: -0.002234193947 | AC35: -0.0009889947911 | AD35: =+IF(INDEX($K35:$O35,1,aux!$AL$1)>0,(O35/INDEX($K35:$O35,1,aux!$AL$1))^(1/($O$3-INDEX($K$3:$O$3,1,aux!$AL$1)))-1,"n.d.") -> -0.444675239 | AE35: =IF(INDEX($K35:$O35,1,aux!$AL$1)>0,(O35-INDEX($K35:$O35,1,aux!$AL$1))/INDEX($K35:$O35,1,aux!$AL$1),"n.d.") -> -0.9048983278 | AX35: 05
A36: 0505 | B36: Peles e outras partes de aves | C36: 0 | D36: 0 | E36: 0 | F36: 0 | G36: 0 | H36: 0 | I36: 0 | J36: 0 | K36: 0 | L36: 0 | M36: 0 | N36: 0 | O36: 0 | P36: 0 | Q36: 0 | R36: 0 | S36: 0 | U36: =G36-INDEX($C36:$G36,1,aux!$AL$1) -> 0 | V36: 0 | W36: 0 | X36: =+IF(INDEX($C36:$G36,1,aux!$AL$1)>0,(G36/INDEX($C36:$G36,1,aux!$AL$1))^(1/($G$3-INDEX($C$3:$G$3,1,aux!$AL$1)))-1,"n.d.") -> n.d. | Y36: =IF(INDEX($C36:$G36,1,aux!$AL$1)>0,(G36-INDEX($C36:$G36,1,aux!$AL$1))/INDEX($C36:$G36,1,aux!$AL$1),"n.d.") -> n.d. | AA36: =O36-INDEX($K36:$O36,1,aux!$AL$1) -> 0 | AB36: 0 | AC36: 0 | AD36: =+IF(INDEX($K36:$O36,1,aux!$AL$1)>0,(O36/INDEX($K36:$O36,1,aux!$AL$1))^(1/($O$3-INDEX($K$3:$O$3,1,aux!$AL$1)))-1,"n.d.") -> n.d. | AE36: =IF(INDEX($K36:$O36,1,aux!$AL$1)>0,(O36-INDEX($K36:$O36,1,aux!$AL$1))/INDEX($K36:$O36,1,aux!$AL$1),"n.d.") -> n.d. | AX36: 05
A37: 0506 | B37: Ossos e núcleos córneos, em bruto | C37: 0 | D37: 15.485 | E37: 0.03 | F37: 32.293 | G37: 14.174 | H37: 12.3964 | I37: 4.841217713e-05 | J37: 4.343952402e-05 | K37: 0 | L37: 0 | M37: 0 | N37: 0 | O37: 0 | P37: 0 | Q37: 0 | R37: 0 | S37: -12.3964 | U37: =G37-INDEX($C37:$G37,1,aux!$AL$1) -> 14.174 | V37: 0.0001275484287 | W37: 0.0001186995398 | X37: =+IF(INDEX($C37:$G37,1,aux!$AL$1)>0,(G37/INDEX($C37:$G37,1,aux!$AL$1))^(1/($G$3-INDEX($C$3:$G$3,1,aux!$AL$1)))-1,"n.d.") -> n.d. | Y37: =IF(INDEX($C37:$G37,1,aux!$AL$1)>0,(G37-INDEX($C37:$G37,1,aux!$AL$1))/INDEX($C37:$G37,1,aux!$AL$1),"n.d.") -> n.d. | AA37: =O37-INDEX($K37:$O37,1,aux!$AL$1) -> 0 | AB37: 0 | AC37: 0 | AD37: =+IF(INDEX($K37:$O37,1,aux!$AL$1)>0,(O37/INDEX($K37:$O37,1,aux!$AL$1))^(1/($O$3-INDEX($K$3:$O$3,1,aux!$AL$1)))-1,"n.d.") -> n.d. | AE37: =IF(INDEX($K37:$O37,1,aux!$AL$1)>0,(O37-INDEX($K37:$O37,1,aux!$AL$1))/INDEX($K37:$O37,1,aux!$AL$1),"n.d.") -> n.d. | AX37: 05
A38: 0507 | B38: Marfim, carapaças de tartaruga, etc. | C38: 0 | D38: 0 | E38: 0 | F38: 0.599 | G38: 1.344 | H38: 0.3886 | I38: 1.517615762e-06 | J38: 1.361733974e-06 | K38: 0 | L38: 0 | M38: 0 | N38: 0 | O38: 0 | P38: 0 | Q38: 0 | R38: 0 | S38: -0.3886 | U38: =G38-INDEX($C38:$G38,1,aux!$AL$1) -> 1.344 | V38: 1.209433386e-05 | W38: 1.12552689e-05 | X38: =+IF(INDEX($C38:$G38,1,aux!$AL$1)>0,(G38/INDEX($C38:$G38,1,aux!$AL$1))^(1/($G$3-INDEX($C$3:$G$3,1,aux!$AL$1)))-1,"n.d.") -> n.d. | Y38: =IF(INDEX($C38:$G38,1,aux!$AL$1)>0,(G38-INDEX($C38:$G38,1,aux!$AL$1))/INDEX($C38:$G38,1,aux!$AL$1),"n.d.") -> n.d. | AA38: =O38-INDEX($K38:$O38,1,aux!$AL$1) -> 0 | AB38: 0 | AC38: 0 | AD38: =+IF(INDEX($K38:$O38,1,aux!$AL$1)>0,(O38/INDEX($K38:$O38,1,aux!$AL$1))^(1/($O$3-INDEX($K$3:$O$3,1,aux!$AL$1)))-1,"n.d.") -> n.d. | AE38: =IF(INDEX($K38:$O38,1,aux!$AL$1)>0,(O38-INDEX($K38:$O38,1,aux!$AL$1))/INDEX($K38:$O38,1,aux!$AL$1),"n.d.") -> n.d. | AX38: 05
A39: 0510 | B39: Âmbar-cinzento, castóreo, algália e almíscar, etc. | C39: 0 | D39: 0 | E39: 0 | F39: 0 | G39: 0 | H39: 0 | I39: 0 | J39: 0 | K39: 0 | L39: 0 | M39: 0 | N39: 0 | O39: 0 | P39: 0 | Q39: 0 | R39: 0 | S39: 0 | U39: =G39-INDEX($C39:$G39,1,aux!$AL$1) -> 0 | V39: 0 | W39: 0 | X39: =+IF(INDEX($C39:$G39,1,aux!$AL$1)>0,(G39/INDEX($C39:$G39,1,aux!$AL$1))^(1/($G$3-INDEX($C$3:$G$3,1,aux!$AL$1)))-1,"n.d.") -> n.d. | Y39: =IF(INDEX($C39:$G39,1,aux!$AL$1)>0,(G39-INDEX($C39:$G39,1,aux!$AL$1))/INDEX($C39:$G39,1,aux!$AL$1),"n.d.") -> n.d. | AA39: =O39-INDEX($K39:$O39,1,aux!$AL$1) -> 0 | AB39: 0 | AC39: 0 | AD39: =+IF(INDEX($K39:$O39,1,aux!$AL$1)>0,(O39/INDEX($K39:$O39,1,aux!$AL$1))^(1/($O$3-INDEX($K$3:$O$3,1,aux!$AL$1)))-1,"n.d.") -> n.d. | AE39: =IF(INDEX($K39:$O39,1,aux!$AL$1)>0,(O39-INDEX($K39:$O39,1,aux!$AL$1))/INDEX($K39:$O39,1,aux!$AL$1),"n.d.") -> n.d. | AX39: 05
A40: 0511 | B40: Outros produtos de origem animal (exc. NC 0511 91) (a) | C40: 0.586 | D40: 0.16 | E40: 0.436 | F40: 0.772 | G40: 0.758 | H40: 0.5424 | I40: 2.118257307e-06 | J40: 1.900680668e-06 | K40: 0.118 | L40: 0 | M40: 0 | N40: 0 | O40: 0.004 | P40: 0.0244 | Q40: 1.465305753e-07 | R40: 1.020345613e-07 | S40: -0.518 | U40: =G40-INDEX($C40:$G40,1,aux!$AL$1) -> 0.172 | V40: 1.547786774e-06 | W40: 1.440406437e-06 | X40: =+IF(INDEX($C40:$G40,1,aux!$AL$1)>0,(G40/INDEX($C40:$G40,1,aux!$AL$1))^(1/($G$3-INDEX($C$3:$G$3,1,aux!$AL$1)))-1,"n.d.") -> 0.06645589057 | Y40: =IF(INDEX($C40:$G40,1,aux!$AL$1)>0,(G40-INDEX($C40:$G40,1,aux!$AL$1))/INDEX($C40:$G40,1,aux!$AL$1),"n.d.") -> 0.2935153584 | AA40: =O40-INDEX($K40:$O40,1,aux!$AL$1) -> -0.114 | AB40: -4.382430743e-06 | AC40: -1.93993954e-06 | AD40: =+IF(INDEX($K40:$O40,1,aux!$AL$1)>0,(O40/INDEX($K40:$O40,1,aux!$AL$1))^(1/($O$3-INDEX($K$3:$O$3,1,aux!$AL$1)))-1,"n.d.") -> -0.5709138506 | AE40: =IF(INDEX($K40:$O40,1,aux!$AL$1)>0,(O40-INDEX($K40:$O40,1,aux!$AL$1))/INDEX($K40:$O40,1,aux!$AL$1),"n.d.") -> -0.9661016949 | AX40: 05
A41: 05SS | B41: Outros produtos de origem animal | C41: 0 | D41: 0 | E41: 0 | F41: 0 | G41: 0 | H41: 0 | I41: 0 | J41: 0 | K41: 0 | L41: 0 | M41: 0 | N41: 0 | O41: 0 | P41: 0 | Q41: 0 | R41: 0 | S41: 0 | U41: =G41-INDEX($C41:$G41,1,aux!$AL$1) -> 0 | V41: 0 | W41: 0 | X41: =+IF(INDEX($C41:$G41,1,aux!$AL$1)>0,(G41/INDEX($C41:$G41,1,aux!$AL$1))^(1/($G$3-INDEX($C$3:$G$3,1,aux!$AL$1)))-1,"n.d.") -> n.d. | Y41: =IF(INDEX($C41:$G41,1,aux!$AL$1)>0,(G41-INDEX($C41:$G41,1,aux!$AL$1))/INDEX($C41:$G41,1,aux!$AL$1),"n.d.") -> n.d. | AA41: =O41-INDEX($K41:$O41,1,aux!$AL$1) -> 0 | AB41: 0 | AC41: 0 | AD41: =+IF(INDEX($K41:$O41,1,aux!$AL$1)>0,(O41/INDEX($K41:$O41,1,aux!$AL$1))^(1/($O$3-INDEX($K$3:$O$3,1,aux!$AL$1)))-1,"n.d.") -> n.d. | AE41: =IF(INDEX($K41:$O41,1,aux!$AL$1)>0,(O41-INDEX($K41:$O41,1,aux!$AL$1))/INDEX($K41:$O41,1,aux!$AL$1),"n.d.") -> n.d. | AX41: 05
A42: 0601 | B42: Bolbos, tubérculos, raízes, etc. | C42: 9.438 | D42: 10.166 | E42: 8.519 | F42: 8.537 | G42: 11.702 | H42: 9.6724 | I42: 3.77740265e-05 | J42: 3.389407022e-05 | K42: 23.477 | L42: 410.272 | M42: 170.185 | N42: 233.369 | O42: 161.096 | P42: 199.6798 | Q42: 0.001199147376 | R42: 0.0008350098685 | S42: 190.0074 | U42: =G42-INDEX($C42:$G42,1,aux!$AL$1) -> 2.264 | V42: 2.037319335e-05 | W42: 1.895976845e-05 | X42: =+IF(INDEX($C42:$G42,1,aux!$AL$1)>0,(G42/INDEX($C42:$G42,1,aux!$AL$1))^(1/($G$3-INDEX($C$3:$G$3,1,aux!$AL$1)))-1,"n.d.") -> 0.05522489889 | Y42: =IF(INDEX($C42:$G42,1,aux!$AL$1)>0,(G42-INDEX($C42:$G42,1,aux!$AL$1))/INDEX($C42:$G42,1,aux!$AL$1),"n.d.") -> 0.2398813308 | AA42: =O42-INDEX($K42:$O42,1,aux!$AL$1) -> 137.619 | AB42: 0.005290401197 | AC42: 0.002341864382 | AD42: =+IF(INDEX($K42:$O42,1,aux!$AL$1)>0,(O42/INDEX($K42:$O42,1,aux!$AL$1))^(1/($O$3-INDEX($K$3:$O$3,1,aux!$AL$1)))-1,"n.d.") -> 0.6184919336 | AE42: =IF(INDEX($K42:$O42,1,aux!$AL$1)>0,(O42-INDEX($K42:$O42,1,aux!$AL$1))/INDEX($K42:$O42,1,aux!$AL$1),"n.d.") -> 5.861864804 | AX42: 06
A43: 0602 | B43: Plantas vivas | C43: 359.406 | D43: 567.241 | E43: 410.79 | F43: 698.772 | G43: 697.816 | H43: 546.805 | I43: 0.002135460337 | J43: 0.00191611669 | K43: 91.096 | L43: 123.789 | M43: 215.794 | N43: 469.564 | O43: 640.523 | P43: 308.1532 | Q43: 0.001850568266 | R43: 0.001288617892 | S43: -238.6518 | U43: =G43-INDEX($C43:$G43,1,aux!$AL$1) -> 338.41 | V43: 0.003045270477 | W43: 0.002833999665 | X43: =+IF(INDEX($C43:$G43,1,aux!$AL$1)>0,(G43/INDEX($C43:$G43,1,aux!$AL$1))^(1/($G$3-INDEX($C$3:$G$3,1,aux!$AL$1)))-1,"n.d.") -> 0.1804263624 | Y43: =IF(INDEX($C43:$G43,1,aux!$AL$1)>0,(G43-INDEX($C43:$G43,1,aux!$AL$1))/INDEX($C43:$G43,1,aux!$AL$1),"n.d.") -> 0.9415813871 | AA43: =O43-INDEX($K43:$O43,1,aux!$AL$1) -> 549.427 | AB43: 0.02112127873 | AC43: 0.009349606681 | AD43: =+IF(INDEX($K43:$O43,1,aux!$AL$1)>0,(O43/INDEX($K43:$O43,1,aux!$AL$1))^(1/($O$3-INDEX($K$3:$O$3,1,aux!$AL$1)))-1,"n.d.") -> 0.6283916073 | AE43: =IF(INDEX($K43:$O43,1,aux!$AL$1)>0,(O43-INDEX($K43:$O43,1,aux!$AL$1))/INDEX($K43:$O43,1,aux!$AL$1),"n.d.") -> 6.031296654 | AX43: 06
A44: 0603 | B44: Flores e seus botões | C44: 3.638 | D44: 19.347 | E44: 45.402 | F44: 27.389 | G44: 37.667 | H44: 26.6886 | I44: 0.0001042281009 | J44: 9.352231944e-05 | K44: 45.112 | L44: 233.368 | M44: 19.929 | N44: 1.726 | O44: 13.584 | P44: 62.7438 | Q44: 0.0003767985702 | R44: 0.000262378529 | S44: 36.0552 | U44: =G44-INDEX($C44:$G44,1,aux!$AL$1) -> 34.029 | V44: 0.0003062188147 | W44: 0.0002849743642 | X44: =+IF(INDEX($C44:$G44,1,aux!$AL$1)>0,(G44/INDEX($C44:$G44,1,aux!$AL$1))^(1/($G$3-INDEX($C$3:$G$3,1,aux!$AL$1)))-1,"n.d.") -> 0.7938023322 | Y44: =IF(INDEX($C44:$G44,1,aux!$AL$1)>0,(G44-INDEX($C44:$G44,1,aux!$AL$1))/INDEX($C44:$G44,1,aux!$AL$1),"n.d.") -> 9.353765805 | AA44: =O44-INDEX($K44:$O44,1,aux!$AL$1) -> -31.528 | AB44: -0.001212011197 | AC44: -0.0005365124019 | AD44: =+IF(INDEX($K44:$O44,1,aux!$AL$1)>0,(O44/INDEX($K44:$O44,1,aux!$AL$1))^(1/($O$3-INDEX($K$3:$O$3,1,aux!$AL$1)))-1,"n.d.") -> -0.2592291266 | AE44: =IF(INDEX($K44:$O44,1,aux!$AL$1)>0,(O44-INDEX($K44:$O44,1,aux!$AL$1))/INDEX($K44:$O44,1,aux!$AL$1),"n.d.") -> -0.6988827806 | AX44: 06
A45: 0604 | B45: Folhagem, folhas, ramos e outras partes de plantas | C45: 3.53 | D45: 8.86 | E45: 9.3 | F45: 8.499 | G45: 18.88 | H45: 9.8138 | I45: 3.832624181e-05 | J45: 3.438956478e-05 | K45: 62.346 | L45: 63.065 | M45: 70.535 | N45: 90.855 | O45: 100.589 | P45: 77.478 | Q45: 0.0004652826195 | R45: 0.0003239931861 | S45: 67.6642 | U45: =G45-INDEX($C45:$G45,1,aux!$AL$1) -> 15.35 | V45: 0.0001381309708 | W45: 0.0001285479001 | X45: =+IF(INDEX($C45:$G45,1,aux!$AL$1)>0,(G45/INDEX($C45:$G45,1,aux!$AL$1))^(1/($G$3-INDEX($C$3:$G$3,1,aux!$AL$1)))-1,"n.d.") -> 0.5207464844 | Y45: =IF(INDEX($C45:$G45,1,aux!$AL$1)>0,(G45-INDEX($C45:$G45,1,aux!$AL$1))/INDEX($C45:$G45,1,aux!$AL$1),"n.d.") -> 4.348441926 | AA45: =O45-INDEX($K45:$O45,1,aux!$AL$1) -> 38.243 | AB45: 0.001470151745 | AC45: 0.0006507816476 | AD45: =+IF(INDEX($K45:$O45,1,aux!$AL$1)>0,(O45/INDEX($K45:$O45,1,aux!$AL$1))^(1/($O$3-INDEX($K$3:$O$3,1,aux!$AL$1)))-1,"n.d.") -> 0.1270299931 | AE45: =IF(INDEX($K45:$O45,1,aux!$AL$1)>0,(O45-INDEX($K45:$O45,1,aux!$AL$1))/INDEX($K45:$O45,1,aux!$AL$1),"n.d.") -> 0.6133994162 | AX45: 06
A46: 06SS | B46: Plantas vivas e produtos de floricultura | C46: 0 | D46: 0 | E46: 0 | F46: 0 | G46: 0 | H46: 0 | I46: 0 | J46: 0 | K46: 0 | L46: 0 | M46: 0 | N46: 0 | O46: 0 | P46: 0 | Q46: 0 | R46: 0 | S46: 0 | U46: =G46-INDEX($C46:$G46,1,aux!$AL$1) -> 0 | V46: 0 | W46: 0 | X46: =+IF(INDEX($C46:$G46,1,aux!$AL$1)>0,(G46/INDEX($C46:$G46,1,aux!$AL$1))^(1/($G$3-INDEX($C$3:$G$3,1,aux!$AL$1)))-1,"n.d.") -> n.d. | Y46: =IF(INDEX($C46:$G46,1,aux!$AL$1)>0,(G46-INDEX($C46:$G46,1,aux!$AL$1))/INDEX($C46:$G46,1,aux!$AL$1),"n.d.") -> n.d. | AA46: =O46-INDEX($K46:$O46,1,aux!$AL$1) -> 0 | AB46: 0 | AC46: 0 | AD46: =+IF(INDEX($K46:$O46,1,aux!$AL$1)>0,(O46/INDEX($K46:$O46,1,aux!$AL$1))^(1/($O$3-INDEX($K$3:$O$3,1,aux!$AL$1)))-1,"n.d.") -> n.d. | AE46: =IF(INDEX($K46:$O46,1,aux!$AL$1)>0,(O46-INDEX($K46:$O46,1,aux!$AL$1))/INDEX($K46:$O46,1,aux!$AL$1),"n.d.") -> n.d. | AX46: 06
A47: 0701 | B47: Batatas, frescas ou refrigeradas | C47: 649.223 | D47: 1004.086 | E47: 215.125 | F47: 519.076 | G47: 2117.06 | H47: 900.914 | I47: 0.00351837696 | J47: 0.003156987137 | K47: 185.356 | L47: 286.273 | M47: 220.631 | N47: 352 | O47: 141.113 | P47: 237.0746 | Q47: 0.001423716292 | R47: 0.0009913853608 | S47: -663.8394 | U47: =G47-INDEX($C47:$G47,1,aux!$AL$1) -> 1467.837 | V47: 0.01320871334 | W47: 0.01229233642 | X47: =+IF(INDEX($C47:$G47,1,aux!$AL$1)>0,(G47/INDEX($C47:$G47,1,aux!$AL$1))^(1/($G$3-INDEX($C$3:$G$3,1,aux!$AL$1)))-1,"n.d.") -> 0.3438005588 | Y47: =IF(INDEX($C47:$G47,1,aux!$AL$1)>0,(G47-INDEX($C47:$G47,1,aux!$AL$1))/INDEX($C47:$G47,1,aux!$AL$1),"n.d.") -> 2.26091343 | AA47: =O47-INDEX($K47:$O47,1,aux!$AL$1) -> -44.243 | AB47: -0.001700805994 | AC47: -0.0007528837286 | AD47: =+IF(INDEX($K47:$O47,1,aux!$AL$1)>0,(O47/INDEX($K47:$O47,1,aux!$AL$1))^(1/($O$3-INDEX($K$3:$O$3,1,aux!$AL$1)))-1,"n.d.") -> -0.06590705056 | AE47: =IF(INDEX($K47:$O47,1,aux!$AL$1)>0,(O47-INDEX($K47:$O47,1,aux!$AL$1))/INDEX($K47:$O47,1,aux!$AL$1),"n.d.") -> -0.2386920305 | AX47: 07
A48: 0702 | B48: Tomates, frescos ou refrigerados | C48: 645.606 | D48: 1012.816 | E48: 687.711 | F48: 887.329 | G48: 1761.4 | H48: 998.9724 | I48: 0.003901328513 | J48: 0.00350060385 | K48: 21.287 | L48: 235.582 | M48: 49.116 | N48: 102.962 | O48: 114.185 | P48: 104.6264 | Q48: 0.0006283183027 | R48: 0.0004375208534 | S48: -894.346 | U48: =G48-INDEX($C48:$G48,1,aux!$AL$1) -> 1115.794 | V48: 0.01004076276 | W48: 0.009344167791 | X48: =+IF(INDEX($C48:$G48,1,aux!$AL$1)>0,(G48/INDEX($C48:$G48,1,aux!$AL$1))^(1/($G$3-INDEX($C$3:$G$3,1,aux!$AL$1)))-1,"n.d.") -> 0.2852055979 | Y48: =IF(INDEX($C48:$G48,1,aux!$AL$1)>0,(G48-INDEX($C48:$G48,1,aux!$AL$1))/INDEX($C48:$G48,1,aux!$AL$1),"n.d.") -> 1.72828939 | AA48: =O48-INDEX($K48:$O48,1,aux!$AL$1) -> 92.898 | AB48: 0.003571219747 | AC48: 0.001580846521 | AD48: =+IF(INDEX($K48:$O48,1,aux!$AL$1)>0,(O48/INDEX($K48:$O48,1,aux!$AL$1))^(1/($O$3-INDEX($K$3:$O$3,1,aux!$AL$1)))-1,"n.d.") -> 0.5218563089 | AE48: =IF(INDEX($K48:$O48,1,aux!$AL$1)>0,(O48-INDEX($K48:$O48,1,aux!$AL$1))/INDEX($K48:$O48,1,aux!$AL$1),"n.d.") -> 4.364071969 | AX48: 07
A49: 0703 | B49: Cebolas, alhos, etc., frescos ou refrigerados | C49: 269.829 | D49: 1277.704 | E49: 625.839 | F49: 582.793 | G49: 714.194 | H49: 694.0718 | I49: 0.002710587503 | J49: 0.002432169713 | K49: 23.091 | L49: 20.55 | M49: 15.221 | N49: 378.676 | O49: 233.454 | P49: 134.1984 | Q49: 0.0008059085558 | R49: 0.0005611833963 | S49: -559.8734 | U49: =G49-INDEX($C49:$G49,1,aux!$AL$1) -> 444.365 | V49: 0.003998734126 | W49: 0.003721315154 | X49: =+IF(INDEX($C49:$G49,1,aux!$AL$1)>0,(G49/INDEX($C49:$G49,1,aux!$AL$1))^(1/($G$3-INDEX($C$3:$G$3,1,aux!$AL$1)))-1,"n.d.") -> 0.2755042011 | Y49: =IF(INDEX($C49:$G49,1,aux!$AL$1)>0,(G49-INDEX($C49:$G49,1,aux!$AL$1))/INDEX($C49:$G49,1,aux!$AL$1),"n.d.") -> 1.646839295 | AA49: =O49-INDEX($K49:$O49,1,aux!$AL$1) -> 210.363 | AB49: 0.008086853319 | AC49: 0.003579750013 | AD49: =+IF(INDEX($K49:$O49,1,aux!$AL$1)>0,(O49/INDEX($K49:$O49,1,aux!$AL$1))^(1/($O$3-INDEX($K$3:$O$3,1,aux!$AL$1)))-1,"n.d.") -> 0.7831572536 | AE49: =IF(INDEX($K49:$O49,1,aux!$AL$1)>0,(O49-INDEX($K49:$O49,1,aux!$AL$1))/INDEX($K49:$O49,1,aux!$AL$1),"n.d.") -> 9.110172795 | AX49: 07
A50: 0704 | B50: Couves, frescas ou refrigeradas | C50: 76.325 | D50: 120.642 | E50: 88.045 | F50: 916.913 | G50: 407.942 | H50: 321.9734 | I50: 0.001257416127 | J50: 0.001128260724 | K50: 8986.168 | L50: 1382.275 | M50: 96.035 | N50: 51.824 | O50: 101.558 | P50: 2123.572 | Q50: 0.01275279619 | R50: 0.008880235139 | S50: 1801.5986 | U50: =G50-INDEX($C50:$G50,1,aux!$AL$1) -> 331.617 | V50: 0.002984141899 | W50: 0.002777111985 | X50: =+IF(INDEX($C50:$G50,1,aux!$AL$1)>0,(G50/INDEX($C50:$G50,1,aux!$AL$1))^(1/($G$3-INDEX($C$3:$G$3,1,aux!$AL$1)))-1,"n.d.") -> 0.5204876674 | Y50: =IF(INDEX($C50:$G50,1,aux!$AL$1)>0,(G50-INDEX($C50:$G50,1,aux!$AL$1))/INDEX($C50:$G50,1,aux!$AL$1),"n.d.") -> 4.344801834 | AA50: =O50-INDEX($K50:$O50,1,aux!$AL$1) -> -8884.61 | AB50: -0.3415455088 | AC50: -0.1511895284 | AD50: =+IF(INDEX($K50:$O50,1,aux!$AL$1)>0,(O50/INDEX($K50:$O50,1,aux!$AL$1))^(1/($O$3-INDEX($K$3:$O$3,1,aux!$AL$1)))-1,"n.d.") -> -0.6739494768 | AE50: =IF(INDEX($K50:$O50,1,aux!$AL$1)>0,(O50-INDEX($K50:$O50,1,aux!$AL$1))/INDEX($K50:$O50,1,aux!$AL$1),"n.d.") -> -0.9886984085 | AX50: 07
A51: 0705 | B51: Alfaces, frescas ou refrigeradas | C51: 155.847 | D51: 113.103 | E51: 1.843 | F51: 195.233 | G51: 247.508 | H51: 142.7068 | I51: 0.0005573188086 | J51: 0.0005000738494 | K51: 7.172 | L51: 4.28 | M51: 5.165 | N51: 5.502 | O51: 5.219 | P51: 5.4676 | Q51: 3.283485958e-05 | R51: 2.286410522e-05 | S51: -137.2392 | U51: =G51-INDEX($C51:$G51,1,aux!$AL$1) -> 91.661 | V51: 0.000824835369 | W51: 0.0007676110142 | X51: =+IF(INDEX($C51:$G51,1,aux!$AL$1)>0,(G51/INDEX($C51:$G51,1,aux!$AL$1))^(1/($G$3-INDEX($C$3:$G$3,1,aux!$AL$1)))-1,"n.d.") -> 0.1225939531 | Y51: =IF(INDEX($C51:$G51,1,aux!$AL$1)>0,(G51-INDEX($C51:$G51,1,aux!$AL$1))/INDEX($C51:$G51,1,aux!$AL$1),"n.d.") -> 0.5881473496 | AA51: =O51-INDEX($K51:$O51,1,aux!$AL$1) -> -1.953 | AB51: -7.507795825e-05 | AC51: -3.323422738e-05 | AD51: =+IF(INDEX($K51:$O51,1,aux!$AL$1)>0,(O51/INDEX($K51:$O51,1,aux!$AL$1))^(1/($O$3-INDEX($K$3:$O$3,1,aux!$AL$1)))-1,"n.d.") -> -0.07639398205 | AE51: =IF(INDEX($K51:$O51,1,aux!$AL$1)>0,(O51-INDEX($K51:$O51,1,aux!$AL$1))/INDEX($K51:$O51,1,aux!$AL$1),"n.d.") -> -0.2723089794 | AX51: 07
A52: 0706 | B52: Cenouras, nabos, beterrabas, etc., frescos ou refrigerados | C52: 682.177 | D52: 32.426 | E52: 17.997 | F52: 134.161 | G52: 60.67 | H52: 185.4862 | I52: 0.0007243869809 | J52: 0.0006499816269 | K52: 13.073 | L52: 21.086 | M52: 20.841 | N52: 7.85 | O52: 6.718 | P52: 13.9136 | Q52: 8.355605791e-05 | R52: 5.81831177e-05 | S52: -171.5726 | U52: =G52-INDEX($C52:$G52,1,aux!$AL$1) -> -621.507 | V52: -0.005592792526 | W52: -0.005204783044 | X52: =+IF(INDEX($C52:$G52,1,aux!$AL$1)>0,(G52/INDEX($C52:$G52,1,aux!$AL$1))^(1/($G$3-INDEX($C$3:$G$3,1,aux!$AL$1)))-1,"n.d.") -> -0.4539037044 | Y52: =IF(INDEX($C52:$G52,1,aux!$AL$1)>0,(G52-INDEX($C52:$G52,1,aux!$AL$1))/INDEX($C52:$G52,1,aux!$AL$1),"n.d.") -> -0.9110641373 | AA52: =O52-INDEX($K52:$O52,1,aux!$AL$1) -> -6.355 | AB52: -0.0002443012927 | AC52: -0.0001081431208 | AD52: =+IF(INDEX($K52:$O52,1,aux!$AL$1)>0,(O52/INDEX($K52:$O52,1,aux!$AL$1))^(1/($O$3-INDEX($K$3:$O$3,1,aux!$AL$1)))-1,"n.d.") -> -0.1533260759 | AE52: =IF(INDEX($K52:$O52,1,aux!$AL$1)>0,(O52-INDEX($K52:$O52,1,aux!$AL$1))/INDEX($K52:$O52,1,aux!$AL$1),"n.d.") -> -0.4861164232 | AX52: 07
A53: 0707 | B53: Pepinos e pepininhos, frescos ou refrigerados | C53: 0 | D53: 0 | E53: 0 | F53: 0 | G53: 0 | H53: 0 | I53: 0 | J53: 0 | K53: 10.182 | L53: 5.101 | M53: 5.404 | N53: 2.942 | O53: 3.884 | P53: 5.5026 | Q53: 3.304504688e-05 | R53: 2.301046627e-05 | S53: 5.5026 | U53: =G53-INDEX($C53:$G53,1,aux!$AL$1) -> 0 | V53: 0 | W53: 0 | X53: =+IF(INDEX($C53:$G53,1,aux!$AL$1)>0,(G53/INDEX($C53:$G53,1,aux!$AL$1))^(1/($G$3-INDEX($C$3:$G$3,1,aux!$AL$1)))-1,"n.d.") -> n.d. | Y53: =IF(INDEX($C53:$G53,1,aux!$AL$1)>0,(G53-INDEX($C53:$G53,1,aux!$AL$1))/INDEX($C53:$G53,1,aux!$AL$1),"n.d.") -> n.d. | AA53: =O53-INDEX($K53:$O53,1,aux!$AL$1) -> -6.298 | AB53: -0.0002421100774 | AC53: -0.0001071731511 | AD53: =+IF(INDEX($K53:$O53,1,aux!$AL$1)>0,(O53/INDEX($K53:$O53,1,aux!$AL$1))^(1/($O$3-INDEX($K$3:$O$3,1,aux!$AL$1)))-1,"n.d.") -> -0.2141104172 | AE53: =IF(INDEX($K53:$O53,1,aux!$AL$1)>0,(O53-INDEX($K53:$O53,1,aux!$AL$1))/INDEX($K53:$O53,1,aux!$AL$1),"n.d.") -> -0.618542526 | AX53: 07
A54: 0708 | B54: Tomates preparados ou conservados | C54: 2.347 | D54: 1.688 | E54: 8.77 | F54: 19.926 | G54: 9.475 | H54: 8.4412 | I54: 3.296576987e-05 | J54: 2.957969331e-05 | K54: 5.719 | L54: 9.475 | M54: 101.679 | N54: 115.343 | O54: 48.744 | P54: 56.192 | Q54: 0.0003374527086 | R54: 0.0002349805766 | S54: 47.7508 | U54: =G54-INDEX($C54:$G54,1,aux!$AL$1) -> 7.128 | V54: 6.414316351e-05 | W54: 5.969312258e-05 | X54: =+IF(INDEX($C54:$G54,1,aux!$AL$1)>0,(G54/INDEX($C54:$G54,1,aux!$AL$1))^(1/($G$3-INDEX($C$3:$G$3,1,aux!$AL$1)))-1,"n.d.") -> 0.4174786695 | Y54: =IF(INDEX($C54:$G54,1,aux!$AL$1)>0,(G54-INDEX($C54:$G54,1,aux!$AL$1))/INDEX($C54:$G54,1,aux!$AL$1),"n.d.") -> 3.037068598 | AA54: =O54-INDEX($K54:$O54,1,aux!$AL$1) -> 43.025 | AB54: 0.001653983182 | AC54: 0.0007321570062 | AD54: =+IF(INDEX($K54:$O54,1,aux!$AL$1)>0,(O54/INDEX($K54:$O54,1,aux!$AL$1))^(1/($O$3-INDEX($K$3:$O$3,1,aux!$AL$1)))-1,"n.d.") -> 0.7086388117 | AE54: =IF(INDEX($K54:$O54,1,aux!$AL$1)>0,(O54-INDEX($K54:$O54,1,aux!$AL$1))/INDEX($K54:$O54,1,aux!$AL$1),"n.d.") -> 7.523168386 | AX54: 07
A55: 0709 | B55: Outros produtos hortícolas, frescos ou refrigerados | C55: 552.236 | D55: 942.035 | E55: 1533.418 | F55: 1444.314 | G55: 1888.479 | H55: 1272.0964 | I55: 0.004967971043 | J55: 0.004457686274 | K55: 965.523 | L55: 2031.472 | M55: 2183.002 | N55: 2295.722 | O55: 1550.956 | P55: 1805.335 | Q55: 0.01084167116 | R55: 0.007549449373 | S55: 533.2386 | U55: =G55-INDEX($C55:$G55,1,aux!$AL$1) -> 1336.243 | V55: 0.01202453048 | W55: 0.01119030825 | X55: =+IF(INDEX($C55:$G55,1,aux!$AL$1)>0,(G55/INDEX($C55:$G55,1,aux!$AL$1))^(1/($G$3-INDEX($C$3:$G$3,1,aux!$AL$1)))-1,"n.d.") -> 0.3598683353 | Y55: =IF(INDEX($C55:$G55,1,aux!$AL$1)>0,(G55-INDEX($C55:$G55,1,aux!$AL$1))/INDEX($C55:$G55,1,aux!$AL$1),"n.d.") -> 2.419695565 | AA55: =O55-INDEX($K55:$O55,1,aux!$AL$1) -> 585.433 | AB55: 0.02250543489 | AC55: 0.009962321269 | AD55: =+IF(INDEX($K55:$O55,1,aux!$AL$1)>0,(O55/INDEX($K55:$O55,1,aux!$AL$1))^(1/($O$3-INDEX($K$3:$O$3,1,aux!$AL$1)))-1,"n.d.") -> 0.1257947353 | AE55: =IF(INDEX($K55:$O55,1,aux!$AL$1)>0,(O55-INDEX($K55:$O55,1,aux!$AL$1))/INDEX($K55:$O55,1,aux!$AL$1),"n.d.") -> 0.6063377051 | AX55: 07
A56: 0710 | B56: Produtos hortícolas congelados | C56: 8425.51 | D56: 9045.595 | E56: 7483.667 | F56: 6865.039 | G56: 9404.551 | H56: 8244.8724 | I56: 0.03219904352 | J56: 0.0288917212 | K56: 24807.823 | L56: 38949.651 | M56: 37870.952 | N56: 32505.447 | O56: 41977.598 | P56: 35222.2942 | Q56: 0.2115222555 | R56: 0.1472906285 | S56: 26977.4218 | U56: =G56-INDEX($C56:$G56,1,aux!$AL$1) -> 979.041 | V56: 0.008810155295 | W56: 0.008198935806 | X56: =+IF(INDEX($C56:$G56,1,aux!$AL$1)>0,(G56/INDEX($C56:$G56,1,aux!$AL$1))^(1/($G$3-INDEX($C$3:$G$3,1,aux!$AL$1)))-1,"n.d.") -> 0.02786355346 | Y56: =IF(INDEX($C56:$G56,1,aux!$AL$1)>0,(G56-INDEX($C56:$G56,1,aux!$AL$1))/INDEX($C56:$G56,1,aux!$AL$1),"n.d.") -> 0.1161996128 | AA56: =O56-INDEX($K56:$O56,1,aux!$AL$1) -> 17169.775 | AB56: 0.6600469281 | AC56: 0.2921782931 | AD56: =+IF(INDEX($K56:$O56,1,aux!$AL$1)>0,(O56/INDEX($K56:$O56,1,aux!$AL$1))^(1/($O$3-INDEX($K$3:$O$3,1,aux!$AL$1)))-1,"n.d.") -> 0.1405313634 | AE56: =IF(INDEX($K56:$O56,1,aux!$AL$1)>0,(O56-INDEX($K56:$O56,1,aux!$AL$1))/INDEX($K56:$O56,1,aux!$AL$1),"n.d.") -> 0.692111315 | AX56: 07
A57: 0711 | B57: Produtos hortícolas conservados transitoriamente | C57: 0 | D57: 0 | E57: 2.332 | F57: 0 | G57: 0.145 | H57: 0.4954 | I57: 1.934706249e-06 | J57: 1.735983043e-06 | K57: 0.264 | L57: 0.522 | M57: 0.017 | N57: 0.271 | O57: 0.067 | P57: 0.2282 | Q57: 1.3704212e-06 | R57: 9.542740527e-07 | S57: -0.2672 | U57: =G57-INDEX($C57:$G57,1,aux!$AL$1) -> 0.145 | V57: 1.304820245e-06 | W57: 1.214296124e-06 | X57: =+IF(INDEX($C57:$G57,1,aux!$AL$1)>0,(G57/INDEX($C57:$G57,1,aux!$AL$1))^(1/($G$3-INDEX($C$3:$G$3,1,aux!$AL$1)))-1,"n.d.") -> n.d. | Y57: =IF(INDEX($C57:$G57,1,aux!$AL$1)>0,(G57-INDEX($C57:$G57,1,aux!$AL$1))/INDEX($C57:$G57,1,aux!$AL$1),"n.d.") -> n.d. | AA57: =O57-INDEX($K57:$O57,1,aux!$AL$1) -> -0.197 | AB57: -7.573147863e-06 | AC57: -3.352351661e-06 | AD57: =+IF(INDEX($K57:$O57,1,aux!$AL$1)>0,(O57/INDEX($K57:$O57,1,aux!$AL$1))^(1/($O$3-INDEX($K$3:$O$3,1,aux!$AL$1)))-1,"n.d.") -> -0.2902298693 | AE57: =IF(INDEX($K57:$O57,1,aux!$AL$1)>0,(O57-INDEX($K57:$O57,1,aux!$AL$1))/INDEX($K57:$O57,1,aux!$AL$1),"n.d.") -> -0.7462121212 | AX57: 07
A58: 0712 | B58: Produtos hortícolas secos | C58: 26.227 | D58: 45.23 | E58: 1.275 | F58: 39.996 | G58: 72.561 | H58: 37.0578 | I58: 0.0001447233695 | J58: 0.0001298581195 | K58: 494.255 | L58: 502.865 | M58: 209.883 | N58: 230.509 | O58: 696.01 | P58: 426.7044 | Q58: 0.002562509886 | R58: 0.001784368699 | S58: 389.6466 | U58: =G58-INDEX($C58:$G58,1,aux!$AL$1) -> 46.334 | V58: 0.0004169485603 | W58: 0.0003880220457 | X58: =+IF(INDEX($C58:$G58,1,aux!$AL$1)>0,(G58/INDEX($C58:$G58,1,aux!$AL$1))^(1/($G$3-INDEX($C$3:$G$3,1,aux!$AL$1)))-1,"n.d.") -> 0.289699884 | Y58: =IF(INDEX($C58:$G58,1,aux!$AL$1)>0,(G58-INDEX($C58:$G58,1,aux!$AL$1))/INDEX($C58:$G58,1,aux!$AL$1),"n.d.") -> 1.766652686 | AA58: =O58-INDEX($K58:$O58,1,aux!$AL$1) -> 201.755 | AB58: 0.007755941356 | AC58: 0.00343326756 | AD58: =+IF(INDEX($K58:$O58,1,aux!$AL$1)>0,(O58/INDEX($K58:$O58,1,aux!$AL$1))^(1/($O$3-INDEX($K$3:$O$3,1,aux!$AL$1)))-1,"n.d.") -> 0.08934664953 | AE58: =IF(INDEX($K58:$O58,1,aux!$AL$1)>0,(O58-INDEX($K58:$O58,1,aux!$AL$1))/INDEX($K58:$O58,1,aux!$AL$1),"n.d.") -> 0.4082002205 | AX58: 07
A59: 0713 | B59: Legumes de vagem, secos, em grão | C59: 43.586 | D59: 64.049 | E59: 18.319 | F59: 595.51 | G59: 511.066 | H59: 246.506 | I59: 0.0009626901468 | J59: 0.0008638075012 | K59: 331.469 | L59: 248.535 | M59: 529.308 | N59: 354.631 | O59: 411.523 | P59: 375.0932 | Q59: 0.002252566492 | R59: 0.001568543857 | S59: 128.5872 | U59: =G59-INDEX($C59:$G59,1,aux!$AL$1) -> 467.48 | V59: 0.004206740471 | W59: 0.003914890705 | X59: =+IF(INDEX($C59:$G59,1,aux!$AL$1)>0,(G59/INDEX($C59:$G59,1,aux!$AL$1))^(1/($G$3-INDEX($C$3:$G$3,1,aux!$AL$1)))-1,"n.d.") -> 0.8504718963 | Y59: =IF(INDEX($C59:$G59,1,aux!$AL$1)>0,(G59-INDEX($C59:$G59,1,aux!$AL$1))/INDEX($C59:$G59,1,aux!$AL$1),"n.d.") -> 10.7254623 | AA59: =O59-INDEX($K59:$O59,1,aux!$AL$1) -> 80.054 | AB59: 0.003077465883 | AC59: 0.001362279999 | AD59: =+IF(INDEX($K59:$O59,1,aux!$AL$1)>0,(O59/INDEX($K59:$O59,1,aux!$AL$1))^(1/($O$3-INDEX($K$3:$O$3,1,aux!$AL$1)))-1,"n.d.") -> 0.05557184703 | AE59: =IF(INDEX($K59:$O59,1,aux!$AL$1)>0,(O59-INDEX($K59:$O59,1,aux!$AL$1))/INDEX($K59:$O59,1,aux!$AL$1),"n.d.") -> 0.241512781 | AX59: 07
A60: 0714 | B60: Raízes de mandioca, de araruta, batata-doce, etc. | C60: 10.458 | D60: 13.566 | E60: 166.252 | F60: 63.203 | G60: 101.322 | H60: 70.9602 | I60: 0.000277123824 | J60: 0.0002486590714 | K60: 817.729 | L60: 1138.042 | M60: 1446.825 | N60: 1449.692 | O60: 1380.492 | P60: 1246.556 | Q60: 0.00748600688 | R60: 0.005212778467 | S60: 1175.5958 | U60: =G60-INDEX($C60:$G60,1,aux!$AL$1) -> 90.864 | V60: 0.0008176633571 | W60: 0.0007609365727 | X60: =+IF(INDEX($C60:$G60,1,aux!$AL$1)>0,(G60/INDEX($C60:$G60,1,aux!$AL$1))^(1/($G$3-INDEX($C$3:$G$3,1,aux!$AL$1)))-1,"n.d.") -> 0.7642648396 | Y60: =IF(INDEX($C60:$G60,1,aux!$AL$1)>0,(G60-INDEX($C60:$G60,1,aux!$AL$1))/INDEX($C60:$G60,1,aux!$AL$1),"n.d.") -> 8.688468158 | AA60: =O60-INDEX($K60:$O60,1,aux!$AL$1) -> 562.763 | AB60: 0.02163394625 | AC60: 0.009576545573 | AD60: =+IF(INDEX($K60:$O60,1,aux!$AL$1)>0,(O60/INDEX($K60:$O60,1,aux!$AL$1))^(1/($O$3-INDEX($K$3:$O$3,1,aux!$AL$1)))-1,"n.d.") -> 0.1398720994 | AE60: =IF(INDEX($K60:$O60,1,aux!$AL$1)>0,(O60-INDEX($K60:$O60,1,aux!$AL$1))/INDEX($K60:$O60,1,aux!$AL$1),"n.d.") -> 0.6882023262 | AX60: 07
A61: 07SS | B61: Produtos hortícolas, plantas, raízes e tubérculos, comestíveis | C61: 0 | D61: 0 | E61: 0 | F61: 0 | G61: 0 | H61: 0 | I61: 0 | J61: 0 | K61: 0 | L61: 0 | M61: 0 | N61: 0 | O61: 0 | P61: 0 | Q61: 0 | R61: 0 | S61: 0 | U61: =G61-INDEX($C61:$G61,1,aux!$AL$1) -> 0 | V61: 0 | W61: 0 | X61: =+IF(INDEX($C61:$G61,1,aux!$AL$1)>0,(G61/INDEX($C61:$G61,1,aux!$AL$1))^(1/($G$3-INDEX($C$3:$G$3,1,aux!$AL$1)))-1,"n.d.") -> n.d. | Y61: =IF(INDEX($C61:$G61,1,aux!$AL$1)>0,(G61-INDEX($C61:$G61,1,aux!$AL$1))/INDEX($C61:$G61,1,aux!$AL$1),"n.d.") -> n.d. | AA61: =O61-INDEX($K61:$O61,1,aux!$AL$1) -> 0 | AB61: 0 | AC61: 0 | AD61: =+IF(INDEX($K61:$O61,1,aux!$AL$1)>0,(O61/INDEX($K61:$O61,1,aux!$AL$1))^(1/($O$3-INDEX($K$3:$O$3,1,aux!$AL$1)))-1,"n.d.") -> n.d. | AE61: =IF(INDEX($K61:$O61,1,aux!$AL$1)>0,(O61-INDEX($K61:$O61,1,aux!$AL$1))/INDEX($K61:$O61,1,aux!$AL$1),"n.d.") -> n.d. | AX61: 07
A62: 0801 | B62: Cocos, castanhas do brasil e castanha de cajú | C62: 3.577 | D62: 159.632 | E62: 137.692 | F62: 91.991 | G62: 131.324 | H62: 104.8432 | I62: 0.0004094485148 | J62: 0.0003673920416 | K62: 2.567 | L62: 4.715 | M62: 2.853 | N62: 4.312 | O62: 4.576 | P62: 3.8046 | Q62: 2.284796012e-05 | R62: 1.590986442e-05 | S62: -101.0386 | U62: =G62-INDEX($C62:$G62,1,aux!$AL$1) -> 127.747 | V62: 0.001149564634 | W62: 0.001069811634 | X62: =+IF(INDEX($C62:$G62,1,aux!$AL$1)>0,(G62/INDEX($C62:$G62,1,aux!$AL$1))^(1/($G$3-INDEX($C$3:$G$3,1,aux!$AL$1)))-1,"n.d.") -> 1.46153656 | Y62: =IF(INDEX($C62:$G62,1,aux!$AL$1)>0,(G62-INDEX($C62:$G62,1,aux!$AL$1))/INDEX($C62:$G62,1,aux!$AL$1),"n.d.") -> 35.71344702 | AA62: =O62-INDEX($K62:$O62,1,aux!$AL$1) -> 2.009 | AB62: 7.723073125e-05 | AC62: 3.418718014e-05 | AD62: =+IF(INDEX($K62:$O62,1,aux!$AL$1)>0,(O62/INDEX($K62:$O62,1,aux!$AL$1))^(1/($O$3-INDEX($K$3:$O$3,1,aux!$AL$1)))-1,"n.d.") -> 0.1554869283 | AE62: =IF(INDEX($K62:$O62,1,aux!$AL$1)>0,(O62-INDEX($K62:$O62,1,aux!$AL$1))/INDEX($K62:$O62,1,aux!$AL$1),"n.d.") -> 0.782625633 | AX62: 08
A63: 0802 | B63: Frutas de casca rija | C63: 268.404 | D63: 594.301 | E63: 223.362 | F63: 239.834 | G63: 209.357 | H63: 307.0516 | I63: 0.0011991414 | J63: 0.001075971682 | K63: 143.535 | L63: 188.168 | M63: 203.133 | N63: 184.261 | O63: 395.436 | P63: 222.9066 | Q63: 0.001338632473 | R63: 0.0009321384074 | S63: -84.145 | U63: =G63-INDEX($C63:$G63,1,aux!$AL$1) -> -59.047 | V63: -0.0005313498002 | W63: -0.0004944865052 | X63: =+IF(INDEX($C63:$G63,1,aux!$AL$1)>0,(G63/INDEX($C63:$G63,1,aux!$AL$1))^(1/($G$3-INDEX($C$3:$G$3,1,aux!$AL$1)))-1,"n.d.") -> -0.06022340311 | Y63: =IF(INDEX($C63:$G63,1,aux!$AL$1)>0,(G63-INDEX($C63:$G63,1,aux!$AL$1))/INDEX($C63:$G63,1,aux!$AL$1),"n.d.") -> -0.2199929956 | AA63: =O63-INDEX($K63:$O63,1,aux!$AL$1) -> 251.901 | AB63: 0.009683672689 | AC63: 0.00428660272 | AD63: =+IF(INDEX($K63:$O63,1,aux!$AL$1)>0,(O63/INDEX($K63:$O63,1,aux!$AL$1))^(1/($O$3-INDEX($K$3:$O$3,1,aux!$AL$1)))-1,"n.d.") -> 0.2883373504 | AE63: =IF(INDEX($K63:$O63,1,aux!$AL$1)>0,(O63-INDEX($K63:$O63,1,aux!$AL$1))/INDEX($K63:$O63,1,aux!$AL$1),"n.d.") -> 1.754979622 | AX63: 08
A64: 0803 | B64: Bananas, frescas ou secas | C64: 114.364 | D64: 444.234 | E64: 255.247 | F64: 0 | G64: 32.638 | H64: 169.2966 | I64: 0.0006611610618 | J64: 0.0005932499534 | K64: 8.173 | L64: 8.417 | M64: 10.073 | N64: 9.535 | O64: 9.356 | P64: 9.1108 | Q64: 5.471355597e-05 | R64: 3.809903611e-05 | S64: -160.1858 | U64: =G64-INDEX($C64:$G64,1,aux!$AL$1) -> -81.726 | V64: -0.0007354326853 | W64: -0.0006844107935 | X64: =+IF(INDEX($C64:$G64,1,aux!$AL$1)>0,(G64/INDEX($C64:$G64,1,aux!$AL$1))^(1/($G$3-INDEX($C$3:$G$3,1,aux!$AL$1)))-1,"n.d.") -> -0.2690990097 | Y64: =IF(INDEX($C64:$G64,1,aux!$AL$1)>0,(G64-INDEX($C64:$G64,1,aux!$AL$1))/INDEX($C64:$G64,1,aux!$AL$1),"n.d.") -> -0.7146129901 | AA64: =O64-INDEX($K64:$O64,1,aux!$AL$1) -> 1.183 | AB64: 4.547732955e-05 | AC64: 2.013112698e-05 | AD64: =+IF(INDEX($K64:$O64,1,aux!$AL$1)>0,(O64/INDEX($K64:$O64,1,aux!$AL$1))^(1/($O$3-INDEX($K$3:$O$3,1,aux!$AL$1)))-1,"n.d.") -> 0.03437300672 | AE64: =IF(INDEX($K64:$O64,1,aux!$AL$1)>0,(O64-INDEX($K64:$O64,1,aux!$AL$1))/INDEX($K64:$O64,1,aux!$AL$1),"n.d.") -> 0.1447448917 | AX64: 08
A65: 0804 | B65: Tâmaras, figos, ananases, abacates, goiabas, mangas | C65: 1130.737 | D65: 58.176 | E65: 190.164 | F65: 269.483 | G65: 78.318 | H65: 345.3756 | I65: 0.001348809713 | J65: 0.001210266825 | K65: 326.145 | L65: 617.699 | M65: 442.655 | N65: 644.786 | O65: 237.968 | P65: 453.8506 | Q65: 0.002725532358 | R65: 0.001897887166 | S65: 108.475 | U65: =G65-INDEX($C65:$G65,1,aux!$AL$1) -> -1052.419 | V65: -0.00947046633 | W65: -0.008813436641 | X65: =+IF(INDEX($C65:$G65,1,aux!$AL$1)>0,(G65/INDEX($C65:$G65,1,aux!$AL$1))^(1/($G$3-INDEX($C$3:$G$3,1,aux!$AL$1)))-1,"n.d.") -> -0.4869909858 | Y65: =IF(INDEX($C65:$G65,1,aux!$AL$1)>0,(G65-INDEX($C65:$G65,1,aux!$AL$1))/INDEX($C65:$G65,1,aux!$AL$1),"n.d.") -> -0.9307372094 | AA65: =O65-INDEX($K65:$O65,1,aux!$AL$1) -> -88.177 | AB65: -0.003389733295 | AC65: -0.0015005092 | AD65: =+IF(INDEX($K65:$O65,1,aux!$AL$1)>0,(O65/INDEX($K65:$O65,1,aux!$AL$1))^(1/($O$3-INDEX($K$3:$O$3,1,aux!$AL$1)))-1,"n.d.") -> -0.07577660236 | AE65: =IF(INDEX($K65:$O65,1,aux!$AL$1)>0,(O65-INDEX($K65:$O65,1,aux!$AL$1))/INDEX($K65:$O65,1,aux!$AL$1),"n.d.") -> -0.2703613423 | AX65: 08
A66: 0805 | B66: Citrinos, frescos ou secos | C66: 240.792 | D66: 0.909 | E66: 0 | F66: 0 | G66: 0 | H66: 48.3402 | I66: 0.000188784996 | J66: 0.0001693939595 | K66: 37.212 | L66: 47.006 | M66: 45.291 | N66: 225.461 | O66: 492.501 | P66: 169.4942 | Q66: 0.001017872239 | R66: 0.0007087814073 | S66: 121.154 | U66: =G66-INDEX($C66:$G66,1,aux!$AL$1) -> -240.792 | V66: -0.002166829493 | W66: -0.002016502016 | X66: =+IF(INDEX($C66:$G66,1,aux!$AL$1)>0,(G66/INDEX($C66:$G66,1,aux!$AL$1))^(1/($G$3-INDEX($C$3:$G$3,1,aux!$AL$1)))-1,"n.d.") -> -1 | Y66: =IF(INDEX($C66:$G66,1,aux!$AL$1)>0,(G66-INDEX($C66:$G66,1,aux!$AL$1))/INDEX($C66:$G66,1,aux!$AL$1),"n.d.") -> -1 | AA66: =O66-INDEX($K66:$O66,1,aux!$AL$1) -> 455.289 | AB66: 0.01750239044 | AC66: 0.007747659063 | AD66: =+IF(INDEX($K66:$O66,1,aux!$AL$1)>0,(O66/INDEX($K66:$O66,1,aux!$AL$1))^(1/($O$3-INDEX($K$3:$O$3,1,aux!$AL$1)))-1,"n.d.") -> 0.9073527774 | AE66: =IF(INDEX($K66:$O66,1,aux!$AL$1)>0,(O66-INDEX($K66:$O66,1,aux!$AL$1))/INDEX($K66:$O66,1,aux!$AL$1),"n.d.") -> 12.23500484 | AX66: 08
A67: 0806 | B67: Uvas, frescas ou secas | C67: 135.487 | D67: 162.303 | E67: 213.909 | F67: 0.176 | G67: 0.022 | H67: 102.3794 | I67: 0.0003998265341 | J67: 0.0003587583819 | K67: 5.257 | L67: 3.683 | M67: 6.225 | N67: 4.588 | O67: 15.507 | P67: 7.052 | Q67: 4.234973841e-05 | R67: 2.948966091e-05 | S67: -95.3274 | U67: =G67-INDEX($C67:$G67,1,aux!$AL$1) -> -135.465 | V67: -0.001219017066 | W67: -0.001134445686 | X67: =+IF(INDEX($C67:$G67,1,aux!$AL$1)>0,(G67/INDEX($C67:$G67,1,aux!$AL$1))^(1/($G$3-INDEX($C$3:$G$3,1,aux!$AL$1)))-1,"n.d.") -> -0.8871162928 | Y67: =IF(INDEX($C67:$G67,1,aux!$AL$1)>0,(G67-INDEX($C67:$G67,1,aux!$AL$1))/INDEX($C67:$G67,1,aux!$AL$1),"n.d.") -> -0.9998376228 | AA67: =O67-INDEX($K67:$O67,1,aux!$AL$1) -> 10.25 | AB67: 0.0003940343431 | AC67: 0.0001744243885 | AD67: =+IF(INDEX($K67:$O67,1,aux!$AL$1)>0,(O67/INDEX($K67:$O67,1,aux!$AL$1))^(1/($O$3-INDEX($K$3:$O$3,1,aux!$AL$1)))-1,"n.d.") -> 0.3105314648 | AE67: =IF(INDEX($K67:$O67,1,aux!$AL$1)>0,(O67-INDEX($K67:$O67,1,aux!$AL$1))/INDEX($K67:$O67,1,aux!$AL$1),"n.d.") -> 1.949781244 | AX67: 08
A68: 0807 | B68: Melões, melancias e papaia, frescos | C68: 0.12 | D68: 25.635 | E68: 54.942 | F68: 95.893 | G68: 0 | H68: 35.318 | I68: 0.0001379288561 | J68: 0.0001237615041 | K68: 23.132 | L68: 20.416 | M68: 30.484 | N68: 15.681 | O68: 18.811 | P68: 21.7048 | Q68: 0.0001303449521 | R68: 9.076392401e-05 | S68: -13.6132 | U68: =G68-INDEX($C68:$G68,1,aux!$AL$1) -> -0.12 | V68: =IF($U$237<>0,U68/$U$237, "n.d.") -> -1.079851238e-06 | W68: =IF($U$322<>0,U68/$U$322, "n.d.") -> -1.004934724e-06 | X68: =+IF(INDEX($C68:$G68,1,aux!$AL$1)>0,(G68/INDEX($C68:$G68,1,aux!$AL$1))^(1/($G$3-INDEX($C$3:$G$3,1,aux!$AL$1)))-1,"n.d.") -> -1 | Y68: =IF(INDEX($C68:$G68,1,aux!$AL$1)>0,(G68-INDEX($C68:$G68,1,aux!$AL$1))/INDEX($C68:$G68,1,aux!$AL$1),"n.d.") -> -1 | AA68: =O68-INDEX($K68:$O68,1,aux!$AL$1) -> -4.321 | AB68: =IF($AA$237<>0,AA68/$AA$237, "n.d.") -> -0.0001661095021 | AC68: =IF($AA$322<>0,AA68/$AA$322, "n.d.") -> -7.353051537e-05 | AD68: =+IF(INDEX($K68:$O68,1,aux!$AL$1)>0,(O68/INDEX($K68:$O68,1,aux!$AL$1))^(1/($O$3-INDEX($K$3:$O$3,1,aux!$AL$1)))-1,"n.d.") -> -0.05038038876 | AE68: =IF(INDEX($K68:$O68,1,aux!$AL$1)>0,(O68-INDEX($K68:$O68,1,aux!$AL$1))/INDEX($K68:$O68,1,aux!$AL$1),"n.d.") -> -0.1867975099 | AX68: 08
A69: 0808 | B69: Maçãs, peras e marmelos, frescos | C69: 497.842 | D69: 609.911 | E69: 537.044 | F69: 744.86 | G69: 979.824 | H69: 673.8962 | I69: 0.002631794892 | J69: 0.002361470279 | K69: 19.693 | L69: 22.749 | M69: 43.584 | N69: 78.319 | O69: 26.772 | P69: 38.2234 | Q69: 0.0002295449505 | R69: 0.0001598404857 | S69: -635.6728 | U69: =G69-INDEX($C69:$G69,1,aux!$AL$1) -> 481.982 | V69: 0.004337240493 | W69: 0.004036337066 | X69: =+IF(INDEX($C69:$G69,1,aux!$AL$1)>0,(G69/INDEX($C69:$G69,1,aux!$AL$1))^(1/($G$3-INDEX($C$3:$G$3,1,aux!$AL$1)))-1,"n.d.") -> 0.1844429167 | Y69: =IF(INDEX($C69:$G69,1,aux!$AL$1)>0,(G69-INDEX($C69:$G69,1,aux!$AL$1))/INDEX($C69:$G69,1,aux!$AL$1),"n.d.") -> 0.968142503 | AA69: =O69-INDEX($K69:$O69,1,aux!$AL$1) -> 7.079 | AB69: 0.0002721335722 | AC69: 0.0001204634386 | AD69: =+IF(INDEX($K69:$O69,1,aux!$AL$1)>0,(O69/INDEX($K69:$O69,1,aux!$AL$1))^(1/($O$3-INDEX($K$3:$O$3,1,aux!$AL$1)))-1,"n.d.") -> 0.0797972917 | AE69: =IF(INDEX($K69:$O69,1,aux!$AL$1)>0,(O69-INDEX($K69:$O69,1,aux!$AL$1))/INDEX($K69:$O69,1,aux!$AL$1),"n.d.") -> 0.3594678312 | AX69: 08
A70: 0809 | B70: Damascos, cerejas, pêssegos, etc., frescos | C70: 0 | D70: 0.158 | E70: 33.56 | F70: 15.583 | G70: 0.204 | H70: 9.901 | I70: 3.86667876e-05 | J70: 3.469513143e-05 | K70: 13.743 | L70: 23.648 | M70: 44.096 | N70: 73.45 | O70: 159.553 | P70: 62.898 | Q70: 0.0003777245954 | R70: 0.0002630233539 | S70: 52.997 | U70: =G70-INDEX($C70:$G70,1,aux!$AL$1) -> 0.204 | V70: 1.835747104e-06 | W70: 1.70838903e-06 | X70: =+IF(INDEX($C70:$G70,1,aux!$AL$1)>0,(G70/INDEX($C70:$G70,1,aux!$AL$1))^(1/($G$3-INDEX($C$3:$G$3,1,aux!$AL$1)))-1,"n.d.") -> n.d. | Y70: =IF(INDEX($C70:$G70,1,aux!$AL$1)>0,(G70-INDEX($C70:$G70,1,aux!$AL$1))/INDEX($C70:$G70,1,aux!$AL$1),"n.d.") -> n.d. | AA70: =O70-INDEX($K70:$O70,1,aux!$AL$1) -> 145.81 | AB70: 0.00560528269 | AC70: 0.00248125074 | AD70: =+IF(INDEX($K70:$O70,1,aux!$AL$1)>0,(O70/INDEX($K70:$O70,1,aux!$AL$1))^(1/($O$3-INDEX($K$3:$O$3,1,aux!$AL$1)))-1,"n.d.") -> 0.8458901697 | AE70: =IF(INDEX($K70:$O70,1,aux!$AL$1)>0,(O70-INDEX($K70:$O70,1,aux!$AL$1))/INDEX($K70:$O70,1,aux!$AL$1),"n.d.") -> 10.60976497 | AX70: 08
A71: 0810 | B71: Outras frutas frescas | C71: 3506.506 | D71: 3707.865 | E71: 4829.165 | F71: 16375.734 | G71: 16739.398 | H71: 9031.7336 | I71: 0.03527200533 | J71: 0.03164904397 | K71: 16152.117 | L71: 10086.361 | M71: 9288.851 | N71: 10213.948 | O71: 11081.684 | P71: 11364.5922 | Q71: 0.06824837022 | R71: 0.04752381883 | S71: 2332.8586 | U71: =G71-INDEX($C71:$G71,1,aux!$AL$1) -> 13232.892 | V71: 0.1190796234 | W71: 0.1108182722 | X71: =+IF(INDEX($C71:$G71,1,aux!$AL$1)>0,(G71/INDEX($C71:$G71,1,aux!$AL$1))^(1/($G$3-INDEX($C$3:$G$3,1,aux!$AL$1)))-1,"n.d.") -> 0.4781425276 | Y71: =IF(INDEX($C71:$G71,1,aux!$AL$1)>0,(G71-INDEX($C71:$G71,1,aux!$AL$1))/INDEX($C71:$G71,1,aux!$AL$1),"n.d.") -> 3.77381131 | AA71: =O71-INDEX($K71:$O71,1,aux!$AL$1) -> -5070.433 | AB71: -0.1949194865 | AC71: -0.08628362685 | AD71: =+IF(INDEX($K71:$O71,1,aux!$AL$1)>0,(O71/INDEX($K71:$O71,1,aux!$AL$1))^(1/($O$3-INDEX($K$3:$O$3,1,aux!$AL$1)))-1,"n.d.") -> -0.08988959926 | AE71: =IF(INDEX($K71:$O71,1,aux!$AL$1)>0,(O71-INDEX($K71:$O71,1,aux!$AL$1))/INDEX($K71:$O71,1,aux!$AL$1),"n.d.") -> -0.3139175503 | AX71: 08
A72: 0811 | B72: Frutas não cozidas ou cozidas em água ou vapor, congeladas | C72: 3293.696 | D72: 2526.401 | E72: 2574.157 | F72: 3472.021 | G72: 4048.134 | H72: 3182.8818 | I72: 0.01243024083 | J72: 0.01115346959 | K72: 1545.979 | L72: 1507.077 | M72: 1087.552 | N72: 970.218 | O72: 1430.286 | P72: 1308.2224 | Q72: 0.007856335284 | R72: 0.005470651584 | S72: -1874.6594 | U72: =G72-INDEX($C72:$G72,1,aux!$AL$1) -> 754.438 | V72: 0.006789006733 | W72: 0.006318007858 | X72: =+IF(INDEX($C72:$G72,1,aux!$AL$1)>0,(G72/INDEX($C72:$G72,1,aux!$AL$1))^(1/($G$3-INDEX($C$3:$G$3,1,aux!$AL$1)))-1,"n.d.") -> 0.05291385841 | Y72: =IF(INDEX($C72:$G72,1,aux!$AL$1)>0,(G72-INDEX($C72:$G72,1,aux!$AL$1))/INDEX($C72:$G72,1,aux!$AL$1),"n.d.") -> 0.2290551405 | AA72: =O72-INDEX($K72:$O72,1,aux!$AL$1) -> -115.693 | AB72: -0.004447513684 | AC72: -0.001968749344 | AD72: =+IF(INDEX($K72:$O72,1,aux!$AL$1)>0,(O72/INDEX($K72:$O72,1,aux!$AL$1))^(1/($O$3-INDEX($K$3:$O$3,1,aux!$AL$1)))-1,"n.d.") -> -0.01925788686 | AE72: =IF(INDEX($K72:$O72,1,aux!$AL$1)>0,(O72-INDEX($K72:$O72,1,aux!$AL$1))/INDEX($K72:$O72,1,aux!$AL$1),"n.d.") -> -0.07483478107 | AX72: 08
A73: 0812 | B73: Frutas conservadas transitoriamente | C73: 0 | D73: 0 | E73: 0.086 | F73: 0.114 | G73: 0 | H73: 0.04 | I73: 1.562136657e-07 | J73: 1.401681908e-07 | K73: 0 | L73: 0 | M73: 0 | N73: 0.626 | O73: 0 | P73: 0.1252 | Q73: 7.518700013e-07 | R73: 5.235543883e-07 | S73: 0.0852 | U73: =G73-INDEX($C73:$G73,1,aux!$AL$1) -> 0 | V73: 0 | W73: 0 | X73: =+IF(INDEX($C73:$G73,1,aux!$AL$1)>0,(G73/INDEX($C73:$G73,1,aux!$AL$1))^(1/($G$3-INDEX($C$3:$G$3,1,aux!$AL$1)))-1,"n.d.") -> n.d. | Y73: =IF(INDEX($C73:$G73,1,aux!$AL$1)>0,(G73-INDEX($C73:$G73,1,aux!$AL$1))/INDEX($C73:$G73,1,aux!$AL$1),"n.d.") -> n.d. | AA73: =O73-INDEX($K73:$O73,1,aux!$AL$1) -> 0 | AB73: 0 | AC73: 0 | AD73: =+IF(INDEX($K73:$O73,1,aux!$AL$1)>0,(O73/INDEX($K73:$O73,1,aux!$AL$1))^(1/($O$3-INDEX($K$3:$O$3,1,aux!$AL$1)))-1,"n.d.") -> n.d. | AE73: =IF(INDEX($K73:$O73,1,aux!$AL$1)>0,(O73-INDEX($K73:$O73,1,aux!$AL$1))/INDEX($K73:$O73,1,aux!$AL$1),"n.d.") -> n.d. | AX73: 08
A74: 0813 | B74: Outras frutas secas | C74: 193.195 | D74: 149.271 | E74: 122.389 | F74: 258.032 | G74: 161.035 | H74: 176.7844 | I74: 0.000690403479 | J74: 0.0006194887379 | K74: 0.334 | L74: 10.63 | M74: 5.95 | N74: 3.246 | O74: 8.779 | P74: 5.7878 | Q74: 3.475777311e-05 | R74: 2.420309975e-05 | S74: -170.9966 | U74: =G74-INDEX($C74:$G74,1,aux!$AL$1) -> -32.16 | V74: -0.0002894001317 | W74: -0.0002693225059 | X74: =+IF(INDEX($C74:$G74,1,aux!$AL$1)>0,(G74/INDEX($C74:$G74,1,aux!$AL$1))^(1/($G$3-INDEX($C$3:$G$3,1,aux!$AL$1)))-1,"n.d.") -> -0.04449910366 | Y74: =IF(INDEX($C74:$G74,1,aux!$AL$1)>0,(G74-INDEX($C74:$G74,1,aux!$AL$1))/INDEX($C74:$G74,1,aux!$AL$1),"n.d.") -> -0.1664639354 | AA74: =O74-INDEX($K74:$O74,1,aux!$AL$1) -> 8.445 | AB74: 0.0003246458563 | AC74: 0.0001437086791 | AD74: =+IF(INDEX($K74:$O74,1,aux!$AL$1)>0,(O74/INDEX($K74:$O74,1,aux!$AL$1))^(1/($O$3-INDEX($K$3:$O$3,1,aux!$AL$1)))-1,"n.d.") -> 1.264251403 | AE74: =IF(INDEX($K74:$O74,1,aux!$AL$1)>0,(O74-INDEX($K74:$O74,1,aux!$AL$1))/INDEX($K74:$O74,1,aux!$AL$1),"n.d.") -> 25.28443114 | AX74: 08
A75: 0814 | B75: Cascas de citrinos, melões ou melancias | C75: 0 | D75: 0.014 | E75: 0.171 | F75: 0.44 | G75: 0.122 | H75: 0.1494 | I75: 5.834580413e-07 | J75: 5.235281927e-07 | K75: 0 | L75: 0 | M75: 0 | N75: 0 | O75: 0 | P75: 0 | Q75: 0 | R75: 0 | S75: -0.1494 | U75: =G75-INDEX($C75:$G75,1,aux!$AL$1) -> 0.122 | V75: 1.097848758e-06 | W75: 1.021683636e-06 | X75: =+IF(INDEX($C75:$G75,1,aux!$AL$1)>0,(G75/INDEX($C75:$G75,1,aux!$AL$1))^(1/($G$3-INDEX($C$3:$G$3,1,aux!$AL$1)))-1,"n.d.") -> n.d. | Y75: =IF(INDEX($C75:$G75,1,aux!$AL$1)>0,(G75-INDEX($C75:$G75,1,aux!$AL$1))/INDEX($C75:$G75,1,aux!$AL$1),"n.d.") -> n.d. | AA75: =O75-INDEX($K75:$O75,1,aux!$AL$1) -> 0 | AB75: 0 | AC75: 0 | AD75: =+IF(INDEX($K75:$O75,1,aux!$AL$1)>0,(O75/INDEX($K75:$O75,1,aux!$AL$1))^(1/($O$3-INDEX($K$3:$O$3,1,aux!$AL$1)))-1,"n.d.") -> n.d. | AE75: =IF(INDEX($K75:$O75,1,aux!$AL$1)>0,(O75-INDEX($K75:$O75,1,aux!$AL$1))/INDEX($K75:$O75,1,aux!$AL$1),"n.d.") -> n.d. | AX75: =+LEFT(A75,2) -> 08
A76: 08SS | B76: Frutas; cascas de citrinos e de melões | C76: 0 | D76: 0 | E76: 0 | F76: 0 | G76: 0 | H76: 0 | I76: 0 | J76: 0 | K76: 0 | L76: 0 | M76: 0 | N76: 0 | O76: 0 | P76: 0 | Q76: 0 | R76: 0 | S76: 0 | U76: =G76-INDEX($C76:$G76,1,aux!$AL$1) -> 0 | V76: 0 | W76: 0 | X76: =+IF(INDEX($C76:$G76,1,aux!$AL$1)>0,(G76/INDEX($C76:$G76,1,aux!$AL$1))^(1/($G$3-INDEX($C$3:$G$3,1,aux!$AL$1)))-1,"n.d.") -> n.d. | Y76: =IF(INDEX($C76:$G76,1,aux!$AL$1)>0,(G76-INDEX($C76:$G76,1,aux!$AL$1))/INDEX($C76:$G76,1,aux!$AL$1),"n.d.") -> n.d. | AA76: =O76-INDEX($K76:$O76,1,aux!$AL$1) -> 0 | AB76: 0 | AC76: 0 | AD76: =+IF(INDEX($K76:$O76,1,aux!$AL$1)>0,(O76/INDEX($K76:$O76,1,aux!$AL$1))^(1/($O$3-INDEX($K$3:$O$3,1,aux!$AL$1)))-1,"n.d.") -> n.d. | AE76: =IF(INDEX($K76:$O76,1,aux!$AL$1)>0,(O76-INDEX($K76:$O76,1,aux!$AL$1))/INDEX($K76:$O76,1,aux!$AL$1),"n.d.") -> n.d. | AX76: 08
A77: 0901 | B77: Café | C77: 1741.28 | D77: 2127.864 | E77: 962.421 | F77: 2763.835 | G77: 8152.966 | H77: 3149.6732 | I77: 0.01230054991 | J77: 0.01103709985 | K77: 1165.271 | L77: 1524.963 | M77: 1282.258 | N77: 1379.064 | O77: 1593.933 | P77: 1389.0978 | Q77: 0.008342020485 | R77: 0.005808851828 | S77: -1760.5754 | U77: =G77-INDEX($C77:$G77,1,aux!$AL$1) -> 6411.686 | V77: 0.05769722551 | W77: 0.05369438248 | X77: =+IF(INDEX($C77:$G77,1,aux!$AL$1)>0,(G77/INDEX($C77:$G77,1,aux!$AL$1))^(1/($G$3-INDEX($C$3:$G$3,1,aux!$AL$1)))-1,"n.d.") -> 0.470996891 | Y77: =IF(INDEX($C77:$G77,1,aux!$AL$1)>0,(G77-INDEX($C77:$G77,1,aux!$AL$1))/INDEX($C77:$G77,1,aux!$AL$1),"n.d.") -> 3.68216829 | AA77: =O77-INDEX($K77:$O77,1,aux!$AL$1) -> 428.662 | AB77: 0.01647878533 | AC77: 0.007294547044 | AD77: =+IF(INDEX($K77:$O77,1,aux!$AL$1)>0,(O77/INDEX($K77:$O77,1,aux!$AL$1))^(1/($O$3-INDEX($K$3:$O$3,1,aux!$AL$1)))-1,"n.d.") -> 0.08146079721 | AE77: =IF(INDEX($K77:$O77,1,aux!$AL$1)>0,(O77-INDEX($K77:$O77,1,aux!$AL$1))/INDEX($K77:$O77,1,aux!$AL$1),"n.d.") -> 0.3678646426 | AX77: 09
A78: 0902 | B78: Chá | C78: 201.91 | D78: 76.043 | E78: 5.57 | F78: 4.808 | G78: 18.539 | H78: 61.374 | I78: 0.0002396864379 | J78: 0.0002150670636 | K78: 4.391 | L78: 1.738 | M78: 3.421 | N78: 4.696 | O78: 3.189 | P78: 3.487 | Q78: 2.09406605e-05 | R78: 1.458174243e-05 | S78: -57.887 | U78: =G78-INDEX($C78:$G78,1,aux!$AL$1) -> -183.371 | V78: -0.001650111677 | W78: -0.001535632377 | X78: =+IF(INDEX($C78:$G78,1,aux!$AL$1)>0,(G78/INDEX($C78:$G78,1,aux!$AL$1))^(1/($G$3-INDEX($C$3:$G$3,1,aux!$AL$1)))-1,"n.d.") -> -0.4495319475 | Y78: =IF(INDEX($C78:$G78,1,aux!$AL$1)>0,(G78-INDEX($C78:$G78,1,aux!$AL$1))/INDEX($C78:$G78,1,aux!$AL$1),"n.d.") -> -0.9081818632 | AA78: =O78-INDEX($K78:$O78,1,aux!$AL$1) -> -1.202 | AB78: -4.620773468e-05 | AC78: -2.045445024e-05 | AD78: =+IF(INDEX($K78:$O78,1,aux!$AL$1)>0,(O78/INDEX($K78:$O78,1,aux!$AL$1))^(1/($O$3-INDEX($K$3:$O$3,1,aux!$AL$1)))-1,"n.d.") -> -0.07684894461 | AE78: =IF(INDEX($K78:$O78,1,aux!$AL$1)>0,(O78-INDEX($K78:$O78,1,aux!$AL$1))/INDEX($K78:$O78,1,aux!$AL$1),"n.d.") -> -0.2737417445 | AX78: 09
A79: 0903 | B79: Mate | C79: 0 | D79: 0 | E79: 0 | F79: 0.409 | G79: 0.019 | H79: 0.0856 | I79: 3.342972446e-07 | J79: 2.999599284e-07 | K79: 2.502 | L79: 1.468 | M79: 2.985 | N79: 7.06 | O79: 6.897 | P79: 4.1824 | Q79: 2.51167819e-05 | R79: 1.748972742e-05 | S79: 4.0968 | U79: =G79-INDEX($C79:$G79,1,aux!$AL$1) -> 0.019 | V79: 1.709764459e-07 | W79: 1.591146646e-07 | X79: =+IF(INDEX($C79:$G79,1,aux!$AL$1)>0,(G79/INDEX($C79:$G79,1,aux!$AL$1))^(1/($G$3-INDEX($C$3:$G$3,1,aux!$AL$1)))-1,"n.d.") -> n.d. | Y79: =IF(INDEX($C79:$G79,1,aux!$AL$1)>0,(G79-INDEX($C79:$G79,1,aux!$AL$1))/INDEX($C79:$G79,1,aux!$AL$1),"n.d.") -> n.d. | AA79: =O79-INDEX($K79:$O79,1,aux!$AL$1) -> 4.395 | AB79: 0.0001689542379 | AC79: 7.478977437e-05 | AD79: =+IF(INDEX($K79:$O79,1,aux!$AL$1)>0,(O79/INDEX($K79:$O79,1,aux!$AL$1))^(1/($O$3-INDEX($K$3:$O$3,1,aux!$AL$1)))-1,"n.d.") -> 0.2885261304 | AE79: =IF(INDEX($K79:$O79,1,aux!$AL$1)>0,(O79-INDEX($K79:$O79,1,aux!$AL$1))/INDEX($K79:$O79,1,aux!$AL$1),"n.d.") -> 1.756594724 | AX79: 09
A80: 0904 | B80: Pimenta | C80: 21.774 | D80: 26.483 | E80: 16.53 | F80: 92.952 | G80: 31.143 | H80: 37.7764 | I80: 0.000147529748 | J80: 0.0001323762411 | K80: 3.985 | L80: 8.009 | M80: 9.575 | N80: 13.585 | O80: 4.464 | P80: 7.9236 | Q80: 4.758400273e-05 | R80: 3.313446926e-05 | S80: -29.8528 | U80: =G80-INDEX($C80:$G80,1,aux!$AL$1) -> 9.369 | V80: 8.430938537e-05 | W80: 7.846027854e-05 | X80: =+IF(INDEX($C80:$G80,1,aux!$AL$1)>0,(G80/INDEX($C80:$G80,1,aux!$AL$1))^(1/($G$3-INDEX($C$3:$G$3,1,aux!$AL$1)))-1,"n.d.") -> 0.09359258479 | Y80: =IF(INDEX($C80:$G80,1,aux!$AL$1)>0,(G80-INDEX($C80:$G80,1,aux!$AL$1))/INDEX($C80:$G80,1,aux!$AL$1),"n.d.") -> 0.4302838247 | AA80: =O80-INDEX($K80:$O80,1,aux!$AL$1) -> 0.479 | AB80: 1.84138976e-05 | AC80: 8.15114947e-06 | AD80: =+IF(INDEX($K80:$O80,1,aux!$AL$1)>0,(O80/INDEX($K80:$O80,1,aux!$AL$1))^(1/($O$3-INDEX($K$3:$O$3,1,aux!$AL$1)))-1,"n.d.") -> 0.02878344027 | AE80: =IF(INDEX($K80:$O80,1,aux!$AL$1)>0,(O80-INDEX($K80:$O80,1,aux!$AL$1))/INDEX($K80:$O80,1,aux!$AL$1),"n.d.") -> 0.1202007528 | AX80: 09
A81: 0905 | B81: Baunilha | C81: 5.923 | D81: 8.173 | E81: 0 | F81: 6.947 | G81: 12.835 | H81: 6.7756 | I81: 2.646103283e-05 | J81: 2.374308984e-05 | K81: 0 | L81: 0 | M81: 0.03 | N81: 0.033 | O81: 0 | P81: 0.0126 | Q81: 7.566742824e-08 | R81: 5.268997837e-08 | S81: -6.763 | U81: =G81-INDEX($C81:$G81,1,aux!$AL$1) -> 6.912 | V81: 6.219943128e-05 | W81: 5.788424008e-05 | X81: =+IF(INDEX($C81:$G81,1,aux!$AL$1)>0,(G81/INDEX($C81:$G81,1,aux!$AL$1))^(1/($G$3-INDEX($C$3:$G$3,1,aux!$AL$1)))-1,"n.d.") -> 0.2132869743 | Y81: =IF(INDEX($C81:$G81,1,aux!$AL$1)>0,(G81-INDEX($C81:$G81,1,aux!$AL$1))/INDEX($C81:$G81,1,aux!$AL$1),"n.d.") -> 1.166976194 | AA81: =O81-INDEX($K81:$O81,1,aux!$AL$1) -> 0 | AB81: 0 | AC81: 0 | AD81: =+IF(INDEX($K81:$O81,1,aux!$AL$1)>0,(O81/INDEX($K81:$O81,1,aux!$AL$1))^(1/($O$3-INDEX($K$3:$O$3,1,aux!$AL$1)))-1,"n.d.") -> n.d. | AE81: =IF(INDEX($K81:$O81,1,aux!$AL$1)>0,(O81-INDEX($K81:$O81,1,aux!$AL$1))/INDEX($K81:$O81,1,aux!$AL$1),"n.d.") -> n.d. | AX81: 09
A82: 0906 | B82: Canela | C82: 0.046 | D82: 1.184 | E82: 0.852 | F82: 1.668 | G82: 3.19 | H82: 1.388 | I82: 5.420614199e-06 | J82: 4.863836222e-06 | K82: 1.376 | L82: 8.897 | M82: 3.084 | N82: 3.672 | O82: 5.13 | P82: 4.4318 | Q82: 2.661451655e-05 | R82: 1.853265446e-05 | S82: 3.0438 | U82: =G82-INDEX($C82:$G82,1,aux!$AL$1) -> 3.144 | V82: 2.829210242e-05 | W82: 2.632928976e-05 | X82: =+IF(INDEX($C82:$G82,1,aux!$AL$1)>0,(G82/INDEX($C82:$G82,1,aux!$AL$1))^(1/($G$3-INDEX($C$3:$G$3,1,aux!$AL$1)))-1,"n.d.") -> 1.885746734 | Y82: =IF(INDEX($C82:$G82,1,aux!$AL$1)>0,(G82-INDEX($C82:$G82,1,aux!$AL$1))/INDEX($C82:$G82,1,aux!$AL$1),"n.d.") -> 68.34782609 | AA82: =O82-INDEX($K82:$O82,1,aux!$AL$1) -> 3.754 | AB82: 0.0001443126755 | AC82: 6.388186871e-05 | AD82: =+IF(INDEX($K82:$O82,1,aux!$AL$1)>0,(O82/INDEX($K82:$O82,1,aux!$AL$1))^(1/($O$3-INDEX($K$3:$O$3,1,aux!$AL$1)))-1,"n.d.") -> 0.3895517733 | AE82: =IF(INDEX($K82:$O82,1,aux!$AL$1)>0,(O82-INDEX($K82:$O82,1,aux!$AL$1))/INDEX($K82:$O82,1,aux!$AL$1),"n.d.") -> 2.728197674 | AX82: 09
A83: 0907 | B83: Cravo-da-índia | C83: 0 | D83: 0 | E83: 0 | F83: 0 | G83: 0 | H83: 0 | I83: 0 | J83: 0 | K83: 0.237 | L83: 0.587 | M83: 0.395 | N83: 0.315 | O83: 0.5 | P83: 0.4068 | Q83: 2.442976969e-06 | R83: 1.701133587e-06 | S83: 0.4068 | U83: =G83-INDEX($C83:$G83,1,aux!$AL$1) -> 0 | V83: 0 | W83: 0 | X83: =+IF(INDEX($C83:$G83,1,aux!$AL$1)>0,(G83/INDEX($C83:$G83,1,aux!$AL$1))^(1/($G$3-INDEX($C$3:$G$3,1,aux!$AL$1)))-1,"n.d.") -> n.d. | Y83: =IF(INDEX($C83:$G83,1,aux!$AL$1)>0,(G83-INDEX($C83:$G83,1,aux!$AL$1))/INDEX($C83:$G83,1,aux!$AL$1),"n.d.") -> n.d. | AA83: =O83-INDEX($K83:$O83,1,aux!$AL$1) -> 0.263 | AB83: 1.011034461e-05 | AC83: 4.475474553e-06 | AD83: =+IF(INDEX($K83:$O83,1,aux!$AL$1)>0,(O83/INDEX($K83:$O83,1,aux!$AL$1))^(1/($O$3-INDEX($K$3:$O$3,1,aux!$AL$1)))-1,"n.d.") -> 0.2051897089 | AE83: =IF(INDEX($K83:$O83,1,aux!$AL$1)>0,(O83-INDEX($K83:$O83,1,aux!$AL$1))/INDEX($K83:$O83,1,aux!$AL$1),"n.d.") -> 1.109704641 | AX83: 09
A84: 0908 | B84: Noz-moscada, etc. | C84: 0 | D84: 36.212 | E84: 0 | F84: 0 | G84: 131.19 | H84: 33.4804 | I84: 0.0001307524003 | J84: 0.0001173221774 | K84: 0.121 | L84: 0.178 | M84: 0.482 | N84: 0.309 | O84: 0.372 | P84: 0.2924 | Q84: 1.755964763e-06 | R84: 1.222742038e-06 | S84: -33.188 | U84: =G84-INDEX($C84:$G84,1,aux!$AL$1) -> 131.19 | V84: 0.001180547365 | W84: 0.001098644887 | X84: =+IF(INDEX($C84:$G84,1,aux!$AL$1)>0,(G84/INDEX($C84:$G84,1,aux!$AL$1))^(1/($G$3-INDEX($C$3:$G$3,1,aux!$AL$1)))-1,"n.d.") -> n.d. | Y84: =IF(INDEX($C84:$G84,1,aux!$AL$1)>0,(G84-INDEX($C84:$G84,1,aux!$AL$1))/INDEX($C84:$G84,1,aux!$AL$1),"n.d.") -> n.d. | AA84: =O84-INDEX($K84:$O84,1,aux!$AL$1) -> 0.251 | AB84: 9.649036109e-06 | AC84: 4.271270391e-06 | AD84: =+IF(INDEX($K84:$O84,1,aux!$AL$1)>0,(O84/INDEX($K84:$O84,1,aux!$AL$1))^(1/($O$3-INDEX($K$3:$O$3,1,aux!$AL$1)))-1,"n.d.") -> 0.3241567307 | AE84: =IF(INDEX($K84:$O84,1,aux!$AL$1)>0,(O84-INDEX($K84:$O84,1,aux!$AL$1))/INDEX($K84:$O84,1,aux!$AL$1),"n.d.") -> 2.074380165 | AX84: 09
A85: 0909 | B85: Sementes de anis, funcho, etc. | C85: 0 | D85: 0 | E85: 0 | F85: 0 | G85: 0 | H85: 0 | I85: 0 | J85: 0 | K85: 0.437 | L85: 0.933 | M85: 1.574 | N85: 1.664 | O85: 1.244 | P85: 1.1704 | Q85: 7.028663335e-06 | R85: 4.894313546e-06 | S85: 1.1704 | U85: =G85-INDEX($C85:$G85,1,aux!$AL$1) -> 0 | V85: 0 | W85: 0 | X85: =+IF(INDEX($C85:$G85,1,aux!$AL$1)>0,(G85/INDEX($C85:$G85,1,aux!$AL$1))^(1/($G$3-INDEX($C$3:$G$3,1,aux!$AL$1)))-1,"n.d.") -> n.d. | Y85: =IF(INDEX($C85:$G85,1,aux!$AL$1)>0,(G85-INDEX($C85:$G85,1,aux!$AL$1))/INDEX($C85:$G85,1,aux!$AL$1),"n.d.") -> n.d. | AA85: =O85-INDEX($K85:$O85,1,aux!$AL$1) -> 0.807 | AB85: 3.102299657e-05 | AC85: 1.37327299e-05 | AD85: =+IF(INDEX($K85:$O85,1,aux!$AL$1)>0,(O85/INDEX($K85:$O85,1,aux!$AL$1))^(1/($O$3-INDEX($K$3:$O$3,1,aux!$AL$1)))-1,"n.d.") -> 0.2989269747 | AE85: =IF(INDEX($K85:$O85,1,aux!$AL$1)>0,(O85-INDEX($K85:$O85,1,aux!$AL$1))/INDEX($K85:$O85,1,aux!$AL$1),"n.d.") -> 1.846681922 | AX85: 09
A86: 0910 | B86: Gengibre, açafrão, tomilho, louro, etc. | C86: 246.666 | D86: 284.182 | E86: 484.171 | F86: 261.522 | G86: 139.84 | H86: 283.2762 | I86: 0.00110629034 | J86: 0.0009926578115 | K86: 15.656 | L86: 34.643 | M86: 18.589 | N86: 33.732 | O86: 19.384 | P86: 24.4008 | Q86: 0.0001465353796 | R86: 0.0001020379067 | S86: -258.8754 | U86: =G86-INDEX($C86:$G86,1,aux!$AL$1) -> -106.826 | V86: -0.0009613015692 | W86: -0.0008946096398 | X86: =+IF(INDEX($C86:$G86,1,aux!$AL$1)>0,(G86/INDEX($C86:$G86,1,aux!$AL$1))^(1/($G$3-INDEX($C$3:$G$3,1,aux!$AL$1)))-1,"n.d.") -> -0.132278155 | Y86: =IF(INDEX($C86:$G86,1,aux!$AL$1)>0,(G86-INDEX($C86:$G86,1,aux!$AL$1))/INDEX($C86:$G86,1,aux!$AL$1),"n.d.") -> -0.4330795489 | AA86: =O86-INDEX($K86:$O86,1,aux!$AL$1) -> 3.728 | AB86: 0.0001433131738 | AC86: 6.343942636e-05 | AD86: =+IF(INDEX($K86:$O86,1,aux!$AL$1)>0,(O86/INDEX($K86:$O86,1,aux!$AL$1))^(1/($O$3-INDEX($K$3:$O$3,1,aux!$AL$1)))-1,"n.d.") -> 0.05484985404 | AE86: =IF(INDEX($K86:$O86,1,aux!$AL$1)>0,(O86-INDEX($K86:$O86,1,aux!$AL$1))/INDEX($K86:$O86,1,aux!$AL$1),"n.d.") -> 0.2381195708 | AX86: 09
A87: 09SS | B87: Café, chá, mate e especiarias | C87: 0 | D87: 0 | E87: 0 | F87: 0 | G87: 0 | H87: 0 | I87: 0 | J87: 0 | K87: 0 | L87: 0 | M87: 0 | N87: 0 | O87: 0 | P87: 0 | Q87: 0 | R87: 0 | S87: 0 | U87: =G87-INDEX($C87:$G87,1,aux!$AL$1) -> 0 | V87: 0 | W87: 0 | X87: =+IF(INDEX($C87:$G87,1,aux!$AL$1)>0,(G87/INDEX($C87:$G87,1,aux!$AL$1))^(1/($G$3-INDEX($C$3:$G$3,1,aux!$AL$1)))-1,"n.d.") -> n.d. | Y87: =IF(INDEX($C87:$G87,1,aux!$AL$1)>0,(G87-INDEX($C87:$G87,1,aux!$AL$1))/INDEX($C87:$G87,1,aux!$AL$1),"n.d.") -> n.d. | AA87: =O87-INDEX($K87:$O87,1,aux!$AL$1) -> 0 | AB87: 0 | AC87: 0 | AD87: =+IF(INDEX($K87:$O87,1,aux!$AL$1)>0,(O87/INDEX($K87:$O87,1,aux!$AL$1))^(1/($O$3-INDEX($K$3:$O$3,1,aux!$AL$1)))-1,"n.d.") -> n.d. | AE87: =IF(INDEX($K87:$O87,1,aux!$AL$1)>0,(O87-INDEX($K87:$O87,1,aux!$AL$1))/INDEX($K87:$O87,1,aux!$AL$1),"n.d.") -> n.d. | AX87: 09
A88: 1001 | B88: Trigo e mistura trigo/centeio | C88: 6.345 | D88: 0.74 | E88: 14.862 | F88: 18.601 | G88: 26.958 | H88: 13.5012 | I88: 5.272679858e-05 | J88: 4.731096945e-05 | K88: 0 | L88: 0 | M88: 0 | N88: 0.169 | O88: 0.132 | P88: 0.0602 | Q88: 3.615221572e-07 | R88: 2.517410078e-07 | S88: -13.441 | U88: =G88-INDEX($C88:$G88,1,aux!$AL$1) -> 20.613 | V88: 0.0001854914463 | W88: 0.0001726226621 | X88: =+IF(INDEX($C88:$G88,1,aux!$AL$1)>0,(G88/INDEX($C88:$G88,1,aux!$AL$1))^(1/($G$3-INDEX($C$3:$G$3,1,aux!$AL$1)))-1,"n.d.") -> 0.4357010256 | Y88: =IF(INDEX($C88:$G88,1,aux!$AL$1)>0,(G88-INDEX($C88:$G88,1,aux!$AL$1))/INDEX($C88:$G88,1,aux!$AL$1),"n.d.") -> 3.248699764 | AA88: =O88-INDEX($K88:$O88,1,aux!$AL$1) -> 0.132 | AB88: 5.074393492e-06 | AC88: 2.246245783e-06 | AD88: =+IF(INDEX($K88:$O88,1,aux!$AL$1)>0,(O88/INDEX($K88:$O88,1,aux!$AL$1))^(1/($O$3-INDEX($K$3:$O$3,1,aux!$AL$1)))-1,"n.d.") -> n.d. | AE88: =IF(INDEX($K88:$O88,1,aux!$AL$1)>0,(O88-INDEX($K88:$O88,1,aux!$AL$1))/INDEX($K88:$O88,1,aux!$AL$1),"n.d.") -> n.d. | AX88: 10
A89: 1002 | B89: Centeio | C89: 0 | D89: 0 | E89: 0 | F89: 0 | G89: 0 | H89: 0 | I89: 0 | J89: 0 | K89: 0 | L89: 0 | M89: 0 | N89: 0 | O89: 0 | P89: 0 | Q89: 0 | R89: 0 | S89: 0 | U89: =G89-INDEX($C89:$G89,1,aux!$AL$1) -> 0 | V89: 0 | W89: 0 | X89: =+IF(INDEX($C89:$G89,1,aux!$AL$1)>0,(G89/INDEX($C89:$G89,1,aux!$AL$1))^(1/($G$3-INDEX($C$3:$G$3,1,aux!$AL$1)))-1,"n.d.") -> n.d. | Y89: =IF(INDEX($C89:$G89,1,aux!$AL$1)>0,(G89-INDEX($C89:$G89,1,aux!$AL$1))/INDEX($C89:$G89,1,aux!$AL$1),"n.d.") -> n.d. | AA89: =O89-INDEX($K89:$O89,1,aux!$AL$1) -> 0 | AB89: 0 | AC89: 0 | AD89: =+IF(INDEX($K89:$O89,1,aux!$AL$1)>0,(O89/INDEX($K89:$O89,1,aux!$AL$1))^(1/($O$3-INDEX($K$3:$O$3,1,aux!$AL$1)))-1,"n.d.") -> n.d. | AE89: =IF(INDEX($K89:$O89,1,aux!$AL$1)>0,(O89-INDEX($K89:$O89,1,aux!$AL$1))/INDEX($K89:$O89,1,aux!$AL$1),"n.d.") -> n.d. | AX89: 10
A90: 1003 | B90: Cevada | C90: 3.765 | D90: 3.68 | E90: 5.699 | F90: 4.029 | G90: 3.652 | H90: 4.165 | I90: 1.626574794e-05 | J90: 1.459501287e-05 | K90: 0 | L90: 0.058 | M90: 0.044 | N90: 0.007 | O90: 0 | P90: 0.0218 | Q90: 1.309166616e-07 | R90: 9.116202607e-08 | S90: -4.1432 | U90: =G90-INDEX($C90:$G90,1,aux!$AL$1) -> -0.113 | V90: -1.016859915e-06 | W90: -9.463135314e-07 | X90: =+IF(INDEX($C90:$G90,1,aux!$AL$1)>0,(G90/INDEX($C90:$G90,1,aux!$AL$1))^(1/($G$3-INDEX($C$3:$G$3,1,aux!$AL$1)))-1,"n.d.") -> -0.007589279507 | Y90: =IF(INDEX($C90:$G90,1,aux!$AL$1)>0,(G90-INDEX($C90:$G90,1,aux!$AL$1))/INDEX($C90:$G90,1,aux!$AL$1),"n.d.") -> -0.03001328021 | AA90: =O90-INDEX($K90:$O90,1,aux!$AL$1) -> 0 | AB90: 0 | AC90: 0 | AD90: =+IF(INDEX($K90:$O90,1,aux!$AL$1)>0,(O90/INDEX($K90:$O90,1,aux!$AL$1))^(1/($O$3-INDEX($K$3:$O$3,1,aux!$AL$1)))-1,"n.d.") -> n.d. | AE90: =IF(INDEX($K90:$O90,1,aux!$AL$1)>0,(O90-INDEX($K90:$O90,1,aux!$AL$1))/INDEX($K90:$O90,1,aux!$AL$1),"n.d.") -> n.d. | AX90: 10
A91: 1004 | B91: Aveia | C91: 0.108 | D91: 0.57 | E91: 0.611 | F91: 1.467 | G91: 0.698 | H91: 0.6908 | I91: 2.697810006e-06 | J91: 2.420704656e-06 | K91: 0.005 | L91: 0 | M91: 0 | N91: 0 | O91: 0 | P91: 0.001 | Q91: 6.005351448e-09 | R91: 4.181744315e-09 | S91: -0.6898 | U91: =G91-INDEX($C91:$G91,1,aux!$AL$1) -> 0.59 | V91: 5.309268585e-06 | W91: 4.940929058e-06 | X91: =+IF(INDEX($C91:$G91,1,aux!$AL$1)>0,(G91/INDEX($C91:$G91,1,aux!$AL$1))^(1/($G$3-INDEX($C$3:$G$3,1,aux!$AL$1)))-1,"n.d.") -> 0.5944390298 | Y91: =IF(INDEX($C91:$G91,1,aux!$AL$1)>0,(G91-INDEX($C91:$G91,1,aux!$AL$1))/INDEX($C91:$G91,1,aux!$AL$1),"n.d.") -> 5.462962963 | AA91: =O91-INDEX($K91:$O91,1,aux!$AL$1) -> -0.005 | AB91: -1.922118747e-07 | AC91: -8.508506754e-08 | AD91: =+IF(INDEX($K91:$O91,1,aux!$AL$1)>0,(O91/INDEX($K91:$O91,1,aux!$AL$1))^(1/($O$3-INDEX($K$3:$O$3,1,aux!$AL$1)))-1,"n.d.") -> -1 | AE91: =IF(INDEX($K91:$O91,1,aux!$AL$1)>0,(O91-INDEX($K91:$O91,1,aux!$AL$1))/INDEX($K91:$O91,1,aux!$AL$1),"n.d.") -> -1 | AX91: 10
A92: 1005 | B92: Milho | C92: 3.276 | D92: 3.875 | E92: 3.144 | F92: 4.612 | G92: 2.071 | H92: 3.3956 | I92: 1.326097808e-05 | J92: 1.189887772e-05 | K92: 13.752 | L92: 21.887 | M92: 4.723 | N92: 4.221 | O92: 4.825 | P92: 9.8816 | Q92: 5.934248087e-05 | R92: 4.132232462e-05 | S92: 6.486 | U92: =G92-INDEX($C92:$G92,1,aux!$AL$1) -> -1.205 | V92: -1.084350618e-05 | W92: -1.009121952e-05 | X92: =+IF(INDEX($C92:$G92,1,aux!$AL$1)>0,(G92/INDEX($C92:$G92,1,aux!$AL$1))^(1/($G$3-INDEX($C$3:$G$3,1,aux!$AL$1)))-1,"n.d.") -> -0.1083199472 | Y92: =IF(INDEX($C92:$G92,1,aux!$AL$1)>0,(G92-INDEX($C92:$G92,1,aux!$AL$1))/INDEX($C92:$G92,1,aux!$AL$1),"n.d.") -> -0.3678266178 | AA92: =O92-INDEX($K92:$O92,1,aux!$AL$1) -> -8.927 | AB92: -0.0003431750811 | AC92: -0.0001519108796 | AD92: =+IF(INDEX($K92:$O92,1,aux!$AL$1)>0,(O92/INDEX($K92:$O92,1,aux!$AL$1))^(1/($O$3-INDEX($K$3:$O$3,1,aux!$AL$1)))-1,"n.d.") -> -0.2303684486 | AE92: =IF(INDEX($K92:$O92,1,aux!$AL$1)>0,(O92-INDEX($K92:$O92,1,aux!$AL$1))/INDEX($K92:$O92,1,aux!$AL$1),"n.d.") -> -0.649141943 | AX92: 10
A93: 1006 | B93: Arroz | C93: 223.257 | D93: 250.778 | E93: 163.33 | F93: 73.719 | G93: 126.844 | H93: 167.5856 | I93: 0.0006544790223 | J93: 0.000587254259 | K93: 1454.979 | L93: 2066.728 | M93: 1490.355 | N93: 1351.305 | O93: 1165.972 | P93: 1505.8678 | Q93: 0.009043265373 | R93: 0.006297154112 | S93: 1338.2822 | U93: =G93-INDEX($C93:$G93,1,aux!$AL$1) -> -96.413 | V93: -0.000867597478 | W93: -0.0008074064292 | X93: =+IF(INDEX($C93:$G93,1,aux!$AL$1)>0,(G93/INDEX($C93:$G93,1,aux!$AL$1))^(1/($G$3-INDEX($C$3:$G$3,1,aux!$AL$1)))-1,"n.d.") -> -0.1318071376 | Y93: =IF(INDEX($C93:$G93,1,aux!$AL$1)>0,(G93-INDEX($C93:$G93,1,aux!$AL$1))/INDEX($C93:$G93,1,aux!$AL$1),"n.d.") -> -0.4318476016 | AA93: =O93-INDEX($K93:$O93,1,aux!$AL$1) -> -289.007 | AB93: -0.01111011545 | AC93: -0.004918036023 | AD93: =+IF(INDEX($K93:$O93,1,aux!$AL$1)>0,(O93/INDEX($K93:$O93,1,aux!$AL$1))^(1/($O$3-INDEX($K$3:$O$3,1,aux!$AL$1)))-1,"n.d.") -> -0.05385467233 | AE93: =IF(INDEX($K93:$O93,1,aux!$AL$1)>0,(O93-INDEX($K93:$O93,1,aux!$AL$1))/INDEX($K93:$O93,1,aux!$AL$1),"n.d.") -> -0.1986331074 | AX93: 10
A94: 1007 | B94: Sorgo de grão | C94: 2.699 | D94: 3.021 | E94: 3.248 | F94: 6.189 | G94: 27.42 | H94: 8.5154 | I94: 3.325554622e-05 | J94: 2.98397053e-05 | K94: 0 | L94: 0 | M94: 0 | N94: 0 | O94: 0 | P94: 0 | Q94: 0 | R94: 0 | S94: -8.5154 | U94: =G94-INDEX($C94:$G94,1,aux!$AL$1) -> 24.721 | V94: 0.0002224583537 | W94: 0.0002070249275 | X94: =+IF(INDEX($C94:$G94,1,aux!$AL$1)>0,(G94/INDEX($C94:$G94,1,aux!$AL$1))^(1/($G$3-INDEX($C$3:$G$3,1,aux!$AL$1)))-1,"n.d.") -> 0.7853202931 | Y94: =IF(INDEX($C94:$G94,1,aux!$AL$1)>0,(G94-INDEX($C94:$G94,1,aux!$AL$1))/INDEX($C94:$G94,1,aux!$AL$1),"n.d.") -> 9.159318266 | AA94: =O94-INDEX($K94:$O94,1,aux!$AL$1) -> 0 | AB94: 0 | AC94: 0 | AD94: =+IF(INDEX($K94:$O94,1,aux!$AL$1)>0,(O94/INDEX($K94:$O94,1,aux!$AL$1))^(1/($O$3-INDEX($K$3:$O$3,1,aux!$AL$1)))-1,"n.d.") -> n.d. | AE94: =IF(INDEX($K94:$O94,1,aux!$AL$1)>0,(O94-INDEX($K94:$O94,1,aux!$AL$1))/INDEX($K94:$O94,1,aux!$AL$1),"n.d.") -> n.d. | AX94: 10
A95: 1008 | B95: Trigo mourisco, painço e outros cereais | C95: 78.379 | D95: 77.3 | E95: 91.314 | F95: 137.061 | G95: 159.565 | H95: 108.7238 | I95: 0.0004246035836 | J95: 0.0003809904586 | K95: 0.05 | L95: 0.059 | M95: 0 | N95: 0.251 | O95: 1.279 | P95: 0.3278 | Q95: 1.968554205e-06 | R95: 1.370775787e-06 | S95: -108.396 | U95: =G95-INDEX($C95:$G95,1,aux!$AL$1) -> 81.186 | V95: 0.0007305733548 | W95: 0.0006798885872 | X95: =+IF(INDEX($C95:$G95,1,aux!$AL$1)>0,(G95/INDEX($C95:$G95,1,aux!$AL$1))^(1/($G$3-INDEX($C$3:$G$3,1,aux!$AL$1)))-1,"n.d.") -> 0.1944953944 | Y95: =IF(INDEX($C95:$G95,1,aux!$AL$1)>0,(G95-INDEX($C95:$G95,1,aux!$AL$1))/INDEX($C95:$G95,1,aux!$AL$1),"n.d.") -> 1.035813164 | AA95: =O95-INDEX($K95:$O95,1,aux!$AL$1) -> 1.229 | AB95: 4.72456788e-05 | AC95: 2.09139096e-05 | AD95: =+IF(INDEX($K95:$O95,1,aux!$AL$1)>0,(O95/INDEX($K95:$O95,1,aux!$AL$1))^(1/($O$3-INDEX($K$3:$O$3,1,aux!$AL$1)))-1,"n.d.") -> 1.248925843 | AE95: =IF(INDEX($K95:$O95,1,aux!$AL$1)>0,(O95-INDEX($K95:$O95,1,aux!$AL$1))/INDEX($K95:$O95,1,aux!$AL$1),"n.d.") -> 24.58 | AX95: 10
A96: 10SS | B96: Cereais | C96: 0 | D96: 0 | E96: 0 | F96: 0 | G96: 0 | H96: 0 | I96: 0 | J96: 0 | K96: 0 | L96: 0 | M96: 0 | N96: 0 | O96: 0 | P96: 0 | Q96: 0 | R96: 0 | S96: 0 | U96: =G96-INDEX($C96:$G96,1,aux!$AL$1) -> 0 | V96: 0 | W96: 0 | X96: =+IF(INDEX($C96:$G96,1,aux!$AL$1)>0,(G96/INDEX($C96:$G96,1,aux!$AL$1))^(1/($G$3-INDEX($C$3:$G$3,1,aux!$AL$1)))-1,"n.d.") -> n.d. | Y96: =IF(INDEX($C96:$G96,1,aux!$AL$1)>0,(G96-INDEX($C96:$G96,1,aux!$AL$1))/INDEX($C96:$G96,1,aux!$AL$1),"n.d.") -> n.d. | AA96: =O96-INDEX($K96:$O96,1,aux!$AL$1) -> 0 | AB96: 0 | AC96: 0 | AD96: =+IF(INDEX($K96:$O96,1,aux!$AL$1)>0,(O96/INDEX($K96:$O96,1,aux!$AL$1))^(1/($O$3-INDEX($K$3:$O$3,1,aux!$AL$1)))-1,"n.d.") -> n.d. | AE96: =IF(INDEX($K96:$O96,1,aux!$AL$1)>0,(O96-INDEX($K96:$O96,1,aux!$AL$1))/INDEX($K96:$O96,1,aux!$AL$1),"n.d.") -> n.d. | AX96: 10
A97: 1101 | B97: Farinhas de trigo ou trigo/centeio | C97: 190.229 | D97: 235.057 | E97: 138.576 | F97: 115.517 | G97: 92.751 | H97: 154.426 | I97: 0.0006030862884 | J97: 0.0005411403259 | K97: 52.157 | L97: 16.4 | M97: 180.999 | N97: 9.706 | O97: 14.804 | P97: 54.8132 | Q97: 0.00032917253 | R97: 0.0002292147875 | S97: -99.6128 | U97: =G97-INDEX($C97:$G97,1,aux!$AL$1) -> -97.478 | V97: -0.0008771811578 | W97: -0.0008163252249 | X97: =+IF(INDEX($C97:$G97,1,aux!$AL$1)>0,(G97/INDEX($C97:$G97,1,aux!$AL$1))^(1/($G$3-INDEX($C$3:$G$3,1,aux!$AL$1)))-1,"n.d.") -> -0.1643768388 | Y97: =IF(INDEX($C97:$G97,1,aux!$AL$1)>0,(G97-INDEX($C97:$G97,1,aux!$AL$1))/INDEX($C97:$G97,1,aux!$AL$1),"n.d.") -> -0.5124244989 | AA97: =O97-INDEX($K97:$O97,1,aux!$AL$1) -> -37.353 | AB97: -0.001435938031 | AC97: -0.0006356365056 | AD97: =+IF(INDEX($K97:$O97,1,aux!$AL$1)>0,(O97/INDEX($K97:$O97,1,aux!$AL$1))^(1/($O$3-INDEX($K$3:$O$3,1,aux!$AL$1)))-1,"n.d.") -> -0.2700945301 | AE97: =IF(INDEX($K97:$O97,1,aux!$AL$1)>0,(O97-INDEX($K97:$O97,1,aux!$AL$1))/INDEX($K97:$O97,1,aux!$AL$1),"n.d.") -> -0.7161646567 | AX97: 11
A98: 1102 | B98: Outras farinhas de cereais | C98: 34.383 | D98: 16.807 | E98: 2.607 | F98: 297.508 | G98: 496.515 | H98: 169.564 | I98: 0.0006622053502 | J98: 0.0005941869777 | K98: 28.217 | L98: 22.645 | M98: 811.03 | N98: 696.538 | O98: 842.309 | P98: 480.1478 | Q98: 0.002883456286 | R98: 0.002007855333 | S98: 310.5838 | U98: =G98-INDEX($C98:$G98,1,aux!$AL$1) -> 462.132 | V98: 0.004158615101 | W98: 0.003870104114 | X98: =+IF(INDEX($C98:$G98,1,aux!$AL$1)>0,(G98/INDEX($C98:$G98,1,aux!$AL$1))^(1/($G$3-INDEX($C$3:$G$3,1,aux!$AL$1)))-1,"n.d.") -> 0.9493828973 | Y98: =IF(INDEX($C98:$G98,1,aux!$AL$1)>0,(G98-INDEX($C98:$G98,1,aux!$AL$1))/INDEX($C98:$G98,1,aux!$AL$1),"n.d.") -> 13.44071198 | AA98: =O98-INDEX($K98:$O98,1,aux!$AL$1) -> 814.092 | AB98: 0.0312956299 | AC98: 0.01385341456 | AD98: =+IF(INDEX($K98:$O98,1,aux!$AL$1)>0,(O98/INDEX($K98:$O98,1,aux!$AL$1))^(1/($O$3-INDEX($K$3:$O$3,1,aux!$AL$1)))-1,"n.d.") -> 1.337438272 | AE98: =IF(INDEX($K98:$O98,1,aux!$AL$1)>0,(O98-INDEX($K98:$O98,1,aux!$AL$1))/INDEX($K98:$O98,1,aux!$AL$1),"n.d.") -> 28.85111812 | AX98: 11
A99: 1103 | B99: Grumos, sêmolas, etc. de cereais | C99: 0.82 | D99: 18.408 | E99: 0 | F99: 31.016 | G99: 3.304 | H99: 10.7096 | I99: 4.182464685e-05 | J99: 3.752863141e-05 | K99: 0.029 | L99: 0.057 | M99: 0.075 | N99: 0.095 | O99: 0.947 | P99: 0.2406 | Q99: 1.444887558e-06 | R99: 1.006127682e-06 | S99: -10.469 | U99: =G99-INDEX($C99:$G99,1,aux!$AL$1) -> 2.484 | V99: 2.235292062e-05 | W99: 2.080214878e-05 | X99: =+IF(INDEX($C99:$G99,1,aux!$AL$1)>0,(G99/INDEX($C99:$G99,1,aux!$AL$1))^(1/($G$3-INDEX($C$3:$G$3,1,aux!$AL$1)))-1,"n.d.") -> 0.4167934701 | Y99: =IF(INDEX($C99:$G99,1,aux!$AL$1)>0,(G99-INDEX($C99:$G99,1,aux!$AL$1))/INDEX($C99:$G99,1,aux!$AL$1),"n.d.") -> 3.029268293 | AA99: =O99-INDEX($K99:$O99,1,aux!$AL$1) -> 0.918 | AB99: 3.529010019e-05 | AC99: 1.56216184e-05 | AD99: =+IF(INDEX($K99:$O99,1,aux!$AL$1)>0,(O99/INDEX($K99:$O99,1,aux!$AL$1))^(1/($O$3-INDEX($K$3:$O$3,1,aux!$AL$1)))-1,"n.d.") -> 1.390495857 | AE99: =IF(INDEX($K99:$O99,1,aux!$AL$1)>0,(O99-INDEX($K99:$O99,1,aux!$AL$1))/INDEX($K99:$O99,1,aux!$AL$1),"n.d.") -> 31.65517241 | AX99: 11
A100: 1104 | B100: Grãos de cereais processados | C100: 134.37 | D100: 161.351 | E100: 222.942 | F100: 289.41 | G100: 203.411 | H100: 202.2968 | I100: 0.0007900381171 | J100: 0.0007088894116 | K100: 2.466 | L100: 2.761 | M100: 3.857 | N100: 8.352 | O100: 23.635 | P100: 8.2142 | Q100: 4.932915786e-05 | R100: 3.434968415e-05 | S100: -194.0826 | U100: =G100-INDEX($C100:$G100,1,aux!$AL$1) -> 69.041 | V100: 0.0006212834108 | W100: 0.0005781808188 | X100: =+IF(INDEX($C100:$G100,1,aux!$AL$1)>0,(G100/INDEX($C100:$G100,1,aux!$AL$1))^(1/($G$3-INDEX($C$3:$G$3,1,aux!$AL$1)))-1,"n.d.") -> 0.1092208628 | Y100: =IF(INDEX($C100:$G100,1,aux!$AL$1)>0,(G100-INDEX($C100:$G100,1,aux!$AL$1))/INDEX($C100:$G100,1,aux!$AL$1),"n.d.") -> 0.513812607 | AA100: =O100-INDEX($K100:$O100,1,aux!$AL$1) -> 21.169 | AB100: 0.0008137866351 | AC100: 0.000360233159 | AD100: =+IF(INDEX($K100:$O100,1,aux!$AL$1)>0,(O100/INDEX($K100:$O100,1,aux!$AL$1))^(1/($O$3-INDEX($K$3:$O$3,1,aux!$AL$1)))-1,"n.d.") -> 0.7595055197 | AE100: =IF(INDEX($K100:$O100,1,aux!$AL$1)>0,(O100-INDEX($K100:$O100,1,aux!$AL$1))/INDEX($K100:$O100,1,aux!$AL$1),"n.d.") -> 8.584347121 | AX100: 11
A101: 1105 | B101: Farinha, sêmola, etc. de batata | C101: 1878.259 | D101: 2615.263 | E101: 1987.641 | F101: 1632.566 | G101: 2271.174 | H101: 2076.9806 | I101: 0.008111318827 | J101: 0.007278165327 | K101: 0.109 | L101: 0.152 | M101: 30.2 | N101: 0.026 | O101: 0.059 | P101: 6.1092 | Q101: 3.668789307e-05 | R101: 2.554711237e-05 | S101: -2070.8714 | U101: =G101-INDEX($C101:$G101,1,aux!$AL$1) -> 392.915 | V101: 0.003535747908 | W101: 0.003290449391 | X101: =+IF(INDEX($C101:$G101,1,aux!$AL$1)>0,(G101/INDEX($C101:$G101,1,aux!$AL$1))^(1/($G$3-INDEX($C$3:$G$3,1,aux!$AL$1)))-1,"n.d.") -> 0.04863351113 | Y101: =IF(INDEX($C101:$G101,1,aux!$AL$1)>0,(G101-INDEX($C101:$G101,1,aux!$AL$1))/INDEX($C101:$G101,1,aux!$AL$1),"n.d.") -> 0.2091910647 | AA101: =O101-INDEX($K101:$O101,1,aux!$AL$1) -> -0.05 | AB101: -1.922118747e-06 | AC101: -8.508506754e-07 | AD101: =+IF(INDEX($K101:$O101,1,aux!$AL$1)>0,(O101/INDEX($K101:$O101,1,aux!$AL$1))^(1/($O$3-INDEX($K$3:$O$3,1,aux!$AL$1)))-1,"n.d.") -> -0.142258588 | AE101: =IF(INDEX($K101:$O101,1,aux!$AL$1)>0,(O101-INDEX($K101:$O101,1,aux!$AL$1))/INDEX($K101:$O101,1,aux!$AL$1),"n.d.") -> -0.4587155963 | AX101: 11
A102: 1106 | B102: Farinhas, etc. de leguminosas e outros tubérculos | C102: 8.008 | D102: 26.276 | E102: 25.183 | F102: 42.271 | G102: 49.911 | H102: 30.3298 | I102: 0.0001184482309 | J102: 0.0001062818299 | K102: 9.326 | L102: 7.352 | M102: 12.505 | N102: 7.076 | O102: 10.341 | P102: 9.32 | Q102: 5.596987549e-05 | R102: 3.897385702e-05 | S102: -21.0098 | U102: =G102-INDEX($C102:$G102,1,aux!$AL$1) -> 41.903 | V102: 0.0003770750534 | W102: 0.000350914831 | X102: =+IF(INDEX($C102:$G102,1,aux!$AL$1)>0,(G102/INDEX($C102:$G102,1,aux!$AL$1))^(1/($G$3-INDEX($C$3:$G$3,1,aux!$AL$1)))-1,"n.d.") -> 0.5800398912 | Y102: =IF(INDEX($C102:$G102,1,aux!$AL$1)>0,(G102-INDEX($C102:$G102,1,aux!$AL$1))/INDEX($C102:$G102,1,aux!$AL$1),"n.d.") -> 5.232642358 | AA102: =O102-INDEX($K102:$O102,1,aux!$AL$1) -> 1.015 | AB102: 3.901901056e-05 | AC102: 1.727226871e-05 | AD102: =+IF(INDEX($K102:$O102,1,aux!$AL$1)>0,(O102/INDEX($K102:$O102,1,aux!$AL$1))^(1/($O$3-INDEX($K$3:$O$3,1,aux!$AL$1)))-1,"n.d.") -> 0.02616401685 | AE102: =IF(INDEX($K102:$O102,1,aux!$AL$1)>0,(O102-INDEX($K102:$O102,1,aux!$AL$1))/INDEX($K102:$O102,1,aux!$AL$1),"n.d.") -> 0.1088355136 | AX102: 11
A103: 1107 | B103: Malte, mesmo torrado | C103: 19.795 | D103: 299.503 | E103: 34.392 | F103: 73.062 | G103: 171.511 | H103: 119.6526 | I103: 0.0004672842813 | J103: 0.0004192872117 | K103: 0 | L103: 0 | M103: 0 | N103: 0 | O103: 0 | P103: 0 | Q103: 0 | R103: 0 | S103: -119.6526 | U103: =G103-INDEX($C103:$G103,1,aux!$AL$1) -> 151.716 | V103: 0.00136525592 | W103: 0.001270538971 | X103: =+IF(INDEX($C103:$G103,1,aux!$AL$1)>0,(G103/INDEX($C103:$G103,1,aux!$AL$1))^(1/($G$3-INDEX($C$3:$G$3,1,aux!$AL$1)))-1,"n.d.") -> 0.7156714259 | Y103: =IF(INDEX($C103:$G103,1,aux!$AL$1)>0,(G103-INDEX($C103:$G103,1,aux!$AL$1))/INDEX($C103:$G103,1,aux!$AL$1),"n.d.") -> 7.664359687 | AA103: =O103-INDEX($K103:$O103,1,aux!$AL$1) -> 0 | AB103: 0 | AC103: 0 | AD103: =+IF(INDEX($K103:$O103,1,aux!$AL$1)>0,(O103/INDEX($K103:$O103,1,aux!$AL$1))^(1/($O$3-INDEX($K$3:$O$3,1,aux!$AL$1)))-1,"n.d.") -> n.d. | AE103: =IF(INDEX($K103:$O103,1,aux!$AL$1)>0,(O103-INDEX($K103:$O103,1,aux!$AL$1))/INDEX($K103:$O103,1,aux!$AL$1),"n.d.") -> n.d. | AX103: 11
A104: 1108 | B104: Amidos e féculas; inulina | C104: 1275.717 | D104: 1185.99 | E104: 1308.27 | F104: 1552.645 | G104: 2211.223 | H104: 1506.769 | I104: 0.00588444772 | J104: 0.005280027118 | K104: 203.877 | L104: 86.856 | M104: 51.654 | N104: 96.046 | O104: 121.146 | P104: 111.9158 | Q104: 0.0006720937116 | R104: 0.0004680032604 | S104: -1394.8532 | U104: =G104-INDEX($C104:$G104,1,aux!$AL$1) -> 935.506 | V104: 0.008418394265 | W104: 0.007834353863 | X104: =+IF(INDEX($C104:$G104,1,aux!$AL$1)>0,(G104/INDEX($C104:$G104,1,aux!$AL$1))^(1/($G$3-INDEX($C$3:$G$3,1,aux!$AL$1)))-1,"n.d.") -> 0.1474124292 | Y104: =IF(INDEX($C104:$G104,1,aux!$AL$1)>0,(G104-INDEX($C104:$G104,1,aux!$AL$1))/INDEX($C104:$G104,1,aux!$AL$1),"n.d.") -> 0.7333178126 | AA104: =O104-INDEX($K104:$O104,1,aux!$AL$1) -> -82.731 | AB104: -0.003180376121 | AC104: -0.001407834545 | AD104: =+IF(INDEX($K104:$O104,1,aux!$AL$1)>0,(O104/INDEX($K104:$O104,1,aux!$AL$1))^(1/($O$3-INDEX($K$3:$O$3,1,aux!$AL$1)))-1,"n.d.") -> -0.1220188109 | AE104: =IF(INDEX($K104:$O104,1,aux!$AL$1)>0,(O104-INDEX($K104:$O104,1,aux!$AL$1))/INDEX($K104:$O104,1,aux!$AL$1),"n.d.") -> -0.4057887844 | AX104: 11
